Workbook

Sheet Introduction
C4: Joint Monitoring Programme for Water Supply, Sanitation and Hygiene
C6: Estimates on household water, sanitation and hygiene by wealth quintile and sub-national region in
C7: =+Water!B5 -> Yemen
C9: Updated May 2021
C11: Follow the links below to find the following information:
C13: JMP Estimates
C14: WASH status and trends by wealth quintile (customized quintiles made without water and sanitation assets)
C15: Water
C16: Sanitation
C17: Hygiene
C19: Data inputs
C20: customized wealth quintiles and subnational data:
C21: =IF(INDIRECT(CONCATENATE("Water","!B105"))=0,"",INDIRECT(CONCATENATE("Water","!B105"))) -> MICS06
C22: =IF(INDIRECT(CONCATENATE("Water","!B106"))=0,"",INDIRECT(CONCATENATE("Water","!B106"))) -> DHS13
C23: =IF(INDIRECT(CONCATENATE("Water","!B107"))=0,"",INDIRECT(CONCATENATE("Water","!B107"))) -> 
C24: =IF(INDIRECT(CONCATENATE("Water","!B108"))=0,"",INDIRECT(CONCATENATE("Water","!B108"))) -> 
C25: =IF(INDIRECT(CONCATENATE("Water","!B109"))=0,"",INDIRECT(CONCATENATE("Water","!B109"))) -> 
C26: =IF(INDIRECT(CONCATENATE("Water","!B110"))=0,"",INDIRECT(CONCATENATE("Water","!B110"))) -> 
C27: =IF(INDIRECT(CONCATENATE("Water","!B111"))=0,"",INDIRECT(CONCATENATE("Water","!B111"))) -> 
C28: =IF(INDIRECT(CONCATENATE("Water","!B112"))=0,"",INDIRECT(CONCATENATE("Water","!B112"))) -> 
C29: =IF(INDIRECT(CONCATENATE("Water","!B113"))=0,"",INDIRECT(CONCATENATE("Water","!B113"))) -> 
C30: =IF(INDIRECT(CONCATENATE("Water","!B114"))=0,"",INDIRECT(CONCATENATE("Water","!B114"))) -> 
C31: =IF(INDIRECT(CONCATENATE("Water","!B115"))=0,"",INDIRECT(CONCATENATE("Water","!B115"))) -> 
C32: =IF(INDIRECT(CONCATENATE("Water","!B116"))=0,"",INDIRECT(CONCATENATE("Water","!B116"))) -> 
L55: =+IF(ISNUMBER(M48), "", "Insufficient data to estimate safely managed sanitation services at national level") -> Insufficient data to estimate safely managed sanitation services at national level

Sheet Water
A1: BGD
B4: Summary of trends in use of drinking water by wealth quintile (%)
B5: =IF(ISERROR(INDIRECT(CONCATENATE($B105,"!A2"))),"",INDIRECT(CONCATENATE($B105,"!A2"))) -> Yemen
B7: =B118 -> National use of drinking water sources, 2000–2019 | J7: =B218 -> Urban use of drinking water sources, 2000–2019 | R7: =B318 -> Rural use of drinking water sources, 2000–2019
B31: =IF(ISERROR(INDIRECT(CONCATENATE($B105,"!A2"))),"",INDIRECT(CONCATENATE($B105,"!A2"))) -> Yemen | F31: Poorest | J31: Poor | N31: Middle | R31: Rich | V31: Richest
F32: Basic | G32: Limited | H32: Unimproved | I32: Surface water | J32: Basic | K32: Limited | L32: Unimproved | M32: Surface water | N32: Basic | O32: Limited | P32: Unimproved | Q32: Surface water | R32: Basic | S32: Limited | T32: Unimproved | U32: Surface water | V32: Basic | W32: Limited | X32: Unimproved | Y32: Surface water
B33: NATIONAL | D33: Estimate | E33: =C99 -> 2000 | F33: =E99 -> 18.8701276 | G33: =F99 -> 13.60006711 | H33: 57.38967541 | I33: 10.14012988 | J33: =J99 -> 42.95585239 | K33: =K99 -> 10.82856205 | L33: 38.78812912 | M33: 7.427456439 | N33: =O99 -> 64.98312996 | O33: =P99 -> 6.761267433 | P33: 22.04312816 | Q33: 6.212474441 | R33: =T99 -> 90.76491689 | S33: =U99 -> 1.918009372 | T33: 6.13759889 | U33: 1.179474848 | V33: =Y99 -> 95.51027396 | W33: =Z99 -> 2.883523599 | X33: 1.199420563 | Y33: 0.4067818722
E34: =C100 -> 2019 | F34: =E100 -> 34.85423907 | G34: 25.12012639 | H34: 37.01909789 | I34: 3.006536646 | J34: =J100 -> 60.07685774 | K34: 15.14452503 | L34: 22.36986671 | M34: 2.408750524 | N34: =O100 -> 79.86704943 | O34: 8.309887206 | P34: 10.97900061 | Q34: 0.8440627525 | R34: =T100 -> 94.73367923 | S34: 2.001875734 | T34: 2.965003717 | U34: 0.2994413184 | V34: =Y100 -> 96.09842072 | W34: 2.901280171 | X34: 0.9011622589 | Y34: 0.0991368468
B36: URBAN | D36: Estimate | E36: =C199 -> 2000 | F36: =E199 -> 90.66607269 | G36: =F199 -> 3.635469356 | H36: 5.698457957 | I36: 0 | J36: =J199 -> 94.60262169 | K36: =K199 -> 1.586496646 | L36: 3.810881661 | M36: 0 | N36: =O199 -> 94.60770843 | O36: =P199 -> 2.394454398 | P36: 2.997837175 | Q36: 0 | R36: =T199 -> 96.00349125 | S36: =U199 -> 1.887010266 | T36: 2.109498483 | U36: 0 | V36: =Y199 -> 98.63089407 | W36: =Z199 -> 1.369105932 | X36: 0 | Y36: 0
E37: =C200 -> 2019 | F37: =E200 -> 94.86008253 | G37: 3.803638042 | H37: 1.336279427 | I37: 0 | J37: =J200 -> 98.35064852 | K37: 1.649351479 | L37: 0 | M37: 0 | N37: =O200 -> 97.53154535 | O37: 2.468454649 | P37: 0 | Q37: 0 | R37: =T200 -> 98.07232547 | S37: 1.927674531 | T37: 0 | U37: 0 | V37: =Y200 -> 98.11133942 | W37: 1.361893939 | X37: 0.5267666368 | Y37: 0
B39: RURAL | D39: Estimate | E39: =C299 -> 2000 | F39: =E299 -> 15.4984373 | G39: =F299 -> 15.79736347 | H39: 57.49441178 | I39: 11.20978745 | J39: =J299 -> 27.34458449 | K39: =K299 -> 10.16016688 | L39: 54.02448515 | M39: 8.470763484 | N39: =O299 -> 51.16484935 | O39: =P299 -> 10.76371766 | P39: 30.30330929 | Q39: 7.768123701 | R39: =T299 -> 59.37932424 | S39: =U299 -> 6.41210095 | T39: 27.30801442 | U39: 6.90056039 | V39: =Y299 -> 87.87882093 | W39: =Z299 -> 3.614138006 | X39: 6.235364103 | Y39: 2.271676959
E40: =C300 -> 2019 | F40: =E300 -> 29.06621518 | G40: 29.62682992 | H40: 38.736738 | I40: 2.570216892 | J40: =J300 -> 49.96852714 | K40: 18.56632982 | L40: 27.92906782 | M40: 3.536075223 | N40: =O300 -> 65.54692993 | O40: 13.78932327 | P40: 18.91064267 | Q40: 1.753104127 | R40: =T300 -> 77.57326922 | S40: 8.376781642 | T40: 12.92490582 | U40: 1.125043316 | V40: =Y300 -> 89.77681391 | W40: 3.692195591 | X40: 5.872065091 | Y40: 0.6589254069
A97: NATIONAL | D97: Poorest | I97: Poor | N97: Middle | S97: Rich | X97: Richest
D98: Improved | E98: Basic | F98: Limited | G98: Unimproved | H98: Surface water | I98: Improved | J98: Basic | K98: Limited | L98: Unimproved | M98: Surface water | N98: Improved | O98: Basic | P98: Limited | Q98: Unimproved | R98: Surface water | S98: Improved | T98: Basic | U98: Limited | V98: Unimproved | W98: Surface water | X98: Improved | Y98: Basic | Z98: Limited | AA98: Unimproved | AB98: Surface water
A99: Forecast period: | C99: =MinBase(C105:C116) -> 2000 | D99: =IF((D101+H101)>100,D101*100/(D101+H101),D101) -> 32.47019471 | E99: =D99*AVERAGEIF(E105:E116,">0")/100 -> 18.8701276 | F99: =D99*(100-AVERAGEIF(E105:E116,">0"))/100 -> 13.60006711 | G99: =100-(E99+F99+H99) -> 57.38967541 | H99: =IF((D101+H101)>100,H101*100/(D101+H101),H101) -> 10.14012988 | I99: =IF((I101+M101)>100,I101*100/(I101+M101),I101) -> 53.78441444 | J99: =I99*AVERAGEIF(J105:J116,">0")/100 -> 42.95585239 | K99: =I99*(100-AVERAGEIF(J105:J116,">0"))/100 -> 10.82856205 | L99: =100-(J99+K99+M99) -> 38.78812912 | M99: =IF((I101+M101)>100,M101*100/(I101+M101),M101) -> 7.427456439 | N99: =IF((N101+R101)>100,N101*100/(N101+R101),N101) -> 71.74439739 | O99: =N99*AVERAGEIF(O105:O116,">0")/100 -> 64.98312996 | P99: =N99*(100-AVERAGEIF(O105:O116,">0"))/100 -> 6.761267433 | Q99: =100-(O99+P99+R99) -> 22.04312816 | R99: =IF((N101+R101)>100,R101*100/(N101+R101),R101) -> 6.212474441 | S99: =IF((S101+W101)>100,S101*100/(S101+W101),S101) -> 92.68292626 | T99: =S99*AVERAGEIF(T105:T116,">0")/100 -> 90.76491689 | U99: =S99*(100-AVERAGEIF(T105:T116,">0"))/100 -> 1.918009372 | V99: =100-(T99+U99+W99) -> 6.13759889 | W99: =IF((S101+W101)>100,W101*100/(S101+W101),W101) -> 1.179474848 | X99: =IF((X101+AB101)>100,X101*100/(X101+AB101),X101) -> 98.39379756 | Y99: =X99*AVERAGEIF(Y105:Y116,">0")/100 -> 95.51027396 | Z99: =X99*(100-AVERAGEIF(Y105:Y116,">0"))/100 -> 2.883523599 | AA99: =100-(Y99+Z99+AB99) -> 1.199420563 | AB99: =IF((X101+AB101)>100,AB101*100/(X101+AB101),AB101) -> 0.4067818722
C100: =MaxTarget(C105:C116) -> 2019 | D100: =IF((D102+H102)>100,D102*100/(D102+H102),D102) -> 59.97436546 | E100: =D100*AVERAGEIF(E105:E116,">0")/100 -> 34.85423907 | F100: =D100*(100-AVERAGEIF(E105:E116,">0"))/100 -> 25.12012639 | G100: =100-(E100+F100+H100) -> 37.01909789 | H100: =IF((D102+H102)>100,H102*100/(D102+H102),H102) -> 3.006536646 | I100: =IF((I102+M102)>100,I102*100/(I102+M102),I102) -> 75.22138277 | J100: =I100*AVERAGEIF(J105:J116,">0")/100 -> 60.07685774 | K100: =I100*(100-AVERAGEIF(J105:J116,">0"))/100 -> 15.14452503 | L100: =100-(J100+K100+M100) -> 22.36986671 | M100: =IF((I102+M102)>100,M102*100/(I102+M102),M102) -> 2.408750524 | N100: =IF((N102+R102)>100,N102*100/(N102+R102),N102) -> 88.17693664 | O100: =N100*AVERAGEIF(O105:O116,">0")/100 -> 79.86704943 | P100: =N100*(100-AVERAGEIF(O105:O116,">0"))/100 -> 8.309887206 | Q100: =100-(O100+P100+R100) -> 10.97900061 | R100: =IF((N102+R102)>100,R102*100/(N102+R102),R102) -> 0.8440627525 | S100: =IF((S102+W102)>100,S102*100/(S102+W102),S102) -> 96.73555496 | T100: =S100*AVERAGEIF(T105:T116,">0")/100 -> 94.73367923 | U100: =S100*(100-AVERAGEIF(T105:T116,">0"))/100 -> 2.001875734 | V100: =100-(T100+U100+W100) -> 2.965003717 | W100: =IF((S102+W102)>100,W102*100/(S102+W102),W102) -> 0.2994413184 | X100: =IF((X102+AB102)>100,X102*100/(X102+AB102),X102) -> 98.99970089 | Y100: =X100*AVERAGEIF(Y105:Y116,">0")/100 -> 96.09842072 | Z100: =X100*(100-AVERAGEIF(Y105:Y116,">0"))/100 -> 2.901280171 | AA100: =100-(Y100+Z100+AB100) -> 0.9011622589 | AB100: =IF((X102+AB102)>100,AB102*100/(X102+AB102),AB102) -> 0.0991368468
A101: Regression period: | C101: =MinRegYear(C99,C105:C116) -> 2004 | D101: =IF(MAX(C105:C116)-MIN(C105:C116)<5,AVERAGEIF(C105:C116,">0",D105:D116), IF(FORECAST($C101,D$105:D$116,$C$105:$C$116)<0,0, IF(FORECAST($C101,D$105:D$116,$C$105:$C$116)>100,100, FORECAST($C101,D$105:D$116,$C$105:$C$116)))) -> 32.47019471 | H101: =IF(MAX(C105:C116)-MIN(C105:C116)<5,AVERAGEIF(C105:C116,">0",H105:H116), IF(FORECAST($C101,H$105:H$116,$C$105:$C$116)<0,0, IF(FORECAST($C101,H$105:H$116,$C$105:$C$116)>100,100, FORECAST($C101,H$105:H$116,$C$105:$C$116)))) -> 10.14012988 | I101: =IF(MAX(C105:C116)-MIN(C105:C116)<5,AVERAGEIF(C105:C116,">0",I105:I116), IF(FORECAST($C101,I$105:I$116,$C$105:$C$116)<0,0, IF(FORECAST($C101,I$105:I$116,$C$105:$C$116)>100,100, FORECAST($C101,I$105:I$116,$C$105:$C$116)))) -> 53.78441444 | M101: =IF(MAX(C105:C116)-MIN(C105:C116)<5,AVERAGEIF(C105:C116,">0",M105:M116), IF(FORECAST($C101,M$105:M$116,$C$105:$C$116)<0,0, IF(FORECAST($C101,M$105:M$116,$C$105:$C$116)>100,100, FORECAST($C101,M$105:M$116,$C$105:$C$116)))) -> 7.427456439 | N101: =IF(MAX(C105:C116)-MIN(C105:C116)<5,AVERAGEIF(C105:C116,">0",N105:N116), IF(FORECAST($C101,N$105:N$116,$C$105:$C$116)<0,0, IF(FORECAST($C101,N$105:N$116,$C$105:$C$116)>100,100, FORECAST($C101,N$105:N$116,$C$105:$C$116)))) -> 71.74439739 | R101: =IF(MAX(C105:C116)-MIN(C105:C116)<5,AVERAGEIF(C105:C116,">0",R105:R116), IF(FORECAST($C101,R$105:R$116,$C$105:$C$116)<0,0, IF(FORECAST($C101,R$105:R$116,$C$105:$C$116)>100,100, FORECAST($C101,R$105:R$116,$C$105:$C$116)))) -> 6.212474441 | S101: =IF(MAX(C105:C116)-MIN(C105:C116)<5,AVERAGEIF(C105:C116,">0",S105:S116), IF(FORECAST($C101,S$105:S$116,$C$105:$C$116)<0,0, IF(FORECAST($C101,S$105:S$116,$C$105:$C$116)>100,100, FORECAST($C101,S$105:S$116,$C$105:$C$116)))) -> 92.68292626 | W101: =IF(MAX(C105:C116)-MIN(C105:C116)<5,AVERAGEIF(C105:C116,">0",W105:W116), IF(FORECAST($C101,W$105:W$116,$C$105:$C$116)<0,0, IF(FORECAST($C101,W$105:W$116,$C$105:$C$116)>100,100, FORECAST($C101,W$105:W$116,$C$105:$C$116)))) -> 1.179474848 | X101: =IF(MAX(C105:C116)-MIN(C105:C116)<5,AVERAGEIF(C105:C116,">0",X105:X116), IF(FORECAST($C101,X$105:X$116,$C$105:$C$116)<0,0, IF(FORECAST($C101,X$105:X$116,$C$105:$C$116)>100,100, FORECAST($C101,X$105:X$116,$C$105:$C$116)))) -> 98.39379756 | AB101: =IF(MAX(C105:C116)-MIN(C105:C116)<5,AVERAGEIF(C105:C116,">0",AB105:AB116), IF(FORECAST($C101,AB$105:AB$116,$C$105:$C$116)<0,0, IF(FORECAST($C101,AB$105:AB$116,$C$105:$C$116)>100,100, FORECAST($C101,AB$105:AB$116,$C$105:$C$116)))) -> 0.4067818722
C102: =MaxRegYear(C100,C105:C116) -> 2015 | D102: =IF(MAX(C105:C116)-MIN(C105:C116)<5,AVERAGEIF(C105:C116,">0",D105:D116), IF(FORECAST($C102,D$105:D$116,$C$105:$C$116)<0,0, IF(FORECAST($C102,D$105:D$116,$C$105:$C$116)>100,100, FORECAST($C102,D$105:D$116,$C$105:$C$116)))) -> 59.97436546 | H102: =IF(MAX(C105:C116)-MIN(C105:C116)<5,AVERAGEIF(C105:C116,">0",H105:H116), IF(FORECAST($C102,H$105:H$116,$C$105:$C$116)<0,0, IF(FORECAST($C102,H$105:H$116,$C$105:$C$116)>100,100, FORECAST($C102,H$105:H$116,$C$105:$C$116)))) -> 3.006536646 | I102: =IF(MAX(C105:C116)-MIN(C105:C116)<5,AVERAGEIF(C105:C116,">0",I105:I116), IF(FORECAST($C102,I$105:I$116,$C$105:$C$116)<0,0, IF(FORECAST($C102,I$105:I$116,$C$105:$C$116)>100,100, FORECAST($C102,I$105:I$116,$C$105:$C$116)))) -> 75.22138277 | M102: =IF(MAX(C105:C116)-MIN(C105:C116)<5,AVERAGEIF(C105:C116,">0",M105:M116), IF(FORECAST($C102,M$105:M$116,$C$105:$C$116)<0,0, IF(FORECAST($C102,M$105:M$116,$C$105:$C$116)>100,100, FORECAST($C102,M$105:M$116,$C$105:$C$116)))) -> 2.408750524 | N102: =IF(MAX(C105:C116)-MIN(C105:C116)<5,AVERAGEIF(C105:C116,">0",N105:N116), IF(FORECAST($C102,N$105:N$116,$C$105:$C$116)<0,0, IF(FORECAST($C102,N$105:N$116,$C$105:$C$116)>100,100, FORECAST($C102,N$105:N$116,$C$105:$C$116)))) -> 88.17693664 | R102: =IF(MAX(C105:C116)-MIN(C105:C116)<5,AVERAGEIF(C105:C116,">0",R105:R116), IF(FORECAST($C102,R$105:R$116,$C$105:$C$116)<0,0, IF(FORECAST($C102,R$105:R$116,$C$105:$C$116)>100,100, FORECAST($C102,R$105:R$116,$C$105:$C$116)))) -> 0.8440627525 | S102: =IF(MAX(C105:C116)-MIN(C105:C116)<5,AVERAGEIF(C105:C116,">0",S105:S116), IF(FORECAST($C102,S$105:S$116,$C$105:$C$116)<0,0, IF(FORECAST($C102,S$105:S$116,$C$105:$C$116)>100,100, FORECAST($C102,S$105:S$116,$C$105:$C$116)))) -> 96.73555496 | W102: =IF(MAX(C105:C116)-MIN(C105:C116)<5,AVERAGEIF(C105:C116,">0",W105:W116), IF(FORECAST($C102,W$105:W$116,$C$105:$C$116)<0,0, IF(FORECAST($C102,W$105:W$116,$C$105:$C$116)>100,100, FORECAST($C102,W$105:W$116,$C$105:$C$116)))) -> 0.2994413184 | X102: =IF(MAX(C105:C116)-MIN(C105:C116)<5,AVERAGEIF(C105:C116,">0",X105:X116), IF(FORECAST($C102,X$105:X$116,$C$105:$C$116)<0,0, IF(FORECAST($C102,X$105:X$116,$C$105:$C$116)>100,100, FORECAST($C102,X$105:X$116,$C$105:$C$116)))) -> 98.99970089 | AB102: =IF(MAX(C105:C116)-MIN(C105:C116)<5,AVERAGEIF(C105:C116,">0",AB105:AB116), IF(FORECAST($C102,AB$105:AB$116,$C$105:$C$116)<0,0, IF(FORECAST($C102,AB$105:AB$116,$C$105:$C$116)>100,100, FORECAST($C102,AB$105:AB$116,$C$105:$C$116)))) -> 0.0991368468
B104: Survey | C104: Year | D104: Improved | E104: % Improved < = 30min | H104: Surface water | I104: Improved | J104: % Improved < = 30min | M104: Surface water | N104: Improved | O104: % Improved < = 30min | R104: Surface water | S104: Improved | T104: % Improved < = 30min | W104: Surface water | X104: Improved | Y104: % Improved < = 30min | AB104: Surface water
B105: MICS06 | C105: 2006 | D105: =IF(ISERROR(INDIRECT(CONCATENATE($B105,"!C16"))),"",INDIRECT(CONCATENATE($B105,"!C16"))) -> 37.47095303 | E105: =IF(ISERROR(INDIRECT(CONCATENATE($B105,"!C23"))),"",INDIRECT(CONCATENATE($B105,"!C23"))) -> 58.11522773 | H105: =IF(ISERROR(INDIRECT(CONCATENATE($B105,"!C21"))),"",INDIRECT(CONCATENATE($B105,"!C21"))) -> 8.843112929 | I105: =IF(ISERROR(INDIRECT(CONCATENATE($B105,"!D16"))),"",INDIRECT(CONCATENATE($B105,"!D16"))) -> 57.68204505 | J105: =IF(ISERROR(INDIRECT(CONCATENATE($B105,"!D23"))),"",INDIRECT(CONCATENATE($B105,"!D23"))) -> 79.86672875 | M105: =IF(ISERROR(INDIRECT(CONCATENATE($B105,"!D21"))),"",INDIRECT(CONCATENATE($B105,"!D21"))) -> 6.514964455 | N105: =IF(ISERROR(INDIRECT(CONCATENATE($B105,"!E16"))),"",INDIRECT(CONCATENATE($B105,"!E16"))) -> 74.7321318 | O105: =IF(ISERROR(INDIRECT(CONCATENATE($B105,"!E23"))),"",INDIRECT(CONCATENATE($B105,"!E23"))) -> 90.57589487 | R105: =IF(ISERROR(INDIRECT(CONCATENATE($B105,"!E21"))),"",INDIRECT(CONCATENATE($B105,"!E21"))) -> 5.236399589 | S105: =IF(ISERROR(INDIRECT(CONCATENATE($B105,"!F16"))),"",INDIRECT(CONCATENATE($B105,"!F16"))) -> 93.41976784 | T105: =IF(ISERROR(INDIRECT(CONCATENATE($B105,"!F23"))),"",INDIRECT(CONCATENATE($B105,"!F23"))) -> 97.93056882 | W105: =IF(ISERROR(INDIRECT(CONCATENATE($B105,"!F21"))),"",INDIRECT(CONCATENATE($B105,"!F21"))) -> 1.019468752 | X105: =IF(ISERROR(INDIRECT(CONCATENATE($B105,"!G16"))),"",INDIRECT(CONCATENATE($B105,"!G16"))) -> 98.50396181 | Y105: =IF(ISERROR(INDIRECT(CONCATENATE($B105,"!G23"))),"",INDIRECT(CONCATENATE($B105,"!G23"))) -> 97.06940511 | AB105: =IF(ISERROR(INDIRECT(CONCATENATE($B105,"!G221"))),"",INDIRECT(CONCATENATE($B105,"!G21"))) -> 0.3508464131
B106: DHS13 | C106: 2013 | D106: 54.97360714 | E106: N/A | H106: 4.303553598 | I106: 71.32375216 | J106: N/A | M106: 3.321242508 | N106: 85.18920223 | O106: N/A | R106: 1.820137605 | S106: 95.99871338 | T106: N/A | W106: 0.4594474146 | X106: 98.88953665 | Y106: N/A | AB106: 0.155072306
D111: =IF(ISERROR(INDIRECT(CONCATENATE($B111,"!C16"))),"",INDIRECT(CONCATENATE($B111,"!C16"))) ->  | E111: =IF(ISERROR(INDIRECT(CONCATENATE($B111,"!C23"))),"",INDIRECT(CONCATENATE($B111,"!C23"))) ->  | H111: =IF(ISERROR(INDIRECT(CONCATENATE($B111,"!C21"))),"",INDIRECT(CONCATENATE($B111,"!C21"))) ->  | I111: =IF(ISERROR(INDIRECT(CONCATENATE($B111,"!D16"))),"",INDIRECT(CONCATENATE($B111,"!D16"))) ->  | J111: =IF(ISERROR(INDIRECT(CONCATENATE($B111,"!D23"))),"",INDIRECT(CONCATENATE($B111,"!D23"))) ->  | M111: =IF(ISERROR(INDIRECT(CONCATENATE($B111,"!D21"))),"",INDIRECT(CONCATENATE($B111,"!D21"))) ->  | N111: =IF(ISERROR(INDIRECT(CONCATENATE($B111,"!E16"))),"",INDIRECT(CONCATENATE($B111,"!E16"))) ->  | O111: =IF(ISERROR(INDIRECT(CONCATENATE($B111,"!E23"))),"",INDIRECT(CONCATENATE($B111,"!E23"))) ->  | R111: =IF(ISERROR(INDIRECT(CONCATENATE($B111,"!E21"))),"",INDIRECT(CONCATENATE($B111,"!E21"))) ->  | S111: =IF(ISERROR(INDIRECT(CONCATENATE($B111,"!F16"))),"",INDIRECT(CONCATENATE($B111,"!F16"))) ->  | T111: =IF(ISERROR(INDIRECT(CONCATENATE($B111,"!F23"))),"",INDIRECT(CONCATENATE($B111,"!F23"))) ->  | W111: =IF(ISERROR(INDIRECT(CONCATENATE($B111,"!F21"))),"",INDIRECT(CONCATENATE($B111,"!F21"))) ->  | X111: =IF(ISERROR(INDIRECT(CONCATENATE($B111,"!G16"))),"",INDIRECT(CONCATENATE($B111,"!G16"))) ->  | Y111: =IF(ISERROR(INDIRECT(CONCATENATE($B111,"!G23"))),"",INDIRECT(CONCATENATE($B111,"!G23"))) ->  | AB111: =IF(ISERROR(INDIRECT(CONCATENATE($B111,"!G221"))),"",INDIRECT(CONCATENATE($B111,"!G21"))) -> 
D112: =IF(ISERROR(INDIRECT(CONCATENATE($B112,"!C16"))),"",INDIRECT(CONCATENATE($B112,"!C16"))) ->  | E112: =IF(ISERROR(INDIRECT(CONCATENATE($B112,"!C23"))),"",INDIRECT(CONCATENATE($B112,"!C23"))) ->  | H112: =IF(ISERROR(INDIRECT(CONCATENATE($B112,"!C21"))),"",INDIRECT(CONCATENATE($B112,"!C21"))) ->  | I112: =IF(ISERROR(INDIRECT(CONCATENATE($B112,"!D16"))),"",INDIRECT(CONCATENATE($B112,"!D16"))) ->  | J112: =IF(ISERROR(INDIRECT(CONCATENATE($B112,"!D23"))),"",INDIRECT(CONCATENATE($B112,"!D23"))) ->  | M112: =IF(ISERROR(INDIRECT(CONCATENATE($B112,"!D21"))),"",INDIRECT(CONCATENATE($B112,"!D21"))) ->  | N112: =IF(ISERROR(INDIRECT(CONCATENATE($B112,"!E16"))),"",INDIRECT(CONCATENATE($B112,"!E16"))) ->  | O112: =IF(ISERROR(INDIRECT(CONCATENATE($B112,"!E23"))),"",INDIRECT(CONCATENATE($B112,"!E23"))) ->  | R112: =IF(ISERROR(INDIRECT(CONCATENATE($B112,"!E21"))),"",INDIRECT(CONCATENATE($B112,"!E21"))) ->  | S112: =IF(ISERROR(INDIRECT(CONCATENATE($B112,"!F16"))),"",INDIRECT(CONCATENATE($B112,"!F16"))) ->  | T112: =IF(ISERROR(INDIRECT(CONCATENATE($B112,"!F23"))),"",INDIRECT(CONCATENATE($B112,"!F23"))) ->  | W112: =IF(ISERROR(INDIRECT(CONCATENATE($B112,"!F21"))),"",INDIRECT(CONCATENATE($B112,"!F21"))) ->  | X112: =IF(ISERROR(INDIRECT(CONCATENATE($B112,"!G16"))),"",INDIRECT(CONCATENATE($B112,"!G16"))) ->  | Y112: =IF(ISERROR(INDIRECT(CONCATENATE($B112,"!G23"))),"",INDIRECT(CONCATENATE($B112,"!G23"))) ->  | AB112: =IF(ISERROR(INDIRECT(CONCATENATE($B112,"!G221"))),"",INDIRECT(CONCATENATE($B112,"!G21"))) -> 
B118: =CONCATENATE("National use of drinking water sources, ",C99,"–",C100) -> National use of drinking water sources, 2000–2019 | S118: Data points used for regression
E153: =IF(ISERROR(INDIRECT(CONCATENATE($B153,"!M18"))),"",INDIRECT(CONCATENATE($B153,"!M18"))) ->  | F153: =IF(ISERROR(INDIRECT(CONCATENATE($B153,"!M19"))),"",INDIRECT(CONCATENATE($B153,"!M19"))) ->  | G153: =IF(ISERROR(INDIRECT(CONCATENATE($B153,"!M20"))),"",INDIRECT(CONCATENATE($B153,"!M20"))) ->  | H153: =IF(ISERROR(INDIRECT(CONCATENATE($B153,"!M21"))),"",INDIRECT(CONCATENATE($B153,"!M21"))) ->  | J153: =IF(ISERROR(INDIRECT(CONCATENATE($B153,"!N18"))),"",INDIRECT(CONCATENATE($B153,"!N18"))) ->  | K153: =IF(ISERROR(INDIRECT(CONCATENATE($B153,"!N19"))),"",INDIRECT(CONCATENATE($B153,"!N19"))) ->  | L153: =IF(ISERROR(INDIRECT(CONCATENATE($B153,"!N20"))),"",INDIRECT(CONCATENATE($B153,"!N20"))) ->  | M153: =IF(ISERROR(INDIRECT(CONCATENATE($B153,"!N21"))),"",INDIRECT(CONCATENATE($B153,"!N21"))) ->  | O153: =IF(ISERROR(INDIRECT(CONCATENATE($B153,"!O18"))),"",INDIRECT(CONCATENATE($B153,"!O18"))) ->  | P153: =IF(ISERROR(INDIRECT(CONCATENATE($B153,"!O19"))),"",INDIRECT(CONCATENATE($B153,"!O19"))) ->  | Q153: =IF(ISERROR(INDIRECT(CONCATENATE($B153,"!O20"))),"",INDIRECT(CONCATENATE($B153,"!O20"))) ->  | R153: =IF(ISERROR(INDIRECT(CONCATENATE($B153,"!O21"))),"",INDIRECT(CONCATENATE($B153,"!O21"))) ->  | T153: =IF(ISERROR(INDIRECT(CONCATENATE($B153,"!P18"))),"",INDIRECT(CONCATENATE($B153,"!P18"))) ->  | U153: =IF(ISERROR(INDIRECT(CONCATENATE($B153,"!P19"))),"",INDIRECT(CONCATENATE($B153,"!P19"))) ->  | V153: =IF(ISERROR(INDIRECT(CONCATENATE($B153,"!P20"))),"",INDIRECT(CONCATENATE($B153,"!P20"))) ->  | W153: =IF(ISERROR(INDIRECT(CONCATENATE($B153,"!P21"))),"",INDIRECT(CONCATENATE($B153,"!P21"))) ->  | Y153: =IF(ISERROR(INDIRECT(CONCATENATE($B153,"!Q18"))),"",INDIRECT(CONCATENATE($B153,"!Q18"))) ->  | Z153: =IF(ISERROR(INDIRECT(CONCATENATE($B153,"!Q19"))),"",INDIRECT(CONCATENATE($B153,"!Q19"))) ->  | AA153: =IF(ISERROR(INDIRECT(CONCATENATE($B153,"!Q20"))),"",INDIRECT(CONCATENATE($B153,"!Q20"))) ->  | AB153: =IF(ISERROR(INDIRECT(CONCATENATE($B153,"!Q21"))),"",INDIRECT(CONCATENATE($B153,"!Q1"))) -> 
A197: URBAN | D197: Poorest | I197: Poor | N197: Middle | S197: Rich | X197: Richest
D198: Improved | E198: Basic | F198: Limited | G198: Unimproved | H198: Surface water | I198: Improved | J198: Basic | K198: Limited | L198: Unimproved | M198: Surface water | N198: Improved | O198: Basic | P198: Limited | Q198: Unimproved | R198: Surface water | S198: Improved | T198: Basic | U198: Limited | V198: Unimproved | W198: Surface water | X198: Improved | Y198: Basic | Z198: Limited | AA198: Unimproved | AB198: Surface water
A199: Forecast period: | C199: =MinBase(C205:C216) -> 2000 | D199: =IF((D201+H201)>100,D201*100/(D201+H201),D201) -> 94.30154204 | E199: =D199*AVERAGEIF(E205:E216,">0")/100 -> 90.66607269 | F199: =D199*(100-AVERAGEIF(E205:E216,">0"))/100 -> 3.635469356 | G199: =100-(E199+F199+H199) -> 5.698457957 | H199: =IF((D201+H201)>100,H201*100/(D201+H201),H201) -> 0 | I199: =IF((I201+M201)>100,I201*100/(I201+M201),I201) -> 96.18911834 | J199: =I199*AVERAGEIF(J205:J216,">0")/100 -> 94.60262169 | K199: =I199*(100-AVERAGEIF(J205:J216,">0"))/100 -> 1.586496646 | L199: =100-(J199+K199+M199) -> 3.810881661 | M199: =IF((I201+M201)>100,M201*100/(I201+M201),M201) -> 0 | N199: =IF((N201+R201)>100,N201*100/(N201+R201),N201) -> 97.00216282 | O199: =N199*AVERAGEIF(O205:O216,">0")/100 -> 94.60770843 | P199: =N199*(100-AVERAGEIF(O205:O216,">0"))/100 -> 2.394454398 | Q199: =100-(O199+P199+R199) -> 2.997837175 | R199: =IF((N201+R201)>100,R201*100/(N201+R201),R201) -> 0 | S199: =IF((S201+W201)>100,S201*100/(S201+W201),S201) -> 97.89050152 | T199: =S199*AVERAGEIF(T205:T216,">0")/100 -> 96.00349125 | U199: =S199*(100-AVERAGEIF(T205:T216,">0"))/100 -> 1.887010266 | V199: =100-(T199+U199+W199) -> 2.109498483 | W199: =IF((S201+W201)>100,W201*100/(S201+W201),W201) -> 0 | X199: =IF((X201+AB201)>100,X201*100/(X201+AB201),X201) -> 100 | Y199: =X199*AVERAGEIF(Y205:Y216,">0")/100 -> 98.63089407 | Z199: =X199*(100-AVERAGEIF(Y205:Y216,">0"))/100 -> 1.369105932 | AA199: =100-(Y199+Z199+AB199) -> 0 | AB199: =IF((X201+AB201)>100,AB201*100/(X201+AB201),AB201) -> 0
C200: =MaxTarget(C205:C216) -> 2019 | D200: =IF((D202+H202)>100,D202*100/(D202+H202),D202) -> 98.66372057 | E200: =D200*AVERAGEIF(E205:E216,">0")/100 -> 94.86008253 | F200: =D200*(100-AVERAGEIF(E205:E216,">0"))/100 -> 3.803638042 | G200: =100-(E200+F200+H200) -> 1.336279427 | H200: =IF((D202+H202)>100,H202*100/(D202+H202),H202) -> 0 | I200: =IF((I202+M202)>100,I202*100/(I202+M202),I202) -> 100 | J200: =I200*AVERAGEIF(J205:J216,">0")/100 -> 98.35064852 | K200: =I200*(100-AVERAGEIF(J205:J216,">0"))/100 -> 1.649351479 | L200: =100-(J200+K200+M200) -> 0 | M200: =IF((I202+M202)>100,M202*100/(I202+M202),M202) -> 0 | N200: =IF((N202+R202)>100,N202*100/(N202+R202),N202) -> 100 | O200: =N200*AVERAGEIF(O205:O216,">0")/100 -> 97.53154535 | P200: =N200*(100-AVERAGEIF(O205:O216,">0"))/100 -> 2.468454649 | Q200: =100-(O200+P200+R200) -> 0 | R200: =IF((N202+R202)>100,R202*100/(N202+R202),R202) -> 0 | S200: =IF((S202+W202)>100,S202*100/(S202+W202),S202) -> 100 | T200: =S200*AVERAGEIF(T205:T216,">0")/100 -> 98.07232547 | U200: =S200*(100-AVERAGEIF(T205:T216,">0"))/100 -> 1.927674531 | V200: =100-(T200+U200+W200) -> 0 | W200: =IF((S202+W202)>100,W202*100/(S202+W202),W202) -> 0 | X200: =IF((X202+AB202)>100,X202*100/(X202+AB202),X202) -> 99.47323336 | Y200: =X200*AVERAGEIF(Y205:Y216,">0")/100 -> 98.11133942 | Z200: =X200*(100-AVERAGEIF(Y205:Y216,">0"))/100 -> 1.361893939 | AA200: =100-(Y200+Z200+AB200) -> 0.5267666368 | AB200: =IF((X202+AB202)>100,AB202*100/(X202+AB202),AB202) -> 0
A201: Regression period: | C201: =MinRegYear(C199,C205:C216) -> 2004 | D201: =IF(MAX(C205:C216)-MIN(C205:C216)<5,AVERAGEIF(C205:C216,">0",D205:D216), IF(FORECAST($C201,D$205:D$216,$C$205:$C$216)<0,0, IF(FORECAST($C201,D$205:D$216,$C$205:$C$216)>100,100, FORECAST($C201,D$205:D$216,$C$205:$C$216)))) -> 94.30154204 | H201: =IF(MAX(C205:C216)-MIN(C205:C216)<5,AVERAGEIF(C205:C216,">0",H205:H216), IF(FORECAST($C201,H$205:H$216,$C$205:$C$216)<0,0, IF(FORECAST($C201,H$205:H$216,$C$205:$C$216)>100,100, FORECAST($C201,H$205:H$216,$C$205:$C$216)))) -> 0 | I201: =IF(MAX(C205:C216)-MIN(C205:C216)<5,AVERAGEIF(C205:C216,">0",I205:I216), IF(FORECAST($C201,I$205:I$216,$C$205:$C$216)<0,0, IF(FORECAST($C201,I$205:I$216,$C$205:$C$216)>100,100, FORECAST($C201,I$205:I$216,$C$205:$C$216)))) -> 96.18911834 | M201: =IF(MAX(C205:C216)-MIN(C205:C216)<5,AVERAGEIF(C205:C216,">0",M205:M216), IF(FORECAST($C201,M$205:M$216,$C$205:$C$216)<0,0, IF(FORECAST($C201,M$205:M$216,$C$205:$C$216)>100,100, FORECAST($C201,M$205:M$216,$C$205:$C$216)))) -> 0 | N201: =IF(MAX(C205:C216)-MIN(C205:C216)<5,AVERAGEIF(C205:C216,">0",N205:N216), IF(FORECAST($C201,N$205:N$216,$C$205:$C$216)<0,0, IF(FORECAST($C201,N$205:N$216,$C$205:$C$216)>100,100, FORECAST($C201,N$205:N$216,$C$205:$C$216)))) -> 97.00216282 | R201: =IF(MAX(C205:C216)-MIN(C205:C216)<5,AVERAGEIF(C205:C216,">0",R205:R216), IF(FORECAST($C201,R$205:R$216,$C$205:$C$216)<0,0, IF(FORECAST($C201,R$205:R$216,$C$205:$C$216)>100,100, FORECAST($C201,R$205:R$216,$C$205:$C$216)))) -> 0 | S201: =IF(MAX(C205:C216)-MIN(C205:C216)<5,AVERAGEIF(C205:C216,">0",S205:S216), IF(FORECAST($C201,S$205:S$216,$C$205:$C$216)<0,0, IF(FORECAST($C201,S$205:S$216,$C$205:$C$216)>100,100, FORECAST($C201,S$205:S$216,$C$205:$C$216)))) -> 97.89050152 | W201: =IF(MAX(C205:C216)-MIN(C205:C216)<5,AVERAGEIF(C205:C216,">0",W205:W216), IF(FORECAST($C201,W$205:W$216,$C$205:$C$216)<0,0, IF(FORECAST($C201,W$205:W$216,$C$205:$C$216)>100,100, FORECAST($C201,W$205:W$216,$C$205:$C$216)))) -> 0 | X201: =IF(MAX(C205:C216)-MIN(C205:C216)<5,AVERAGEIF(C205:C216,">0",X205:X216), IF(FORECAST($C201,X$205:X$216,$C$205:$C$216)<0,0, IF(FORECAST($C201,X$205:X$216,$C$205:$C$216)>100,100, FORECAST($C201,X$205:X$216,$C$205:$C$216)))) -> 100 | AB201: =IF(MAX(C205:C216)-MIN(C205:C216)<5,AVERAGEIF(C205:C216,">0",AB205:AB216), IF(FORECAST($C201,AB$205:AB$216,$C$205:$C$216)<0,0, IF(FORECAST($C201,AB$205:AB$216,$C$205:$C$216)>100,100, FORECAST($C201,AB$205:AB$216,$C$205:$C$216)))) -> 0
C202: =MaxRegYear(C200,C205:C216) -> 2015 | D202: =IF(MAX(C205:C216)-MIN(C205:C216)<5,AVERAGEIF(C205:C216,">0",D205:D216), IF(FORECAST($C202,D$205:D$216,$C$205:$C$216)<0,0, IF(FORECAST($C202,D$205:D$216,$C$205:$C$216)>100,100, FORECAST($C202,D$205:D$216,$C$205:$C$216)))) -> 98.66372057 | H202: =IF(MAX(C205:C216)-MIN(C205:C216)<5,AVERAGEIF(C205:C216,">0",H205:H216), IF(FORECAST($C202,H$205:H$216,$C$205:$C$216)<0,0, IF(FORECAST($C202,H$205:H$216,$C$205:$C$216)>100,100, FORECAST($C202,H$205:H$216,$C$205:$C$216)))) -> 0 | I202: =IF(MAX(C205:C216)-MIN(C205:C216)<5,AVERAGEIF(C205:C216,">0",I205:I216), IF(FORECAST($C202,I$205:I$216,$C$205:$C$216)<0,0, IF(FORECAST($C202,I$205:I$216,$C$205:$C$216)>100,100, FORECAST($C202,I$205:I$216,$C$205:$C$216)))) -> 100 | M202: =IF(MAX(C205:C216)-MIN(C205:C216)<5,AVERAGEIF(C205:C216,">0",M205:M216), IF(FORECAST($C202,M$205:M$216,$C$205:$C$216)<0,0, IF(FORECAST($C202,M$205:M$216,$C$205:$C$216)>100,100, FORECAST($C202,M$205:M$216,$C$205:$C$216)))) -> 0 | N202: =IF(MAX(C205:C216)-MIN(C205:C216)<5,AVERAGEIF(C205:C216,">0",N205:N216), IF(FORECAST($C202,N$205:N$216,$C$205:$C$216)<0,0, IF(FORECAST($C202,N$205:N$216,$C$205:$C$216)>100,100, FORECAST($C202,N$205:N$216,$C$205:$C$216)))) -> 100 | R202: =IF(MAX(C205:C216)-MIN(C205:C216)<5,AVERAGEIF(C205:C216,">0",R205:R216), IF(FORECAST($C202,R$205:R$216,$C$205:$C$216)<0,0, IF(FORECAST($C202,R$205:R$216,$C$205:$C$216)>100,100, FORECAST($C202,R$205:R$216,$C$205:$C$216)))) -> 0 | S202: =IF(MAX(C205:C216)-MIN(C205:C216)<5,AVERAGEIF(C205:C216,">0",S205:S216), IF(FORECAST($C202,S$205:S$216,$C$205:$C$216)<0,0, IF(FORECAST($C202,S$205:S$216,$C$205:$C$216)>100,100, FORECAST($C202,S$205:S$216,$C$205:$C$216)))) -> 100 | W202: =IF(MAX(C205:C216)-MIN(C205:C216)<5,AVERAGEIF(C205:C216,">0",W205:W216), IF(FORECAST($C202,W$205:W$216,$C$205:$C$216)<0,0, IF(FORECAST($C202,W$205:W$216,$C$205:$C$216)>100,100, FORECAST($C202,W$205:W$216,$C$205:$C$216)))) -> 0 | X202: =IF(MAX(C205:C216)-MIN(C205:C216)<5,AVERAGEIF(C205:C216,">0",X205:X216), IF(FORECAST($C202,X$205:X$216,$C$205:$C$216)<0,0, IF(FORECAST($C202,X$205:X$216,$C$205:$C$216)>100,100, FORECAST($C202,X$205:X$216,$C$205:$C$216)))) -> 99.47323336 | AB202: =IF(MAX(C205:C216)-MIN(C205:C216)<5,AVERAGEIF(C205:C216,">0",AB205:AB216), IF(FORECAST($C202,AB$205:AB$216,$C$205:$C$216)<0,0, IF(FORECAST($C202,AB$205:AB$216,$C$205:$C$216)>100,100, FORECAST($C202,AB$205:AB$216,$C$205:$C$216)))) -> 0
B204: Survey | C204: Year | D204: Improved | E204: % Improved < = 30min | H204: Surface water | I204: Improved | J204: % Improved < = 30min | M204: Surface water | N204: Improved | O204: % Improved < = 30min | R204: Surface water | S204: Improved | T204: % Improved < = 30min | W204: Surface water | X204: Improved | Y204: % Improved < = 30min | AB204: Surface water
B205: MICS06 | C205: 2006 | D205: =IF(ISERROR(INDIRECT(CONCATENATE($B205,"!H16"))),"",INDIRECT(CONCATENATE($B205,"!H16"))) -> 95.09466541 | E205: =IF(ISERROR(INDIRECT(CONCATENATE($B205,"!H23"))),"",INDIRECT(CONCATENATE($B205,"!H23"))) -> 96.14484633 | H205: =IF(ISERROR(INDIRECT(CONCATENATE($B205,"!H21"))),"",INDIRECT(CONCATENATE($B205,"!H21"))) -> 0 | I205: =IF(ISERROR(INDIRECT(CONCATENATE($B205,"!I16"))),"",INDIRECT(CONCATENATE($B205,"!I16"))) -> 96.89045527 | J205: =IF(ISERROR(INDIRECT(CONCATENATE($B205,"!I23"))),"",INDIRECT(CONCATENATE($B205,"!I23"))) -> 98.35064852 | M205: =IF(ISERROR(INDIRECT(CONCATENATE($B205,"!I21"))),"",INDIRECT(CONCATENATE($B205,"!I21"))) -> 0 | N205: =IF(ISERROR(INDIRECT(CONCATENATE($B205,"!J16"))),"",INDIRECT(CONCATENATE($B205,"!J16"))) -> 97.61413799 | O205: =IF(ISERROR(INDIRECT(CONCATENATE($B205,"!J23"))),"",INDIRECT(CONCATENATE($B205,"!J23"))) -> 97.53154535 | R205: =IF(ISERROR(INDIRECT(CONCATENATE($B205,"!J21"))),"",INDIRECT(CONCATENATE($B205,"!J21"))) -> 0 | S205: =IF(ISERROR(INDIRECT(CONCATENATE($B205,"!K16"))),"",INDIRECT(CONCATENATE($B205,"!K16"))) -> 98.30792226 | T205: =IF(ISERROR(INDIRECT(CONCATENATE($B205,"!K23"))),"",INDIRECT(CONCATENATE($B205,"!K23"))) -> 98.07232547 | W205: =IF(ISERROR(INDIRECT(CONCATENATE($B205,"!K21"))),"",INDIRECT(CONCATENATE($B205,"!K21"))) -> 0 | X205: =IF(ISERROR(INDIRECT(CONCATENATE($B205,"!L16"))),"",INDIRECT(CONCATENATE($B205,"!L16"))) -> 100 | Y205: =IF(ISERROR(INDIRECT(CONCATENATE($B205,"!L23"))),"",INDIRECT(CONCATENATE($B205,"!L23"))) -> 98.63089407 | AB205: =IF(ISERROR(INDIRECT(CONCATENATE($B205,"!L221"))),"",INDIRECT(CONCATENATE($B205,"!L21"))) -> 0
B206: DHS13 | C206: 2013 | D206: 97.8705972 | E206: N/A | H206: 0 | I206: 99.34513453 | J206: N/A | M206: 0 | N206: 99.75605106 | O206: N/A | R206: 0 | S206: 99.76889488 | T206: N/A | W206: 0 | X206: 99.59029262 | Y206: N/A | AB206: 0
B218: =CONCATENATE("Urban use of drinking water sources, ",C199,"–",C200) -> Urban use of drinking water sources, 2000–2019 | S218: Data points used for regression
E253: =IF(ISERROR(INDIRECT(CONCATENATE($B253,"!M18"))),"",INDIRECT(CONCATENATE($B253,"!M18"))) ->  | F253: =IF(ISERROR(INDIRECT(CONCATENATE($B253,"!M19"))),"",INDIRECT(CONCATENATE($B253,"!M19"))) ->  | G253: =IF(ISERROR(INDIRECT(CONCATENATE($B253,"!M20"))),"",INDIRECT(CONCATENATE($B253,"!M20"))) ->  | H253: =IF(ISERROR(INDIRECT(CONCATENATE($B253,"!M21"))),"",INDIRECT(CONCATENATE($B253,"!M21"))) ->  | J253: =IF(ISERROR(INDIRECT(CONCATENATE($B253,"!N18"))),"",INDIRECT(CONCATENATE($B253,"!N18"))) ->  | K253: =IF(ISERROR(INDIRECT(CONCATENATE($B253,"!N19"))),"",INDIRECT(CONCATENATE($B253,"!N19"))) ->  | L253: =IF(ISERROR(INDIRECT(CONCATENATE($B253,"!N20"))),"",INDIRECT(CONCATENATE($B253,"!N20"))) ->  | M253: =IF(ISERROR(INDIRECT(CONCATENATE($B253,"!N21"))),"",INDIRECT(CONCATENATE($B253,"!N21"))) ->  | O253: =IF(ISERROR(INDIRECT(CONCATENATE($B253,"!O18"))),"",INDIRECT(CONCATENATE($B253,"!O18"))) ->  | P253: =IF(ISERROR(INDIRECT(CONCATENATE($B253,"!O19"))),"",INDIRECT(CONCATENATE($B253,"!O19"))) ->  | Q253: =IF(ISERROR(INDIRECT(CONCATENATE($B253,"!O20"))),"",INDIRECT(CONCATENATE($B253,"!O20"))) ->  | R253: =IF(ISERROR(INDIRECT(CONCATENATE($B253,"!O21"))),"",INDIRECT(CONCATENATE($B253,"!O21"))) ->  | T253: =IF(ISERROR(INDIRECT(CONCATENATE($B253,"!P18"))),"",INDIRECT(CONCATENATE($B253,"!P18"))) ->  | U253: =IF(ISERROR(INDIRECT(CONCATENATE($B253,"!P19"))),"",INDIRECT(CONCATENATE($B253,"!P19"))) ->  | V253: =IF(ISERROR(INDIRECT(CONCATENATE($B253,"!P20"))),"",INDIRECT(CONCATENATE($B253,"!P20"))) ->  | W253: =IF(ISERROR(INDIRECT(CONCATENATE($B253,"!P21"))),"",INDIRECT(CONCATENATE($B253,"!P21"))) ->  | Y253: =IF(ISERROR(INDIRECT(CONCATENATE($B253,"!Q18"))),"",INDIRECT(CONCATENATE($B253,"!Q18"))) ->  | Z253: =IF(ISERROR(INDIRECT(CONCATENATE($B253,"!Q19"))),"",INDIRECT(CONCATENATE($B253,"!Q19"))) ->  | AA253: =IF(ISERROR(INDIRECT(CONCATENATE($B253,"!Q20"))),"",INDIRECT(CONCATENATE($B253,"!Q20"))) ->  | AB253: =IF(ISERROR(INDIRECT(CONCATENATE($B253,"!Q21"))),"",INDIRECT(CONCATENATE($B253,"!Q1"))) -> 
E254: =IF(ISERROR(INDIRECT(CONCATENATE($B254,"!M18"))),"",INDIRECT(CONCATENATE($B254,"!M18"))) ->  | F254: =IF(ISERROR(INDIRECT(CONCATENATE($B254,"!M19"))),"",INDIRECT(CONCATENATE($B254,"!M19"))) ->  | G254: =IF(ISERROR(INDIRECT(CONCATENATE($B254,"!M20"))),"",INDIRECT(CONCATENATE($B254,"!M20"))) ->  | H254: =IF(ISERROR(INDIRECT(CONCATENATE($B254,"!M21"))),"",INDIRECT(CONCATENATE($B254,"!M21"))) ->  | J254: =IF(ISERROR(INDIRECT(CONCATENATE($B254,"!N18"))),"",INDIRECT(CONCATENATE($B254,"!N18"))) ->  | K254: =IF(ISERROR(INDIRECT(CONCATENATE($B254,"!N19"))),"",INDIRECT(CONCATENATE($B254,"!N19"))) ->  | L254: =IF(ISERROR(INDIRECT(CONCATENATE($B254,"!N20"))),"",INDIRECT(CONCATENATE($B254,"!N20"))) ->  | M254: =IF(ISERROR(INDIRECT(CONCATENATE($B254,"!N21"))),"",INDIRECT(CONCATENATE($B254,"!N21"))) ->  | O254: =IF(ISERROR(INDIRECT(CONCATENATE($B254,"!O18"))),"",INDIRECT(CONCATENATE($B254,"!O18"))) ->  | P254: =IF(ISERROR(INDIRECT(CONCATENATE($B254,"!O19"))),"",INDIRECT(CONCATENATE($B254,"!O19"))) ->  | Q254: =IF(ISERROR(INDIRECT(CONCATENATE($B254,"!O20"))),"",INDIRECT(CONCATENATE($B254,"!O20"))) ->  | R254: =IF(ISERROR(INDIRECT(CONCATENATE($B254,"!O21"))),"",INDIRECT(CONCATENATE($B254,"!O21"))) ->  | T254: =IF(ISERROR(INDIRECT(CONCATENATE($B254,"!P18"))),"",INDIRECT(CONCATENATE($B254,"!P18"))) ->  | U254: =IF(ISERROR(INDIRECT(CONCATENATE($B254,"!P19"))),"",INDIRECT(CONCATENATE($B254,"!P19"))) ->  | V254: =IF(ISERROR(INDIRECT(CONCATENATE($B254,"!P20"))),"",INDIRECT(CONCATENATE($B254,"!P20"))) ->  | W254: =IF(ISERROR(INDIRECT(CONCATENATE($B254,"!P21"))),"",INDIRECT(CONCATENATE($B254,"!P21"))) ->  | Y254: =IF(ISERROR(INDIRECT(CONCATENATE($B254,"!Q18"))),"",INDIRECT(CONCATENATE($B254,"!Q18"))) ->  | Z254: =IF(ISERROR(INDIRECT(CONCATENATE($B254,"!Q19"))),"",INDIRECT(CONCATENATE($B254,"!Q19"))) ->  | AA254: =IF(ISERROR(INDIRECT(CONCATENATE($B254,"!Q20"))),"",INDIRECT(CONCATENATE($B254,"!Q20"))) ->  | AB254: =IF(ISERROR(INDIRECT(CONCATENATE($B254,"!Q21"))),"",INDIRECT(CONCATENATE($B254,"!Q1"))) -> 
E255: =IF(ISERROR(INDIRECT(CONCATENATE($B255,"!M18"))),"",INDIRECT(CONCATENATE($B255,"!M18"))) ->  | F255: =IF(ISERROR(INDIRECT(CONCATENATE($B255,"!M19"))),"",INDIRECT(CONCATENATE($B255,"!M19"))) ->  | G255: =IF(ISERROR(INDIRECT(CONCATENATE($B255,"!M20"))),"",INDIRECT(CONCATENATE($B255,"!M20"))) ->  | H255: =IF(ISERROR(INDIRECT(CONCATENATE($B255,"!M21"))),"",INDIRECT(CONCATENATE($B255,"!M21"))) ->  | J255: =IF(ISERROR(INDIRECT(CONCATENATE($B255,"!N18"))),"",INDIRECT(CONCATENATE($B255,"!N18"))) ->  | K255: =IF(ISERROR(INDIRECT(CONCATENATE($B255,"!N19"))),"",INDIRECT(CONCATENATE($B255,"!N19"))) ->  | L255: =IF(ISERROR(INDIRECT(CONCATENATE($B255,"!N20"))),"",INDIRECT(CONCATENATE($B255,"!N20"))) ->  | M255: =IF(ISERROR(INDIRECT(CONCATENATE($B255,"!N21"))),"",INDIRECT(CONCATENATE($B255,"!N21"))) ->  | O255: =IF(ISERROR(INDIRECT(CONCATENATE($B255,"!O18"))),"",INDIRECT(CONCATENATE($B255,"!O18"))) ->  | P255: =IF(ISERROR(INDIRECT(CONCATENATE($B255,"!O19"))),"",INDIRECT(CONCATENATE($B255,"!O19"))) ->  | Q255: =IF(ISERROR(INDIRECT(CONCATENATE($B255,"!O20"))),"",INDIRECT(CONCATENATE($B255,"!O20"))) ->  | R255: =IF(ISERROR(INDIRECT(CONCATENATE($B255,"!O21"))),"",INDIRECT(CONCATENATE($B255,"!O21"))) ->  | T255: =IF(ISERROR(INDIRECT(CONCATENATE($B255,"!P18"))),"",INDIRECT(CONCATENATE($B255,"!P18"))) ->  | U255: =IF(ISERROR(INDIRECT(CONCATENATE($B255,"!P19"))),"",INDIRECT(CONCATENATE($B255,"!P19"))) ->  | V255: =IF(ISERROR(INDIRECT(CONCATENATE($B255,"!P20"))),"",INDIRECT(CONCATENATE($B255,"!P20"))) ->  | W255: =IF(ISERROR(INDIRECT(CONCATENATE($B255,"!P21"))),"",INDIRECT(CONCATENATE($B255,"!P21"))) ->  | Y255: =IF(ISERROR(INDIRECT(CONCATENATE($B255,"!Q18"))),"",INDIRECT(CONCATENATE($B255,"!Q18"))) ->  | Z255: =IF(ISERROR(INDIRECT(CONCATENATE($B255,"!Q19"))),"",INDIRECT(CONCATENATE($B255,"!Q19"))) ->  | AA255: =IF(ISERROR(INDIRECT(CONCATENATE($B255,"!Q20"))),"",INDIRECT(CONCATENATE($B255,"!Q20"))) ->  | AB255: =IF(ISERROR(INDIRECT(CONCATENATE($B255,"!Q21"))),"",INDIRECT(CONCATENATE($B255,"!Q1"))) -> 
E256: =IF(ISERROR(INDIRECT(CONCATENATE($B256,"!M18"))),"",INDIRECT(CONCATENATE($B256,"!M18"))) ->  | F256: =IF(ISERROR(INDIRECT(CONCATENATE($B256,"!M19"))),"",INDIRECT(CONCATENATE($B256,"!M19"))) ->  | G256: =IF(ISERROR(INDIRECT(CONCATENATE($B256,"!M20"))),"",INDIRECT(CONCATENATE($B256,"!M20"))) ->  | H256: =IF(ISERROR(INDIRECT(CONCATENATE($B256,"!M21"))),"",INDIRECT(CONCATENATE($B256,"!M21"))) ->  | J256: =IF(ISERROR(INDIRECT(CONCATENATE($B256,"!N18"))),"",INDIRECT(CONCATENATE($B256,"!N18"))) ->  | K256: =IF(ISERROR(INDIRECT(CONCATENATE($B256,"!N19"))),"",INDIRECT(CONCATENATE($B256,"!N19"))) ->  | L256: =IF(ISERROR(INDIRECT(CONCATENATE($B256,"!N20"))),"",INDIRECT(CONCATENATE($B256,"!N20"))) ->  | M256: =IF(ISERROR(INDIRECT(CONCATENATE($B256,"!N21"))),"",INDIRECT(CONCATENATE($B256,"!N21"))) ->  | O256: =IF(ISERROR(INDIRECT(CONCATENATE($B256,"!O18"))),"",INDIRECT(CONCATENATE($B256,"!O18"))) ->  | P256: =IF(ISERROR(INDIRECT(CONCATENATE($B256,"!O19"))),"",INDIRECT(CONCATENATE($B256,"!O19"))) ->  | Q256: =IF(ISERROR(INDIRECT(CONCATENATE($B256,"!O20"))),"",INDIRECT(CONCATENATE($B256,"!O20"))) ->  | R256: =IF(ISERROR(INDIRECT(CONCATENATE($B256,"!O21"))),"",INDIRECT(CONCATENATE($B256,"!O21"))) ->  | T256: =IF(ISERROR(INDIRECT(CONCATENATE($B256,"!P18"))),"",INDIRECT(CONCATENATE($B256,"!P18"))) ->  | U256: =IF(ISERROR(INDIRECT(CONCATENATE($B256,"!P19"))),"",INDIRECT(CONCATENATE($B256,"!P19"))) ->  | V256: =IF(ISERROR(INDIRECT(CONCATENATE($B256,"!P20"))),"",INDIRECT(CONCATENATE($B256,"!P20"))) ->  | W256: =IF(ISERROR(INDIRECT(CONCATENATE($B256,"!P21"))),"",INDIRECT(CONCATENATE($B256,"!P21"))) ->  | Y256: =IF(ISERROR(INDIRECT(CONCATENATE($B256,"!Q18"))),"",INDIRECT(CONCATENATE($B256,"!Q18"))) ->  | Z256: =IF(ISERROR(INDIRECT(CONCATENATE($B256,"!Q19"))),"",INDIRECT(CONCATENATE($B256,"!Q19"))) ->  | AA256: =IF(ISERROR(INDIRECT(CONCATENATE($B256,"!Q20"))),"",INDIRECT(CONCATENATE($B256,"!Q20"))) ->  | AB256: =IF(ISERROR(INDIRECT(CONCATENATE($B256,"!Q21"))),"",INDIRECT(CONCATENATE($B256,"!Q1"))) -> 
E257: =IF(ISERROR(INDIRECT(CONCATENATE($B257,"!M18"))),"",INDIRECT(CONCATENATE($B257,"!M18"))) ->  | F257: =IF(ISERROR(INDIRECT(CONCATENATE($B257,"!M19"))),"",INDIRECT(CONCATENATE($B257,"!M19"))) ->  | G257: =IF(ISERROR(INDIRECT(CONCATENATE($B257,"!M20"))),"",INDIRECT(CONCATENATE($B257,"!M20"))) ->  | H257: =IF(ISERROR(INDIRECT(CONCATENATE($B257,"!M21"))),"",INDIRECT(CONCATENATE($B257,"!M21"))) ->  | J257: =IF(ISERROR(INDIRECT(CONCATENATE($B257,"!N18"))),"",INDIRECT(CONCATENATE($B257,"!N18"))) ->  | K257: =IF(ISERROR(INDIRECT(CONCATENATE($B257,"!N19"))),"",INDIRECT(CONCATENATE($B257,"!N19"))) ->  | L257: =IF(ISERROR(INDIRECT(CONCATENATE($B257,"!N20"))),"",INDIRECT(CONCATENATE($B257,"!N20"))) ->  | M257: =IF(ISERROR(INDIRECT(CONCATENATE($B257,"!N21"))),"",INDIRECT(CONCATENATE($B257,"!N21"))) ->  | O257: =IF(ISERROR(INDIRECT(CONCATENATE($B257,"!O18"))),"",INDIRECT(CONCATENATE($B257,"!O18"))) ->  | P257: =IF(ISERROR(INDIRECT(CONCATENATE($B257,"!O19"))),"",INDIRECT(CONCATENATE($B257,"!O19"))) ->  | Q257: =IF(ISERROR(INDIRECT(CONCATENATE($B257,"!O20"))),"",INDIRECT(CONCATENATE($B257,"!O20"))) ->  | R257: =IF(ISERROR(INDIRECT(CONCATENATE($B257,"!O21"))),"",INDIRECT(CONCATENATE($B257,"!O21"))) ->  | T257: =IF(ISERROR(INDIRECT(CONCATENATE($B257,"!P18"))),"",INDIRECT(CONCATENATE($B257,"!P18"))) ->  | U257: =IF(ISERROR(INDIRECT(CONCATENATE($B257,"!P19"))),"",INDIRECT(CONCATENATE($B257,"!P19"))) ->  | V257: =IF(ISERROR(INDIRECT(CONCATENATE($B257,"!P20"))),"",INDIRECT(CONCATENATE($B257,"!P20"))) ->  | W257: =IF(ISERROR(INDIRECT(CONCATENATE($B257,"!P21"))),"",INDIRECT(CONCATENATE($B257,"!P21"))) ->  | Y257: =IF(ISERROR(INDIRECT(CONCATENATE($B257,"!Q18"))),"",INDIRECT(CONCATENATE($B257,"!Q18"))) ->  | Z257: =IF(ISERROR(INDIRECT(CONCATENATE($B257,"!Q19"))),"",INDIRECT(CONCATENATE($B257,"!Q19"))) ->  | AA257: =IF(ISERROR(INDIRECT(CONCATENATE($B257,"!Q20"))),"",INDIRECT(CONCATENATE($B257,"!Q20"))) ->  | AB257: =IF(ISERROR(INDIRECT(CONCATENATE($B257,"!Q21"))),"",INDIRECT(CONCATENATE($B257,"!Q1"))) -> 
A297: RURAL | D297: Poorest | I297: Poor | N297: Middle | S297: Rich | X297: Richest
D298: Improved | E298: Basic | F298: Limited | G298: Unimproved | H298: Surface water | I298: Improved | J298: Basic | K298: Limited | L298: Unimproved | M298: Surface water | N298: Improved | O298: Basic | P298: Limited | Q298: Unimproved | R298: Surface water | S298: Improved | T298: Basic | U298: Limited | V298: Unimproved | W298: Surface water | X298: Improved | Y298: Basic | Z298: Limited | AA298: Unimproved | AB298: Surface water
A299: Forecast period: | C299: 2000 | D299: =IF((D301+H301)>100,D301*100/(D301+H301),D301) -> 31.29580077 | E299: =D299*AVERAGEIF(E305:E316,">0")/100 -> 15.4984373 | F299: =D299*(100-AVERAGEIF(E305:E316,">0"))/100 -> 15.79736347 | G299: =100-(E299+F299+H299) -> 57.49441178 | H299: =IF((D301+H301)>100,H301*100/(D301+H301),H301) -> 11.20978745 | I299: =IF((I301+M301)>100,I301*100/(I301+M301),I301) -> 37.50475137 | J299: =I299*AVERAGEIF(J305:J316,">0")/100 -> 27.34458449 | K299: =I299*(100-AVERAGEIF(J305:J316,">0"))/100 -> 10.16016688 | L299: =100-(J299+K299+M299) -> 54.02448515 | M299: =IF((I301+M301)>100,M301*100/(I301+M301),M301) -> 8.470763484 | N299: =IF((N301+R301)>100,N301*100/(N301+R301),N301) -> 61.92856701 | O299: =N299*AVERAGEIF(O305:O316,">0")/100 -> 51.16484935 | P299: =N299*(100-AVERAGEIF(O305:O316,">0"))/100 -> 10.76371766 | Q299: =100-(O299+P299+R299) -> 30.30330929 | R299: =IF((N301+R301)>100,R301*100/(N301+R301),R301) -> 7.768123701 | S299: =IF((S301+W301)>100,S301*100/(S301+W301),S301) -> 65.79142519 | T299: =S299*AVERAGEIF(T305:T316,">0")/100 -> 59.37932424 | U299: =S299*(100-AVERAGEIF(T305:T316,">0"))/100 -> 6.41210095 | V299: =100-(T299+U299+W299) -> 27.30801442 | W299: =IF((S301+W301)>100,W301*100/(S301+W301),W301) -> 6.90056039 | X299: =IF((X301+AB301)>100,X301*100/(X301+AB301),X301) -> 91.49295894 | Y299: =X299*AVERAGEIF(Y305:Y316,">0")/100 -> 87.87882093 | Z299: =X299*(100-AVERAGEIF(Y305:Y316,">0"))/100 -> 3.614138006 | AA299: =100-(Y299+Z299+AB299) -> 6.235364103 | AB299: =IF((X301+AB301)>100,AB301*100/(X301+AB301),AB301) -> 2.271676959
C300: 2019 | D300: =IF((D302+H302)>100,D302*100/(D302+H302),D302) -> 58.69304511 | E300: =D300*AVERAGEIF(E305:E316,">0")/100 -> 29.06621518 | F300: =D300*(100-AVERAGEIF(E305:E316,">0"))/100 -> 29.62682992 | G300: =100-(E300+F300+H300) -> 38.736738 | H300: =IF((D302+H302)>100,H302*100/(D302+H302),H302) -> 2.570216892 | I300: =IF((I302+M302)>100,I302*100/(I302+M302),I302) -> 68.53485696 | J300: =I300*AVERAGEIF(J305:J316,">0")/100 -> 49.96852714 | K300: =I300*(100-AVERAGEIF(J305:J316,">0"))/100 -> 18.56632982 | L300: =100-(J300+K300+M300) -> 27.92906782 | M300: =IF((I302+M302)>100,M302*100/(I302+M302),M302) -> 3.536075223 | N300: =IF((N302+R302)>100,N302*100/(N302+R302),N302) -> 79.3362532 | O300: =N300*AVERAGEIF(O305:O316,">0")/100 -> 65.54692993 | P300: =N300*(100-AVERAGEIF(O305:O316,">0"))/100 -> 13.78932327 | Q300: =100-(O300+P300+R300) -> 18.91064267 | R300: =IF((N302+R302)>100,R302*100/(N302+R302),R302) -> 1.753104127 | S300: =IF((S302+W302)>100,S302*100/(S302+W302),S302) -> 85.95005086 | T300: =S300*AVERAGEIF(T305:T316,">0")/100 -> 77.57326922 | U300: =S300*(100-AVERAGEIF(T305:T316,">0"))/100 -> 8.376781642 | V300: =100-(T300+U300+W300) -> 12.92490582 | W300: =IF((S302+W302)>100,W302*100/(S302+W302),W302) -> 1.125043316 | X300: =IF((X302+AB302)>100,X302*100/(X302+AB302),X302) -> 93.4690095 | Y300: =X300*AVERAGEIF(Y305:Y316,">0")/100 -> 89.77681391 | Z300: =X300*(100-AVERAGEIF(Y305:Y316,">0"))/100 -> 3.692195591 | AA300: =100-(Y300+Z300+AB300) -> 5.872065091 | AB300: =IF((X302+AB302)>100,AB302*100/(X302+AB302),AB302) -> 0.6589254069
A301: Regression period: | C301: =MinRegYear(C299,C305:C316) -> 2004 | D301: =IF(MAX(C305:C316)-MIN(C305:C316)<5,AVERAGEIF(C305:C316,">0",D305:D316), IF(FORECAST($C301,D$305:D$316,$C$305:$C$316)<0,0, IF(FORECAST($C301,D$305:D$316,$C$305:$C$316)>100,100, FORECAST($C301,D$305:D$316,$C$305:$C$316)))) -> 31.29580077 | H301: =IF(MAX(C305:C316)-MIN(C305:C316)<5,AVERAGEIF(C305:C316,">0",H305:H316), IF(FORECAST($C301,H$305:H$316,$C$305:$C$316)<0,0, IF(FORECAST($C301,H$305:H$316,$C$305:$C$316)>100,100, FORECAST($C301,H$305:H$316,$C$305:$C$316)))) -> 11.20978745 | I301: =IF(MAX(C305:C316)-MIN(C305:C316)<5,AVERAGEIF(C305:C316,">0",I305:I316), IF(FORECAST($C301,I$305:I$316,$C$305:$C$316)<0,0, IF(FORECAST($C301,I$305:I$316,$C$305:$C$316)>100,100, FORECAST($C301,I$305:I$316,$C$305:$C$316)))) -> 37.50475137 | M301: =IF(MAX(C305:C316)-MIN(C305:C316)<5,AVERAGEIF(C305:C316,">0",M305:M316), IF(FORECAST($C301,M$305:M$316,$C$305:$C$316)<0,0, IF(FORECAST($C301,M$305:M$316,$C$305:$C$316)>100,100, FORECAST($C301,M$305:M$316,$C$305:$C$316)))) -> 8.470763484 | N301: =IF(MAX(C305:C316)-MIN(C305:C316)<5,AVERAGEIF(C305:C316,">0",N305:N316), IF(FORECAST($C301,N$305:N$316,$C$305:$C$316)<0,0, IF(FORECAST($C301,N$305:N$316,$C$305:$C$316)>100,100, FORECAST($C301,N$305:N$316,$C$305:$C$316)))) -> 61.92856701 | R301: =IF(MAX(C305:C316)-MIN(C305:C316)<5,AVERAGEIF(C305:C316,">0",R305:R316), IF(FORECAST($C301,R$305:R$316,$C$305:$C$316)<0,0, IF(FORECAST($C301,R$305:R$316,$C$305:$C$316)>100,100, FORECAST($C301,R$305:R$316,$C$305:$C$316)))) -> 7.768123701 | S301: =IF(MAX(C305:C316)-MIN(C305:C316)<5,AVERAGEIF(C305:C316,">0",S305:S316), IF(FORECAST($C301,S$305:S$316,$C$305:$C$316)<0,0, IF(FORECAST($C301,S$305:S$316,$C$305:$C$316)>100,100, FORECAST($C301,S$305:S$316,$C$305:$C$316)))) -> 65.79142519 | W301: =IF(MAX(C305:C316)-MIN(C305:C316)<5,AVERAGEIF(C305:C316,">0",W305:W316), IF(FORECAST($C301,W$305:W$316,$C$305:$C$316)<0,0, IF(FORECAST($C301,W$305:W$316,$C$305:$C$316)>100,100, FORECAST($C301,W$305:W$316,$C$305:$C$316)))) -> 6.90056039 | X301: =IF(MAX(C305:C316)-MIN(C305:C316)<5,AVERAGEIF(C305:C316,">0",X305:X316), IF(FORECAST($C301,X$305:X$316,$C$305:$C$316)<0,0, IF(FORECAST($C301,X$305:X$316,$C$305:$C$316)>100,100, FORECAST($C301,X$305:X$316,$C$305:$C$316)))) -> 91.49295894 | AB301: =IF(MAX(C305:C316)-MIN(C305:C316)<5,AVERAGEIF(C305:C316,">0",AB305:AB316), IF(FORECAST($C301,AB$305:AB$316,$C$305:$C$316)<0,0, IF(FORECAST($C301,AB$305:AB$316,$C$305:$C$316)>100,100, FORECAST($C301,AB$305:AB$316,$C$305:$C$316)))) -> 2.271676959
C302: =MaxRegYear(C300,C305:C316) -> 2015 | D302: =IF(MAX(C305:C316)-MIN(C305:C316)<5,AVERAGEIF(C305:C316,">0",D305:D316), IF(FORECAST($C302,D$305:D$316,$C$305:$C$316)<0,0, IF(FORECAST($C302,D$305:D$316,$C$305:$C$316)>100,100, FORECAST($C302,D$305:D$316,$C$305:$C$316)))) -> 58.69304511 | H302: =IF(MAX(C305:C316)-MIN(C305:C316)<5,AVERAGEIF(C305:C316,">0",H305:H316), IF(FORECAST($C302,H$305:H$316,$C$305:$C$316)<0,0, IF(FORECAST($C302,H$305:H$316,$C$305:$C$316)>100,100, FORECAST($C302,H$305:H$316,$C$305:$C$316)))) -> 2.570216892 | I302: =IF(MAX(C305:C316)-MIN(C305:C316)<5,AVERAGEIF(C305:C316,">0",I305:I316), IF(FORECAST($C302,I$305:I$316,$C$305:$C$316)<0,0, IF(FORECAST($C302,I$305:I$316,$C$305:$C$316)>100,100, FORECAST($C302,I$305:I$316,$C$305:$C$316)))) -> 68.53485696 | M302: =IF(MAX(C305:C316)-MIN(C305:C316)<5,AVERAGEIF(C305:C316,">0",M305:M316), IF(FORECAST($C302,M$305:M$316,$C$305:$C$316)<0,0, IF(FORECAST($C302,M$305:M$316,$C$305:$C$316)>100,100, FORECAST($C302,M$305:M$316,$C$305:$C$316)))) -> 3.536075223 | N302: =IF(MAX(C305:C316)-MIN(C305:C316)<5,AVERAGEIF(C305:C316,">0",N305:N316), IF(FORECAST($C302,N$305:N$316,$C$305:$C$316)<0,0, IF(FORECAST($C302,N$305:N$316,$C$305:$C$316)>100,100, FORECAST($C302,N$305:N$316,$C$305:$C$316)))) -> 79.3362532 | R302: =IF(MAX(C305:C316)-MIN(C305:C316)<5,AVERAGEIF(C305:C316,">0",R305:R316), IF(FORECAST($C302,R$305:R$316,$C$305:$C$316)<0,0, IF(FORECAST($C302,R$305:R$316,$C$305:$C$316)>100,100, FORECAST($C302,R$305:R$316,$C$305:$C$316)))) -> 1.753104127 | S302: =IF(MAX(C305:C316)-MIN(C305:C316)<5,AVERAGEIF(C305:C316,">0",S305:S316), IF(FORECAST($C302,S$305:S$316,$C$305:$C$316)<0,0, IF(FORECAST($C302,S$305:S$316,$C$305:$C$316)>100,100, FORECAST($C302,S$305:S$316,$C$305:$C$316)))) -> 85.95005086 | W302: =IF(MAX(C305:C316)-MIN(C305:C316)<5,AVERAGEIF(C305:C316,">0",W305:W316), IF(FORECAST($C302,W$305:W$316,$C$305:$C$316)<0,0, IF(FORECAST($C302,W$305:W$316,$C$305:$C$316)>100,100, FORECAST($C302,W$305:W$316,$C$305:$C$316)))) -> 1.125043316 | X302: =IF(MAX(C305:C316)-MIN(C305:C316)<5,AVERAGEIF(C305:C316,">0",X305:X316), IF(FORECAST($C302,X$305:X$316,$C$305:$C$316)<0,0, IF(FORECAST($C302,X$305:X$316,$C$305:$C$316)>100,100, FORECAST($C302,X$305:X$316,$C$305:$C$316)))) -> 93.4690095 | AB302: =IF(MAX(C305:C316)-MIN(C305:C316)<5,AVERAGEIF(C305:C316,">0",AB305:AB316), IF(FORECAST($C302,AB$305:AB$316,$C$305:$C$316)<0,0, IF(FORECAST($C302,AB$305:AB$316,$C$305:$C$316)>100,100, FORECAST($C302,AB$305:AB$316,$C$305:$C$316)))) -> 0.6589254069
B304: Survey | C304: Year | D304: Improved | E304: % Improved < = 30min | H304: Surface water | I304: Improved | J304: % Improved < = 30min | M304: Surface water | N304: Improved | O304: % Improved < = 30min | R304: Surface water | S304: Improved | T304: % Improved < = 30min | W304: Surface water | X304: Improved | Y304: % Improved < = 30min | AB304: Surface water
B305: MICS06 | C305: 2006 | D305: =IF(ISERROR(INDIRECT(CONCATENATE($B305,"!M16"))),"",INDIRECT(CONCATENATE($B305,"!M16"))) -> 36.27711792 | E305: =IF(ISERROR(INDIRECT(CONCATENATE($B305,"!M23"))),"",INDIRECT(CONCATENATE($B305,"!M23"))) -> 49.52241809 | H305: =IF(ISERROR(INDIRECT(CONCATENATE($B305,"!M21"))),"",INDIRECT(CONCATENATE($B305,"!M21"))) -> 9.638956442 | I305: =IF(ISERROR(INDIRECT(CONCATENATE($B305,"!N16"))),"",INDIRECT(CONCATENATE($B305,"!N16"))) -> 43.14658875 | J305: =IF(ISERROR(INDIRECT(CONCATENATE($B305,"!N23"))),"",INDIRECT(CONCATENATE($B305,"!N23"))) -> 72.90965409 | M305: =IF(ISERROR(INDIRECT(CONCATENATE($B305,"!N21"))),"",INDIRECT(CONCATENATE($B305,"!N21"))) -> 7.573547436 | N305: =IF(ISERROR(INDIRECT(CONCATENATE($B305,"!O16"))),"",INDIRECT(CONCATENATE($B305,"!O16"))) -> 65.09360086 | O305: =IF(ISERROR(INDIRECT(CONCATENATE($B305,"!O23"))),"",INDIRECT(CONCATENATE($B305,"!O23"))) -> 82.61913979 | R305: =IF(ISERROR(INDIRECT(CONCATENATE($B305,"!O21"))),"",INDIRECT(CONCATENATE($B305,"!O21"))) -> 6.674483779 | S305: =IF(ISERROR(INDIRECT(CONCATENATE($B305,"!P16"))),"",INDIRECT(CONCATENATE($B305,"!P16"))) -> 69.45662986 | T305: =IF(ISERROR(INDIRECT(CONCATENATE($B305,"!P23"))),"",INDIRECT(CONCATENATE($B305,"!P23"))) -> 90.25389565 | W305: =IF(ISERROR(INDIRECT(CONCATENATE($B305,"!P21"))),"",INDIRECT(CONCATENATE($B305,"!P21"))) -> 5.850466377 | X305: =IF(ISERROR(INDIRECT(CONCATENATE($B305,"!Q16"))),"",INDIRECT(CONCATENATE($B305,"!Q16"))) -> 91.85224086 | Y305: =IF(ISERROR(INDIRECT(CONCATENATE($B305,"!Q23"))),"",INDIRECT(CONCATENATE($B305,"!Q23"))) -> 96.04981843 | AB305: =IF(ISERROR(INDIRECT(CONCATENATE($B305,"!Q221"))),"",INDIRECT(CONCATENATE($B305,"!Q21"))) -> 1.978449404
B306: DHS13 | C306: 2013 | D306: 53.71172796 | E306: N/A | H306: 4.141047903 | I306: 62.89301958 | J306: N/A | M306: 4.43329127 | N306: 76.17121935 | O306: N/A | R306: 2.84674405 | S306: 82.28484619 | T306: N/A | W306: 2.175137329 | X306: 93.10972758 | Y306: N/A | AB306: 0.9521529618
B318: =CONCATENATE("Rural use of drinking water sources, ",C299,"–",C300) -> Rural use of drinking water sources, 2000–2019 | S318: Data points used for regression

Sheet Sanitation
B4: Summary of trends in use of sanitation facilities by wealth quintile (%)
B5: =IF(ISERROR(INDIRECT(CONCATENATE($B105,"!A2"))),"",INDIRECT(CONCATENATE($B105,"!A2"))) -> Yemen
B7: =B118 -> National use of sanitation facilities, 2000–2019 | J7: =B218 -> Urban use of sanitation facilities, 2000–2019 | R7: =B318 -> Rural use of sanitation facilities, 2000–2019
B31: =IF(ISERROR(INDIRECT(CONCATENATE($B105,"!A2"))),"",INDIRECT(CONCATENATE($B105,"!A2"))) -> Yemen | F31: Poorest | J31: Poor | N31: Middle | R31: Rich | V31: Richest
F32: Basic | G32: Limited | H32: Unimproved | I32: Open defecation | J32: Basic | K32: Limited | L32: Unimproved | M32: Open defecation | N32: Basic | O32: Limited | P32: Unimproved | Q32: Open defecation | R32: Basic | S32: Limited | T32: Unimproved | U32: Open defecation | V32: Basic | W32: Limited | X32: Unimproved | Y32: Open defecation
B33: NATIONAL | D33: Estimate | E33: =C99 -> 2000 | F33: =E99 -> 6.665551201 | G33: =F99 -> 0.9725347812 | H33: 26.21526473 | I33: 66.14664929 | J33: =J99 -> 23.50635088 | K33: =K99 -> 2.573468697 | L33: 42.85065179 | M33: 31.06952863 | N33: =O99 -> 44.70140791 | O33: =P99 -> 1.983300903 | P33: 46.12984156 | Q33: 7.185449632 | R33: =T99 -> 79.57515609 | S33: =U99 -> 2.995654409 | T33: 17.4291895 | U33: 0 | V33: =Y99 -> 87.66432915 | W33: =Z99 -> 1.317453537 | X33: 10.32844064 | Y33: 0.6897766769
E34: =C100 -> 2019 | F34: =E100 -> 13.36738807 | G34: 1.950363809 | H34: 25.92480767 | I34: 58.75744045 | J34: =J100 -> 37.44583972 | K34: 4.099560022 | L34: 26.77374675 | M34: 31.6808535 | N34: =O100 -> 60.54004688 | O34: 2.686025682 | P34: 15.82258863 | Q34: 20.95133881 | R34: =T100 -> 79.84959946 | S34: 3.005985994 | T34: 8.10242152 | U34: 9.041993029 | V34: =Y100 -> 96.15666199 | W34: 1.445079608 | X34: 0 | Y34: 2.398258401
B36: URBAN | D36: Estimate | E36: =C199 -> 2000 | F36: =E199 -> 78.67293736 | G36: =F199 -> 2.220970968 | H36: 16.92402739 | I36: 2.182064282 | J36: =J199 -> 90.5256045 | K36: =K199 -> 3.984011312 | L36: 5.49038419 | M36: 0 | N36: =O199 -> 88.60675544 | O36: =P199 -> 2.777684399 | P36: 8.615560158 | Q36: 0 | R36: =T199 -> 96.81215104 | S36: =U199 -> 0 | T36: 3.187848956 | U36: 0 | V36: =Y199 -> 99.72804281 | W36: =Z199 -> 0.2719571864 | X36: 0 | Y36: 0
E37: =C200 -> 2019 | F37: =E200 -> 71.24304513 | G37: 2.011221905 | H37: 18.55012795 | I37: 8.195605021 | J37: =J200 -> 86.6402901 | K37: 3.813019507 | L37: 5.84205516 | M37: 3.70463523 | N37: =O200 -> 95.49216857 | O37: 2.993531425 | P37: 0 | Q37: 1.514300008 | R37: =T200 -> 97.5435689 | S37: 0 | T37: 1.919183123 | U37: 0.5372479787 | V37: =Y200 -> 98.8158804 | W37: 0.2694697304 | X37: 0.3198780857 | Y37: 0.5947717835
B39: RURAL | D39: Estimate | E39: =C299 -> 2000 | F39: =E299 -> 4.03468913 | G39: =F299 -> 0.5146317067 | H39: 20.16572496 | I39: 75.2849542 | J39: =J299 -> 14.48973153 | K39: =K299 -> 1.8528349 | L39: 36.57308709 | M39: 47.08434648 | N39: =O299 -> 27.75592905 | O39: =P299 -> 2.232906724 | P39: 49.56918639 | Q39: 20.44197783 | R39: =T299 -> 35.75574168 | S39: =U299 -> 2.301472903 | T39: 54.48944685 | U39: 7.453338568 | V39: =Y299 -> 65.58462319 | W39: =Z299 -> 3.048984089 | X39: 31.36639272 | Y39: 0
E40: =C300 -> 2019 | F40: =E300 -> 11.4937781 | G40: 1.466051646 | H40: 23.77421496 | I40: 63.26595529 | J40: =J300 -> 26.57792928 | K40: 3.398580218 | L40: 30.90503199 | M40: 39.11845852 | N40: =O300 -> 44.43044143 | O40: 3.57433654 | P40: 21.699516 | Q40: 30.29570602 | R40: =T300 -> 58.05828094 | S40: 3.737009893 | T40: 15.85973973 | U40: 22.34496943 | V40: =Y300 -> 75.73296645 | W40: 3.520773597 | X40: 4.532917018 | Y40: 16.21334293
A97: NATIONAL | D97: Poorest | I97: Poor | N97: Middle | S97: Rich | X97: Richest
D98: Improved | E98: Basic | F98: Limited | G98: Unimproved | H98: Open defecation | I98: Improved | J98: Basic | K98: Limited | L98: Unimproved | M98: Open defecation | N98: Improved | O98: Basic | P98: Limited | Q98: Unimproved | R98: Open defecation | S98: Improved | T98: Basic | U98: Limited | V98: Unimproved | W98: Open defecation | X98: Improved | Y98: Basic | Z98: Limited | AA98: Unimproved | AB98: Open defecation
A99: Forecast period: | C99: 2000 | D99: =IF((D101+H101)>100,D101*100/(D101+H101),D101) -> 7.638085982 | E99: =D99*AVERAGEIF(E105:E116,">0")/100 -> 6.665551201 | F99: =D99*(100-AVERAGEIF(E105:E116,">0"))/100 -> 0.9725347812 | G99: =100-(E99+F99+H99) -> 26.21526473 | H99: =IF((D101+H101)>100,H101*100/(D101+H101),H101) -> 66.14664929 | I99: =IF((I101+M101)>100,I101*100/(I101+M101),I101) -> 26.07981958 | J99: =I99*AVERAGEIF(J105:J116,">0")/100 -> 23.50635088 | K99: =I99*(100-AVERAGEIF(J105:J116,">0"))/100 -> 2.573468697 | L99: =100-(J99+K99+M99) -> 42.85065179 | M99: =IF((I101+M101)>100,M101*100/(I101+M101),M101) -> 31.06952863 | N99: =IF((N101+R101)>100,N101*100/(N101+R101),N101) -> 46.68470881 | O99: =N99*AVERAGEIF(O105:O116,">0")/100 -> 44.70140791 | P99: =N99*(100-AVERAGEIF(O105:O116,">0"))/100 -> 1.983300903 | Q99: =100-(O99+P99+R99) -> 46.12984156 | R99: =IF((N101+R101)>100,R101*100/(N101+R101),R101) -> 7.185449632 | S99: =IF((S101+W101)>100,S101*100/(S101+W101),S101) -> 82.5708105 | T99: =S99*AVERAGEIF(T105:T116,">0")/100 -> 79.57515609 | U99: =S99*(100-AVERAGEIF(T105:T116,">0"))/100 -> 2.995654409 | V99: =100-(T99+U99+W99) -> 17.4291895 | W99: =IF((S101+W101)>100,W101*100/(S101+W101),W101) -> 0 | X99: =IF((X101+AB101)>100,X101*100/(X101+AB101),X101) -> 88.98178269 | Y99: =X99*AVERAGEIF(Y105:Y116,">0")/100 -> 87.66432915 | Z99: =X99*(100-AVERAGEIF(Y105:Y116,">0"))/100 -> 1.317453537 | AA99: =100-(Y99+Z99+AB99) -> 10.32844064 | AB99: =IF((X101+AB101)>100,AB101*100/(X101+AB101),AB101) -> 0.6897766769
C100: 2019 | D100: =IF((D102+H102)>100,D102*100/(D102+H102),D102) -> 15.31775188 | E100: =D100*AVERAGEIF(E105:E116,">0")/100 -> 13.36738807 | F100: =D100*(100-AVERAGEIF(E105:E116,">0"))/100 -> 1.950363809 | G100: =100-(E100+F100+H100) -> 25.92480767 | H100: =IF((D102+H102)>100,H102*100/(D102+H102),H102) -> 58.75744045 | I100: =IF((I102+M102)>100,I102*100/(I102+M102),I102) -> 41.54539974 | J100: =I100*AVERAGEIF(J105:J116,">0")/100 -> 37.44583972 | K100: =I100*(100-AVERAGEIF(J105:J116,">0"))/100 -> 4.099560022 | L100: =100-(J100+K100+M100) -> 26.77374675 | M100: =IF((I102+M102)>100,M102*100/(I102+M102),M102) -> 31.6808535 | N100: =IF((N102+R102)>100,N102*100/(N102+R102),N102) -> 63.22607256 | O100: =N100*AVERAGEIF(O105:O116,">0")/100 -> 60.54004688 | P100: =N100*(100-AVERAGEIF(O105:O116,">0"))/100 -> 2.686025682 | Q100: =100-(O100+P100+R100) -> 15.82258863 | R100: =IF((N102+R102)>100,R102*100/(N102+R102),R102) -> 20.95133881 | S100: =IF((S102+W102)>100,S102*100/(S102+W102),S102) -> 82.85558545 | T100: =S100*AVERAGEIF(T105:T116,">0")/100 -> 79.84959946 | U100: =S100*(100-AVERAGEIF(T105:T116,">0"))/100 -> 3.005985994 | V100: =100-(T100+U100+W100) -> 8.10242152 | W100: =IF((S102+W102)>100,W102*100/(S102+W102),W102) -> 9.041993029 | X100: =IF((X102+AB102)>100,X102*100/(X102+AB102),X102) -> 97.6017416 | Y100: =X100*AVERAGEIF(Y105:Y116,">0")/100 -> 96.15666199 | Z100: =X100*(100-AVERAGEIF(Y105:Y116,">0"))/100 -> 1.445079608 | AA100: =100-(Y100+Z100+AB100) -> 0 | AB100: =IF((X102+AB102)>100,AB102*100/(X102+AB102),AB102) -> 2.398258401
A101: Regression period: | C101: =MinRegYear(C99,C105:C116) -> 2004 | D101: =IF(MAX(C105:C116)-MIN(C105:C116)<5,AVERAGEIF(C105:C116,">0",D105:D116), IF(FORECAST($C101,D$105:D$116,$C$105:$C$116)<0,0, IF(FORECAST($C101,D$105:D$116,$C$105:$C$116)>100,100, FORECAST($C101,D$105:D$116,$C$105:$C$116)))) -> 7.638085982 | H101: =IF(MAX(C105:C116)-MIN(C105:C116)<5,AVERAGEIF(C105:C116,">0",H105:H116), IF(FORECAST($C101,H$105:H$116,$C$105:$C$116)<0,0, IF(FORECAST($C101,H$105:H$116,$C$105:$C$116)>100,100, FORECAST($C101,H$105:H$116,$C$105:$C$116)))) -> 66.14664929 | I101: =IF(MAX(C105:C116)-MIN(C105:C116)<5,AVERAGEIF(C105:C116,">0",I105:I116), IF(FORECAST($C101,I$105:I$116,$C$105:$C$116)<0,0, IF(FORECAST($C101,I$105:I$116,$C$105:$C$116)>100,100, FORECAST($C101,I$105:I$116,$C$105:$C$116)))) -> 26.07981958 | M101: =IF(MAX(C105:C116)-MIN(C105:C116)<5,AVERAGEIF(C105:C116,">0",M105:M116), IF(FORECAST($C101,M$105:M$116,$C$105:$C$116)<0,0, IF(FORECAST($C101,M$105:M$116,$C$105:$C$116)>100,100, FORECAST($C101,M$105:M$116,$C$105:$C$116)))) -> 31.06952863 | N101: =IF(MAX(C105:C116)-MIN(C105:C116)<5,AVERAGEIF(C105:C116,">0",N105:N116), IF(FORECAST($C101,N$105:N$116,$C$105:$C$116)<0,0, IF(FORECAST($C101,N$105:N$116,$C$105:$C$116)>100,100, FORECAST($C101,N$105:N$116,$C$105:$C$116)))) -> 46.68470881 | R101: =IF(MAX(C105:C116)-MIN(C105:C116)<5,AVERAGEIF(C105:C116,">0",R105:R116), IF(FORECAST($C101,R$105:R$116,$C$105:$C$116)<0,0, IF(FORECAST($C101,R$105:R$116,$C$105:$C$116)>100,100, FORECAST($C101,R$105:R$116,$C$105:$C$116)))) -> 7.185449632 | S101: =IF(MAX(C105:C116)-MIN(C105:C116)<5,AVERAGEIF(C105:C116,">0",S105:S116), IF(FORECAST($C101,S$105:S$116,$C$105:$C$116)<0,0, IF(FORECAST($C101,S$105:S$116,$C$105:$C$116)>100,100, FORECAST($C101,S$105:S$116,$C$105:$C$116)))) -> 82.5708105 | W101: =IF(MAX(C105:C116)-MIN(C105:C116)<5,AVERAGEIF(C105:C116,">0",W105:W116), IF(FORECAST($C101,W$105:W$116,$C$105:$C$116)<0,0, IF(FORECAST($C101,W$105:W$116,$C$105:$C$116)>100,100, FORECAST($C101,W$105:W$116,$C$105:$C$116)))) -> 0 | X101: =IF(MAX(C105:C116)-MIN(C105:C116)<5,AVERAGEIF(C105:C116,">0",X105:X116), IF(FORECAST($C101,X$105:X$116,$C$105:$C$116)<0,0, IF(FORECAST($C101,X$105:X$116,$C$105:$C$116)>100,100, FORECAST($C101,X$105:X$116,$C$105:$C$116)))) -> 88.98178269 | AB101: =IF(MAX(C105:C116)-MIN(C105:C116)<5,AVERAGEIF(C105:C116,">0",AB105:AB116), IF(FORECAST($C101,AB$105:AB$116,$C$105:$C$116)<0,0, IF(FORECAST($C101,AB$105:AB$116,$C$105:$C$116)>100,100, FORECAST($C101,AB$105:AB$116,$C$105:$C$116)))) -> 0.6897766769
C102: =MaxRegYear(C100,C105:C116) -> 2015 | D102: =IF(MAX(C105:C116)-MIN(C105:C116)<5,AVERAGEIF(C105:C116,">0",D105:D116), IF(FORECAST($C102,D$105:D$116,$C$105:$C$116)<0,0, IF(FORECAST($C102,D$105:D$116,$C$105:$C$116)>100,100, FORECAST($C102,D$105:D$116,$C$105:$C$116)))) -> 15.31775188 | H102: =IF(MAX(C105:C116)-MIN(C105:C116)<5,AVERAGEIF(C105:C116,">0",H105:H116), IF(FORECAST($C102,H$105:H$116,$C$105:$C$116)<0,0, IF(FORECAST($C102,H$105:H$116,$C$105:$C$116)>100,100, FORECAST($C102,H$105:H$116,$C$105:$C$116)))) -> 58.75744045 | I102: =IF(MAX(C105:C116)-MIN(C105:C116)<5,AVERAGEIF(C105:C116,">0",I105:I116), IF(FORECAST($C102,I$105:I$116,$C$105:$C$116)<0,0, IF(FORECAST($C102,I$105:I$116,$C$105:$C$116)>100,100, FORECAST($C102,I$105:I$116,$C$105:$C$116)))) -> 41.54539974 | M102: =IF(MAX(C105:C116)-MIN(C105:C116)<5,AVERAGEIF(C105:C116,">0",M105:M116), IF(FORECAST($C102,M$105:M$116,$C$105:$C$116)<0,0, IF(FORECAST($C102,M$105:M$116,$C$105:$C$116)>100,100, FORECAST($C102,M$105:M$116,$C$105:$C$116)))) -> 31.6808535 | N102: =IF(MAX(C105:C116)-MIN(C105:C116)<5,AVERAGEIF(C105:C116,">0",N105:N116), IF(FORECAST($C102,N$105:N$116,$C$105:$C$116)<0,0, IF(FORECAST($C102,N$105:N$116,$C$105:$C$116)>100,100, FORECAST($C102,N$105:N$116,$C$105:$C$116)))) -> 63.22607256 | R102: =IF(MAX(C105:C116)-MIN(C105:C116)<5,AVERAGEIF(C105:C116,">0",R105:R116), IF(FORECAST($C102,R$105:R$116,$C$105:$C$116)<0,0, IF(FORECAST($C102,R$105:R$116,$C$105:$C$116)>100,100, FORECAST($C102,R$105:R$116,$C$105:$C$116)))) -> 20.95133881 | S102: =IF(MAX(C105:C116)-MIN(C105:C116)<5,AVERAGEIF(C105:C116,">0",S105:S116), IF(FORECAST($C102,S$105:S$116,$C$105:$C$116)<0,0, IF(FORECAST($C102,S$105:S$116,$C$105:$C$116)>100,100, FORECAST($C102,S$105:S$116,$C$105:$C$116)))) -> 82.85558545 | W102: =IF(MAX(C105:C116)-MIN(C105:C116)<5,AVERAGEIF(C105:C116,">0",W105:W116), IF(FORECAST($C102,W$105:W$116,$C$105:$C$116)<0,0, IF(FORECAST($C102,W$105:W$116,$C$105:$C$116)>100,100, FORECAST($C102,W$105:W$116,$C$105:$C$116)))) -> 9.041993029 | X102: =IF(MAX(C105:C116)-MIN(C105:C116)<5,AVERAGEIF(C105:C116,">0",X105:X116), IF(FORECAST($C102,X$105:X$116,$C$105:$C$116)<0,0, IF(FORECAST($C102,X$105:X$116,$C$105:$C$116)>100,100, FORECAST($C102,X$105:X$116,$C$105:$C$116)))) -> 97.86231543 | AB102: =IF(MAX(C105:C116)-MIN(C105:C116)<5,AVERAGEIF(C105:C116,">0",AB105:AB116), IF(FORECAST($C102,AB$105:AB$116,$C$105:$C$116)<0,0, IF(FORECAST($C102,AB$105:AB$116,$C$105:$C$116)>100,100, FORECAST($C102,AB$105:AB$116,$C$105:$C$116)))) -> 2.40466119
B104: Survey | C104: Year | D104: Improved | E104: Not shared | H104: Open defecation | I104: Improved | J104: Not shared | M104: Open defecation | N104: Improved | O104: Not shared | R104: Open defecation | S104: Improved | T104: Not shared | W104: Open defecation | X104: Improved | Y104: Not shared | AB104: Open defecation
B105: MICS06 | C105: 2006 | D105: =IF(ISERROR(INDIRECT(CONCATENATE($B105,"!C122"))),"",INDIRECT(CONCATENATE($B105,"!C122"))) -> 9.034388873 | E105: =IF(ISERROR(INDIRECT(CONCATENATE($B105,"!C129"))),"",INDIRECT(CONCATENATE($B105,"!C129"))) -> 87.26729728 | H105: =IF(ISERROR(INDIRECT(CONCATENATE($B105,"!C127"))),"",INDIRECT(CONCATENATE($B105,"!C127"))) -> 64.80315677 | I105: =IF(ISERROR(INDIRECT(CONCATENATE($B105,"!D122"))),"",INDIRECT(CONCATENATE($B105,"!D122"))) -> 28.89174325 | J105: =IF(ISERROR(INDIRECT(CONCATENATE($B105,"!D129"))),"",INDIRECT(CONCATENATE($B105,"!D129"))) -> 90.13233704 | M105: =IF(ISERROR(INDIRECT(CONCATENATE($B105,"!D127"))),"",INDIRECT(CONCATENATE($B105,"!D127"))) -> 31.18067861 | N105: =IF(ISERROR(INDIRECT(CONCATENATE($B105,"!E122"))),"",INDIRECT(CONCATENATE($B105,"!E122"))) -> 49.69222949 | O105: =IF(ISERROR(INDIRECT(CONCATENATE($B105,"!E129"))),"",INDIRECT(CONCATENATE($B105,"!E129"))) -> 95.75171196 | R105: =IF(ISERROR(INDIRECT(CONCATENATE($B105,"!E127"))),"",INDIRECT(CONCATENATE($B105,"!E127"))) -> 9.688338575 | S105: =IF(ISERROR(INDIRECT(CONCATENATE($B105,"!F122"))),"",INDIRECT(CONCATENATE($B105,"!F122"))) -> 82.62258776 | T105: =IF(ISERROR(INDIRECT(CONCATENATE($B105,"!F129"))),"",INDIRECT(CONCATENATE($B105,"!F129"))) -> 96.37201768 | W105: =IF(ISERROR(INDIRECT(CONCATENATE($B105,"!F127"))),"",INDIRECT(CONCATENATE($B105,"!F127"))) -> 0.4835472132 | X105: =IF(ISERROR(INDIRECT(CONCATENATE($B105,"!G122"))),"",INDIRECT(CONCATENATE($B105,"!G122"))) -> 90.596425 | Y105: =IF(ISERROR(INDIRECT(CONCATENATE($B105,"!G129"))),"",INDIRECT(CONCATENATE($B105,"!G129"))) -> 98.51941207 | AB105: =IF(ISERROR(INDIRECT(CONCATENATE($B105,"!G2127"))),"",INDIRECT(CONCATENATE($B105,"!G127"))) -> 1.001573861
B106: DHS13 | C106: 2013 | D106: 13.92144899 | E106: N/A | H106: 60.10093297 | I106: 38.73347608 | J106: N/A | M106: 31.56970353 | N106: 60.21855188 | O106: N/A | R106: 18.44844987 | S106: 82.80380819 | T106: N/A | W106: 7.140116181 | X106: 96.24767311 | Y106: N/A | AB106: 2.092864006
B118: =CONCATENATE("National use of sanitation facilities, ",C99,"–",C100) -> National use of sanitation facilities, 2000–2019 | S118: Data points used for regression
A197: URBAN | D197: Poorest | I197: Poor | N197: Middle | S197: Rich | X197: Richest
D198: Improved | E198: Basic | F198: Limited | G198: Unimproved | H198: Open defecation | I198: Improved | J198: Basic | K198: Limited | L198: Unimproved | M198: Open defecation | N198: Improved | O198: Basic | P198: Limited | Q198: Unimproved | R198: Open defecation | S198: Improved | T198: Basic | U198: Limited | V198: Unimproved | W198: Open defecation | X198: Improved | Y198: Basic | Z198: Limited | AA198: Unimproved | AB198: Open defecation
A199: Forecast period: | C199: =MinBase(C205:C216) -> 2000 | D199: =IF((D201+H201)>100,D201*100/(D201+H201),D201) -> 80.89390832 | E199: =D199*AVERAGEIF(E205:E216,">0")/100 -> 78.67293736 | F199: =D199*(100-AVERAGEIF(E205:E216,">0"))/100 -> 2.220970968 | G199: =100-(E199+F199+H199) -> 16.92402739 | H199: =IF((D201+H201)>100,H201*100/(D201+H201),H201) -> 2.182064282 | I199: =IF((I201+M201)>100,I201*100/(I201+M201),I201) -> 94.50961581 | J199: =I199*AVERAGEIF(J205:J216,">0")/100 -> 90.5256045 | K199: =I199*(100-AVERAGEIF(J205:J216,">0"))/100 -> 3.984011312 | L199: =100-(J199+K199+M199) -> 5.49038419 | M199: =IF((I201+M201)>100,M201*100/(I201+M201),M201) -> 0 | N199: =IF((N201+R201)>100,N201*100/(N201+R201),N201) -> 91.38443984 | O199: =N199*AVERAGEIF(O205:O216,">0")/100 -> 88.60675544 | P199: =N199*(100-AVERAGEIF(O205:O216,">0"))/100 -> 2.777684399 | Q199: =100-(O199+P199+R199) -> 8.615560158 | R199: =IF((N201+R201)>100,R201*100/(N201+R201),R201) -> 0 | S199: =IF((S201+W201)>100,S201*100/(S201+W201),S201) -> 96.81215104 | T199: =S199*AVERAGEIF(T205:T216,">0")/100 -> 96.81215104 | U199: =S199*(100-AVERAGEIF(T205:T216,">0"))/100 -> 0 | V199: =100-(T199+U199+W199) -> 3.187848956 | W199: =IF((S201+W201)>100,W201*100/(S201+W201),W201) -> 0 | X199: =IF((X201+AB201)>100,X201*100/(X201+AB201),X201) -> 100 | Y199: =X199*AVERAGEIF(Y205:Y216,">0")/100 -> 99.72804281 | Z199: =X199*(100-AVERAGEIF(Y205:Y216,">0"))/100 -> 0.2719571864 | AA199: =100-(Y199+Z199+AB199) -> 0 | AB199: =IF((X201+AB201)>100,AB201*100/(X201+AB201),AB201) -> 0
C200: =MaxTarget(C205:C216) -> 2019 | D200: =IF((D202+H202)>100,D202*100/(D202+H202),D202) -> 73.25426703 | E200: =D200*AVERAGEIF(E205:E216,">0")/100 -> 71.24304513 | F200: =D200*(100-AVERAGEIF(E205:E216,">0"))/100 -> 2.011221905 | G200: =100-(E200+F200+H200) -> 18.55012795 | H200: =IF((D202+H202)>100,H202*100/(D202+H202),H202) -> 8.195605021 | I200: =IF((I202+M202)>100,I202*100/(I202+M202),I202) -> 90.45330961 | J200: =I200*AVERAGEIF(J205:J216,">0")/100 -> 86.6402901 | K200: =I200*(100-AVERAGEIF(J205:J216,">0"))/100 -> 3.813019507 | L200: =100-(J200+K200+M200) -> 5.84205516 | M200: =IF((I202+M202)>100,M202*100/(I202+M202),M202) -> 3.70463523 | N200: =IF((N202+R202)>100,N202*100/(N202+R202),N202) -> 98.48569999 | O200: =N200*AVERAGEIF(O205:O216,">0")/100 -> 95.49216857 | P200: =N200*(100-AVERAGEIF(O205:O216,">0"))/100 -> 2.993531425 | Q200: =100-(O200+P200+R200) -> 0 | R200: =IF((N202+R202)>100,R202*100/(N202+R202),R202) -> 1.514300008 | S200: =IF((S202+W202)>100,S202*100/(S202+W202),S202) -> 97.5435689 | T200: =S200*AVERAGEIF(T205:T216,">0")/100 -> 97.5435689 | U200: =S200*(100-AVERAGEIF(T205:T216,">0"))/100 -> 0 | V200: =100-(T200+U200+W200) -> 1.919183123 | W200: =IF((S202+W202)>100,W202*100/(S202+W202),W202) -> 0.5372479787 | X200: =IF((X202+AB202)>100,X202*100/(X202+AB202),X202) -> 99.08535013 | Y200: =X200*AVERAGEIF(Y205:Y216,">0")/100 -> 98.8158804 | Z200: =X200*(100-AVERAGEIF(Y205:Y216,">0"))/100 -> 0.2694697304 | AA200: =100-(Y200+Z200+AB200) -> 0.3198780857 | AB200: =IF((X202+AB202)>100,AB202*100/(X202+AB202),AB202) -> 0.5947717835
A201: Regression period: | C201: =MinRegYear(C199,C205:C216) -> 2004 | D201: =IF(MAX(C205:C216)-MIN(C205:C216)<5,AVERAGEIF(C205:C216,">0",D205:D216), IF(FORECAST($C201,D$205:D$216,$C$205:$C$216)<0,0, IF(FORECAST($C201,D$205:D$216,$C$205:$C$216)>100,100, FORECAST($C201,D$205:D$216,$C$205:$C$216)))) -> 80.89390832 | H201: =IF(MAX(C205:C216)-MIN(C205:C216)<5,AVERAGEIF(C205:C216,">0",H205:H216), IF(FORECAST($C201,H$205:H$216,$C$205:$C$216)<0,0, IF(FORECAST($C201,H$205:H$216,$C$205:$C$216)>100,100, FORECAST($C201,H$205:H$216,$C$205:$C$216)))) -> 2.182064282 | I201: =IF(MAX(C205:C216)-MIN(C205:C216)<5,AVERAGEIF(C205:C216,">0",I205:I216), IF(FORECAST($C201,I$205:I$216,$C$205:$C$216)<0,0, IF(FORECAST($C201,I$205:I$216,$C$205:$C$216)>100,100, FORECAST($C201,I$205:I$216,$C$205:$C$216)))) -> 94.50961581 | M201: =IF(MAX(C205:C216)-MIN(C205:C216)<5,AVERAGEIF(C205:C216,">0",M205:M216), IF(FORECAST($C201,M$205:M$216,$C$205:$C$216)<0,0, IF(FORECAST($C201,M$205:M$216,$C$205:$C$216)>100,100, FORECAST($C201,M$205:M$216,$C$205:$C$216)))) -> 0 | N201: =IF(MAX(C205:C216)-MIN(C205:C216)<5,AVERAGEIF(C205:C216,">0",N205:N216), IF(FORECAST($C201,N$205:N$216,$C$205:$C$216)<0,0, IF(FORECAST($C201,N$205:N$216,$C$205:$C$216)>100,100, FORECAST($C201,N$205:N$216,$C$205:$C$216)))) -> 91.38443984 | R201: =IF(MAX(C205:C216)-MIN(C205:C216)<5,AVERAGEIF(C205:C216,">0",R205:R216), IF(FORECAST($C201,R$205:R$216,$C$205:$C$216)<0,0, IF(FORECAST($C201,R$205:R$216,$C$205:$C$216)>100,100, FORECAST($C201,R$205:R$216,$C$205:$C$216)))) -> 0 | S201: =IF(MAX(C205:C216)-MIN(C205:C216)<5,AVERAGEIF(C205:C216,">0",S205:S216), IF(FORECAST($C201,S$205:S$216,$C$205:$C$216)<0,0, IF(FORECAST($C201,S$205:S$216,$C$205:$C$216)>100,100, FORECAST($C201,S$205:S$216,$C$205:$C$216)))) -> 96.81215104 | W201: =IF(MAX(C205:C216)-MIN(C205:C216)<5,AVERAGEIF(C205:C216,">0",W205:W216), IF(FORECAST($C201,W$205:W$216,$C$205:$C$216)<0,0, IF(FORECAST($C201,W$205:W$216,$C$205:$C$216)>100,100, FORECAST($C201,W$205:W$216,$C$205:$C$216)))) -> 0 | X201: =IF(MAX(C205:C216)-MIN(C205:C216)<5,AVERAGEIF(C205:C216,">0",X205:X216), IF(FORECAST($C201,X$205:X$216,$C$205:$C$216)<0,0, IF(FORECAST($C201,X$205:X$216,$C$205:$C$216)>100,100, FORECAST($C201,X$205:X$216,$C$205:$C$216)))) -> 100 | AB201: =IF(MAX(C205:C216)-MIN(C205:C216)<5,AVERAGEIF(C205:C216,">0",AB205:AB216), IF(FORECAST($C201,AB$205:AB$216,$C$205:$C$216)<0,0, IF(FORECAST($C201,AB$205:AB$216,$C$205:$C$216)>100,100, FORECAST($C201,AB$205:AB$216,$C$205:$C$216)))) -> 0
C202: =MaxRegYear(C200,C205:C216) -> 2015 | D202: =IF(MAX(C205:C216)-MIN(C205:C216)<5,AVERAGEIF(C205:C216,">0",D205:D216), IF(FORECAST($C202,D$205:D$216,$C$205:$C$216)<0,0, IF(FORECAST($C202,D$205:D$216,$C$205:$C$216)>100,100, FORECAST($C202,D$205:D$216,$C$205:$C$216)))) -> 73.25426703 | H202: =IF(MAX(C205:C216)-MIN(C205:C216)<5,AVERAGEIF(C205:C216,">0",H205:H216), IF(FORECAST($C202,H$205:H$216,$C$205:$C$216)<0,0, IF(FORECAST($C202,H$205:H$216,$C$205:$C$216)>100,100, FORECAST($C202,H$205:H$216,$C$205:$C$216)))) -> 8.195605021 | I202: =IF(MAX(C205:C216)-MIN(C205:C216)<5,AVERAGEIF(C205:C216,">0",I205:I216), IF(FORECAST($C202,I$205:I$216,$C$205:$C$216)<0,0, IF(FORECAST($C202,I$205:I$216,$C$205:$C$216)>100,100, FORECAST($C202,I$205:I$216,$C$205:$C$216)))) -> 90.45330961 | M202: =IF(MAX(C205:C216)-MIN(C205:C216)<5,AVERAGEIF(C205:C216,">0",M205:M216), IF(FORECAST($C202,M$205:M$216,$C$205:$C$216)<0,0, IF(FORECAST($C202,M$205:M$216,$C$205:$C$216)>100,100, FORECAST($C202,M$205:M$216,$C$205:$C$216)))) -> 3.70463523 | N202: =IF(MAX(C205:C216)-MIN(C205:C216)<5,AVERAGEIF(C205:C216,">0",N205:N216), IF(FORECAST($C202,N$205:N$216,$C$205:$C$216)<0,0, IF(FORECAST($C202,N$205:N$216,$C$205:$C$216)>100,100, FORECAST($C202,N$205:N$216,$C$205:$C$216)))) -> 98.833411 | R202: =IF(MAX(C205:C216)-MIN(C205:C216)<5,AVERAGEIF(C205:C216,">0",R205:R216), IF(FORECAST($C202,R$205:R$216,$C$205:$C$216)<0,0, IF(FORECAST($C202,R$205:R$216,$C$205:$C$216)>100,100, FORECAST($C202,R$205:R$216,$C$205:$C$216)))) -> 1.519646356 | S202: =IF(MAX(C205:C216)-MIN(C205:C216)<5,AVERAGEIF(C205:C216,">0",S205:S216), IF(FORECAST($C202,S$205:S$216,$C$205:$C$216)<0,0, IF(FORECAST($C202,S$205:S$216,$C$205:$C$216)>100,100, FORECAST($C202,S$205:S$216,$C$205:$C$216)))) -> 97.5435689 | W202: =IF(MAX(C205:C216)-MIN(C205:C216)<5,AVERAGEIF(C205:C216,">0",W205:W216), IF(FORECAST($C202,W$205:W$216,$C$205:$C$216)<0,0, IF(FORECAST($C202,W$205:W$216,$C$205:$C$216)>100,100, FORECAST($C202,W$205:W$216,$C$205:$C$216)))) -> 0.5372479787 | X202: =IF(MAX(C205:C216)-MIN(C205:C216)<5,AVERAGEIF(C205:C216,">0",X205:X216), IF(FORECAST($C202,X$205:X$216,$C$205:$C$216)<0,0, IF(FORECAST($C202,X$205:X$216,$C$205:$C$216)>100,100, FORECAST($C202,X$205:X$216,$C$205:$C$216)))) -> 99.08535013 | AB202: =IF(MAX(C205:C216)-MIN(C205:C216)<5,AVERAGEIF(C205:C216,">0",AB205:AB216), IF(FORECAST($C202,AB$205:AB$216,$C$205:$C$216)<0,0, IF(FORECAST($C202,AB$205:AB$216,$C$205:$C$216)>100,100, FORECAST($C202,AB$205:AB$216,$C$205:$C$216)))) -> 0.5947717835
B204: Survey | C204: Year | D204: Improved | E204: Not shared | H204: Open defecation | I204: Improved | J204: Not shared | M204: Open defecation | N204: Improved | O204: Not shared | R204: Open defecation | S204: Improved | T204: Not shared | W204: Open defecation | X204: Improved | Y204: Not shared | AB204: Open defecation
B205: MICS06 | C205: 2006 | D205: =IF(ISERROR(INDIRECT(CONCATENATE($B205,"!H122"))),"",INDIRECT(CONCATENATE($B205,"!H122"))) -> 79.50488263 | E205: =IF(ISERROR(INDIRECT(CONCATENATE($B205,"!H129"))),"",INDIRECT(CONCATENATE($B205,"!H129"))) -> 97.2544645 | H205: =IF(ISERROR(INDIRECT(CONCATENATE($B205,"!H127"))),"",INDIRECT(CONCATENATE($B205,"!H127"))) -> 3.275435326 | I205: =IF(ISERROR(INDIRECT(CONCATENATE($B205,"!I122"))),"",INDIRECT(CONCATENATE($B205,"!I122"))) -> 93.77210559 | J205: =IF(ISERROR(INDIRECT(CONCATENATE($B205,"!I129"))),"",INDIRECT(CONCATENATE($B205,"!I129"))) -> 95.78454396 | M205: =IF(ISERROR(INDIRECT(CONCATENATE($B205,"!I127"))),"",INDIRECT(CONCATENATE($B205,"!I127"))) -> 0.04440667848 | N205: =IF(ISERROR(INDIRECT(CONCATENATE($B205,"!J122"))),"",INDIRECT(CONCATENATE($B205,"!J122"))) -> 92.73879823 | O205: =IF(ISERROR(INDIRECT(CONCATENATE($B205,"!J129"))),"",INDIRECT(CONCATENATE($B205,"!J129"))) -> 96.96044053 | R205: =IF(ISERROR(INDIRECT(CONCATENATE($B205,"!J127"))),"",INDIRECT(CONCATENATE($B205,"!J127"))) -> 0 | S205: =IF(ISERROR(INDIRECT(CONCATENATE($B205,"!K122"))),"",INDIRECT(CONCATENATE($B205,"!K122"))) -> 96.94513611 | T205: =IF(ISERROR(INDIRECT(CONCATENATE($B205,"!K129"))),"",INDIRECT(CONCATENATE($B205,"!K129"))) -> 100 | W205: =IF(ISERROR(INDIRECT(CONCATENATE($B205,"!K127"))),"",INDIRECT(CONCATENATE($B205,"!K127"))) -> 0 | X205: =IF(ISERROR(INDIRECT(CONCATENATE($B205,"!L122"))),"",INDIRECT(CONCATENATE($B205,"!L122"))) -> 100 | Y205: =IF(ISERROR(INDIRECT(CONCATENATE($B205,"!L129"))),"",INDIRECT(CONCATENATE($B205,"!L129"))) -> 99.72804281 | AB205: =IF(ISERROR(INDIRECT(CONCATENATE($B205,"!L2127"))),"",INDIRECT(CONCATENATE($B205,"!L127"))) -> 0
B206: DHS13 | C206: 2013 | D206: 74.64329272 | E206: N/A | H206: 7.102233977 | I206: 91.19081983 | J206: N/A | M206: 2.891251108 | N206: 97.47905261 | O206: N/A | R206: 1.181947166 | S206: 97.41058383 | T206: N/A | W206: 0.417859539 | X206: 99.28860566 | Y206: N/A | AB206: 0.4626002761
B218: =CONCATENATE("Urban use of sanitation facilities, ",C199,"–",C200) -> Urban use of sanitation facilities, 2000–2019 | S218: Data points used for regression
A297: RURAL | D297: Poorest | I297: Poor | N297: Middle | S297: Rich | X297: Richest
D298: Improved | E298: Basic | F298: Limited | G298: Unimproved | H298: Open defecation | I298: Improved | J298: Basic | K298: Limited | L298: Unimproved | M298: Open defecation | N298: Improved | O298: Basic | P298: Limited | Q298: Unimproved | R298: Open defecation | S298: Improved | T298: Basic | U298: Limited | V298: Unimproved | W298: Open defecation | X298: Improved | Y298: Basic | Z298: Limited | AA298: Unimproved | AB298: Open defecation
A299: Forecast period: | C299: =MinBase(C305:C316) -> 2000 | D299: =IF((D301+H301)>100,D301*100/(D301+H301),D301) -> 4.549320836 | E299: =D299*AVERAGEIF(E305:E316,">0")/100 -> 4.03468913 | F299: =D299*(100-AVERAGEIF(E305:E316,">0"))/100 -> 0.5146317067 | G299: =100-(E299+F299+H299) -> 20.16572496 | H299: =IF((D301+H301)>100,H301*100/(D301+H301),H301) -> 75.2849542 | I299: =IF((I301+M301)>100,I301*100/(I301+M301),I301) -> 16.34256643 | J299: =I299*AVERAGEIF(J305:J316,">0")/100 -> 14.48973153 | K299: =I299*(100-AVERAGEIF(J305:J316,">0"))/100 -> 1.8528349 | L299: =100-(J299+K299+M299) -> 36.57308709 | M299: =IF((I301+M301)>100,M301*100/(I301+M301),M301) -> 47.08434648 | N299: =IF((N301+R301)>100,N301*100/(N301+R301),N301) -> 29.98883578 | O299: =N299*AVERAGEIF(O305:O316,">0")/100 -> 27.75592905 | P299: =N299*(100-AVERAGEIF(O305:O316,">0"))/100 -> 2.232906724 | Q299: =100-(O299+P299+R299) -> 49.56918639 | R299: =IF((N301+R301)>100,R301*100/(N301+R301),R301) -> 20.44197783 | S299: =IF((S301+W301)>100,S301*100/(S301+W301),S301) -> 38.05721459 | T299: =S299*AVERAGEIF(T305:T316,">0")/100 -> 35.75574168 | U299: =S299*(100-AVERAGEIF(T305:T316,">0"))/100 -> 2.301472903 | V299: =100-(T299+U299+W299) -> 54.48944685 | W299: =IF((S301+W301)>100,W301*100/(S301+W301),W301) -> 7.453338568 | X299: =IF((X301+AB301)>100,X301*100/(X301+AB301),X301) -> 68.63360728 | Y299: =X299*AVERAGEIF(Y305:Y316,">0")/100 -> 65.58462319 | Z299: =X299*(100-AVERAGEIF(Y305:Y316,">0"))/100 -> 3.048984089 | AA299: =100-(Y299+Z299+AB299) -> 31.36639272 | AB299: =IF((X301+AB301)>100,AB301*100/(X301+AB301),AB301) -> 0
C300: =MaxTarget(C305:C316) -> 2019 | D300: =IF((D302+H302)>100,D302*100/(D302+H302),D302) -> 12.95982974 | E300: =D300*AVERAGEIF(E305:E316,">0")/100 -> 11.4937781 | F300: =D300*(100-AVERAGEIF(E305:E316,">0"))/100 -> 1.466051646 | G300: =100-(E300+F300+H300) -> 23.77421496 | H300: =IF((D302+H302)>100,H302*100/(D302+H302),H302) -> 63.26595529 | I300: =IF((I302+M302)>100,I302*100/(I302+M302),I302) -> 29.97650949 | J300: =I300*AVERAGEIF(J305:J316,">0")/100 -> 26.57792928 | K300: =I300*(100-AVERAGEIF(J305:J316,">0"))/100 -> 3.398580218 | L300: =100-(J300+K300+M300) -> 30.90503199 | M300: =IF((I302+M302)>100,M302*100/(I302+M302),M302) -> 39.11845852 | N300: =IF((N302+R302)>100,N302*100/(N302+R302),N302) -> 48.00477797 | O300: =N300*AVERAGEIF(O305:O316,">0")/100 -> 44.43044143 | P300: =N300*(100-AVERAGEIF(O305:O316,">0"))/100 -> 3.57433654 | Q300: =100-(O300+P300+R300) -> 21.699516 | R300: =IF((N302+R302)>100,R302*100/(N302+R302),R302) -> 30.29570602 | S300: =IF((S302+W302)>100,S302*100/(S302+W302),S302) -> 61.79529084 | T300: =S300*AVERAGEIF(T305:T316,">0")/100 -> 58.05828094 | U300: =S300*(100-AVERAGEIF(T305:T316,">0"))/100 -> 3.737009893 | V300: =100-(T300+U300+W300) -> 15.85973973 | W300: =IF((S302+W302)>100,W302*100/(S302+W302),W302) -> 22.34496943 | X300: =IF((X302+AB302)>100,X302*100/(X302+AB302),X302) -> 79.25374005 | Y300: =X300*AVERAGEIF(Y305:Y316,">0")/100 -> 75.73296645 | Z300: =X300*(100-AVERAGEIF(Y305:Y316,">0"))/100 -> 3.520773597 | AA300: =100-(Y300+Z300+AB300) -> 4.532917018 | AB300: =IF((X302+AB302)>100,AB302*100/(X302+AB302),AB302) -> 16.21334293
A301: Regression period: | C301: =MinRegYear(C299,C305:C316) -> 2004 | D301: =IF(MAX(C305:C316)-MIN(C305:C316)<5,AVERAGEIF(C305:C316,">0",D305:D316), IF(FORECAST($C301,D$305:D$316,$C$305:$C$316)<0,0, IF(FORECAST($C301,D$305:D$316,$C$305:$C$316)>100,100, FORECAST($C301,D$305:D$316,$C$305:$C$316)))) -> 4.549320836 | H301: =IF(MAX(C305:C316)-MIN(C305:C316)<5,AVERAGEIF(C305:C316,">0",H305:H316), IF(FORECAST($C301,H$305:H$316,$C$305:$C$316)<0,0, IF(FORECAST($C301,H$305:H$316,$C$305:$C$316)>100,100, FORECAST($C301,H$305:H$316,$C$305:$C$316)))) -> 75.2849542 | I301: =IF(MAX(C305:C316)-MIN(C305:C316)<5,AVERAGEIF(C305:C316,">0",I305:I316), IF(FORECAST($C301,I$305:I$316,$C$305:$C$316)<0,0, IF(FORECAST($C301,I$305:I$316,$C$305:$C$316)>100,100, FORECAST($C301,I$305:I$316,$C$305:$C$316)))) -> 16.34256643 | M301: =IF(MAX(C305:C316)-MIN(C305:C316)<5,AVERAGEIF(C305:C316,">0",M305:M316), IF(FORECAST($C301,M$305:M$316,$C$305:$C$316)<0,0, IF(FORECAST($C301,M$305:M$316,$C$305:$C$316)>100,100, FORECAST($C301,M$305:M$316,$C$305:$C$316)))) -> 47.08434648 | N301: =IF(MAX(C305:C316)-MIN(C305:C316)<5,AVERAGEIF(C305:C316,">0",N305:N316), IF(FORECAST($C301,N$305:N$316,$C$305:$C$316)<0,0, IF(FORECAST($C301,N$305:N$316,$C$305:$C$316)>100,100, FORECAST($C301,N$305:N$316,$C$305:$C$316)))) -> 29.98883578 | R301: =IF(MAX(C305:C316)-MIN(C305:C316)<5,AVERAGEIF(C305:C316,">0",R305:R316), IF(FORECAST($C301,R$305:R$316,$C$305:$C$316)<0,0, IF(FORECAST($C301,R$305:R$316,$C$305:$C$316)>100,100, FORECAST($C301,R$305:R$316,$C$305:$C$316)))) -> 20.44197783 | S301: =IF(MAX(C305:C316)-MIN(C305:C316)<5,AVERAGEIF(C305:C316,">0",S305:S316), IF(FORECAST($C301,S$305:S$316,$C$305:$C$316)<0,0, IF(FORECAST($C301,S$305:S$316,$C$305:$C$316)>100,100, FORECAST($C301,S$305:S$316,$C$305:$C$316)))) -> 38.05721459 | W301: =IF(MAX(C305:C316)-MIN(C305:C316)<5,AVERAGEIF(C305:C316,">0",W305:W316), IF(FORECAST($C301,W$305:W$316,$C$305:$C$316)<0,0, IF(FORECAST($C301,W$305:W$316,$C$305:$C$316)>100,100, FORECAST($C301,W$305:W$316,$C$305:$C$316)))) -> 7.453338568 | X301: =IF(MAX(C305:C316)-MIN(C305:C316)<5,AVERAGEIF(C305:C316,">0",X305:X316), IF(FORECAST($C301,X$305:X$316,$C$305:$C$316)<0,0, IF(FORECAST($C301,X$305:X$316,$C$305:$C$316)>100,100, FORECAST($C301,X$305:X$316,$C$305:$C$316)))) -> 68.63360728 | AB301: =IF(MAX(C305:C316)-MIN(C305:C316)<5,AVERAGEIF(C305:C316,">0",AB305:AB316), IF(FORECAST($C301,AB$305:AB$316,$C$305:$C$316)<0,0, IF(FORECAST($C301,AB$305:AB$316,$C$305:$C$316)>100,100, FORECAST($C301,AB$305:AB$316,$C$305:$C$316)))) -> 0
C302: =MaxRegYear(C300,C305:C316) -> 2015 | D302: =IF(MAX(C305:C316)-MIN(C305:C316)<5,AVERAGEIF(C305:C316,">0",D305:D316), IF(FORECAST($C302,D$305:D$316,$C$305:$C$316)<0,0, IF(FORECAST($C302,D$305:D$316,$C$305:$C$316)>100,100, FORECAST($C302,D$305:D$316,$C$305:$C$316)))) -> 12.95982974 | H302: =IF(MAX(C305:C316)-MIN(C305:C316)<5,AVERAGEIF(C305:C316,">0",H305:H316), IF(FORECAST($C302,H$305:H$316,$C$305:$C$316)<0,0, IF(FORECAST($C302,H$305:H$316,$C$305:$C$316)>100,100, FORECAST($C302,H$305:H$316,$C$305:$C$316)))) -> 63.26595529 | I302: =IF(MAX(C305:C316)-MIN(C305:C316)<5,AVERAGEIF(C305:C316,">0",I305:I316), IF(FORECAST($C302,I$305:I$316,$C$305:$C$316)<0,0, IF(FORECAST($C302,I$305:I$316,$C$305:$C$316)>100,100, FORECAST($C302,I$305:I$316,$C$305:$C$316)))) -> 29.97650949 | M302: =IF(MAX(C305:C316)-MIN(C305:C316)<5,AVERAGEIF(C305:C316,">0",M305:M316), IF(FORECAST($C302,M$305:M$316,$C$305:$C$316)<0,0, IF(FORECAST($C302,M$305:M$316,$C$305:$C$316)>100,100, FORECAST($C302,M$305:M$316,$C$305:$C$316)))) -> 39.11845852 | N302: =IF(MAX(C305:C316)-MIN(C305:C316)<5,AVERAGEIF(C305:C316,">0",N305:N316), IF(FORECAST($C302,N$305:N$316,$C$305:$C$316)<0,0, IF(FORECAST($C302,N$305:N$316,$C$305:$C$316)>100,100, FORECAST($C302,N$305:N$316,$C$305:$C$316)))) -> 48.00477797 | R302: =IF(MAX(C305:C316)-MIN(C305:C316)<5,AVERAGEIF(C305:C316,">0",R305:R316), IF(FORECAST($C302,R$305:R$316,$C$305:$C$316)<0,0, IF(FORECAST($C302,R$305:R$316,$C$305:$C$316)>100,100, FORECAST($C302,R$305:R$316,$C$305:$C$316)))) -> 30.29570602 | S302: =IF(MAX(C305:C316)-MIN(C305:C316)<5,AVERAGEIF(C305:C316,">0",S305:S316), IF(FORECAST($C302,S$305:S$316,$C$305:$C$316)<0,0, IF(FORECAST($C302,S$305:S$316,$C$305:$C$316)>100,100, FORECAST($C302,S$305:S$316,$C$305:$C$316)))) -> 61.79529084 | W302: =IF(MAX(C305:C316)-MIN(C305:C316)<5,AVERAGEIF(C305:C316,">0",W305:W316), IF(FORECAST($C302,W$305:W$316,$C$305:$C$316)<0,0, IF(FORECAST($C302,W$305:W$316,$C$305:$C$316)>100,100, FORECAST($C302,W$305:W$316,$C$305:$C$316)))) -> 22.34496943 | X302: =IF(MAX(C305:C316)-MIN(C305:C316)<5,AVERAGEIF(C305:C316,">0",X305:X316), IF(FORECAST($C302,X$305:X$316,$C$305:$C$316)<0,0, IF(FORECAST($C302,X$305:X$316,$C$305:$C$316)>100,100, FORECAST($C302,X$305:X$316,$C$305:$C$316)))) -> 79.25374005 | AB302: =IF(MAX(C305:C316)-MIN(C305:C316)<5,AVERAGEIF(C305:C316,">0",AB305:AB316), IF(FORECAST($C302,AB$305:AB$316,$C$305:$C$316)<0,0, IF(FORECAST($C302,AB$305:AB$316,$C$305:$C$316)>100,100, FORECAST($C302,AB$305:AB$316,$C$305:$C$316)))) -> 16.21334293
B304: Survey | C304: Year | D304: Improved | E304: Not shared | H304: Open defecation | I304: Improved | J304: Not shared | M304: Open defecation | N304: Improved | O304: Not shared | R304: Open defecation | S304: Improved | T304: Not shared | W304: Open defecation | X304: Improved | Y304: Not shared | AB304: Open defecation
B305: MICS06 | C305: 2006 | D305: =IF(ISERROR(INDIRECT(CONCATENATE($B305,"!M122"))),"",INDIRECT(CONCATENATE($B305,"!M122"))) -> 6.078504274 | E305: =IF(ISERROR(INDIRECT(CONCATENATE($B305,"!M129"))),"",INDIRECT(CONCATENATE($B305,"!M129"))) -> 88.68772449 | H305: =IF(ISERROR(INDIRECT(CONCATENATE($B305,"!M127"))),"",INDIRECT(CONCATENATE($B305,"!M127"))) -> 73.09968167 | I305: =IF(ISERROR(INDIRECT(CONCATENATE($B305,"!N122"))),"",INDIRECT(CONCATENATE($B305,"!N122"))) -> 18.82146517 | J305: =IF(ISERROR(INDIRECT(CONCATENATE($B305,"!N129"))),"",INDIRECT(CONCATENATE($B305,"!N129"))) -> 88.66252184 | M305: =IF(ISERROR(INDIRECT(CONCATENATE($B305,"!N127"))),"",INDIRECT(CONCATENATE($B305,"!N127"))) -> 45.63600322 | N305: =IF(ISERROR(INDIRECT(CONCATENATE($B305,"!O122"))),"",INDIRECT(CONCATENATE($B305,"!O122"))) -> 33.26446163 | O305: =IF(ISERROR(INDIRECT(CONCATENATE($B305,"!O129"))),"",INDIRECT(CONCATENATE($B305,"!O129"))) -> 92.5542067 | R305: =IF(ISERROR(INDIRECT(CONCATENATE($B305,"!O127"))),"",INDIRECT(CONCATENATE($B305,"!O127"))) -> 22.23356477 | S305: =IF(ISERROR(INDIRECT(CONCATENATE($B305,"!P122"))),"",INDIRECT(CONCATENATE($B305,"!P122"))) -> 42.37322845 | T305: =IF(ISERROR(INDIRECT(CONCATENATE($B305,"!P129"))),"",INDIRECT(CONCATENATE($B305,"!P129"))) -> 93.95259761 | W305: =IF(ISERROR(INDIRECT(CONCATENATE($B305,"!P127"))),"",INDIRECT(CONCATENATE($B305,"!P127"))) -> 10.16090782 | X305: =IF(ISERROR(INDIRECT(CONCATENATE($B305,"!Q122"))),"",INDIRECT(CONCATENATE($B305,"!Q122"))) -> 70.56454051 | Y305: =IF(ISERROR(INDIRECT(CONCATENATE($B305,"!Q129"))),"",INDIRECT(CONCATENATE($B305,"!Q129"))) -> 95.55759312 | AB305: =IF(ISERROR(INDIRECT(CONCATENATE($B305,"!Q2127"))),"",INDIRECT(CONCATENATE($B305,"!Q127"))) -> 2.124803928
B306: DHS13 | C306: 2013 | D306: 11.43064631 | E306: N/A | H306: 65.45122782 | I306: 27.49761075 | J306: N/A | M306: 40.56680178 | N306: 44.72915212 | O306: N/A | R306: 28.50411908 | S306: 57.47927697 | T306: N/A | W306: 19.63740018 | X306: 77.32280682 | Y306: N/A | AB306: 13.08255649
B318: =CONCATENATE("Rural use of sanitation facilities, ",C299,"–",C300) -> Rural use of sanitation facilities, 2000–2019 | S318: Data points used for regression

Sheet Hygiene
B4: Access to hygiene facilities by wealth quintile (%)
B5: =IF(ISERROR(INDIRECT(CONCATENATE($E$32,"!A2"))),"",INDIRECT(CONCATENATE($E$32,"!A2"))) -> Yemen
B7: =CONCATENATE("National ",IF(ISERROR(INDIRECT(CONCATENATE($E$32,"!A2"))),"",INDIRECT(CONCATENATE($E$32,"!A210")))) -> National Access to hygiene facilities | K7: =CONCATENATE("Urban ",IF(ISERROR(INDIRECT(CONCATENATE($E$32,"!A2"))),"",INDIRECT(CONCATENATE($E$32,"!A210")))) -> Urban Access to hygiene facilities | S7: =CONCATENATE("Rural ",IF(ISERROR(INDIRECT(CONCATENATE($E$32,"!A2"))),"",INDIRECT(CONCATENATE($E$32,"!A210")))) -> Rural Access to hygiene facilities
E32: =INDEX(B88:B100,A88) -> DHS13 | G32: =IF(ISERROR(INDIRECT(CONCATENATE($E$32,"!A2"))),"",INDIRECT(CONCATENATE($E$32,"!A2"))) -> Yemen | K32: Poorest | N32: Poor | Q32: Middle | T32: Rich | W32: Richest
K33: Basic | L33: Limited | M33: No facility | N33: Basic | O33: Limited | P33: No facility | Q33: Basic | R33: Limited | S33: No facility | T33: Basic | U33: Limited | V33: No facility | W33: Basic | X33: Limited | Y33: No facility
B34: >>> Select Survey : | G34: NATIONAL | J34: =IF(ISERROR(INDIRECT(CONCATENATE(#REF!,"!A2"))),"",INDIRECT(CONCATENATE(#REF!,"!A210"))) ->  | K34: =IF(ISERROR(INDIRECT(CONCATENATE($E$32,"!C222"))),"",INDIRECT(CONCATENATE($E$32,"!C222"))) -> 19.54773798 | L34: =IF(ISERROR(INDIRECT(CONCATENATE($E$32,"!C223"))),"",INDIRECT(CONCATENATE($E$32,"!C223"))) -> 43.08105414 | M34: =IF(ISERROR(INDIRECT(CONCATENATE($E$32,"!C224"))),"",INDIRECT(CONCATENATE($E$32,"!C224"))) -> 37.37120788 | N34: =IF(ISERROR(INDIRECT(CONCATENATE($E$32,"!D222"))),"",INDIRECT(CONCATENATE($E$32,"!D222"))) -> 31.99432675 | O34: =IF(ISERROR(INDIRECT(CONCATENATE($E$32,"!D223"))),"",INDIRECT(CONCATENATE($E$32,"!D223"))) -> 31.42436506 | P34: =IF(ISERROR(INDIRECT(CONCATENATE($E$32,"!D224"))),"",INDIRECT(CONCATENATE($E$32,"!D224"))) -> 36.58130819 | Q34: =IF(ISERROR(INDIRECT(CONCATENATE($E$32,"!E222"))),"",INDIRECT(CONCATENATE($E$32,"!E222"))) -> 45.55945627 | R34: =IF(ISERROR(INDIRECT(CONCATENATE($E$32,"!E223"))),"",INDIRECT(CONCATENATE($E$32,"!E223"))) -> 25.54100026 | S34: =IF(ISERROR(INDIRECT(CONCATENATE($E$32,"!E224"))),"",INDIRECT(CONCATENATE($E$32,"!E224"))) -> 28.89954347 | T34: =IF(ISERROR(INDIRECT(CONCATENATE($E$32,"!F222"))),"",INDIRECT(CONCATENATE($E$32,"!F222"))) -> 58.46057628 | U34: =IF(ISERROR(INDIRECT(CONCATENATE($E$32,"!F223"))),"",INDIRECT(CONCATENATE($E$32,"!F223"))) -> 23.22192559 | V34: =IF(ISERROR(INDIRECT(CONCATENATE($E$32,"!F224"))),"",INDIRECT(CONCATENATE($E$32,"!F224"))) -> 18.31749813 | W34: =IF(ISERROR(INDIRECT(CONCATENATE($E$32,"!G222"))),"",INDIRECT(CONCATENATE($E$32,"!G222"))) -> 76.01669216 | X34: =IF(ISERROR(INDIRECT(CONCATENATE($E$32,"!G223"))),"",INDIRECT(CONCATENATE($E$32,"!G223"))) -> 14.79687685 | Y34: =IF(ISERROR(INDIRECT(CONCATENATE($E$32,"!G224"))),"",INDIRECT(CONCATENATE($E$32,"!G224"))) -> 9.186430997
G37: URBAN | J37: =IF(ISERROR(INDIRECT(CONCATENATE(#REF!,"!A2"))),"",INDIRECT(CONCATENATE(#REF!,"!A210"))) ->  | K37: =IF(ISERROR(INDIRECT(CONCATENATE($E$32,"!H222"))),"",INDIRECT(CONCATENATE($E$32,"!H222"))) -> 56.66882677 | L37: =IF(ISERROR(INDIRECT(CONCATENATE($E$32,"!H223"))),"",INDIRECT(CONCATENATE($E$32,"!H223"))) -> 25.58743136 | M37: =IF(ISERROR(INDIRECT(CONCATENATE($E$32,"!H224"))),"",INDIRECT(CONCATENATE($E$32,"!H224"))) -> 17.74374187 | N37: =IF(ISERROR(INDIRECT(CONCATENATE($E$32,"!I222"))),"",INDIRECT(CONCATENATE($E$32,"!I222"))) -> 61.56809972 | O37: =IF(ISERROR(INDIRECT(CONCATENATE($E$32,"!I223"))),"",INDIRECT(CONCATENATE($E$32,"!I223"))) -> 27.61444007 | P37: =IF(ISERROR(INDIRECT(CONCATENATE($E$32,"!I224"))),"",INDIRECT(CONCATENATE($E$32,"!I224"))) -> 10.81746021 | Q37: =IF(ISERROR(INDIRECT(CONCATENATE($E$32,"!J222"))),"",INDIRECT(CONCATENATE($E$32,"!J222"))) -> 68.18529175 | R37: =IF(ISERROR(INDIRECT(CONCATENATE($E$32,"!J223"))),"",INDIRECT(CONCATENATE($E$32,"!J223"))) -> 20.74577384 | S37: =IF(ISERROR(INDIRECT(CONCATENATE($E$32,"!J224"))),"",INDIRECT(CONCATENATE($E$32,"!J224"))) -> 11.06893441 | T37: =IF(ISERROR(INDIRECT(CONCATENATE($E$32,"!K222"))),"",INDIRECT(CONCATENATE($E$32,"!K222"))) -> 79.59338787 | U37: =IF(ISERROR(INDIRECT(CONCATENATE($E$32,"!K223"))),"",INDIRECT(CONCATENATE($E$32,"!K223"))) -> 17.26325856 | V37: =IF(ISERROR(INDIRECT(CONCATENATE($E$32,"!K224"))),"",INDIRECT(CONCATENATE($E$32,"!K224"))) -> 3.143353564 | W37: =IF(ISERROR(INDIRECT(CONCATENATE($E$32,"!L222"))),"",INDIRECT(CONCATENATE($E$32,"!L222"))) -> 82.05328388 | X37: =IF(ISERROR(INDIRECT(CONCATENATE($E$32,"!L223"))),"",INDIRECT(CONCATENATE($E$32,"!L223"))) -> 14.5979606 | Y37: =IF(ISERROR(INDIRECT(CONCATENATE($E$32,"!L224"))),"",INDIRECT(CONCATENATE($E$32,"!L224"))) -> 3.348755519
G40: RURAL | J40: =IF(ISERROR(INDIRECT(CONCATENATE(#REF!,"!A2"))),"",INDIRECT(CONCATENATE(#REF!,"!A210"))) ->  | K40: =IF(ISERROR(INDIRECT(CONCATENATE($E$32,"!M222"))),"",INDIRECT(CONCATENATE($E$32,"!M222"))) -> 18.15978172 | L40: =IF(ISERROR(INDIRECT(CONCATENATE($E$32,"!M223"))),"",INDIRECT(CONCATENATE($E$32,"!M223"))) -> 43.34128325 | M40: =IF(ISERROR(INDIRECT(CONCATENATE($E$32,"!M224"))),"",INDIRECT(CONCATENATE($E$32,"!M224"))) -> 38.49893503 | N40: =IF(ISERROR(INDIRECT(CONCATENATE($E$32,"!N222"))),"",INDIRECT(CONCATENATE($E$32,"!N222"))) -> 24.16464213 | O40: =IF(ISERROR(INDIRECT(CONCATENATE($E$32,"!N223"))),"",INDIRECT(CONCATENATE($E$32,"!N223"))) -> 36.57648888 | P40: =IF(ISERROR(INDIRECT(CONCATENATE($E$32,"!N224"))),"",INDIRECT(CONCATENATE($E$32,"!N224"))) -> 39.25886898 | Q40: =IF(ISERROR(INDIRECT(CONCATENATE($E$32,"!O222"))),"",INDIRECT(CONCATENATE($E$32,"!O222"))) -> 36.06350754 | R40: =IF(ISERROR(INDIRECT(CONCATENATE($E$32,"!O223"))),"",INDIRECT(CONCATENATE($E$32,"!O223"))) -> 32.05848143 | S40: =IF(ISERROR(INDIRECT(CONCATENATE($E$32,"!O224"))),"",INDIRECT(CONCATENATE($E$32,"!O224"))) -> 31.87801102 | T40: =IF(ISERROR(INDIRECT(CONCATENATE($E$32,"!P222"))),"",INDIRECT(CONCATENATE($E$32,"!P222"))) -> 44.56900471 | U40: =IF(ISERROR(INDIRECT(CONCATENATE($E$32,"!P223"))),"",INDIRECT(CONCATENATE($E$32,"!P223"))) -> 25.50678477 | V40: =IF(ISERROR(INDIRECT(CONCATENATE($E$32,"!P224"))),"",INDIRECT(CONCATENATE($E$32,"!P224"))) -> 29.92421052 | W40: =IF(ISERROR(INDIRECT(CONCATENATE($E$32,"!Q222"))),"",INDIRECT(CONCATENATE($E$32,"!Q222"))) -> 57.01862945 | X40: =IF(ISERROR(INDIRECT(CONCATENATE($E$32,"!Q223"))),"",INDIRECT(CONCATENATE($E$32,"!Q223"))) -> 14.97129827 | Y40: =IF(ISERROR(INDIRECT(CONCATENATE($E$32,"!Q224"))),"",INDIRECT(CONCATENATE($E$32,"!Q224"))) -> 28.01007228
A88: 2 | B88: MICS06
B89: DHS13
B90: Template

Sheet MICS06
A2: =A1026 -> Yemen
A3: =A1034 -> 2006
A4: Use of drinking water sources
A5: by wealth quintile and sub-national region
A6: Notes:
A7: WHO/UNICEF JMP customised wealth index excludes water,
A8: sanitation and hygiene assets.
A9: Survey used for analysis: | B9: =A1025 -> MICS06
A10: =B1028 -> 
A11: =B1027 -> 
A14: Use of drinking water sources | C14: NATIONAL wealth index quintile | H14: URBAN wealth index quintile | M14: RURAL wealth index quintile | R14: SUB-REGIONS: | BA14: Raw numbers of respondents: | BB14: Use of drinking water sources | BC14: NATIONAL wealth index quintile | BH14: URBAN wealth index quintile | BM14: RURAL wealth index quintile | BR14: SUB-REGIONS:
A15: Weighted percentage (used in graphs) | C15: Poorest | D15: Poor | E15: Middle | F15: Rich | G15: Richest | H15: Poorest | I15: Poor | J15: Middle | K15: Rich | L15: Richest | M15: Poorest | N15: Poor | O15: Middle | P15: Rich | Q15: Richest | R15: Abyan | S15: Aden | T15: Al Baidhah | U15: Al Dala'a | V15: Al Hodeidah | W15: Al Jawf | X15: Al Maharah | Y15: Al Mahweet | Z15: Amran | AA15: Dhamar | AB15: Hadramout | AC15: Hajjah | AD15: Ibb | AE15: Lahej | AF15: Mareb | AG15: Raimah | AH15: Sa'adah | AI15: Sana'a | AJ15: Sana'a City | AK15: Shabwah | AL15: Taiz | BA15: Water data, raw numbers (weighted) | BC15: Poorest | BD15: Poor | BE15: Middle | BF15: Rich | BG15: Richest | BH15: Poorest | BI15: Poor | BJ15: Middle | BK15: Rich | BL15: Richest | BM15: Poorest | BN15: Poor | BO15: Middle | BP15: Rich | BQ15: Richest | BR15: Abyan | BS15: Aden | BT15: Al Baidhah | BU15: Al Dala'a | BV15: Al Hodeidah | BW15: Al Jawf | BX15: Al Maharah | BY15: Al Mahweet | BZ15: Amran | CA15: Dhamar | CB15: Hadramout | CC15: Hajjah | CD15: Ibb | CE15: Lahej | CF15: Mareb | CG15: Raimah | CH15: Sa'adah | CI15: Sana'a | CJ15: Sana'a City | CK15: Shabwah | CL15: Taiz
A16: Water | B16: Improved | C16: 37.47095303 | D16: 57.68204505 | E16: 74.7321318 | F16: 93.41976784 | G16: 98.50396181 | H16: 95.09466541 | I16: 96.89045527 | J16: 97.61413799 | K16: 98.30792226 | L16: 100 | M16: 36.27711792 | N16: 43.14658875 | O16: 65.09360086 | P16: 69.45662986 | Q16: 91.85224086 | R16: 75.20144789 | S16: 97.46535267 | T16: 80.4916829 | U16: 98.22481176 | V16: 75.68917546 | W16: 61.96809865 | X16: 100 | Y16: 42.28700062 | Z16: 65.79911792 | AA16: 42.85861858 | AB16: 95.43250595 | AC16: 50.11474972 | AD16: 65.57122818 | AE16: 88.33322685 | AF16: 69.71457621 | AG16: 79.26738581 | AH16: 82.58235056 | AI16: 60.84979451 | AJ16: 100 | AK16: 100 | AL16: 70.48843632 | BA16: Water | BB16: Improved | BC16: N/A | BD16: N/A | BE16: N/A | BF16: N/A | BG16: N/A | BH16: N/A | BI16: N/A | BJ16: N/A | BK16: N/A | BL16: N/A | BM16: N/A | BN16: N/A | BO16: N/A | BP16: N/A | BQ16: N/A | BR16: N/A | BS16: N/A | BT16: N/A | BU16: N/A | BV16: N/A | BW16: N/A | BX16: N/A | BY16: N/A | BZ16: N/A | CA16: N/A | CB16: N/A | CC16: N/A | CD16: N/A | CE16: N/A | CF16: N/A | CG16: N/A | CH16: N/A | CI16: N/A | CJ16: N/A | CK16: N/A | CL16: N/A
B17: Not Improved | C17: 62.52904697 | D17: 42.31795495 | E17: 25.2678682 | F17: 6.580232156 | G17: 1.496038194 | H17: 4.905334588 | I17: 3.109544729 | J17: 2.385862011 | K17: 1.692077735 | L17: 0 | M17: 63.72288208 | N17: 56.85341125 | O17: 34.90639914 | P17: 30.54337014 | Q17: 8.147759141 | R17: 24.79855211 | S17: 2.534647332 | T17: 19.5083171 | U17: 1.775188239 | V17: 24.31082454 | W17: 38.03190135 | X17: 0 | Y17: 57.71299938 | Z17: 34.20088208 | AA17: 57.14138142 | AB17: 4.567494047 | AC17: 49.88525028 | AD17: 34.42877182 | AE17: 11.66677315 | AF17: 30.28542379 | AG17: 20.73261419 | AH17: 17.41764944 | AI17: 39.15020549 | AJ17: 0 | AK17: 0 | AL17: 29.51156368 | BB17: Not Improved | BC17: N/A | BD17: N/A | BE17: N/A | BF17: N/A | BG17: N/A | BH17: N/A | BI17: N/A | BJ17: N/A | BK17: N/A | BL17: N/A | BM17: N/A | BN17: N/A | BO17: N/A | BP17: N/A | BQ17: N/A | BR17: N/A | BS17: N/A | BT17: N/A | BU17: N/A | BV17: N/A | BW17: N/A | BX17: N/A | BY17: N/A | BZ17: N/A | CA17: N/A | CB17: N/A | CC17: N/A | CD17: N/A | CE17: N/A | CF17: N/A | CG17: N/A | CH17: N/A | CI17: N/A | CJ17: N/A | CK17: N/A | CL17: N/A
A18: Water ladder | B18: Basic | C18: 21.73544116 | D18: 46.03428347 | E18: 67.68929714 | F18: 91.48651004 | G18: 95.61428342 | H18: 91.42861993 | I18: 95.29239111 | J18: 95.19850577 | K18: 96.40630517 | L18: 98.63089407 | M18: 17.91404738 | N18: 31.45802861 | O18: 53.73724081 | P18: 62.68731424 | Q18: 88.22391056 | R18: 69.96847798 | S18: 97.46535267 | T18: 72.35610114 | U18: 98.22481176 | V18: 63.64196553 | W18: 27.3732609 | X18: 100 | Y18: 21.118043 | Z18: 64.22366398 | AA18: 32.80886345 | AB18: 94.45444167 | AC18: 41.99597846 | AD18: 60.13714524 | AE18: 82.99377115 | AF18: 59.11639155 | AG18: 48.19959338 | AH18: 81.43793847 | AI18: 50.5783134 | AJ18: 99.19497906 | AK18: 92.42677523 | AL18: 61.09686618 | BA18: Water ladder | BB18: Basic | BC18: N/A | BD18: N/A | BE18: N/A | BF18: N/A | BG18: N/A | BH18: N/A | BI18: N/A | BJ18: N/A | BK18: N/A | BL18: N/A | BM18: N/A | BN18: N/A | BO18: N/A | BP18: N/A | BQ18: N/A | BR18: N/A | BS18: N/A | BT18: N/A | BU18: N/A | BV18: N/A | BW18: N/A | BX18: N/A | BY18: N/A | BZ18: N/A | CA18: N/A | CB18: N/A | CC18: N/A | CD18: N/A | CE18: N/A | CF18: N/A | CG18: N/A | CH18: N/A | CI18: N/A | CJ18: N/A | CK18: N/A | CL18: N/A
B19: Limited | C19: 15.66515419 | D19: 11.60459093 | E19: 7.042834664 | F19: 1.933257802 | G19: 2.886663719 | H19: 3.666045481 | I19: 1.598064157 | J19: 2.409407062 | K19: 1.894927833 | L19: 1.369105932 | M19: 18.25956464 | N19: 11.68856014 | O19: 11.30488012 | P19: 6.769315621 | Q19: 3.628330294 | R19: 5.232969912 | S19: 0 | T19: 8.135581758 | U19: 0 | V19: 12.04720992 | W19: 34.59483776 | X19: 0 | Y19: 21.16895762 | Z19: 1.57545394 | AA19: 10.04975514 | AB19: 0.9435709725 | AC19: 7.951532889 | AD19: 5.43408294 | AE19: 5.339455703 | AF19: 10.59818466 | AG19: 31.06779243 | AH19: 1.144412087 | AI19: 10.27148111 | AJ19: 0.8050209368 | AK19: 7.573224775 | AL19: 9.342636298 | BB19: Limited | BC19: N/A | BD19: N/A | BE19: N/A | BF19: N/A | BG19: N/A | BH19: N/A | BI19: N/A | BJ19: N/A | BK19: N/A | BL19: N/A | BM19: N/A | BN19: N/A | BO19: N/A | BP19: N/A | BQ19: N/A | BR19: N/A | BS19: N/A | BT19: N/A | BU19: N/A | BV19: N/A | BW19: N/A | BX19: N/A | BY19: N/A | BZ19: N/A | CA19: N/A | CB19: N/A | CC19: N/A | CD19: N/A | CE19: N/A | CF19: N/A | CG19: N/A | CH19: N/A | CI19: N/A | CJ19: N/A | CK19: N/A | CL19: N/A
B20: Unimproved | C20: 53.75629172 | D20: 35.84616115 | E20: 20.03146861 | F20: 5.560763404 | G20: 1.148206446 | H20: 4.905334588 | I20: 3.109544729 | J20: 2.39208717 | K20: 1.698767001 | L20: 0 | M20: 54.18743154 | N20: 49.27986382 | O20: 28.2833953 | P20: 24.69290376 | Q20: 6.169309737 | R20: 24.79855211 | S20: 2.534647332 | T20: 19.5083171 | U20: 1.775188239 | V20: 22.70637923 | W20: 38.03190135 | X20: 0 | Y20: 54.48030319 | Z20: 34.20088208 | AA20: 48.60344254 | AB20: 3.799952033 | AC20: 36.66775196 | AD20: 30.40912941 | AE20: 5.894916074 | AF20: 30.28542379 | AG20: 6.33829337 | AH20: 17.41764944 | AI20: 16.58855581 | AJ20: 0 | AK20: 0 | AL20: 26.49301581 | BB20: Unimproved | BC20: N/A | BD20: N/A | BE20: N/A | BF20: N/A | BG20: N/A | BH20: N/A | BI20: N/A | BJ20: N/A | BK20: N/A | BL20: N/A | BM20: N/A | BN20: N/A | BO20: N/A | BP20: N/A | BQ20: N/A | BR20: N/A | BS20: N/A | BT20: N/A | BU20: N/A | BV20: N/A | BW20: N/A | BX20: N/A | BY20: N/A | BZ20: N/A | CA20: N/A | CB20: N/A | CC20: N/A | CD20: N/A | CE20: N/A | CF20: N/A | CG20: N/A | CH20: N/A | CI20: N/A | CJ20: N/A | CK20: N/A | CL20: N/A
B21: Surface water | C21: 8.843112929 | D21: 6.514964455 | E21: 5.236399589 | F21: 1.019468752 | G21: 0.3508464131 | H21: 0 | I21: 0 | J21: 0 | K21: 0 | L21: 0 | M21: 9.638956442 | N21: 7.573547436 | O21: 6.674483779 | P21: 5.850466377 | Q21: 1.978449404 | R21: 0 | S21: 0 | T21: 0 | U21: 0 | V21: 1.604445315 | W21: 0 | X21: 0 | Y21: 3.232696186 | Z21: 0 | AA21: 8.537938876 | AB21: 0.8020353267 | AC21: 13.38473669 | AD21: 4.019642407 | AE21: 5.771857072 | AF21: 0 | AG21: 14.39432082 | AH21: 0 | AI21: 22.56164968 | AJ21: 0 | AK21: 0 | AL21: 3.067481707 | BB21: Surface water | BC21: N/A | BD21: N/A | BE21: N/A | BF21: N/A | BG21: N/A | BH21: N/A | BI21: N/A | BJ21: N/A | BK21: N/A | BL21: N/A | BM21: N/A | BN21: N/A | BO21: N/A | BP21: N/A | BQ21: N/A | BR21: N/A | BS21: N/A | BT21: N/A | BU21: N/A | BV21: N/A | BW21: N/A | BX21: N/A | BY21: N/A | BZ21: N/A | CA21: N/A | CB21: N/A | CC21: N/A | CD21: N/A | CE21: N/A | CF21: N/A | CG21: N/A | CH21: N/A | CI21: N/A | CJ21: N/A | CK21: N/A | CL21: N/A
A22: Improved water point at more than 30 minutes | B22: Yes | C22: 41.88477227 | D22: 20.13327125 | E22: 9.424105126 | F22: 2.069431178 | G22: 2.930594886 | H22: 3.855153667 | I22: 1.649351479 | J22: 2.468454649 | K22: 1.927674531 | L22: 1.369105932 | M22: 50.47758191 | N22: 27.09034591 | O22: 17.38086021 | P22: 9.746104345 | Q22: 3.950181575 | R22: 6.958602604 | S22: 0 | T22: 10.10735702 | U22: 0 | V22: 15.91668802 | W22: 55.82685044 | X22: 0 | Y22: 50.06020127 | Z22: 2.394338997 | AA22: 23.44862123 | AB22: 0.9890887099 | AC22: 15.91977793 | AD22: 8.287297784 | AE22: 6.04467412 | AF22: 15.20225071 | AG22: 39.19366346 | AH22: 1.385782893 | AI22: 16.88005883 | AJ22: 0.8050209368 | AK22: 7.573224775 | AL22: 13.26334794 | BA22: Improved water point at more than 30 minutes | BB22: Yes | BC22: N/A | BD22: N/A | BE22: N/A | BF22: N/A | BG22: N/A | BH22: N/A | BI22: N/A | BJ22: N/A | BK22: N/A | BL22: N/A | BM22: N/A | BN22: N/A | BO22: N/A | BP22: N/A | BQ22: N/A | BR22: N/A | BS22: N/A | BT22: N/A | BU22: N/A | BV22: N/A | BW22: N/A | BX22: N/A | BY22: N/A | BZ22: N/A | CA22: N/A | CB22: N/A | CC22: N/A | CD22: N/A | CE22: N/A | CF22: N/A | CG22: N/A | CH22: N/A | CI22: N/A | CJ22: N/A | CK22: N/A | CL22: N/A
B23: No | C23: 58.11522773 | D23: 79.86672875 | E23: 90.57589487 | F23: 97.93056882 | G23: 97.06940511 | H23: 96.14484633 | I23: 98.35064852 | J23: 97.53154535 | K23: 98.07232547 | L23: 98.63089407 | M23: 49.52241809 | N23: 72.90965409 | O23: 82.61913979 | P23: 90.25389565 | Q23: 96.04981843 | R23: 93.0413974 | S23: 100 | T23: 89.89264298 | U23: 100 | V23: 84.08331198 | W23: 44.17314956 | X23: 100 | Y23: 49.93979873 | Z23: 97.605661 | AA23: 76.55137877 | AB23: 99.01091129 | AC23: 84.08022207 | AD23: 91.71270222 | AE23: 93.95532588 | AF23: 84.79774929 | AG23: 60.80633654 | AH23: 98.61421711 | AI23: 83.11994117 | AJ23: 99.19497906 | AK23: 92.42677523 | AL23: 86.73665206 | BB23: No | BC23: N/A | BD23: N/A | BE23: N/A | BF23: N/A | BG23: N/A | BH23: N/A | BI23: N/A | BJ23: N/A | BK23: N/A | BL23: N/A | BM23: N/A | BN23: N/A | BO23: N/A | BP23: N/A | BQ23: N/A | BR23: N/A | BS23: N/A | BT23: N/A | BU23: N/A | BV23: N/A | BW23: N/A | BX23: N/A | BY23: N/A | BZ23: N/A | CA23: N/A | CB23: N/A | CC23: N/A | CD23: N/A | CE23: N/A | CF23: N/A | CG23: N/A | CH23: N/A | CI23: N/A | CJ23: N/A | CK23: N/A | CL23: N/A
A24: Manually calculated ratios | B24: Improved wells | C24: =C62/(C62+C63)*100 -> 30.10355397 | D24: =D62/(D62+D63)*100 -> 33.72087888 | E24: =E62/(E62+E63)*100 -> 32.18880514 | F24: =F62/(F62+F63)*100 -> 37.55224799 | G24: =G62/(G62+G63)*100 -> 83.15690973 | H24: 100 | I24: =I62/(I62+I63)*100 -> 100 | J24: 100 | K24: =K62/(K62+K63)*100 -> 100 | L24: 100 | M24: 35.97121104 | N24: 22.33385949 | O24: 39.51374399 | P24: 26.71750468 | Q24: 43.68221269 | R24: 3.134533524 | S24: 50 | T24: =T62/(T62+T63)*100 -> 13.40250882 | U24: =U62/(U62+U63)*100 -> 0 | V24: =V62/(V62+V63)*100 -> 40.53405412 | W24: =W62/(W62+W63)*100 -> 55.74490838 | X24: 50 | Y24: =Y62/(Y62+Y63)*100 -> 45.62687444 | Z24: 15.72557448 | AA24: 46.84212837 | AB24: 100 | AC24: 17.69276167 | AD24: 14.75472601 | AE24: 47.66197498 | AF24: 43.40088788 | AG24: 95.46753454 | AH24: 23.30263124 | AI24: 27.79320061 | AJ24: 100 | AK24: 50 | AL24: =AL62/(AL62+AL63)*100 -> 30.64375583
B25: Improved springs | C25: =C64/(C64+C65)*100 -> 20.10531082 | D25: =D64/(D64+D65)*100 -> 24.30331582 | E25: =E64/(E64+E65)*100 -> 25.765676 | F25: =F64/(F64+F65)*100 -> 31.92022285 | G25: =G64/(G64+G65)*100 -> 0 | H25: 50 | I25: 50 | J25: 50 | K25: 50 | L25: 50 | M25: =M64/(M64+M65)*100 -> 17.87303809 | N25: 25.59565325 | O25: 31.39825176 | P25: 20.34508687 | Q25: 28.91503727 | R25: 0 | S25: 50 | T25: =T64/(T64+T65)*100 -> 0 | U25: 50 | V25: =V64/(V64+V65)*100 -> 17.28816708 | W25: =W64/(W64+W65)*100 -> 0 | X25: 50 | Y25: =Y64/(Y64+Y65)*100 -> 35.10500817 | Z25: =Z64/(Z64+Z65)*100 -> 49.21152434 | AA25: =AA64/(AA64+AA65)*100 -> 4.432159982 | AB25: 50 | AC25: =AC64/(AC64+AC65)*100 -> 0 | AD25: =AD64/(AD64+AD65)*100 -> 12.85127509 | AE25: =AE64/(AE64+AE65)*100 -> 0 | AF25: 50 | AG25: =AG64/(AG64+AG65)*100 -> 87.64869433 | AH25: 50 | AI25: =AI64/(AI64+AI65)*100 -> 18.81824165 | AJ25: 50 | AK25: 50 | AL25: =AL64/(AL64+AL65)*100 -> 39.6749003
B26: Other
C27: NATIONAL wealth index quintile | H27: URBAN wealth index quintile | M27: RURAL wealth index quintile | R27: SUB-REGIONS: | BA27: Raw numbers of respondents: | BB27: Use of drinking water sources | BC27: NATIONAL wealth index quintile | BH27: URBAN wealth index quintile | BM27: RURAL wealth index quintile | BR27: SUB-REGIONS:
A28: Percentage based on weighted population | C28: Poorest | D28: Poor | E28: Middle | F28: Rich | G28: Richest | H28: Poorest | I28: Poor | J28: Middle | K28: Rich | L28: Richest | M28: Poorest | N28: Poor | O28: Middle | P28: Rich | Q28: Richest | R28: Abyan | S28: Aden | T28: Al Baidhah | U28: Al Dala'a | V28: Al Hodeidah | W28: Al Jawf | X28: Al Maharah | Y28: Al Mahweet | Z28: Amran | AA28: Dhamar | AB28: Hadramout | AC28: Hajjah | AD28: Ibb | AE28: Lahej | AF28: Mareb | AG28: Raimah | AH28: Sa'adah | AI28: Sana'a | AJ28: Sana'a City | AK28: Shabwah | AL28: Taiz | BA28: Water data, raw numbers (weighted) | BC28: Poorest | BD28: Poor | BE28: Middle | BF28: Rich | BG28: Richest | BH28: Poorest | BI28: Poor | BJ28: Middle | BK28: Rich | BL28: Richest | BM28: Poorest | BN28: Poor | BO28: Middle | BP28: Rich | BQ28: Richest | BR28: Abyan | BS28: Aden | BT28: Al Baidhah | BU28: Al Dala'a | BV28: Al Hodeidah | BW28: Al Jawf | BX28: Al Maharah | BY28: Al Mahweet | BZ28: Amran | CA28: Dhamar | CB28: Hadramout | CC28: Hajjah | CD28: Ibb | CE28: Lahej | CF28: Mareb | CG28: Raimah | CH28: Sa'adah | CI28: Sana'a | CJ28: Sana'a City | CK28: Shabwah | CL28: Taiz
A29: Piped water | B29: Yes | C29: 8.66129741 | D29: 25.1795888 | E29: 42.18167191 | F29: 62.48832028 | G29: 70.25471853 | H29: 71.34569441 | I29: 70.13665008 | J29: 71.35766942 | K29: 71.98735407 | L29: 76.92561944 | M29: 4.478658703 | N29: 15.0568336 | O29: 27.88209068 | P29: 38.04196336 | Q29: 55.38347198 | R29: 29.86639841 | S29: 97.46535267 | T29: 64.95276149 | U29: 80.9423074 | V29: 54.72265454 | W29: 0 | X29: 0 | Y29: 2.727587407 | Z29: 13.51701193 | AA29: 24.01032441 | AB29: 77.6993174 | AC29: 15.95363583 | AD29: 47.47727067 | AE29: 49.90736904 | AF29: 44.46937876 | AG29: 17.07767163 | AH29: 0 | AI29: 11.96906154 | AJ29: 62.27232886 | AK29: 24.25795584 | AL29: 44.76089357 | BA29: Piped water | BB29: Yes | BC29: N/A | BD29: N/A | BE29: N/A | BF29: N/A | BG29: N/A | BH29: N/A | BI29: N/A | BJ29: N/A | BK29: N/A | BL29: N/A | BM29: N/A | BN29: N/A | BO29: N/A | BP29: N/A | BQ29: N/A | BR29: N/A | BS29: N/A | BT29: N/A | BU29: N/A | BV29: N/A | BW29: N/A | BX29: N/A | BY29: N/A | BZ29: N/A | CA29: N/A | CB29: N/A | CC29: N/A | CD29: N/A | CE29: N/A | CF29: N/A | CG29: N/A | CH29: N/A | CI29: N/A | CJ29: N/A | CK29: N/A | CL29: N/A
B30: No | C30: 91.33870259 | D30: 74.8204112 | E30: 57.81832809 | F30: 37.51167972 | G30: 29.74528147 | H30: 28.65430559 | I30: 29.86334992 | J30: 28.64233058 | K30: 28.01264593 | L30: 23.07438056 | M30: 95.5213413 | N30: 84.9431664 | O30: 72.11790932 | P30: 61.95803664 | Q30: 44.61652802 | R30: 70.13360159 | S30: 2.534647332 | T30: 35.04723851 | U30: 19.0576926 | V30: 45.27734546 | W30: 100 | X30: 100 | Y30: 97.27241259 | Z30: 86.48298807 | AA30: 75.98967559 | AB30: 22.3006826 | AC30: 84.04636417 | AD30: 52.52272933 | AE30: 50.09263096 | AF30: 55.53062124 | AG30: 82.92232837 | AH30: 100 | AI30: 88.03093846 | AJ30: 37.72767114 | AK30: 75.74204416 | AL30: 55.23910643 | BB30: No | BC30: N/A | BD30: N/A | BE30: N/A | BF30: N/A | BG30: N/A | BH30: N/A | BI30: N/A | BJ30: N/A | BK30: N/A | BL30: N/A | BM30: N/A | BN30: N/A | BO30: N/A | BP30: N/A | BQ30: N/A | BR30: N/A | BS30: N/A | BT30: N/A | BU30: N/A | BV30: N/A | BW30: N/A | BX30: N/A | BY30: N/A | BZ30: N/A | CA30: N/A | CB30: N/A | CC30: N/A | CD30: N/A | CE30: N/A | CF30: N/A | CG30: N/A | CH30: N/A | CI30: N/A | CJ30: N/A | CK30: N/A | CL30: N/A
A31: Piped water on premises | B31: Yes | C31: 7.296657436 | D31: 21.45482652 | E31: 39.19872966 | F31: 61.53892534 | G31: 68.43120348 | H31: 67.56398847 | I31: 69.4349393 | J31: 71.35766942 | K31: 71.64270404 | L31: 76.92561944 | M31: 3.972388337 | N31: 12.52181208 | O31: 23.75821914 | P31: 35.22642995 | Q31: 51.84437941 | R31: 29.86639841 | S31: 97.46535267 | T31: 64.95276149 | U31: 80.9423074 | V31: 52.58735203 | W31: 0 | X31: 0 | Y31: 1.91941336 | Z31: 13.51701193 | AA31: 23.76426437 | AB31: 77.6993174 | AC31: 15.95363583 | AD31: 41.80166675 | AE31: 46.3416445 | AF31: 40.93093832 | AG31: 0 | AH31: 0 | AI31: 9.096372701 | AJ31: 61.60083238 | AK31: 18.86569509 | AL31: 41.40342196 | BA31: Piped water on premises | BB31: Yes | BC31: N/A | BD31: N/A | BE31: N/A | BF31: N/A | BG31: N/A | BH31: N/A | BI31: N/A | BJ31: N/A | BK31: N/A | BL31: N/A | BM31: N/A | BN31: N/A | BO31: N/A | BP31: N/A | BQ31: N/A | BR31: N/A | BS31: N/A | BT31: N/A | BU31: N/A | BV31: N/A | BW31: N/A | BX31: N/A | BY31: N/A | BZ31: N/A | CA31: N/A | CB31: N/A | CC31: N/A | CD31: N/A | CE31: N/A | CF31: N/A | CG31: N/A | CH31: N/A | CI31: N/A | CJ31: N/A | CK31: N/A | CL31: N/A
B32: No | C32: 92.70334256 | D32: 78.54517348 | E32: 60.80127034 | F32: 38.46107466 | G32: 31.56879652 | H32: 32.43601153 | I32: 30.5650607 | J32: 28.64233058 | K32: 28.35729596 | L32: 23.07438056 | M32: 96.02761166 | N32: 87.47818792 | O32: 76.24178086 | P32: 64.77357005 | Q32: 48.15562059 | R32: 70.13360159 | S32: 2.534647332 | T32: 35.04723851 | U32: 19.0576926 | V32: 47.41264797 | W32: 100 | X32: 100 | Y32: 98.08058664 | Z32: 86.48298807 | AA32: 76.23573563 | AB32: 22.3006826 | AC32: 84.04636417 | AD32: 58.19833325 | AE32: 53.6583555 | AF32: 59.06906168 | AG32: 100 | AH32: 100 | AI32: 90.9036273 | AJ32: 38.39916762 | AK32: 81.13430491 | AL32: 58.59657804 | BB32: No | BC32: N/A | BD32: N/A | BE32: N/A | BF32: N/A | BG32: N/A | BH32: N/A | BI32: N/A | BJ32: N/A | BK32: N/A | BL32: N/A | BM32: N/A | BN32: N/A | BO32: N/A | BP32: N/A | BQ32: N/A | BR32: N/A | BS32: N/A | BT32: N/A | BU32: N/A | BV32: N/A | BW32: N/A | BX32: N/A | BY32: N/A | BZ32: N/A | CA32: N/A | CB32: N/A | CC32: N/A | CD32: N/A | CE32: N/A | CF32: N/A | CG32: N/A | CH32: N/A | CI32: N/A | CJ32: N/A | CK32: N/A | CL32: N/A
A33: Piped water into dwelling | B33: Yes | C33: N/A | D33: N/A | E33: N/A | F33: N/A | G33: N/A | H33: N/A | I33: N/A | J33: N/A | K33: N/A | L33: N/A | M33: N/A | N33: N/A | O33: N/A | P33: N/A | Q33: N/A | R33: N/A | S33: N/A | T33: N/A | U33: N/A | V33: N/A | W33: N/A | X33: N/A | Y33: N/A | Z33: N/A | AA33: N/A | AB33: N/A | AC33: N/A | AD33: N/A | AE33: N/A | AF33: N/A | AG33: N/A | AH33: N/A | AI33: N/A | AJ33: N/A | AK33: N/A | AL33: N/A | BA33: Piped water into dwelling | BB33: Yes | BC33: N/A | BD33: N/A | BE33: N/A | BF33: N/A | BG33: N/A | BH33: N/A | BI33: N/A | BJ33: N/A | BK33: N/A | BL33: N/A | BM33: N/A | BN33: N/A | BO33: N/A | BP33: N/A | BQ33: N/A | BR33: N/A | BS33: N/A | BT33: N/A | BU33: N/A | BV33: N/A | BW33: N/A | BX33: N/A | BY33: N/A | BZ33: N/A | CA33: N/A | CB33: N/A | CC33: N/A | CD33: N/A | CE33: N/A | CF33: N/A | CG33: N/A | CH33: N/A | CI33: N/A | CJ33: N/A | CK33: N/A | CL33: N/A
B34: No | C34: N/A | D34: N/A | E34: N/A | F34: N/A | G34: N/A | H34: N/A | I34: N/A | J34: N/A | K34: N/A | L34: N/A | M34: N/A | N34: N/A | O34: N/A | P34: N/A | Q34: N/A | R34: N/A | S34: N/A | T34: N/A | U34: N/A | V34: N/A | W34: N/A | X34: N/A | Y34: N/A | Z34: N/A | AA34: N/A | AB34: N/A | AC34: N/A | AD34: N/A | AE34: N/A | AF34: N/A | AG34: N/A | AH34: N/A | AI34: N/A | AJ34: N/A | AK34: N/A | AL34: N/A | BB34: No | BC34: N/A | BD34: N/A | BE34: N/A | BF34: N/A | BG34: N/A | BH34: N/A | BI34: N/A | BJ34: N/A | BK34: N/A | BL34: N/A | BM34: N/A | BN34: N/A | BO34: N/A | BP34: N/A | BQ34: N/A | BR34: N/A | BS34: N/A | BT34: N/A | BU34: N/A | BV34: N/A | BW34: N/A | BX34: N/A | BY34: N/A | BZ34: N/A | CA34: N/A | CB34: N/A | CC34: N/A | CD34: N/A | CE34: N/A | CF34: N/A | CG34: N/A | CH34: N/A | CI34: N/A | CJ34: N/A | CK34: N/A | CL34: N/A
A35: Water source on premises | B35: Yes | C35: 14.07825219 | D35: 31.00762213 | E35: 55.08763715 | F35: 83.7157538 | G35: 87.73300252 | H35: 87.50816345 | I35: 89.3947569 | J35: 92.11038003 | K35: 93.06590436 | L35: 97.25770599 | M35: 10.31135762 | N35: 20.47530948 | O35: 36.08418368 | P35: 49.22171684 | Q35: 72.19059098 | R35: 69.19256733 | S35: 98.36324587 | T35: 67.24569149 | U35: 98.22481176 | V35: 55.99211746 | W35: 12.27051836 | X35: 17.87439614 | Y35: 1.91941336 | Z35: 58.37188011 | AA35: 24.56802203 | AB35: 91.54820334 | AC35: 37.45616643 | AD35: 54.40703548 | AE35: 61.40404853 | AF35: 40.93093832 | AG35: 3.135281805 | AH35: 70.13536786 | AI35: 26.85764548 | AJ35: 96.6715172 | AK35: 88.48238732 | AL35: 41.52529303 | BA35: Water source on premises | BB35: Yes | BC35: N/A | BD35: N/A | BE35: N/A | BF35: N/A | BG35: N/A | BH35: N/A | BI35: N/A | BJ35: N/A | BK35: N/A | BL35: N/A | BM35: N/A | BN35: N/A | BO35: N/A | BP35: N/A | BQ35: N/A | BR35: N/A | BS35: N/A | BT35: N/A | BU35: N/A | BV35: N/A | BW35: N/A | BX35: N/A | BY35: N/A | BZ35: N/A | CA35: N/A | CB35: N/A | CC35: N/A | CD35: N/A | CE35: N/A | CF35: N/A | CG35: N/A | CH35: N/A | CI35: N/A | CJ35: N/A | CK35: N/A | CL35: N/A
B36: No | C36: 85.92174781 | D36: 68.99237787 | E36: 44.91236285 | F36: 16.2842462 | G36: 12.26699748 | H36: 12.49183655 | I36: 10.6052431 | J36: 7.889619971 | K36: 6.934095645 | L36: 2.742294014 | M36: 89.68864238 | N36: 79.52469052 | O36: 63.91581632 | P36: 50.77828316 | Q36: 27.80940902 | R36: 30.80743267 | S36: 1.636754125 | T36: 32.75430851 | U36: 1.775188239 | V36: 44.00788254 | W36: 87.72948164 | X36: 82.12560386 | Y36: 98.08058664 | Z36: 41.62811989 | AA36: 75.43197797 | AB36: 8.451796663 | AC36: 62.54383357 | AD36: 45.59296452 | AE36: 38.59595147 | AF36: 59.06906168 | AG36: 96.86471819 | AH36: 29.86463214 | AI36: 73.14235452 | AJ36: 3.328482797 | AK36: 11.51761268 | AL36: 58.47470697 | BB36: No | BC36: N/A | BD36: N/A | BE36: N/A | BF36: N/A | BG36: N/A | BH36: N/A | BI36: N/A | BJ36: N/A | BK36: N/A | BL36: N/A | BM36: N/A | BN36: N/A | BO36: N/A | BP36: N/A | BQ36: N/A | BR36: N/A | BS36: N/A | BT36: N/A | BU36: N/A | BV36: N/A | BW36: N/A | BX36: N/A | BY36: N/A | BZ36: N/A | CA36: N/A | CB36: N/A | CC36: N/A | CD36: N/A | CE36: N/A | CF36: N/A | CG36: N/A | CH36: N/A | CI36: N/A | CJ36: N/A | CK36: N/A | CL36: N/A
A37: Improved Water source on premises | B37: Yes | C37: 33.09726474 | D37: 52.2579848 | E37: 73.12663318 | F37: 88.69544638 | G37: 88.63729071 | H37: 92.00862807 | I37: 90.19436236 | J37: 93.56541294 | K37: 94.18106901 | L37: 97.25770599 | M37: 24.01305076 | N37: 45.55378096 | O37: 53.5247585 | P37: 69.95645415 | Q37: 78.16242103 | R37: 92.00962119 | S37: 100 | T37: 83.54365204 | U37: 100 | V37: 71.4514807 | W37: 19.80134719 | X37: 17.87439614 | Y37: 4.53901514 | Z37: 70.55608956 | AA37: 57.32341087 | AB37: 95.92979082 | AC37: 74.43927145 | AD37: 82.97394603 | AE37: 66.54971853 | AF37: 58.71216687 | AG37: 3.955323836 | AH37: 77.97370483 | AI37: 44.13761081 | AJ37: 96.6715172 | AK37: 88.48238732 | AL37: 58.91078764 | BA37: Improved water source on premises | BB37: Yes | BC37: N/A | BD37: N/A | BE37: N/A | BF37: N/A | BG37: N/A | BH37: N/A | BI37: N/A | BJ37: N/A | BK37: N/A | BL37: N/A | BM37: N/A | BN37: N/A | BO37: N/A | BP37: N/A | BQ37: N/A | BR37: N/A | BS37: N/A | BT37: N/A | BU37: N/A | BV37: N/A | BW37: N/A | BX37: N/A | BY37: N/A | BZ37: N/A | CA37: N/A | CB37: N/A | CC37: N/A | CD37: N/A | CE37: N/A | CF37: N/A | CG37: N/A | CH37: N/A | CI37: N/A | CJ37: N/A | CK37: N/A | CL37: N/A
B38: No | C38: 66.90273526 | D38: 47.7420152 | E38: 26.87336682 | F38: 11.30455362 | G38: 11.36270929 | H38: 7.991371931 | I38: 9.805637643 | J38: 6.434587061 | K38: 5.818930992 | L38: 2.742294014 | M38: 75.98694924 | N38: 54.44621904 | O38: 46.4752415 | P38: 30.04354585 | Q38: 21.83757897 | R38: 7.990378813 | S38: 0 | T38: 16.45634796 | U38: 0 | V38: 28.5485193 | W38: 80.19865281 | X38: 82.12560386 | Y38: 95.46098486 | Z38: 29.44391044 | AA38: 42.67658913 | AB38: 4.070209177 | AC38: 25.56072855 | AD38: 17.02605397 | AE38: 33.45028147 | AF38: 41.28783313 | AG38: 96.04467616 | AH38: 22.02629517 | AI38: 55.86238919 | AJ38: 3.328482797 | AK38: 11.51761268 | AL38: 41.08921236 | BB38: No | BC38: N/A | BD38: N/A | BE38: N/A | BF38: N/A | BG38: N/A | BH38: N/A | BI38: N/A | BJ38: N/A | BK38: N/A | BL38: N/A | BM38: N/A | BN38: N/A | BO38: N/A | BP38: N/A | BQ38: N/A | BR38: N/A | BS38: N/A | BT38: N/A | BU38: N/A | BV38: N/A | BW38: N/A | BX38: N/A | BY38: N/A | BZ38: N/A | CA38: N/A | CB38: N/A | CC38: N/A | CD38: N/A | CE38: N/A | CF38: N/A | CG38: N/A | CH38: N/A | CI38: N/A | CJ38: N/A | CK38: N/A | CL38: N/A
A39: Piped water on premises available when needed | B39: Yes | C39: N/A | D39: N/A | E39: N/A | F39: N/A | G39: N/A | H39: N/A | I39: N/A | J39: N/A | K39: N/A | L39: N/A | M39: N/A | N39: N/A | O39: N/A | P39: N/A | Q39: N/A | R39: N/A | S39: N/A | T39: N/A | U39: N/A | V39: N/A | W39: N/A | X39: N/A | Y39: N/A | Z39: N/A | AA39: N/A | AB39: N/A | AC39: N/A | AD39: N/A | AE39: N/A | AF39: N/A | AG39: N/A | AH39: N/A | AI39: N/A | AJ39: N/A | AK39: N/A | AL39: N/A | BA39: Piped water on premises available when needed | BB39: Yes | BC39: N/A | BD39: N/A | BE39: N/A | BF39: N/A | BG39: N/A | BH39: N/A | BI39: N/A | BJ39: N/A | BK39: N/A | BL39: N/A | BM39: N/A | BN39: N/A | BO39: N/A | BP39: N/A | BQ39: N/A | BR39: N/A | BS39: N/A | BT39: N/A | BU39: N/A | BV39: N/A | BW39: N/A | BX39: N/A | BY39: N/A | BZ39: N/A | CA39: N/A | CB39: N/A | CC39: N/A | CD39: N/A | CE39: N/A | CF39: N/A | CG39: N/A | CH39: N/A | CI39: N/A | CJ39: N/A | CK39: N/A | CL39: N/A
B40: No | C40: N/A | D40: N/A | E40: N/A | F40: N/A | G40: N/A | H40: N/A | I40: N/A | J40: N/A | K40: N/A | L40: N/A | M40: N/A | N40: N/A | O40: N/A | P40: N/A | Q40: N/A | R40: N/A | S40: N/A | T40: N/A | U40: N/A | V40: N/A | W40: N/A | X40: N/A | Y40: N/A | Z40: N/A | AA40: N/A | AB40: N/A | AC40: N/A | AD40: N/A | AE40: N/A | AF40: N/A | AG40: N/A | AH40: N/A | AI40: N/A | AJ40: N/A | AK40: N/A | AL40: N/A | BB40: No | BC40: N/A | BD40: N/A | BE40: N/A | BF40: N/A | BG40: N/A | BH40: N/A | BI40: N/A | BJ40: N/A | BK40: N/A | BL40: N/A | BM40: N/A | BN40: N/A | BO40: N/A | BP40: N/A | BQ40: N/A | BR40: N/A | BS40: N/A | BT40: N/A | BU40: N/A | BV40: N/A | BW40: N/A | BX40: N/A | BY40: N/A | BZ40: N/A | CA40: N/A | CB40: N/A | CC40: N/A | CD40: N/A | CE40: N/A | CF40: N/A | CG40: N/A | CH40: N/A | CI40: N/A | CJ40: N/A | CK40: N/A | CL40: N/A
A41: Water point at more than 30 minutes | B41: Yes | C41: 59.56807451 | D41: 37.07521467 | E41: 20.56230979 | F41: 4.836011873 | G41: 3.697640223 | H41: 4.128374454 | I41: 2.034961773 | J41: 3.873984581 | K41: 2.629724151 | L41: 1.369105932 | M41: 62.09075312 | N41: 52.86852201 | O41: 28.4693509 | P41: 24.14809291 | Q41: 7.822434701 | R41: 17.81887766 | S41: 0 | T41: 24.22134626 | U41: 1.775188239 | V41: 24.19302184 | W41: 58.54816686 | X41: 0 | Y41: 52.83986747 | Z41: 19.66446982 | AA41: 55.68261636 | AB41: 3.476872328 | AC41: 40.56887127 | AD41: 26.85312001 | AE41: 11.23437178 | AF41: 37.85065949 | AG41: 46.34049183 | AH41: 5.942333668 | AI41: 35.77666622 | AJ41: 0.8050209368 | AK41: 7.573224775 | AL41: 24.60616594 | BA41: Water point at more than 30 minutes | BB41: Yes | BC41: N/A | BD41: N/A | BE41: N/A | BF41: N/A | BG41: N/A | BH41: N/A | BI41: N/A | BJ41: N/A | BK41: N/A | BL41: N/A | BM41: N/A | BN41: N/A | BO41: N/A | BP41: N/A | BQ41: N/A | BR41: N/A | BS41: N/A | BT41: N/A | BU41: N/A | BV41: N/A | BW41: N/A | BX41: N/A | BY41: N/A | BZ41: N/A | CA41: N/A | CB41: N/A | CC41: N/A | CD41: N/A | CE41: N/A | CF41: N/A | CG41: N/A | CH41: N/A | CI41: N/A | CJ41: N/A | CK41: N/A | CL41: N/A
B42: No | C42: 40.43192549 | D42: 62.92478533 | E42: 79.43769021 | F42: 95.16398813 | G42: 96.30235978 | H42: 95.87162555 | I42: 97.96503823 | J42: 96.12601542 | K42: 97.37027585 | L42: 98.63089407 | M42: 37.90924688 | N42: 47.13147799 | O42: 71.5306491 | P42: 75.85190709 | Q42: 92.1775653 | R42: 82.18112234 | S42: 100 | T42: 75.77865374 | U42: 98.22481176 | V42: 75.80697816 | W42: 41.45183314 | X42: 100 | Y42: 47.16013253 | Z42: 80.33553018 | AA42: 44.31738364 | AB42: 96.52312767 | AC42: 59.43112873 | AD42: 73.14687999 | AE42: 88.76562822 | AF42: 62.14934051 | AG42: 53.65950817 | AH42: 94.05766633 | AI42: 64.22333378 | AJ42: 99.19497906 | AK42: 92.42677523 | AL42: 75.39383406 | BB42: No | BC42: N/A | BD42: N/A | BE42: N/A | BF42: N/A | BG42: N/A | BH42: N/A | BI42: N/A | BJ42: N/A | BK42: N/A | BL42: N/A | BM42: N/A | BN42: N/A | BO42: N/A | BP42: N/A | BQ42: N/A | BR42: N/A | BS42: N/A | BT42: N/A | BU42: N/A | BV42: N/A | BW42: N/A | BX42: N/A | BY42: N/A | BZ42: N/A | CA42: N/A | CB42: N/A | CC42: N/A | CD42: N/A | CE42: N/A | CF42: N/A | CG42: N/A | CH42: N/A | CI42: N/A | CJ42: N/A | CK42: N/A | CL42: N/A
A43: Water source available when needed | B43: Yes | C43: N/A | D43: N/A | E43: N/A | F43: N/A | G43: N/A | H43: N/A | I43: N/A | J43: N/A | K43: N/A | L43: N/A | M43: N/A | N43: N/A | O43: N/A | P43: N/A | Q43: N/A | R43: N/A | S43: N/A | T43: N/A | U43: N/A | V43: N/A | W43: N/A | X43: N/A | Y43: N/A | Z43: N/A | AA43: N/A | AB43: N/A | AC43: N/A | AD43: N/A | AE43: N/A | AF43: N/A | AG43: N/A | AH43: N/A | AI43: N/A | AJ43: N/A | AK43: N/A | AL43: N/A | BA43: Water source available when needed | BB43: Yes | BC43: N/A | BD43: N/A | BE43: N/A | BF43: N/A | BG43: N/A | BH43: N/A | BI43: N/A | BJ43: N/A | BK43: N/A | BL43: N/A | BM43: N/A | BN43: N/A | BO43: N/A | BP43: N/A | BQ43: N/A | BR43: N/A | BS43: N/A | BT43: N/A | BU43: N/A | BV43: N/A | BW43: N/A | BX43: N/A | BY43: N/A | BZ43: N/A | CA43: N/A | CB43: N/A | CC43: N/A | CD43: N/A | CE43: N/A | CF43: N/A | CG43: N/A | CH43: N/A | CI43: N/A | CJ43: N/A | CK43: N/A | CL43: N/A
B44: No | C44: N/A | D44: N/A | E44: N/A | F44: N/A | G44: N/A | H44: N/A | I44: N/A | J44: N/A | K44: N/A | L44: N/A | M44: N/A | N44: N/A | O44: N/A | P44: N/A | Q44: N/A | R44: N/A | S44: N/A | T44: N/A | U44: N/A | V44: N/A | W44: N/A | X44: N/A | Y44: N/A | Z44: N/A | AA44: N/A | AB44: N/A | AC44: N/A | AD44: N/A | AE44: N/A | AF44: N/A | AG44: N/A | AH44: N/A | AI44: N/A | AJ44: N/A | AK44: N/A | AL44: N/A | BB44: No | BC44: N/A | BD44: N/A | BE44: N/A | BF44: N/A | BG44: N/A | BH44: N/A | BI44: N/A | BJ44: N/A | BK44: N/A | BL44: N/A | BM44: N/A | BN44: N/A | BO44: N/A | BP44: N/A | BQ44: N/A | BR44: N/A | BS44: N/A | BT44: N/A | BU44: N/A | BV44: N/A | BW44: N/A | BX44: N/A | BY44: N/A | BZ44: N/A | CA44: N/A | CB44: N/A | CC44: N/A | CD44: N/A | CE44: N/A | CF44: N/A | CG44: N/A | CH44: N/A | CI44: N/A | CJ44: N/A | CK44: N/A | CL44: N/A
A45: Improved water source available when needed | B45: Yes | C45: N/A | D45: N/A | E45: N/A | F45: N/A | G45: N/A | H45: N/A | I45: N/A | J45: N/A | K45: N/A | L45: N/A | M45: N/A | N45: N/A | O45: N/A | P45: N/A | Q45: N/A | R45: N/A | S45: N/A | T45: N/A | U45: N/A | V45: N/A | W45: N/A | X45: N/A | Y45: N/A | Z45: N/A | AA45: N/A | AB45: N/A | AC45: N/A | AD45: N/A | AE45: N/A | AF45: N/A | AG45: N/A | AH45: N/A | AI45: N/A | AJ45: N/A | AK45: N/A | AL45: N/A | BA45: Improved water source available when needed | BB45: Yes | BC45: N/A | BD45: N/A | BE45: N/A | BF45: N/A | BG45: N/A | BH45: N/A | BI45: N/A | BJ45: N/A | BK45: N/A | BL45: N/A | BM45: N/A | BN45: N/A | BO45: N/A | BP45: N/A | BQ45: N/A | BR45: N/A | BS45: N/A | BT45: N/A | BU45: N/A | BV45: N/A | BW45: N/A | BX45: N/A | BY45: N/A | BZ45: N/A | CA45: N/A | CB45: N/A | CC45: N/A | CD45: N/A | CE45: N/A | CF45: N/A | CG45: N/A | CH45: N/A | CI45: N/A | CJ45: N/A | CK45: N/A | CL45: N/A
B46: No | C46: N/A | D46: N/A | E46: N/A | F46: N/A | G46: N/A | H46: N/A | I46: N/A | J46: N/A | K46: N/A | L46: N/A | M46: N/A | N46: N/A | O46: N/A | P46: N/A | Q46: N/A | R46: N/A | S46: N/A | T46: N/A | U46: N/A | V46: N/A | W46: N/A | X46: N/A | Y46: N/A | Z46: N/A | AA46: N/A | AB46: N/A | AC46: N/A | AD46: N/A | AE46: N/A | AF46: N/A | AG46: N/A | AH46: N/A | AI46: N/A | AJ46: N/A | AK46: N/A | AL46: N/A | BB46: No | BC46: N/A | BD46: N/A | BE46: N/A | BF46: N/A | BG46: N/A | BH46: N/A | BI46: N/A | BJ46: N/A | BK46: N/A | BL46: N/A | BM46: N/A | BN46: N/A | BO46: N/A | BP46: N/A | BQ46: N/A | BR46: N/A | BS46: N/A | BT46: N/A | BU46: N/A | BV46: N/A | BW46: N/A | BX46: N/A | BY46: N/A | BZ46: N/A | CA46: N/A | CB46: N/A | CC46: N/A | CD46: N/A | CE46: N/A | CF46: N/A | CG46: N/A | CH46: N/A | CI46: N/A | CJ46: N/A | CK46: N/A | CL46: N/A
A47: Microbiological quality at point of collection | B47: Not contaminated (No E. coli in 100 mL) | C47: N/A | D47: N/A | E47: N/A | F47: N/A | G47: N/A | H47: N/A | I47: N/A | J47: N/A | K47: N/A | L47: N/A | M47: N/A | N47: N/A | O47: N/A | P47: N/A | Q47: N/A | R47: N/A | S47: N/A | T47: N/A | U47: N/A | V47: N/A | W47: N/A | X47: N/A | Y47: N/A | Z47: N/A | AA47: N/A | AB47: N/A | AC47: N/A | AD47: N/A | AE47: N/A | AF47: N/A | AG47: N/A | AH47: N/A | AI47: N/A | AJ47: N/A | AK47: N/A | AL47: N/A | BA47: Microbiological quality at point of collection | BB47: Not contaminated (No E. coli in 100 mL) | BC47: N/A | BD47: N/A | BE47: N/A | BF47: N/A | BG47: N/A | BH47: N/A | BI47: N/A | BJ47: N/A | BK47: N/A | BL47: N/A | BM47: N/A | BN47: N/A | BO47: N/A | BP47: N/A | BQ47: N/A | BR47: N/A | BS47: N/A | BT47: N/A | BU47: N/A | BV47: N/A | BW47: N/A | BX47: N/A | BY47: N/A | BZ47: N/A | CA47: N/A | CB47: N/A | CC47: N/A | CD47: N/A | CE47: N/A | CF47: N/A | CG47: N/A | CH47: N/A | CI47: N/A | CJ47: N/A | CK47: N/A | CL47: N/A
B48: Contaminated (E. coli detected in 100 mL) | C48: N/A | D48: N/A | E48: N/A | F48: N/A | G48: N/A | H48: N/A | I48: N/A | J48: N/A | K48: N/A | L48: N/A | M48: N/A | N48: N/A | O48: N/A | P48: N/A | Q48: N/A | R48: N/A | S48: N/A | T48: N/A | U48: N/A | V48: N/A | W48: N/A | X48: N/A | Y48: N/A | Z48: N/A | AA48: N/A | AB48: N/A | AC48: N/A | AD48: N/A | AE48: N/A | AF48: N/A | AG48: N/A | AH48: N/A | AI48: N/A | AJ48: N/A | AK48: N/A | AL48: N/A | BB48: Contaminated (E. coli detected in 100 mL) | BC48: N/A | BD48: N/A | BE48: N/A | BF48: N/A | BG48: N/A | BH48: N/A | BI48: N/A | BJ48: N/A | BK48: N/A | BL48: N/A | BM48: N/A | BN48: N/A | BO48: N/A | BP48: N/A | BQ48: N/A | BR48: N/A | BS48: N/A | BT48: N/A | BU48: N/A | BV48: N/A | BW48: N/A | BX48: N/A | BY48: N/A | BZ48: N/A | CA48: N/A | CB48: N/A | CC48: N/A | CD48: N/A | CE48: N/A | CF48: N/A | CG48: N/A | CH48: N/A | CI48: N/A | CJ48: N/A | CK48: N/A | CL48: N/A
B49: Highly contaminated (>100 CFU/100 mL) | C49: N/A | D49: N/A | E49: N/A | F49: N/A | G49: N/A | H49: N/A | I49: N/A | J49: N/A | K49: N/A | L49: N/A | M49: N/A | N49: N/A | O49: N/A | P49: N/A | Q49: N/A | R49: N/A | S49: N/A | T49: N/A | U49: N/A | V49: N/A | W49: N/A | X49: N/A | Y49: N/A | Z49: N/A | AA49: N/A | AB49: N/A | AC49: N/A | AD49: N/A | AE49: N/A | AF49: N/A | AG49: N/A | AH49: N/A | AI49: N/A | AJ49: N/A | AK49: N/A | AL49: N/A | BB49: Highly contaminated (>100 CFU/100 mL) | BC49: N/A | BD49: N/A | BE49: N/A | BF49: N/A | BG49: N/A | BH49: N/A | BI49: N/A | BJ49: N/A | BK49: N/A | BL49: N/A | BM49: N/A | BN49: N/A | BO49: N/A | BP49: N/A | BQ49: N/A | BR49: N/A | BS49: N/A | BT49: N/A | BU49: N/A | BV49: N/A | BW49: N/A | BX49: N/A | BY49: N/A | BZ49: N/A | CA49: N/A | CB49: N/A | CC49: N/A | CD49: N/A | CE49: N/A | CF49: N/A | CG49: N/A | CH49: N/A | CI49: N/A | CJ49: N/A | CK49: N/A | CL49: N/A
A50: Microbiological quality of improved water sources at point of collection | B50: Not contaminated (No E. coli in 100 mL) | C50: N/A | D50: N/A | E50: N/A | F50: N/A | G50: N/A | H50: N/A | I50: N/A | J50: N/A | K50: N/A | L50: N/A | M50: N/A | N50: N/A | O50: N/A | P50: N/A | Q50: N/A | R50: N/A | S50: N/A | T50: N/A | U50: N/A | V50: N/A | W50: N/A | X50: N/A | Y50: N/A | Z50: N/A | AA50: N/A | AB50: N/A | AC50: N/A | AD50: N/A | AE50: N/A | AF50: N/A | AG50: N/A | AH50: N/A | AI50: N/A | AJ50: N/A | AK50: N/A | AL50: N/A | BA50: Microbiological quality of improved water sources at point of collection | BB50: Not contaminated (No E. coli in 100 mL) | BC50: N/A | BD50: N/A | BE50: N/A | BF50: N/A | BG50: N/A | BH50: N/A | BI50: N/A | BJ50: N/A | BK50: N/A | BL50: N/A | BM50: N/A | BN50: N/A | BO50: N/A | BP50: N/A | BQ50: N/A | BR50: N/A | BS50: N/A | BT50: N/A | BU50: N/A | BV50: N/A | BW50: N/A | BX50: N/A | BY50: N/A | BZ50: N/A | CA50: N/A | CB50: N/A | CC50: N/A | CD50: N/A | CE50: N/A | CF50: N/A | CG50: N/A | CH50: N/A | CI50: N/A | CJ50: N/A | CK50: N/A | CL50: N/A
B51: Contaminated (E. coli detected in 100 mL) | C51: N/A | D51: N/A | E51: N/A | F51: N/A | G51: N/A | H51: N/A | I51: N/A | J51: N/A | K51: N/A | L51: N/A | M51: N/A | N51: N/A | O51: N/A | P51: N/A | Q51: N/A | R51: N/A | S51: N/A | T51: N/A | U51: N/A | V51: N/A | W51: N/A | X51: N/A | Y51: N/A | Z51: N/A | AA51: N/A | AB51: N/A | AC51: N/A | AD51: N/A | AE51: N/A | AF51: N/A | AG51: N/A | AH51: N/A | AI51: N/A | AJ51: N/A | AK51: N/A | AL51: N/A | BB51: Contaminated (E. coli detected in 100 mL) | BC51: N/A | BD51: N/A | BE51: N/A | BF51: N/A | BG51: N/A | BH51: N/A | BI51: N/A | BJ51: N/A | BK51: N/A | BL51: N/A | BM51: N/A | BN51: N/A | BO51: N/A | BP51: N/A | BQ51: N/A | BR51: N/A | BS51: N/A | BT51: N/A | BU51: N/A | BV51: N/A | BW51: N/A | BX51: N/A | BY51: N/A | BZ51: N/A | CA51: N/A | CB51: N/A | CC51: N/A | CD51: N/A | CE51: N/A | CF51: N/A | CG51: N/A | CH51: N/A | CI51: N/A | CJ51: N/A | CK51: N/A | CL51: N/A
B52: Highly contaminated (>100 CFU/100 mL) | C52: N/A | D52: N/A | E52: N/A | F52: N/A | G52: N/A | H52: N/A | I52: N/A | J52: N/A | K52: N/A | L52: N/A | M52: N/A | N52: N/A | O52: N/A | P52: N/A | Q52: N/A | R52: N/A | S52: N/A | T52: N/A | U52: N/A | V52: N/A | W52: N/A | X52: N/A | Y52: N/A | Z52: N/A | AA52: N/A | AB52: N/A | AC52: N/A | AD52: N/A | AE52: N/A | AF52: N/A | AG52: N/A | AH52: N/A | AI52: N/A | AJ52: N/A | AK52: N/A | AL52: N/A | BB52: Highly contaminated (>100 CFU/100 mL) | BC52: N/A | BD52: N/A | BE52: N/A | BF52: N/A | BG52: N/A | BH52: N/A | BI52: N/A | BJ52: N/A | BK52: N/A | BL52: N/A | BM52: N/A | BN52: N/A | BO52: N/A | BP52: N/A | BQ52: N/A | BR52: N/A | BS52: N/A | BT52: N/A | BU52: N/A | BV52: N/A | BW52: N/A | BX52: N/A | BY52: N/A | BZ52: N/A | CA52: N/A | CB52: N/A | CC52: N/A | CD52: N/A | CE52: N/A | CF52: N/A | CG52: N/A | CH52: N/A | CI52: N/A | CJ52: N/A | CK52: N/A | CL52: N/A
A53: Microbiological quality of piped on premises at point of collection | B53: Not contaminated (No E. coli in 100 mL) | C53: N/A | D53: N/A | E53: N/A | F53: N/A | G53: N/A | H53: N/A | I53: N/A | J53: N/A | K53: N/A | L53: N/A | M53: N/A | N53: N/A | O53: N/A | P53: N/A | Q53: N/A | R53: N/A | S53: N/A | T53: N/A | U53: N/A | V53: N/A | W53: N/A | X53: N/A | Y53: N/A | Z53: N/A | AA53: N/A | AB53: N/A | AC53: N/A | AD53: N/A | AE53: N/A | AF53: N/A | AG53: N/A | AH53: N/A | AI53: N/A | AJ53: N/A | AK53: N/A | AL53: N/A | BA53: Microbiological quality of piped on premises at point of collection | BB53: Not contaminated (No E. coli in 100 mL) | BC53: N/A | BD53: N/A | BE53: N/A | BF53: N/A | BG53: N/A | BH53: N/A | BI53: N/A | BJ53: N/A | BK53: N/A | BL53: N/A | BM53: N/A | BN53: N/A | BO53: N/A | BP53: N/A | BQ53: N/A | BR53: N/A | BS53: N/A | BT53: N/A | BU53: N/A | BV53: N/A | BW53: N/A | BX53: N/A | BY53: N/A | BZ53: N/A | CA53: N/A | CB53: N/A | CC53: N/A | CD53: N/A | CE53: N/A | CF53: N/A | CG53: N/A | CH53: N/A | CI53: N/A | CJ53: N/A | CK53: N/A | CL53: N/A
B54: Contaminated (E. coli detected in 100 mL) | C54: N/A | D54: N/A | E54: N/A | F54: N/A | G54: N/A | H54: N/A | I54: N/A | J54: N/A | K54: N/A | L54: N/A | M54: N/A | N54: N/A | O54: N/A | P54: N/A | Q54: N/A | R54: N/A | S54: N/A | T54: N/A | U54: N/A | V54: N/A | W54: N/A | X54: N/A | Y54: N/A | Z54: N/A | AA54: N/A | AB54: N/A | AC54: N/A | AD54: N/A | AE54: N/A | AF54: N/A | AG54: N/A | AH54: N/A | AI54: N/A | AJ54: N/A | AK54: N/A | AL54: N/A | BB54: Contaminated (E. coli detected in 100 mL) | BC54: N/A | BD54: N/A | BE54: N/A | BF54: N/A | BG54: N/A | BH54: N/A | BI54: N/A | BJ54: N/A | BK54: N/A | BL54: N/A | BM54: N/A | BN54: N/A | BO54: N/A | BP54: N/A | BQ54: N/A | BR54: N/A | BS54: N/A | BT54: N/A | BU54: N/A | BV54: N/A | BW54: N/A | BX54: N/A | BY54: N/A | BZ54: N/A | CA54: N/A | CB54: N/A | CC54: N/A | CD54: N/A | CE54: N/A | CF54: N/A | CG54: N/A | CH54: N/A | CI54: N/A | CJ54: N/A | CK54: N/A | CL54: N/A
B55: Highly contaminated (>100 CFU/100 mL) | C55: N/A | D55: N/A | E55: N/A | F55: N/A | G55: N/A | H55: N/A | I55: N/A | J55: N/A | K55: N/A | L55: N/A | M55: N/A | N55: N/A | O55: N/A | P55: N/A | Q55: N/A | R55: N/A | S55: N/A | T55: N/A | U55: N/A | V55: N/A | W55: N/A | X55: N/A | Y55: N/A | Z55: N/A | AA55: N/A | AB55: N/A | AC55: N/A | AD55: N/A | AE55: N/A | AF55: N/A | AG55: N/A | AH55: N/A | AI55: N/A | AJ55: N/A | AK55: N/A | AL55: N/A | BB55: Highly contaminated (>100 CFU/100 mL) | BC55: N/A | BD55: N/A | BE55: N/A | BF55: N/A | BG55: N/A | BH55: N/A | BI55: N/A | BJ55: N/A | BK55: N/A | BL55: N/A | BM55: N/A | BN55: N/A | BO55: N/A | BP55: N/A | BQ55: N/A | BR55: N/A | BS55: N/A | BT55: N/A | BU55: N/A | BV55: N/A | BW55: N/A | BX55: N/A | BY55: N/A | BZ55: N/A | CA55: N/A | CB55: N/A | CC55: N/A | CD55: N/A | CE55: N/A | CF55: N/A | CG55: N/A | CH55: N/A | CI55: N/A | CJ55: N/A | CK55: N/A | CL55: N/A
C56: NATIONAL wealth index quintile | H56: URBAN wealth index quintile | M56: RURAL wealth index quintile | R56: SUB-REGIONS: | BA56: Raw numbers of respondents: | BB56: Use of drinking water sources | BC56: NATIONAL wealth index quintile | BH56: URBAN wealth index quintile | BM56: RURAL wealth index quintile | BR56: SUB-REGIONS:
A57: Percentage based on weighted population | C57: Poorest | D57: Poor | E57: Middle | F57: Rich | G57: Richest | H57: Poorest | I57: Poor | J57: Middle | K57: Rich | L57: Richest | M57: Poorest | N57: Poor | O57: Middle | P57: Rich | Q57: Richest | R57: Abyan | S57: Aden | T57: Al Baidhah | U57: Al Dala'a | V57: Al Hodeidah | W57: Al Jawf | X57: Al Maharah | Y57: Al Mahweet | Z57: Amran | AA57: Dhamar | AB57: Hadramout | AC57: Hajjah | AD57: Ibb | AE57: Lahej | AF57: Mareb | AG57: Raimah | AH57: Sa'adah | AI57: Sana'a | AJ57: Sana'a City | AK57: Shabwah | AL57: Taiz | BA57: Water data, raw numbers (weighted) | BC57: Poorest | BD57: Poor | BE57: Middle | BF57: Rich | BG57: Richest | BH57: Poorest | BI57: Poor | BJ57: Middle | BK57: Rich | BL57: Richest | BM57: Poorest | BN57: Poor | BO57: Middle | BP57: Rich | BQ57: Richest | BR57: Abyan | BS57: Aden | BT57: Al Baidhah | BU57: Al Dala'a | BV57: Al Hodeidah | BW57: Al Jawf | BX57: Al Maharah | BY57: Al Mahweet | BZ57: Amran | CA57: Dhamar | CB57: Hadramout | CC57: Hajjah | CD57: Ibb | CE57: Lahej | CF57: Mareb | CG57: Raimah | CH57: Sa'adah | CI57: Sana'a | CJ57: Sana'a City | CK57: Shabwah | CL57: Taiz
A58: Main source of drinking water | B58: Piped into dwelling | C58: 2.534351529 | D58: 14.86926945 | E58: 28.61710331 | F58: 47.52430558 | G58: 47.93042781 | H58: 45.62231077 | I58: 54.91080283 | J58: 52.05338802 | K58: 46.020472 | L58: 46.60151484 | M58: 0.4492750935 | N58: 7.973589197 | O58: 16.06075893 | P58: 26.59760187 | Q58: 44.32544693 | R58: 26.74721175 | S58: 96.19203272 | T58: 55.1023712 | U58: 42.85566589 | V58: 27.23118692 | W58: 0 | X58: 0 | Y58: 0 | Z58: 11.1992101 | AA58: 20.0357172 | AB58: 68.51065147 | AC58: 13.15910459 | AD58: 34.69303966 | AE58: 40.2757511 | AF58: 17.67832968 | AG58: 0 | AH58: 0 | AI58: 9.096372701 | AJ58: 27.06204502 | AK58: 16.2694214 | AL58: 27.07782122
B59: Piped into yard or plot | C59: 4.762305907 | D59: 6.521869935 | E59: 9.730515904 | F59: 5.203053896 | G59: 2.318837469 | H59: 18.59711086 | I59: 3.476169425 | J59: 1.112881756 | K59: 2.476973785 | L59: 0 | M59: 3.523113244 | N59: 4.548222887 | O59: 7.697460209 | P59: 8.034919377 | Q59: 6.016251575 | R59: 3.119186661 | S59: 0 | T59: 4.201088757 | U59: 37.70213882 | V59: 21.61453908 | W59: 0 | X59: 0 | Y59: 1.91941336 | Z59: 2.317801827 | AA59: 3.728547173 | AB59: 0.8277134246 | AC59: 2.794531236 | AD59: 6.333141648 | AE59: 4.532079264 | AF59: 23.25260864 | AG59: 0 | AH59: 0 | AI59: 0 | AJ59: 3.219394689 | AK59: 2.596273694 | AL59: 2.556806657
B60: Public tap/standpipe | C60: 1.364639975 | D60: 3.724762286 | E60: 2.982942245 | F60: 0.9493949405 | G60: 1.823515047 | H60: 3.78170594 | I60: 0.7017107736 | J60: 0 | K60: 0.34465003 | L60: 0 | M60: 0.5062703655 | N60: 2.535021516 | O60: 4.123871543 | P60: 2.815533408 | Q60: 3.539092576 | R60: 0 | S60: 0 | T60: 0 | U60: 0 | V60: 2.135302505 | W60: 0 | X60: 0 | Y60: 0.8081740464 | Z60: 0 | AA60: 0.246060041 | AB60: 0 | AC60: 0 | AD60: 5.675603915 | AE60: 3.565724545 | AF60: 3.538440445 | AG60: 17.07767163 | AH60: 0 | AI60: 2.872688834 | AJ60: 0.6714964764 | AK60: 5.39226075 | AL60: 3.357471607
B61: Tubewell/borehole | C61: 1.369668822 | D61: 5.69781191 | E61: 9.30649603 | F61: 4.070049876 | G61: 4.182761488 | H61: 0.5479892985 | I61: 0.2609002472 | J61: 0.2612216438 | K61: 0.8783870394 | L61: 0 | M61: 1.51093595 | N61: 3.4494183 | O61: 7.2791242 | P61: 11.153797 | Q61: 11.29718323 | R61: 0 | S61: 0 | T61: 5.921249621 | U61: 0 | V61: 4.995317202 | W61: 1.812012377 | X61: 0 | Y61: 0 | Z61: 22.71796713 | AA61: 2.787389394 | AB61: 1.526310396 | AC61: 0 | AD61: 0.249422356 | AE61: 0.6300192963 | AF61: 0 | AG61: 0 | AH61: 59.67623294 | AI61: 11.62758266 | AJ61: 0.6022995892 | AK61: 42.29363474 | AL61: 0.2368681325
B62: Protected well | C62: 14.28502221 | D62: 11.73378982 | E62: 4.936510674 | F62: 1.453476111 | G62: 1.994168534 | H62: 0 | I62: 1.193324283 | J62: 0 | K62: 0.7253176939 | L62: 2.175657491 | M62: 17.89033307 | N62: 9.092726243 | O62: 13.06505283 | P62: 4.650279616 | Q62: 3.16102097 | R62: 0.7759106475 | S62: 0 | T62: 2.740287729 | U62: 0 | V62: 8.55321994 | W62: 45.7109559 | X62: 0 | Y62: 11.43440228 | Z62: 4.518895324 | AA62: 11.40345106 | AB62: 0.5814515793 | AC62: 7.517600631 | AD62: 2.720001969 | AE62: 4.914590516 | AF62: 23.22323148 | AG62: 23.52322711 | AH62: 5.291929419 | AI62: 4.853324728 | AJ62: 2.575314024 | AK62: 0 | AL62: 9.513232061
B63: Unprotected well | C63: 33.16792046 | D63: 23.06301919 | E63: 10.39959967 | F63: 2.417067434 | G63: 0.4039106401 | H63: 0 | I63: 0 | J63: 0 | K63: 0 | L63: 0 | M63: 31.84480943 | N63: 31.62001419 | O63: 19.99952549 | P63: 12.75508691 | Q63: 4.075382076 | R63: 23.97771351 | S63: 0 | T63: 17.70579268 | U63: 1.775188239 | V63: 12.54809875 | W63: 36.28927914 | X63: 0 | Y63: 13.62627176 | Z63: 24.21706806 | AA63: 12.94098301 | AB63: 0 | AC63: 34.97209528 | AD63: 15.7147827 | AE63: 5.396754152 | AF63: 30.28542379 | AG63: 1.116800753 | AH63: 17.41764944 | AI63: 12.60894886 | AJ63: 0 | AK63: 0 | AL63: 21.53137002
B64: Protected spring | C64: 4.684200109 | D64: 3.777068096 | E64: 2.668354807 | F64: 0.5541059671 | G64: 0 | H64: 0 | I64: 0 | J64: 0 | K64: 0 | L64: 0 | M64: 4.843232241 | N64: 4.973232647 | O64: 3.61118562 | P64: 2.644306431 | Q64: 0.8005951475 | R64: 0 | S64: 0 | T64: 0 | U64: 0 | V64: 1.168461297 | W64: 0 | X64: 0 | Y64: 22.10002755 | Z64: 5.095436015 | AA64: 1.498370985 | AB64: 0 | AC64: 0 | AD64: 2.115434002 | AE64: 0 | AF64: 0 | AG64: 37.05333042 | AH64: 0 | AI64: 0.9224880903 | AJ64: 0 | AK64: 0 | AL64: 2.475159283
B65: Unprotected spring | C65: 18.61412216 | D65: 11.76430133 | E65: 7.687883496 | F65: 1.181802864 | G65: 0.180565305 | H65: 0 | I65: 0 | J65: 0 | K65: 0 | L65: 0 | M65: 22.2547475 | N65: 14.4567565 | O65: 7.890045875 | P65: 10.35296632 | Q65: 1.96818962 | R65: 0.820838595 | S65: 0 | T65: 0.548116642 | U65: 0 | V65: 5.590273109 | W65: 1.312146893 | X65: 0 | Y65: 40.85403143 | Z65: 5.258715952 | AA65: 32.30841828 | AB65: 0 | AC65: 1.573140192 | AD65: 14.34545402 | AE65: 0.4981619217 | AF65: 0 | AG65: 5.221492617 | AH65: 0 | AI65: 3.979606948 | AJ65: 0 | AK65: 0 | AL65: 3.763443119
B66: Rainwater collection | C66: 2.427628806 | D66: 4.088739859 | E66: 3.311153032 | F66: 1.771561264 | G66: 2.854502189 | H66: 0 | I66: 0 | J66: 0 | K66: 0 | L66: 1.351181101 | M66: 2.139682607 | N66: 3.111643359 | O66: 5.535826307 | P66: 3.405378355 | Q66: 6.08112027 | R66: 0 | S66: 0 | T66: 2.415849954 | U66: 0 | V66: 0 | W66: 0 | X66: 0 | Y66: 6.024983383 | Z66: 9.724705176 | AA66: 1.576509101 | AB66: 9.84085421 | AC66: 2.696258854 | AD66: 0.07407839754 | AE66: 18.23835969 | AF66: 0 | AG66: 1.613156643 | AH66: 0 | AI66: 2.872173904 | AJ66: 0.9266147526 | AK66: 5.364367549 | AL66: 4.049298082
B67: Tanker-truck | C67: 2.54593409 | D67: 3.197724209 | E67: 8.118561105 | F67: 14.59915978 | G67: 10.8203365 | H67: 14.40904754 | I67: 15.791422 | J67: 16.52553325 | K67: 15.54553865 | L67: 11.22463259 | M67: 2.614464115 | N67: 2.520288442 | O67: 3.921285071 | P67: 6.752178935 | Q67: 8.280951926 | R67: 8.954997546 | S67: 0 | T67: 1.487745171 | U67: 15.15178465 | V67: 1.979662989 | W67: 14.10919712 | X67: 0 | Y67: 0 | Z67: 5.788547865 | AA67: 0.8585539343 | AB67: 3.817593376 | AC67: 10.05669868 | AD67: 9.952987076 | AE67: 11.94407225 | AF67: 0 | AG67: 0 | AH67: 16.30647051 | AI67: 20.98113346 | AJ67: 15.02848822 | AK67: 19.24861297 | AL67: 7.405686111
B68: Cart with small tank/drum | C68: 3.235796358 | D68: 3.75251434 | E68: 3.388195628 | F68: 4.506174806 | G68: 2.863078539 | H68: 4.889664677 | I68: 5.179040089 | J68: 4.005659733 | K68: 1.631306132 | L68: 1.27305374 | M68: 2.512183097 | N68: 4.733073036 | O68: 3.771518441 | P68: 2.164649523 | Q68: 4.907951609 | R68: 35.60414129 | S68: 0 | T68: 2.86882182 | U68: 0 | V68: 4.269859491 | W68: 0 | X68: 0 | Y68: 0 | Z68: 4.43655449 | AA68: 0.3290734346 | AB68: 1.217448203 | AC68: 13.89055573 | AD68: 2.982033709 | AE68: 1.888791247 | AF68: 2.021965969 | AG68: 0 | AH68: 1.180560795 | AI68: 6.446690376 | AJ68: 2.90858317 | AK68: 8.835428904 | AL68: 0.4042047384
B69: Surface water | C69: 8.833173843 | D69: 6.508324988 | E69: 5.236399589 | F69: 1.019468752 | G69: 0.3501408446 | H69: 0 | I69: 0 | J69: 0 | K69: 0 | L69: 0 | M69: 9.623325149 | N69: 7.573547436 | O69: 6.664654749 | P69: 5.850466377 | Q69: 1.978449404 | R69: 0 | S69: 0 | T69: 0 | U69: 0 | V69: 1.604445315 | W69: 0 | X69: 0 | Y69: 3.232696186 | Z69: 0 | AA69: 8.537938876 | AB69: 0.7960238249 | AC69: 13.34001481 | AD69: 4.019642407 | AE69: 5.771857072 | AF69: 0 | AG69: 14.39432082 | AH69: 0 | AI69: 22.56164968 | AJ69: 0 | AK69: 0 | AL69: 3.062403861
B70: Bottled water | C70: 0.2614052231 | D70: 0.3184951376 | E70: 1.672299068 | F70: 12.78848563 | G70: 23.71633424 | H70: 7.246836327 | I70: 15.37708563 | J70: 23.65545358 | K70: 30.68527693 | L70: 37.37396024 | M70: 0.2876281403 | N70: 0.2093731206 | O70: 0.02751771304 | P70: 1.237985347 | Q70: 3.44262662 | R70: 0 | S70: 1.273319944 | T70: 5.754268648 | U70: 2.515222407 | V70: 3.741626038 | W70: 0.3359332647 | X70: 100 | Y70: 0 | Z70: 0 | AA70: 0.3949462674 | AB70: 9.110483294 | AC70: 0 | AD70: 0.7754854431 | AE70: 2.343838943 | AF70: 0 | AG70: 0 | AH70: 0.1271568985 | AI70: 1.177339752 | AJ70: 47.00576406 | AK70: 0 | AL70: 13.41188843
B71: Other | C71: 1.913830508 | D71: 0.9630426567 | E71: 1.943985443 | F71: 1.961893106 | G71: 0.5614214043 | H71: 4.905334588 | I71: 3.109544729 | J71: 2.385862011 | K71: 1.692077735 | L71: 0 | M71: 0 | N71: 3.203093126 | O71: 0.3243322655 | P71: 1.58485054 | Q71: 0.1257380403 | R71: 0 | S71: 2.534647332 | T71: 1.25440778 | U71: 0 | V71: 4.530377551 | W71: 0.4304753099 | X71: 0 | Y71: 0 | Z71: 4.725098063 | AA71: 3.354041253 | AB71: 3.771470222 | AC71: 0 | AD71: 0.3488926912 | AE71: 0 | AF71: 0 | AG71: 0 | AH71: 0 | AI71: 0 | AJ71: 0 | AK71: 0 | AL71: 1.154346678
B72: Missing | C72: 0 | D72: 0.01926678327 | E72: 0 | F72: 0 | G72: 0 | H72: 0 | I72: 0 | J72: 0 | K72: 0 | L72: 0 | M72: 0 | N72: 0 | O72: 0.02784075612 | P72: 0 | Q72: 0 | R72: 0 | S72: 0 | T72: 0 | U72: 0 | V72: 0.03762981408 | W72: 0 | X72: 0 | Y72: 0 | Z72: 0 | AA72: 0 | AB72: 0 | AC72: 0 | AD72: 0 | AE72: 0 | AF72: 0 | AG72: 0 | AH72: 0 | AI72: 0 | AJ72: 0 | AK72: 0 | AL72: 0
A108: =A1026 -> Yemen
A109: =A1034 -> 2006
A110: Use of sanitation facilities
A111: by wealth quintile and sub-national region
A112: Notes:
A113: WHO/UNICEF JMP customised wealth index excludes water,
A114: sanitation and hygiene assets.
A115: Survey used for analysis: | B115: =A1025 -> MICS06
A116: =B1030 -> 
A117: =B1029 -> 
A120: Use of sanitation facilities | C120: NATIONAL wealth index quintile | H120: URBAN wealth index quintile | M120: RURAL wealth index quintile | R120: SUB-REGIONS: | BA120: Raw numbers of respondents: | BB120: Use of sanitation facilities | BC120: NATIONAL wealth index quintile | BH120: URBAN wealth index quintile | BM120: RURAL wealth index quintile | BR120: SUB-REGIONS:
A121: Weighted percentage (used in graphs) | C121: Poorest | D121: Poor | E121: Middle | F121: Rich | G121: Richest | H121: Poorest | I121: Poor | J121: Middle | K121: Rich | L121: Richest | M121: Poorest | N121: Poor | O121: Middle | P121: Rich | Q121: Richest | R121: Abyan | S121: Aden | T121: Al Baidhah | U121: Al Dala'a | V121: Al Hodeidah | W121: Al Jawf | X121: Al Maharah | Y121: Al Mahweet | Z121: Amran | AA121: Dhamar | AB121: Hadramout | AC121: Hajjah | AD121: Ibb | AE121: Lahej | AF121: Mareb | AG121: Raimah | AH121: Sa'adah | AI121: Sana'a | AJ121: Sana'a City | AK121: Shabwah | AL121: Taiz | BA121: Sanitation data, raw numbers (weighted) | BC121: Poorest | BD121: Poor | BE121: Middle | BF121: Rich | BG121: Richest | BH121: Poorest | BI121: Poor | BJ121: Middle | BK121: Rich | BL121: Richest | BM121: Poorest | BN121: Poor | BO121: Middle | BP121: Rich | BQ121: Richest | BR121: Abyan | BS121: Aden | BT121: Al Baidhah | BU121: Al Dala'a | BV121: Al Hodeidah | BW121: Al Jawf | BX121: Al Maharah | BY121: Al Mahweet | BZ121: Amran | CA121: Dhamar | CB121: Hadramout | CC121: Hajjah | CD121: Ibb | CE121: Lahej | CF121: Mareb | CG121: Raimah | CH121: Sa'adah | CI121: Sana'a | CJ121: Sana'a City | CK121: Shabwah | CL121: Taiz
A122: Sanitation | B122: Improved | C122: 9.034388873 | D122: 28.89174325 | E122: 49.69222949 | F122: 82.62258776 | G122: 90.596425 | H122: 79.50488263 | I122: 93.77210559 | J122: 92.73879823 | K122: 96.94513611 | L122: 100 | M122: 6.078504274 | N122: 18.82146517 | O122: 33.26446163 | P122: 42.37322845 | Q122: 70.56454051 | R122: 75.09313892 | S122: 85.89251695 | T122: 37.23995184 | U122: 72.95658723 | V122: 55.84772141 | W122: 14.09822756 | X122: 97.58454106 | Y122: 14.85194721 | Z122: 39.94528162 | AA122: 26.73284853 | AB122: 67.1254381 | AC122: 21.55222558 | AD122: 46.49059254 | AE122: 45.84660452 | AF122: 45.99972579 | AG122: 9.003783755 | AH122: 43.40163726 | AI122: 52.07153974 | AJ122: 98.83512495 | AK122: 65.98033932 | AL122: 60.80052786 | BA122: Sanitation | BB122: Improved | BC122: 471.3423806 | BD122: 1506.495375 | BE122: 2593.622261 | BF122: 4313.475629 | BG122: 4725.848142 | BH122: 1274.07481 | BI122: 1507.846687 | BJ122: 1489.396451 | BK122: 1553.717642 | BL122: 1602.894995 | BM122: 219.7914702 | BN122: 679.1294247 | BO122: 1200.33575 | BP122: 1533.862135 | BQ122: 2549.734422 | BR122: 387.5438635 | BS122: 733.5256656 | BT122: 253.3306088 | BU122: 399.2962905 | BV122: 1490.996604 | BW122: 64.54431459 | BX122: 81.96257671 | BY122: 108.5687876 | BZ122: 310.6434527 | CA122: 703.9676545 | CB122: 939.4820856 | CC122: 342.7654607 | CD122: 1518.251131 | CE122: 407.7785736 | CF122: 99.16395796 | CG122: 41.25123987 | CH122: 338.9227845 | CI122: 630.9253959 | CJ122: 2310.099788 | CK122: 294.046145 | CL122: 2153.717408
B123: Not Improved | C123: 90.96561113 | D123: 71.10825675 | E123: 50.30777051 | F123: 17.37741224 | G123: 9.403574997 | H123: 20.49511737 | I123: 6.227894409 | J123: 7.261201766 | K123: 3.054863892 | L123: 0 | M123: 93.92149573 | N123: 81.17853483 | O123: 66.73553837 | P123: 57.62677155 | Q123: 29.43545949 | R123: 24.90686108 | S123: 14.10748305 | T123: 62.76004816 | U123: 27.04341277 | V123: 44.15227859 | W123: 85.90177244 | X123: 2.415458937 | Y123: 85.14805279 | Z123: 60.05471838 | AA123: 73.26715147 | AB123: 32.8745619 | AC123: 78.44777442 | AD123: 53.50940746 | AE123: 54.15339548 | AF123: 54.00027421 | AG123: 90.99621625 | AH123: 56.59836274 | AI123: 47.92846026 | AJ123: 1.164875045 | AK123: 34.01966068 | AL123: 39.19947214 | BB123: Not Improved | BC123: 4745.860324 | BD123: 3707.781113 | BE123: 2625.749636 | BF123: 907.2221802 | BG123: 490.5256187 | BH123: 328.4365927 | BI123: 100.1439596 | BJ123: 116.6157891 | BK123: 48.95960865 | BL123: 0 | BM123: 3396.08935 | BN123: 2929.141338 | BO123: 2408.12713 | BP123: 2086.022852 | BQ123: 1063.602253 | BR123: 128.5403874 | BS123: 120.4784917 | BT123: 426.9350636 | BU123: 148.0104102 | BV123: 1178.757087 | BW123: 393.2743318 | BX123: 2.028776651 | BY123: 622.4383055 | BZ123: 467.0290034 | CA123: 1929.375566 | CB123: 460.1096522 | CC123: 1247.629274 | CD123: 1747.465755 | CE123: 481.662592 | CF123: 116.4111488 | CG123: 416.9032537 | CH123: 441.9758311 | CI123: 580.7257269 | CJ123: 27.22693574 | CK123: 151.6110735 | CL123: 1388.550207
A124: Sanitation ladder | B124: Basic | C124: 7.884066995 | D124: 26.0408034 | E124: 47.52054046 | F124: 79.62505488 | G124: 89.25506527 | H124: 77.32204786 | I124: 89.8191837 | J124: 89.91994731 | K124: 96.94513611 | L124: 99.72804281 | M124: 5.390887124 | N124: 16.68758566 | O124: 30.78765858 | P124: 39.71245363 | Q124: 67.42977651 | R124: 69.60641265 | S124: 85.09412364 | T124: 37.23995184 | U124: 68.28368079 | V124: 52.07600012 | W124: 13.03601341 | X124: 95.65217391 | Y124: 13.94387944 | Z124: 33.23261848 | AA124: 26.43757648 | AB124: 63.82869355 | AC124: 18.64471449 | AD124: 44.90657292 | AE124: 41.85812739 | AF124: 41.95579385 | AG124: 9.003783755 | AH124: 41.0549116 | AI124: 50.51594016 | AJ124: 98.04102884 | AK124: 64.87591071 | AL124: 58.96033083 | BA124: Sanitation ladder | BB124: Basic | BC124: 411.3277566 | BD124: 1357.839489 | BE124: 2477.15637 | BF124: 4156.983496 | BG124: 4655.877804 | BH124: 1239.094634 | BI124: 1444.284073 | BJ124: 1444.12536 | BK124: 1553.717642 | BL124: 1598.535807 | BM124: 194.9280536 | BN124: 602.1332745 | BO124: 1110.961231 | BP124: 1434.939995 | BQ124: 2436.464845 | BR124: 359.2277333 | BS124: 726.7073535 | BT124: 253.3306088 | BU124: 373.7211604 | BV124: 1390.300935 | BW124: 59.68130014 | BX124: 80.33955539 | BY124: 101.9307478 | BZ124: 258.4409204 | CA124: 696.192128 | CB124: 893.3411213 | CC124: 296.5245574 | CD124: 1463.575647 | CE124: 372.3034161 | CF124: 90.44624737 | CG124: 41.25123987 | CH124: 320.5972363 | CI124: 612.0769561 | CJ124: 2291.539168 | CK124: 289.1241792 | CL124: 2088.532704
B125: Limited | C125: 1.150321877 | D125: 2.850939847 | E125: 2.108379472 | F125: 2.997532879 | G125: 1.341359736 | H125: 2.182834775 | I125: 3.952921893 | J125: 2.818850928 | K125: 0 | L125: 0.2719571864 | M125: 0.6876171502 | N125: 2.133879503 | O125: 2.476803054 | P125: 2.556152708 | Q125: 3.134764 | R125: 5.486726276 | S125: 0.7983933094 | T125: 0 | U125: 4.672906446 | V125: 3.771721289 | W125: 1.062214152 | X125: 1.93236715 | Y125: 0.9080677678 | Z125: 6.712663138 | AA125: 0.2952720492 | AB125: 3.296744553 | AC125: 2.907511092 | AD125: 1.476315801 | AE125: 3.988477127 | AF125: 4.043931938 | AG125: 0 | AH125: 2.346725658 | AI125: 1.555599579 | AJ125: 0.7940961114 | AK125: 1.104428613 | AL125: 1.84019703 | BB125: Limited | BC125: 60.0146241 | BD125: 148.6558861 | BE125: 109.9058552 | BF125: 156.4921334 | BG125: 69.97033731 | BH125: 34.98017616 | BI125: 63.56261432 | BJ125: 45.27109094 | BK125: 0 | BL125: 4.359188129 | BM125: 24.86341665 | BN125: 76.99615022 | BO125: 89.37451881 | BP125: 92.36210358 | BQ125: 113.2695773 | BR125: 28.3161302 | BS125: 6.818312054 | BT125: 0 | BU125: 25.5751301 | BV125: 100.6956683 | BW125: 4.863014452 | BX125: 1.623021321 | BY125: 6.638039792 | BZ125: 52.2025323 | CA125: 7.77552649 | CB125: 46.14096438 | CC125: 46.24090331 | CD125: 48.11544753 | CE125: 35.47515745 | CF125: 8.71771059 | CG125: 0 | CH125: 18.32554817 | CI125: 18.84843977 | CJ125: 18.56062063 | CK125: 4.921965837 | CL125: 65.18470344
B126: Unimproved | C126: 26.16245435 | D126: 39.92757815 | E126: 40.68274149 | F126: 16.89386503 | G126: 8.402001136 | H126: 17.21968204 | I126: 6.18348773 | J126: 7.261201766 | K126: 3.054863892 | L126: 0 | M126: 20.82181405 | N126: 35.54253162 | O126: 44.5019736 | P126: 47.57048585 | Q126: 27.31065556 | R126: 24.77754263 | S126: 14.10748305 | T126: 33.95390367 | U126: 25.76173713 | V126: 17.88145645 | W126: 24.83459126 | X126: 2.415458937 | Y126: 22.1744316 | Z126: 60.05471838 | AA126: 26.78750475 | AB126: 29.83064154 | AC126: 13.09768627 | AD126: 34.17605065 | AE126: 41.63992059 | AF126: 19.17766748 | AG126: 57.39246055 | AH126: 56.59836274 | AI126: 15.86463583 | AJ126: 1.117610557 | AK126: 33.38855862 | AL126: 31.51784475 | BB126: Unimproved | BC126: 1364.948276 | BD126: 2081.93432 | BE126: 2120.714774 | BF126: 881.9776414 | BG126: 438.2797826 | BH126: 275.9473681 | BI126: 99.42990435 | BJ126: 116.6157891 | BK126: 48.95960865 | BL126: 0 | BM126: 752.8919807 | BN126: 1282.470777 | BO126: 1605.837198 | BP126: 1718.876234 | BQ126: 986.8259337 | BR126: 127.8729953 | BS126: 120.4784917 | BT126: 230.9767511 | BU126: 140.9957135 | BV126: 477.3908434 | BW126: 113.6973896 | BX126: 2.028776651 | BY126: 162.0966679 | BZ126: 467.0290034 | CA126: 705.4069405 | CB126: 417.5071944 | CC126: 208.3049127 | CD126: 1113.851096 | CE126: 370.362595 | CF126: 41.34227713 | CG126: 262.946137 | CH126: 441.9758311 | CI126: 192.2240382 | CJ126: 26.12221021 | CK126: 148.7985216 | CL126: 1116.446407
B127: Open defecation | C127: 64.80315677 | D127: 31.18067861 | E127: 9.688338575 | F127: 0.4835472132 | G127: 1.001573861 | H127: 3.275435326 | I127: 0.04440667848 | J127: 0 | K127: 0 | L127: 0 | M127: 73.09968167 | N127: 45.63600322 | O127: 22.23356477 | P127: 10.16090782 | Q127: 2.124803928 | R127: 0.1293184413 | S127: 0 | T127: 28.80614449 | U127: 1.281675636 | V127: 26.27082214 | W127: 61.06718117 | X127: 0 | Y127: 62.97362119 | Z127: 0 | AA127: 46.47964671 | AB127: 3.043920357 | AC127: 65.35008815 | AD127: 19.44106063 | AE127: 12.51347489 | AF127: 34.82260673 | AG127: 33.60375569 | AH127: 0 | AI127: 32.06382443 | AJ127: 0.0472644887 | AK127: 0.6311020646 | AL127: 7.681627388 | BB127: Open defecation | BC127: 3380.912048 | BD127: 1625.846794 | BE127: 505.0348623 | BF127: 25.24453877 | BG127: 52.24583608 | BH127: 52.48922457 | BI127: 0.7140552366 | BJ127: 0 | BK127: 0 | BL127: 0 | BM127: 2643.197369 | BN127: 1646.670561 | BO127: 802.2899317 | BP127: 367.1466173 | BQ127: 76.77631961 | BR127: 0.6673921088 | BS127: 0 | BT127: 195.9583125 | BU127: 7.014696635 | BV127: 701.3662437 | BW127: 279.5769422 | BX127: 0 | BY127: 460.3416376 | BZ127: 0 | CA127: 1223.968626 | CB127: 42.60245783 | CC127: 1039.324361 | CD127: 633.614659 | CE127: 111.2999969 | CF127: 75.06887163 | CG127: 153.9571167 | CH127: 0 | CI127: 388.5016887 | CJ127: 1.104725526 | CK127: 2.812551907 | CL127: 272.1037992
A128: Shared among Improved Sanitation | B128: Yes | C128: 12.73270272 | D128: 9.867662959 | E128: 4.248288045 | F128: 3.627982324 | G128: 1.480587933 | H128: 2.745535498 | I128: 4.215456044 | J128: 3.039559474 | K128: 0 | L128: 0.2719571864 | M128: 11.31227551 | N128: 11.33747816 | O128: 7.445793296 | P128: 6.047402386 | Q128: 4.442406876 | R128: 7.306561365 | S128: 0.9295260376 | T128: 0 | U128: 6.405050762 | V128: 6.753581334 | W128: 7.534380809 | X128: 1.98019802 | Y128: 6.114132746 | Z128: 16.80464592 | AA128: 1.104528942 | AB128: 4.911319235 | AC128: 13.49053759 | AD128: 3.182888866 | AE128: 8.699612915 | AF128: 8.791208791 | AG128: 0 | AH128: 5.406997998 | AI128: 2.987427657 | AJ128: 0.8034553624 | AK128: 1.673875316 | AL128: 3.026613576 | BA128: Shared among improved sanitation facilities | BB128: Yes | BC128: N/A | BD128: N/A | BE128: N/A | BF128: N/A | BG128: N/A | BH128: N/A | BI128: N/A | BJ128: N/A | BK128: N/A | BL128: N/A | BM128: N/A | BN128: N/A | BO128: N/A | BP128: N/A | BQ128: N/A | BR128: N/A | BS128: N/A | BT128: N/A | BU128: N/A | BV128: N/A | BW128: N/A | BX128: N/A | BY128: N/A | BZ128: N/A | CA128: N/A | CB128: N/A | CC128: N/A | CD128: N/A | CE128: N/A | CF128: N/A | CG128: N/A | CH128: N/A | CI128: N/A | CJ128: N/A | CK128: N/A | CL128: N/A
B129: No | C129: 87.26729728 | D129: 90.13233704 | E129: 95.75171196 | F129: 96.37201768 | G129: 98.51941207 | H129: 97.2544645 | I129: 95.78454396 | J129: 96.96044053 | K129: 100 | L129: 99.72804281 | M129: 88.68772449 | N129: 88.66252184 | O129: 92.5542067 | P129: 93.95259761 | Q129: 95.55759312 | R129: 92.69343864 | S129: 99.07047396 | T129: 100 | U129: 93.59494924 | V129: 93.24641867 | W129: 92.46561919 | X129: 98.01980198 | Y129: 93.88586725 | Z129: 83.19535408 | AA129: 98.89547106 | AB129: 95.08868076 | AC129: 86.50946241 | AD129: 96.81711113 | AE129: 91.30038709 | AF129: 91.20879121 | AG129: 100 | AH129: 94.593002 | AI129: 97.01257234 | AJ129: 99.19654464 | AK129: 98.32612468 | AL129: 96.97338642 | BB129: No | BC129: N/A | BD129: N/A | BE129: N/A | BF129: N/A | BG129: N/A | BH129: N/A | BI129: N/A | BJ129: N/A | BK129: N/A | BL129: N/A | BM129: N/A | BN129: N/A | BO129: N/A | BP129: N/A | BQ129: N/A | BR129: N/A | BS129: N/A | BT129: N/A | BU129: N/A | BV129: N/A | BW129: N/A | BX129: N/A | BY129: N/A | BZ129: N/A | CA129: N/A | CB129: N/A | CC129: N/A | CD129: N/A | CE129: N/A | CF129: N/A | CG129: N/A | CH129: N/A | CI129: N/A | CJ129: N/A | CK129: N/A | CL129: N/A
A130: Manually calculated ratios | B130: Improved latrines | C130: =(C158+C159)/(C158+C159+C160)*100 -> 15.75368426 | D130: =(D158+D159)/(D158+D159+D160)*100 -> 36.69520031 | E130: 51.14122022 | F130: 60.74317495 | G130: 91.7844343 | H130: 26.12098954 | I130: 67.39630982 | J130: 100 | K130: 68.58929933 | L130: 100 | M130: 19.01270227 | N130: 27.29685526 | O130: 42.95284662 | P130: 49.37752765 | Q130: 77.61564073 | R130: 12.75297146 | S130: 50 | T130: 77.06444023 | U130: 100 | V130: 25.46662353 | W130: 0 | X130: 0 | Y130: 67.98105161 | Z130: 27.25894969 | AA130: 70.51205637 | AB130: 100 | AC130: 57.24545283 | AD130: 21.93112999 | AE130: 95.55719394 | AF130: 0 | AG130: 70.27027027 | AH130: 58.05721848 | AI130: 0 | AJ130: 16.66666667 | AK130: 50 | AL130: 34.88338165
B131: Other
B132: Other
C133: NATIONAL wealth index quintile | H133: URBAN wealth index quintile | M133: RURAL wealth index quintile | R133: SUB-REGIONS: | BA133: Raw numbers of respondents: | BB133: Use of sanitation facilities | BC133: NATIONAL wealth index quintile | BH133: URBAN wealth index quintile | BM133: RURAL wealth index quintile | BR133: SUB-REGIONS:
A134: Percentage based on weighted population | C134: Poorest | D134: Poor | E134: Middle | F134: Rich | G134: Richest | H134: Poorest | I134: Poor | J134: Middle | K134: Rich | L134: Richest | M134: Poorest | N134: Poor | O134: Middle | P134: Rich | Q134: Richest | R134: Abyan | S134: Aden | T134: Al Baidhah | U134: Al Dala'a | V134: Al Hodeidah | W134: Al Jawf | X134: Al Maharah | Y134: Al Mahweet | Z134: Amran | AA134: Dhamar | AB134: Hadramout | AC134: Hajjah | AD134: Ibb | AE134: Lahej | AF134: Mareb | AG134: Raimah | AH134: Sa'adah | AI134: Sana'a | AJ134: Sana'a City | AK134: Shabwah | AL134: Taiz | BA134: Sanitation data, raw numbers (weighted) | BC134: Poorest | BD134: Poor | BE134: Middle | BF134: Rich | BG134: Richest | BH134: Poorest | BI134: Poor | BJ134: Middle | BK134: Rich | BL134: Richest | BM134: Poorest | BN134: Poor | BO134: Middle | BP134: Rich | BQ134: Richest | BR134: Abyan | BS134: Aden | BT134: Al Baidhah | BU134: Al Dala'a | BV134: Al Hodeidah | BW134: Al Jawf | BX134: Al Maharah | BY134: Al Mahweet | BZ134: Amran | CA134: Dhamar | CB134: Hadramout | CC134: Hajjah | CD134: Ibb | CE134: Lahej | CF134: Mareb | CG134: Raimah | CH134: Sa'adah | CI134: Sana'a | CJ134: Sana'a City | CK134: Shabwah | CL134: Taiz
A135: Sanitation type | B135: Sewer connection | C135: 0 | D135: 0.3315509463 | E135: 4.168645295 | F135: 24.17745359 | G135: 36.83337927 | H135: 20.65290024 | I135: 37.80900797 | J135: 41.66244272 | K135: 53.17453142 | L135: 55.8158147 | M135: 0 | N135: 0 | O135: 0.09089792919 | P135: 0.2706903093 | Q135: 1.396647262 | R135: 23.34709653 | S135: 80.51238839 | T135: 12.59605355 | U135: 7.139320646 | V135: 8.971754791 | W135: 0 | X135: 0 | Y135: 0 | Z135: 0 | AA135: 3.406137996 | AB135: 11.99333195 | AC135: 3.881181826 | AD135: 3.067961232 | AE135: 1.107841598 | AF135: 0 | AG135: 0 | AH135: 0 | AI135: 0.4838567898 | AJ135: 54.37825264 | AK135: 0 | AL135: 15.24237453 | BA135: Sanitation type | BB135: Sewer connection | BC135: N/A | BD135: N/A | BE135: N/A | BF135: N/A | BG135: N/A | BH135: N/A | BI135: N/A | BJ135: N/A | BK135: N/A | BL135: N/A | BM135: N/A | BN135: N/A | BO135: N/A | BP135: N/A | BQ135: N/A | BR135: N/A | BS135: N/A | BT135: N/A | BU135: N/A | BV135: N/A | BW135: N/A | BX135: N/A | BY135: N/A | BZ135: N/A | CA135: N/A | CB135: N/A | CC135: N/A | CD135: N/A | CE135: N/A | CF135: N/A | CG135: N/A | CH135: N/A | CI135: N/A | CJ135: N/A | CK135: N/A | CL135: N/A
B136: Septic tank connection | C136: 0 | D136: 0.6336104751 | E136: 0.7752533557 | F136: 3.218622707 | G136: 2.017014636 | H136: 1.417474738 | I136: 3.316716527 | J136: 2.814016293 | K136: 2.593783526 | L136: 1.260556856 | M136: 0 | N136: 0.3136095124 | O136: 0.4398993202 | P136: 0.9882421935 | Q136: 2.788888116 | R136: 0 | S136: 0 | T136: 1.049671129 | U136: 4.003188584 | V136: 0.6359299816 | W136: 1.062214152 | X136: 94.20289855 | Y136: 0 | Z136: 0 | AA136: 0 | AB136: 10.55990197 | AC136: 0.6626558024 | AD136: 0.8933912216 | AE136: 0 | AF136: 0 | AG136: 0 | AH136: 1.229291756 | AI136: 1.191438306 | AJ136: 0 | AK136: 0 | AL136: 0.1465790186 | BB136: Septic tank connection | BC136: N/A | BD136: N/A | BE136: N/A | BF136: N/A | BG136: N/A | BH136: N/A | BI136: N/A | BJ136: N/A | BK136: N/A | BL136: N/A | BM136: N/A | BN136: N/A | BO136: N/A | BP136: N/A | BQ136: N/A | BR136: N/A | BS136: N/A | BT136: N/A | BU136: N/A | BV136: N/A | BW136: N/A | BX136: N/A | BY136: N/A | BZ136: N/A | CA136: N/A | CB136: N/A | CC136: N/A | CD136: N/A | CE136: N/A | CF136: N/A | CG136: N/A | CH136: N/A | CI136: N/A | CJ136: N/A | CK136: N/A | CL136: N/A
B137: Improved latrines | C137: 9.034388873 | D137: 27.92658183 | E137: 44.74833084 | F137: 55.22651147 | G137: 51.7460311 | H137: 57.43450766 | I137: 52.64638109 | J137: 48.26233922 | K137: 41.17682116 | L137: 42.92362845 | M137: 6.078504274 | N137: 18.50785565 | O137: 32.73366438 | P137: 41.11429595 | Q137: 66.37900514 | R137: 51.7460424 | S137: 5.380128564 | T137: 23.59422716 | U137: 61.814078 | V137: 46.24003664 | W137: 13.03601341 | X137: 3.381642512 | Y137: 14.85194721 | Z137: 39.94528162 | AA137: 23.32671053 | AB137: 44.57220418 | AC137: 17.00838795 | AD137: 42.52924009 | AE137: 44.73876292 | AF137: 45.99972579 | AG137: 9.003783755 | AH137: 42.1723455 | AI137: 50.39624464 | AJ137: 44.45687232 | AK137: 65.98033932 | AL137: 45.41157431 | BB137: Improved latrines | BC137: N/A | BD137: N/A | BE137: N/A | BF137: N/A | BG137: N/A | BH137: N/A | BI137: N/A | BJ137: N/A | BK137: N/A | BL137: N/A | BM137: N/A | BN137: N/A | BO137: N/A | BP137: N/A | BQ137: N/A | BR137: N/A | BS137: N/A | BT137: N/A | BU137: N/A | BV137: N/A | BW137: N/A | BX137: N/A | BY137: N/A | BZ137: N/A | CA137: N/A | CB137: N/A | CC137: N/A | CD137: N/A | CE137: N/A | CF137: N/A | CG137: N/A | CH137: N/A | CI137: N/A | CJ137: N/A | CK137: N/A | CL137: N/A
B138: Unimproved facilities | C138: 26.16245435 | D138: 39.92757815 | E138: 40.63160885 | F138: 16.89386503 | G138: 8.402001136 | H138: 17.21968204 | I138: 6.18348773 | J138: 7.261201766 | K138: 3.054863892 | L138: 0 | M138: 20.82181405 | N138: 35.54253162 | O138: 44.5019736 | P138: 47.48427756 | Q138: 27.31065556 | R138: 24.77754263 | S138: 14.10748305 | T138: 33.95390367 | U138: 25.76173713 | V138: 17.88145645 | W138: 24.83459126 | X138: 2.415458937 | Y138: 22.1744316 | Z138: 60.05471838 | AA138: 26.78750475 | AB138: 29.83064154 | AC138: 13.09768627 | AD138: 34.10739923 | AE138: 41.63992059 | AF138: 19.17766748 | AG138: 57.39246055 | AH138: 56.59836274 | AI138: 15.86463583 | AJ138: 1.117610557 | AK138: 33.38855862 | AL138: 31.51784475 | BB138: Unimproved facilities | BC138: N/A | BD138: N/A | BE138: N/A | BF138: N/A | BG138: N/A | BH138: N/A | BI138: N/A | BJ138: N/A | BK138: N/A | BL138: N/A | BM138: N/A | BN138: N/A | BO138: N/A | BP138: N/A | BQ138: N/A | BR138: N/A | BS138: N/A | BT138: N/A | BU138: N/A | BV138: N/A | BW138: N/A | BX138: N/A | BY138: N/A | BZ138: N/A | CA138: N/A | CB138: N/A | CC138: N/A | CD138: N/A | CE138: N/A | CF138: N/A | CG138: N/A | CH138: N/A | CI138: N/A | CJ138: N/A | CK138: N/A | CL138: N/A
B139: Open defecation | C139: 64.80315677 | D139: 31.18067861 | E139: 9.676161659 | F139: 0.4835472132 | G139: 1.001573861 | H139: 3.275435326 | I139: 0.04440667848 | J139: 0 | K139: 0 | L139: 0 | M139: 73.09968167 | N139: 45.63600322 | O139: 22.23356477 | P139: 10.14249399 | Q139: 2.124803928 | R139: 0.1293184413 | S139: 0 | T139: 28.80614449 | U139: 1.281675636 | V139: 26.27082214 | W139: 61.06718117 | X139: 0 | Y139: 62.97362119 | Z139: 0 | AA139: 46.47964671 | AB139: 3.043920357 | AC139: 65.35008815 | AD139: 19.40200823 | AE139: 12.51347489 | AF139: 34.82260673 | AG139: 33.60375569 | AH139: 0 | AI139: 32.06382443 | AJ139: 0.0472644887 | AK139: 0.6311020646 | AL139: 7.681627388 | BB139: Open defecation | BC139: N/A | BD139: N/A | BE139: N/A | BF139: N/A | BG139: N/A | BH139: N/A | BI139: N/A | BJ139: N/A | BK139: N/A | BL139: N/A | BM139: N/A | BN139: N/A | BO139: N/A | BP139: N/A | BQ139: N/A | BR139: N/A | BS139: N/A | BT139: N/A | BU139: N/A | BV139: N/A | BW139: N/A | BX139: N/A | BY139: N/A | BZ139: N/A | CA139: N/A | CB139: N/A | CC139: N/A | CD139: N/A | CE139: N/A | CF139: N/A | CG139: N/A | CH139: N/A | CI139: N/A | CJ139: N/A | CK139: N/A | CL139: N/A
A140: Septic tank emptying practices | B140: Not emptied/treated and disposed in situ | C140: N/A | D140: N/A | E140: N/A | F140: N/A | G140: N/A | H140: N/A | I140: N/A | J140: N/A | K140: N/A | L140: N/A | M140: N/A | N140: N/A | O140: N/A | P140: N/A | Q140: N/A | R140: N/A | S140: N/A | T140: N/A | U140: N/A | V140: N/A | W140: N/A | X140: N/A | Y140: N/A | Z140: N/A | AA140: N/A | AB140: N/A | AC140: N/A | AD140: N/A | AE140: N/A | AF140: N/A | AG140: N/A | AH140: N/A | AI140: N/A | AJ140: N/A | AK140: N/A | AL140: N/A | BA140: Septic tank emptying practices | BB140: Not emptied/treated and disposed in situ | BC140: N/A | BD140: N/A | BE140: N/A | BF140: N/A | BG140: N/A | BH140: N/A | BI140: N/A | BJ140: N/A | BK140: N/A | BL140: N/A | BM140: N/A | BN140: N/A | BO140: N/A | BP140: N/A | BQ140: N/A | BR140: N/A | BS140: N/A | BT140: N/A | BU140: N/A | BV140: N/A | BW140: N/A | BX140: N/A | BY140: N/A | BZ140: N/A | CA140: N/A | CB140: N/A | CC140: N/A | CD140: N/A | CE140: N/A | CF140: N/A | CG140: N/A | CH140: N/A | CI140: N/A | CJ140: N/A | CK140: N/A | CL140: N/A
B141: Emptied and buried on site | C141: N/A | D141: N/A | E141: N/A | F141: N/A | G141: N/A | H141: N/A | I141: N/A | J141: N/A | K141: N/A | L141: N/A | M141: N/A | N141: N/A | O141: N/A | P141: N/A | Q141: N/A | R141: N/A | S141: N/A | T141: N/A | U141: N/A | V141: N/A | W141: N/A | X141: N/A | Y141: N/A | Z141: N/A | AA141: N/A | AB141: N/A | AC141: N/A | AD141: N/A | AE141: N/A | AF141: N/A | AG141: N/A | AH141: N/A | AI141: N/A | AJ141: N/A | AK141: N/A | AL141: N/A | BB141: Emptied and buried on site | BC141: N/A | BD141: N/A | BE141: N/A | BF141: N/A | BG141: N/A | BH141: N/A | BI141: N/A | BJ141: N/A | BK141: N/A | BL141: N/A | BM141: N/A | BN141: N/A | BO141: N/A | BP141: N/A | BQ141: N/A | BR141: N/A | BS141: N/A | BT141: N/A | BU141: N/A | BV141: N/A | BW141: N/A | BX141: N/A | BY141: N/A | BZ141: N/A | CA141: N/A | CB141: N/A | CC141: N/A | CD141: N/A | CE141: N/A | CF141: N/A | CG141: N/A | CH141: N/A | CI141: N/A | CJ141: N/A | CK141: N/A | CL141: N/A
B142: Emptied and discharged locally | C142: N/A | D142: N/A | E142: N/A | F142: N/A | G142: N/A | H142: N/A | I142: N/A | J142: N/A | K142: N/A | L142: N/A | M142: N/A | N142: N/A | O142: N/A | P142: N/A | Q142: N/A | R142: N/A | S142: N/A | T142: N/A | U142: N/A | V142: N/A | W142: N/A | X142: N/A | Y142: N/A | Z142: N/A | AA142: N/A | AB142: N/A | AC142: N/A | AD142: N/A | AE142: N/A | AF142: N/A | AG142: N/A | AH142: N/A | AI142: N/A | AJ142: N/A | AK142: N/A | AL142: N/A | BB142: Emptied and discharged locally | BC142: N/A | BD142: N/A | BE142: N/A | BF142: N/A | BG142: N/A | BH142: N/A | BI142: N/A | BJ142: N/A | BK142: N/A | BL142: N/A | BM142: N/A | BN142: N/A | BO142: N/A | BP142: N/A | BQ142: N/A | BR142: N/A | BS142: N/A | BT142: N/A | BU142: N/A | BV142: N/A | BW142: N/A | BX142: N/A | BY142: N/A | BZ142: N/A | CA142: N/A | CB142: N/A | CC142: N/A | CD142: N/A | CE142: N/A | CF142: N/A | CG142: N/A | CH142: N/A | CI142: N/A | CJ142: N/A | CK142: N/A | CL142: N/A
B143: Emptied and removed offsite | C143: N/A | D143: N/A | E143: N/A | F143: N/A | G143: N/A | H143: N/A | I143: N/A | J143: N/A | K143: N/A | L143: N/A | M143: N/A | N143: N/A | O143: N/A | P143: N/A | Q143: N/A | R143: N/A | S143: N/A | T143: N/A | U143: N/A | V143: N/A | W143: N/A | X143: N/A | Y143: N/A | Z143: N/A | AA143: N/A | AB143: N/A | AC143: N/A | AD143: N/A | AE143: N/A | AF143: N/A | AG143: N/A | AH143: N/A | AI143: N/A | AJ143: N/A | AK143: N/A | AL143: N/A | BB143: Emptied and removed offsite | BC143: N/A | BD143: N/A | BE143: N/A | BF143: N/A | BG143: N/A | BH143: N/A | BI143: N/A | BJ143: N/A | BK143: N/A | BL143: N/A | BM143: N/A | BN143: N/A | BO143: N/A | BP143: N/A | BQ143: N/A | BR143: N/A | BS143: N/A | BT143: N/A | BU143: N/A | BV143: N/A | BW143: N/A | BX143: N/A | BY143: N/A | BZ143: N/A | CA143: N/A | CB143: N/A | CC143: N/A | CD143: N/A | CE143: N/A | CF143: N/A | CG143: N/A | CH143: N/A | CI143: N/A | CJ143: N/A | CK143: N/A | CL143: N/A
A144: Latrine emptying practices | B144: Not emptied/treated and disposed in situ | C144: N/A | D144: N/A | E144: N/A | F144: N/A | G144: N/A | H144: N/A | I144: N/A | J144: N/A | K144: N/A | L144: N/A | M144: N/A | N144: N/A | O144: N/A | P144: N/A | Q144: N/A | R144: N/A | S144: N/A | T144: N/A | U144: N/A | V144: N/A | W144: N/A | X144: N/A | Y144: N/A | Z144: N/A | AA144: N/A | AB144: N/A | AC144: N/A | AD144: N/A | AE144: N/A | AF144: N/A | AG144: N/A | AH144: N/A | AI144: N/A | AJ144: N/A | AK144: N/A | AL144: N/A | BA144: Latrine emptying practices | BB144: Not emptied/treated and disposed in situ | BC144: N/A | BD144: N/A | BE144: N/A | BF144: N/A | BG144: N/A | BH144: N/A | BI144: N/A | BJ144: N/A | BK144: N/A | BL144: N/A | BM144: N/A | BN144: N/A | BO144: N/A | BP144: N/A | BQ144: N/A | BR144: N/A | BS144: N/A | BT144: N/A | BU144: N/A | BV144: N/A | BW144: N/A | BX144: N/A | BY144: N/A | BZ144: N/A | CA144: N/A | CB144: N/A | CC144: N/A | CD144: N/A | CE144: N/A | CF144: N/A | CG144: N/A | CH144: N/A | CI144: N/A | CJ144: N/A | CK144: N/A | CL144: N/A
B145: Emptied and buried on site | C145: N/A | D145: N/A | E145: N/A | F145: N/A | G145: N/A | H145: N/A | I145: N/A | J145: N/A | K145: N/A | L145: N/A | M145: N/A | N145: N/A | O145: N/A | P145: N/A | Q145: N/A | R145: N/A | S145: N/A | T145: N/A | U145: N/A | V145: N/A | W145: N/A | X145: N/A | Y145: N/A | Z145: N/A | AA145: N/A | AB145: N/A | AC145: N/A | AD145: N/A | AE145: N/A | AF145: N/A | AG145: N/A | AH145: N/A | AI145: N/A | AJ145: N/A | AK145: N/A | AL145: N/A | BB145: Emptied and buried on site | BC145: N/A | BD145: N/A | BE145: N/A | BF145: N/A | BG145: N/A | BH145: N/A | BI145: N/A | BJ145: N/A | BK145: N/A | BL145: N/A | BM145: N/A | BN145: N/A | BO145: N/A | BP145: N/A | BQ145: N/A | BR145: N/A | BS145: N/A | BT145: N/A | BU145: N/A | BV145: N/A | BW145: N/A | BX145: N/A | BY145: N/A | BZ145: N/A | CA145: N/A | CB145: N/A | CC145: N/A | CD145: N/A | CE145: N/A | CF145: N/A | CG145: N/A | CH145: N/A | CI145: N/A | CJ145: N/A | CK145: N/A | CL145: N/A
B146: Emptied and discharged locally | C146: N/A | D146: N/A | E146: N/A | F146: N/A | G146: N/A | H146: N/A | I146: N/A | J146: N/A | K146: N/A | L146: N/A | M146: N/A | N146: N/A | O146: N/A | P146: N/A | Q146: N/A | R146: N/A | S146: N/A | T146: N/A | U146: N/A | V146: N/A | W146: N/A | X146: N/A | Y146: N/A | Z146: N/A | AA146: N/A | AB146: N/A | AC146: N/A | AD146: N/A | AE146: N/A | AF146: N/A | AG146: N/A | AH146: N/A | AI146: N/A | AJ146: N/A | AK146: N/A | AL146: N/A | BB146: Emptied and discharged locally | BC146: N/A | BD146: N/A | BE146: N/A | BF146: N/A | BG146: N/A | BH146: N/A | BI146: N/A | BJ146: N/A | BK146: N/A | BL146: N/A | BM146: N/A | BN146: N/A | BO146: N/A | BP146: N/A | BQ146: N/A | BR146: N/A | BS146: N/A | BT146: N/A | BU146: N/A | BV146: N/A | BW146: N/A | BX146: N/A | BY146: N/A | BZ146: N/A | CA146: N/A | CB146: N/A | CC146: N/A | CD146: N/A | CE146: N/A | CF146: N/A | CG146: N/A | CH146: N/A | CI146: N/A | CJ146: N/A | CK146: N/A | CL146: N/A
B147: Emptied and removed offsite | C147: N/A | D147: N/A | E147: N/A | F147: N/A | G147: N/A | H147: N/A | I147: N/A | J147: N/A | K147: N/A | L147: N/A | M147: N/A | N147: N/A | O147: N/A | P147: N/A | Q147: N/A | R147: N/A | S147: N/A | T147: N/A | U147: N/A | V147: N/A | W147: N/A | X147: N/A | Y147: N/A | Z147: N/A | AA147: N/A | AB147: N/A | AC147: N/A | AD147: N/A | AE147: N/A | AF147: N/A | AG147: N/A | AH147: N/A | AI147: N/A | AJ147: N/A | AK147: N/A | AL147: N/A | BB147: Emptied and removed offsite | BC147: N/A | BD147: N/A | BE147: N/A | BF147: N/A | BG147: N/A | BH147: N/A | BI147: N/A | BJ147: N/A | BK147: N/A | BL147: N/A | BM147: N/A | BN147: N/A | BO147: N/A | BP147: N/A | BQ147: N/A | BR147: N/A | BS147: N/A | BT147: N/A | BU147: N/A | BV147: N/A | BW147: N/A | BX147: N/A | BY147: N/A | BZ147: N/A | CA147: N/A | CB147: N/A | CC147: N/A | CD147: N/A | CE147: N/A | CF147: N/A | CG147: N/A | CH147: N/A | CI147: N/A | CJ147: N/A | CK147: N/A | CL147: N/A
A148: Shared among improved sanitation facilities | B148: Yes | C148: 1.150321877 | D148: 2.850939847 | E148: 2.105729528 | F148: 2.997532879 | G148: 1.341359736 | H148: 2.182834775 | I148: 3.952921893 | J148: 2.818850928 | K148: 0 | L148: 0.2719571864 | M148: 0.6876171502 | N148: 2.133879503 | O148: 2.476803054 | P148: 2.551520391 | Q148: 3.134764 | R148: 5.486726276 | S148: 0.7983933094 | T148: 0 | U148: 4.672906446 | V148: 3.771721289 | W148: 1.062214152 | X148: 1.93236715 | Y148: 0.9080677678 | Z148: 6.712663138 | AA148: 0.2952720492 | AB148: 3.296744553 | AC148: 2.907511092 | AD148: 1.473350239 | AE148: 3.988477127 | AF148: 4.043931938 | AG148: 0 | AH148: 2.346725658 | AI148: 1.555599579 | AJ148: 0.7940961114 | AK148: 1.104428613 | AL148: 1.84019703 | BA148: Shared among improved sanitation facilities | BB148: Yes | BC148: N/A | BD148: N/A | BE148: N/A | BF148: N/A | BG148: N/A | BH148: N/A | BI148: N/A | BJ148: N/A | BK148: N/A | BL148: N/A | BM148: N/A | BN148: N/A | BO148: N/A | BP148: N/A | BQ148: N/A | BR148: N/A | BS148: N/A | BT148: N/A | BU148: N/A | BV148: N/A | BW148: N/A | BX148: N/A | BY148: N/A | BZ148: N/A | CA148: N/A | CB148: N/A | CC148: N/A | CD148: N/A | CE148: N/A | CF148: N/A | CG148: N/A | CH148: N/A | CI148: N/A | CJ148: N/A | CK148: N/A | CL148: N/A
B149: No | C149: 7.884066995 | D149: 26.0408034 | E149: 47.46081365 | F149: 79.62505488 | G149: 89.25506527 | H149: 77.32204786 | I149: 89.8191837 | J149: 89.91994731 | K149: 96.94513611 | L149: 99.72804281 | M149: 5.390887124 | N149: 16.68758566 | O149: 30.78765858 | P149: 39.64048584 | Q149: 67.42977651 | R149: 69.60641265 | S149: 85.09412364 | T149: 37.23995184 | U149: 68.28368079 | V149: 52.07600012 | W149: 13.03601341 | X149: 95.65217391 | Y149: 13.94387944 | Z149: 33.23261848 | AA149: 26.43757648 | AB149: 63.82869355 | AC149: 18.64471449 | AD149: 44.81636647 | AE149: 41.85812739 | AF149: 41.95579385 | AG149: 9.003783755 | AH149: 41.0549116 | AI149: 50.51594016 | AJ149: 98.04102884 | AK149: 64.87591071 | AL149: 58.96033083 | BB149: No | BC149: N/A | BD149: N/A | BE149: N/A | BF149: N/A | BG149: N/A | BH149: N/A | BI149: N/A | BJ149: N/A | BK149: N/A | BL149: N/A | BM149: N/A | BN149: N/A | BO149: N/A | BP149: N/A | BQ149: N/A | BR149: N/A | BS149: N/A | BT149: N/A | BU149: N/A | BV149: N/A | BW149: N/A | BX149: N/A | BY149: N/A | BZ149: N/A | CA149: N/A | CB149: N/A | CC149: N/A | CD149: N/A | CE149: N/A | CF149: N/A | CG149: N/A | CH149: N/A | CI149: N/A | CJ149: N/A | CK149: N/A | CL149: N/A
B150: DK/missing | C150: 90.96561113 | D150: 71.10825675 | E150: 50.43345682 | F150: 17.37741224 | G150: 9.403574997 | H150: 20.49511737 | I150: 6.227894409 | J150: 7.261201766 | K150: 3.054863892 | L150: 0 | M150: 93.92149573 | N150: 81.17853483 | O150: 66.73553837 | P150: 57.80799377 | Q150: 29.43545949 | R150: 24.90686108 | S150: 14.10748305 | T150: 62.76004816 | U150: 27.04341277 | V150: 44.15227859 | W150: 85.90177244 | X150: 2.415458937 | Y150: 85.14805279 | Z150: 60.05471838 | AA150: 73.26715147 | AB150: 32.8745619 | AC150: 78.44777442 | AD150: 53.7102833 | AE150: 54.15339548 | AF150: 54.00027421 | AG150: 90.99621625 | AH150: 56.59836274 | AI150: 47.92846026 | AJ150: 1.164875045 | AK150: 34.01966068 | AL150: 39.19947214 | BB150: DK/missing | BC150: N/A | BD150: N/A | BE150: N/A | BF150: N/A | BG150: N/A | BH150: N/A | BI150: N/A | BJ150: N/A | BK150: N/A | BL150: N/A | BM150: N/A | BN150: N/A | BO150: N/A | BP150: N/A | BQ150: N/A | BR150: N/A | BS150: N/A | BT150: N/A | BU150: N/A | BV150: N/A | BW150: N/A | BX150: N/A | BY150: N/A | BZ150: N/A | CA150: N/A | CB150: N/A | CC150: N/A | CD150: N/A | CE150: N/A | CF150: N/A | CG150: N/A | CH150: N/A | CI150: N/A | CJ150: N/A | CK150: N/A | CL150: N/A
A151: Shared among all sanitation facilities | B151: Yes | C151: 8.196478509 | D151: 9.091856291 | E151: 6.548197127 | F151: 4.04826838 | G151: 1.650864983 | H151: 3.042313081 | I151: 4.073895428 | J151: 2.818850928 | K151: 0 | L151: 0.2719571864 | M151: 6.851642386 | N151: 9.119087926 | O151: 8.303081709 | P151: 7.986806616 | Q151: 5.102970308 | R151: 5.493830813 | S151: 0.7983933094 | T151: 0 | U151: 10.57543656 | V151: 7.021564123 | W151: 2.728325829 | X151: 1.93236715 | Y151: 2.452488731 | Z151: 18.26896778 | AA151: 3.702889857 | AB151: 6.353293929 | AC151: 13.14419546 | AD151: 4.663141509 | AE151: 6.307082325 | AF151: 16.27053858 | AG151: 17.18117095 | AH151: 5.469191349 | AI151: 2.28979563 | AJ151: 0.7944716143 | AK151: 6.832159774 | AL151: 3.89022236 | BA151: Shared among all sanitation facilities | BB151: Yes | BC151: N/A | BD151: N/A | BE151: N/A | BF151: N/A | BG151: N/A | BH151: N/A | BI151: N/A | BJ151: N/A | BK151: N/A | BL151: N/A | BM151: N/A | BN151: N/A | BO151: N/A | BP151: N/A | BQ151: N/A | BR151: N/A | BS151: N/A | BT151: N/A | BU151: N/A | BV151: N/A | BW151: N/A | BX151: N/A | BY151: N/A | BZ151: N/A | CA151: N/A | CB151: N/A | CC151: N/A | CD151: N/A | CE151: N/A | CF151: N/A | CG151: N/A | CH151: N/A | CI151: N/A | CJ151: N/A | CK151: N/A | CL151: N/A
B152: No | C152: 79.34791222 | D152: 89.16582208 | E152: 92.64854603 | F152: 95.95173162 | G152: 98.31057323 | H152: 96.57226404 | I152: 95.92610457 | J152: 97.18114907 | K152: 99.87574666 | L152: 99.72804281 | M152: 72.60120357 | N152: 88.48206212 | O152: 90.33013071 | P152: 90.84899786 | Q152: 94.89702969 | R152: 94.50616919 | S152: 98.26888054 | T152: 100 | U152: 89.42456344 | V152: 89.6596096 | W152: 97.27167417 | X152: 98.06763285 | Y152: 97.54751127 | Z152: 54.25031732 | AA152: 94.7664857 | AB152: 93.64670607 | AC152: 86.85580454 | AD152: 94.94158931 | AE152: 93.69291767 | AF152: 83.72946142 | AG152: 82.81882905 | AH152: 94.53080865 | AI152: 97.71020437 | AJ152: 99.20552839 | AK152: 93.16784023 | AL152: 95.73903661 | BB152: No | BC152: N/A | BD152: N/A | BE152: N/A | BF152: N/A | BG152: N/A | BH152: N/A | BI152: N/A | BJ152: N/A | BK152: N/A | BL152: N/A | BM152: N/A | BN152: N/A | BO152: N/A | BP152: N/A | BQ152: N/A | BR152: N/A | BS152: N/A | BT152: N/A | BU152: N/A | BV152: N/A | BW152: N/A | BX152: N/A | BY152: N/A | BZ152: N/A | CA152: N/A | CB152: N/A | CC152: N/A | CD152: N/A | CE152: N/A | CF152: N/A | CG152: N/A | CH152: N/A | CI152: N/A | CJ152: N/A | CK152: N/A | CL152: N/A
A153: Kind of toilet facility | B153: Flush to piped sewer system | C153: 0 | D153: 0.3315509463 | E153: 4.168645295 | F153: 24.17745359 | G153: 36.83337927 | H153: 20.65290024 | I153: 37.80900797 | J153: 41.66244272 | K153: 53.17453142 | L153: 55.8158147 | M153: 0 | N153: 0 | O153: 0.09089792919 | P153: 0.2706903093 | Q153: 1.396647262 | R153: 23.34709653 | S153: 80.51238839 | T153: 12.59605355 | U153: 7.139320646 | V153: 8.971754791 | W153: 0 | X153: 0 | Y153: 0 | Z153: 0 | AA153: 3.406137996 | AB153: 11.99333195 | AC153: 3.881181826 | AD153: 3.067961232 | AE153: 1.107841598 | AF153: 0 | AG153: 0 | AH153: 0 | AI153: 0.4838567898 | AJ153: 54.37825264 | AK153: 0 | AL153: 15.24237453 | BA153: Kind of toilet facility | BB153: Flush to piped sewer system | BC153: 0 | BD153: 17.28798304 | BE153: 217.577101 | BF153: 1262.23179 | BG153: 1921.366731 | BH153: 330.9650812 | BI153: 607.9653119 | BJ153: 669.1039297 | BK153: 852.2161184 | BL153: 894.6689001 | BM153: 0 | BN153: 0 | BO153: 3.280018033 | BP153: 9.798677867 | BQ153: 50.46556773 | BR153: 120.4906882 | BS153: 687.579144 | BT153: 85.6866284 | BU153: 39.07398028 | BV153: 239.5237547 | BW153: 0 | BX153: 0 | BY153: 0 | BZ153: 0 | CA153: 89.69530402 | CB153: 167.8576831 | CC153: 61.72611138 | CD153: 100.190928 | CE153: 9.85359922 | CF153: 0 | CG153: 0 | CH153: 0 | CI153: 5.862656227 | CJ153: 1270.997431 | CK153: 0 | CL153: 539.9256965
B154: Flush to septic tank | C154: 0 | D154: 0.6336104751 | E154: 0.7752533557 | F154: 3.218622707 | G154: 2.017014636 | H154: 1.417474738 | I154: 3.316716527 | J154: 2.814016293 | K154: 2.593783526 | L154: 1.260556856 | M154: 0 | N154: 0.3136095124 | O154: 0.4398993202 | P154: 0.9882421935 | Q154: 2.788888116 | R154: 0 | S154: 0 | T154: 1.049671129 | U154: 4.003188584 | V154: 0.6359299816 | W154: 1.062214152 | X154: 94.20289855 | Y154: 0 | Z154: 0 | AA154: 0 | AB154: 10.55990197 | AC154: 0.6626558024 | AD154: 0.8933912216 | AE154: 0 | AF154: 0 | AG154: 0 | AH154: 1.229291756 | AI154: 1.191438306 | AJ154: 0 | AK154: 0 | AL154: 0.1465790186 | BB154: Flush to septic tank | BC154: 0 | BD154: 33.03820203 | BE154: 40.46335577 | BF154: 168.0345652 | BG154: 105.2150222 | BH154: 22.7151943 | BI154: 53.33249154 | BJ154: 45.19344611 | BK154: 41.56997852 | BL154: 20.20540276 | BM154: 0 | BN154: 11.31588034 | BO154: 15.87360368 | BP154: 35.77323079 | BQ154: 100.7719171 | BR154: 0 | BS154: 0 | BT154: 7.140552366 | BU154: 21.90971936 | BV154: 16.97776415 | BW154: 4.863014452 | BX154: 79.1222894 | BY154: 0 | BZ154: 0 | CA154: 0 | CB154: 147.7955155 | CC154: 10.53884299 | CD154: 29.17562798 | CE154: 0 | CF154: 0 | CG154: 0 | CH154: 9.599522302 | CI154: 14.43607561 | CJ154: 0 | CK154: 0 | CL154: 5.192221104
B155: Flush to pit (latrine) | C155: 7.621278881 | D155: 21.43255526 | E155: 37.54853676 | F155: 51.75072038 | G155: 48.19722845 | H155: 54.353958 | I155: 51.08295392 | J155: 46.46631256 | K155: 39.49337136 | L155: 42.61508588 | M155: 4.910471663 | N155: 14.06239377 | O155: 25.31035606 | P155: 33.38160661 | Q155: 58.93414847 | R155: 50.2176303 | S155: 5.380128564 | T155: 16.44671597 | U155: 51.86313683 | V155: 42.2591558 | W155: 13.03601341 | X155: 3.381642512 | Y155: 5.180244922 | Z155: 38.13853824 | AA155: 20.98299728 | AB155: 37.91498114 | AC155: 11.66616343 | AD155: 38.96364913 | AE155: 25.08758015 | AF155: 41.95579385 | AG155: 5.777470468 | AH155: 28.85125941 | AI155: 50.39624464 | AJ155: 44.42081265 | AK155: 65.98033932 | AL155: 39.95594369 | BB155: Flush to pit (latrine) | BC155: 397.6175679 | BD155: 1117.55269 | BE155: 1959.797775 | BF155: 2701.748725 | BG155: 2514.147578 | BH155: 871.0283747 | BI155: 821.4091211 | BJ155: 746.2546673 | BK155: 632.9512786 | BL155: 683.0750786 | BM155: 177.5568031 | BN155: 507.4092429 | BO155: 913.3148033 | BP155: 1208.375766 | BQ155: 2129.489201 | BR155: 259.1652811 | BS155: 45.9465216 | BT155: 111.881363 | BU155: 283.8504231 | BV155: 1128.215372 | BW155: 59.68130014 | BX155: 2.840287312 | BY155: 37.86795781 | BZ155: 296.5929071 | CA155: 552.5543365 | CB155: 530.6549434 | CC155: 185.5380489 | CD155: 1272.442469 | CE155: 223.1392653 | CF155: 90.44624737 | CG155: 26.46974057 | CH155: 225.2990853 | CI155: 610.626664 | CJ155: 1038.259525 | CK155: 294.046145 | CL155: 1415.346453
B156: Flush to somewhere else | C156: 12.7248021 | D156: 26.16426958 | E156: 30.54171634 | F156: 14.17683492 | G156: 7.58988392 | H156: 10.19224426 | I156: 4.990265393 | J156: 7.261201766 | K156: 2.283922386 | L156: 0 | M156: 9.410120986 | N156: 21.18781048 | O156: 31.11606124 | P156: 35.56952639 | Q156: 23.42250302 | R156: 14.32120197 | S156: 13.40793843 | T156: 31.82669468 | U156: 24.4800615 | V156: 3.166026119 | W156: 24.11077027 | X156: 0 | Y156: 18.00981525 | Z156: 25.51015999 | AA156: 25.80737047 | AB156: 29.83064154 | AC156: 6.638612522 | AD156: 21.97225172 | AE156: 38.17921534 | AF156: 8.579482818 | AG156: 56.02748186 | AH156: 38.25460639 | AI156: 13.7558447 | AJ156: 0.9373122053 | AK156: 33.38855862 | AL156: 14.77376217 | BB156: Flush to somewhere else | BC156: 663.8787193 | BD156: 1364.277357 | BE156: 1594.085759 | BF156: 740.1297101 | BG156: 395.9167132 | BH156: 163.3318765 | BI156: 80.24300078 | BJ156: 116.6157891 | BK156: 36.60390452 | BL156: 0 | BM156: 340.2587599 | BN156: 764.5135709 | BO156: 1122.81152 | BP156: 1287.575945 | BQ156: 846.333892 | BR156: 73.90946789 | BS156: 114.5043516 | BT156: 216.5060785 | BU156: 133.9810169 | BV156: 84.52509916 | BW156: 110.3836021 | BX156: 0 | BY156: 131.6530269 | BZ156: 198.3854877 | CA156: 679.5966406 | CB156: 417.5071944 | CC156: 105.580144 | CD156: 717.5515345 | CE156: 339.5816579 | CF156: 18.49522924 | CG156: 256.6924258 | CH156: 298.7296917 | CI156: 166.6728468 | CJ156: 21.90804866 | CK156: 148.7985216 | CL156: 523.3261929
B157: Flush to unknown place/not sure/DK where | C157: 0.1908505429 | D157: 0.9791526995 | E157: 0.6119491012 | F157: 0.6987836632 | G157: 0 | H157: 0.7277060095 | I157: 0 | J157: 0.6798385807 | K157: 0 | L157: 0 | M157: 0.2753702399 | N157: 0.7121300106 | O157: 0.8359038306 | P157: 0.7496583485 | Q157: 0.3847280795 | R157: 0 | S157: 0 | T157: 0 | U157: 2.130719716 | V157: 0.2281341712 | W157: 0 | X157: 0 | Y157: 3.178237187 | Z157: 0 | AA157: 0 | AB157: 0 | AC157: 0.4189664162 | AD157: 0.3324260019 | AE157: 1.355680558 | AF157: 4.043931938 | AG157: 0 | AH157: 0 | AI157: 0 | AJ157: 0 | AK157: 0 | AL157: 1.415865259 | BB157: Flush to unknown place/not sure/DK where | BC157: 9.957059688 | BD157: 51.055729 | BE157: 31.93989941 | BF157: 36.4813834 | BG157: 0 | BH157: 11.66157178 | BI157: 0 | BJ157: 10.91829082 | BK157: 0 | BL157: 0 | BM157: 9.957059688 | BN157: 25.69557896 | BO157: 30.16327944 | BP157: 27.13677001 | BQ157: 13.9015208 | BR157: 0 | BS157: 0 | BT157: 0 | BU157: 11.66157178 | BV157: 6.090620456 | BW157: 0 | BX157: 0 | BY157: 23.23313927 | BZ157: 0 | CA157: 0 | CB157: 0 | CC157: 6.663219822 | CD157: 10.85609207 | CE157: 12.05798096 | CF157: 8.71771059 | CG157: 0 | CH157: 0 | CI157: 0 | CJ157: 0 | CK157: 0 | CL157: 50.15373654
B158: Ventilated Improved Pit latrine (VIP) | C158: 0.3070962273 | D158: 3.015071276 | E158: 4.497590018 | F158: 1.832587114 | G158: 3.046338608 | H158: 1.619709392 | I158: 0.1845388847 | J158: 0.733431738 | K158: 0.8811301369 | L158: 0.3085425657 | M158: 0.265857756 | N158: 1.352985605 | O158: 4.224323115 | P158: 4.728335087 | Q158: 6.109826065 | R158: 1.5284121 | S158: 0 | T158: 4.105242214 | U158: 6.045033216 | V158: 2.276564359 | W158: 0 | X158: 0 | Y158: 6.493465101 | Z158: 0 | AA158: 0.1234863713 | AB158: 6.232915854 | AC158: 2.451758577 | AD158: 3.190864036 | AE158: 17.4854774 | AF158: 0 | AG158: 1.861334588 | AH158: 0.1536614695 | AI158: 0 | AJ158: 0.03605967027 | AK158: 0 | AL158: 2.417674251 | BB158: Ventilated Improved Pit latrine (VIP) | BC158: 16.02183268 | BD158: 157.2141527 | BE158: 234.7459494 | BF158: 95.67383532 | BG158: 158.9084078 | BH158: 25.95602769 | BI158: 2.967368006 | BJ158: 11.77900349 | BK158: 14.12167226 | BL158: 4.945613343 | BM158: 9.613099608 | BN158: 48.81938399 | BO158: 152.4331315 | BP158: 171.1602919 | BQ158: 220.768586 | BR158: 7.887894138 | BS158: 0 | BT158: 27.92655355 | BU158: 33.08487185 | BV158: 60.77866099 | BW158: 0 | BX158: 0 | BY158: 47.46769047 | BZ158: 0 | CA158: 3.251819987 | CB158: 87.23537532 | CC158: 38.9926393 | CD158: 104.2045856 | CE158: 155.523034 | CF158: 0 | CG158: 8.527788057 | CH158: 1.199940288 | CI158: 0 | CJ158: 0.8428323099 | CK158: 0 | CL158: 85.640492
B159: Pit latrine with slab | C159: 0.9151632215 | D159: 2.499802592 | E159: 2.090254957 | F159: 0.9444203065 | G159: 0.502464043 | H159: 0.7331342532 | I159: 1.378888291 | J159: 0.3827563415 | K159: 0.8023196613 | L159: 0 | M159: 0.6268046148 | N159: 2.380346269 | O159: 2.363081371 | P159: 2.254695905 | Q159: 0.9503025235 | R159: 0 | S159: 0 | T159: 3.042268973 | U159: 1.775188239 | V159: 1.476182303 | W159: 0 | X159: 0 | Y159: 0 | Z159: 1.806743376 | AA159: 2.22022688 | AB159: 0.4243071889 | AC159: 2.471499529 | AD159: 0.04230091839 | AE159: 0.8100248095 | AF159: 0 | AG159: 1.364978698 | AH159: 13.16742462 | AI159: 0 | AJ159: 0 | AK159: 0 | AL159: 1.622091109 | BB159: Pit latrine with slab | BC159: 47.74592035 | BD159: 130.3466188 | BE159: 109.0981798 | BF159: 49.30533026 | BG159: 26.21040249 | BH159: 11.74856 | BI159: 22.17239475 | BJ159: 6.147113694 | BK159: 12.85859469 | BL159: 0 | BM159: 22.66450785 | BN159: 85.88933847 | BO159: 85.2709141 | BP159: 81.61739857 | BQ159: 34.33762961 | BR159: 0 | BS159: 0 | BT159: 20.69551149 | BU159: 9.71572418 | BV159: 39.41043153 | BW159: 0 | BX159: 0 | BY159: 0 | BZ159: 14.05054559 | CA159: 58.46619402 | CB159: 5.93856836 | CC159: 39.30659837 | CD159: 1.381428235 | CE159: 7.204694107 | CF159: 0 | CG159: 6.253711242 | CH159: 102.8242366 | CI159: 0 | CJ159: 0 | CK159: 0 | CL159: 57.45880803
B160: Pit latrine without slab/open pit | C160: 6.536303114 | D160: 9.513995908 | E160: 6.29382845 | F160: 1.794711827 | G160: 0.3176510435 | H160: 6.654639175 | I160: 0.7563247216 | J160: 0 | K160: 0.7709415057 | L160: 0 | M160: 3.80242178 | N160: 9.943451911 | O160: 8.748958538 | P160: 7.15909261 | Q160: 2.036141857 | R160: 10.45634067 | S160: 0 | T160: 2.12720899 | U160: 0 | V160: 10.98319451 | W160: 0.723820993 | X160: 2.415458937 | Y160: 3.058409939 | Z160: 4.821330694 | AA160: 0.9801342888 | AB160: 0 | AC160: 3.67700246 | AD160: 11.50918967 | AE160: 0.8506253135 | AF160: 6.560780979 | AG160: 1.364978698 | AH160: 9.623668138 | AI160: 1.189530707 | AJ160: 0.1802983514 | AK160: 0 | AL160: 7.541007973 | BB160: Pit latrine without slab/open pit | BC160: 341.0121829 | BD160: 496.0860517 | BE160: 328.4983134 | BF160: 93.69648103 | BG160: 16.56986568 | BH160: 106.6413516 | BI160: 12.16163078 | BJ160: 0 | BK160: 12.35570413 | BL160: 0 | BM160: 137.4910399 | BN160: 358.7866681 | BO160: 315.7029212 | BP160: 259.1509186 | BQ160: 73.57266048 | BR160: 53.9635274 | BS160: 0 | BT160: 14.47067254 | BU160: 0 | BV160: 293.2242408 | BW160: 3.313787472 | BX160: 2.028776651 | BY160: 22.35719359 | BZ160: 37.49416082 | CA160: 25.81029985 | CB160: 0 | CC160: 58.4788535 | CD160: 375.8575503 | CE160: 7.565811703 | CF160: 14.1434106 | CG160: 6.253711242 | CH160: 75.15109125 | CI160: 14.41296216 | CJ160: 4.214161549 | CK160: 0 | CL160: 267.1226832
B161: Bucket | C161: 0.5431937858 | D161: 0.2997353582 | E161: 0.6397726433 | F161: 0.2133475197 | G161: 0.2148485223 | H161: 0 | I161: 0 | J161: 0 | K161: 0 | L161: 0 | M161: 0.3144887994 | N161: 0.4702524235 | O161: 0.8961723794 | P161: 0.4608736539 | Q161: 0.6184181889 | R161: 0 | S161: 0 | T161: 0 | U161: 0 | V161: 0 | W161: 0 | X161: 0 | Y161: 1.106206416 | Z161: 0 | AA161: 0 | AB161: 0 | AC161: 2.782071286 | AD161: 0.2967500615 | AE161: 2.610079942 | AF161: 0 | AG161: 0 | AH161: 0 | AI161: 0.919260427 | AJ161: 0 | AK161: 0 | AL161: 0.09399238338 | BB161: Bucket | BC161: 28.33952089 | BD161: 15.62903031 | BE161: 33.39211355 | BF161: 11.13822929 | BG161: 11.20730194 | BH161: 0 | BI161: 0 | BJ161: 0 | BK161: 0 | BL161: 0 | BM161: 11.37154018 | BN161: 16.96798071 | BO161: 32.33804765 | BP161: 16.68309621 | BQ161: 22.34553123 | BR161: 0 | BS161: 0 | BT161: 0 | BU161: 0 | BV161: 0 | BW161: 0 | BX161: 0 | BY161: 8.086447368 | BZ161: 0 | CA161: 0 | CB161: 0 | CC161: 44.24591524 | CD161: 9.691016867 | CE161: 23.21512545 | CF161: 0 | CG161: 0 | CH161: 0 | CI161: 11.13822929 | CJ161: 0 | CK161: 0 | CL161: 3.329461756
B162: No facilities or bush or field | C162: 64.80315677 | D162: 31.18067861 | E162: 9.676161659 | F162: 0.4835472132 | G162: 1.001573861 | H162: 3.275435326 | I162: 0.04440667848 | J162: 0 | K162: 0 | L162: 0 | M162: 73.09968167 | N162: 45.63600322 | O162: 22.23356477 | P162: 10.14249399 | Q162: 2.124803928 | R162: 0.1293184413 | S162: 0 | T162: 28.80614449 | U162: 1.281675636 | V162: 26.27082214 | W162: 61.06718117 | X162: 0 | Y162: 62.97362119 | Z162: 0 | AA162: 46.47964671 | AB162: 3.043920357 | AC162: 65.35008815 | AD162: 19.40200823 | AE162: 12.51347489 | AF162: 34.82260673 | AG162: 33.60375569 | AH162: 0 | AI162: 32.06382443 | AJ162: 0.0472644887 | AK162: 0.6311020646 | AL162: 7.681627388 | BB162: No facilities or bush or field | BC162: 3380.912048 | BD162: 1625.846794 | BE162: 505.0348623 | BF162: 25.24453877 | BG162: 52.24583608 | BH162: 52.48922457 | BI162: 0.7140552366 | BJ162: 0 | BK162: 0 | BL162: 0 | BM162: 2643.197369 | BN162: 1646.670561 | BO162: 802.2899317 | BP162: 367.1466173 | BQ162: 76.77631961 | BR162: 0.6673921088 | BS162: 0 | BT162: 195.9583125 | BU162: 7.014696635 | BV162: 701.3662437 | BW162: 279.5769422 | BX162: 0 | BY162: 460.3416376 | BZ162: 0 | CA162: 1223.968626 | CB162: 42.60245783 | CC162: 1039.324361 | CD162: 633.614659 | CE162: 111.2999969 | CF162: 75.06887163 | CG162: 153.9571167 | CH162: 0 | CI162: 388.5016887 | CJ162: 1.104725526 | CK162: 2.812551907 | CL162: 272.1037992
B163: Other | C163: 6.358155355 | D163: 3.859392623 | E163: 3.156291422 | F163: 0.7089707613 | G163: 0.2796176499 | H163: 0.3727986008 | I163: 0.4368976155 | J163: 0 | K163: 0 | L163: 0 | M163: 7.294782486 | N163: 3.9410168 | O163: 3.610463382 | P163: 4.294784906 | Q163: 1.233592492 | R163: 0 | S163: 0.699544614 | T163: 0 | U163: 1.281675636 | V163: 3.556096775 | W163: 0 | X163: 0 | Y163: 0 | Z163: 29.7232277 | AA163: 0 | AB163: 0 | AC163: 0 | AD163: 0.3292077797 | AE163: 0 | AF163: 4.037403679 | AG163: 0 | AH163: 8.720088209 | AI163: 0 | AJ163: 0 | AK163: 0 | AL163: 9.109082223 | BB163: Other | BC163: 331.7178532 | BD163: 201.2394021 | BE163: 164.7385875 | BF163: 37.01322101 | BG163: 14.58590172 | BH163: 5.974140086 | BI163: 7.025272793 | BJ163: 0 | BK163: 0 | BL163: 0 | BM163: 263.7706408 | BN163: 142.2025569 | BO163: 130.2822309 | BP163: 155.466274 | BQ163: 44.57384993 | BR163: 0 | BS163: 5.974140086 | BT163: 0 | BU163: 7.014696635 | BV163: 94.93902489 | BW163: 0 | BX163: 0 | BY163: 0 | BZ163: 231.1493549 | CA163: 0 | CB163: 0 | CC163: 0 | CD163: 10.75099405 | CE163: 0 | CF163: 8.703637291 | CG163: 0 | CH163: 68.0950481 | CI163: 0 | CJ163: 0 | CK163: 0 | CL163: 322.6680695
B164: Missing | C164: 0 | D164: 0.09018467971 | E164: 0 | F164: 0 | G164: 0 | H164: 0 | I164: 0 | J164: 0 | K164: 0 | L164: 0 | M164: 0 | N164: 0 | O164: 0.1303180525 | P164: 0 | Q164: 0 | R164: 0 | S164: 0 | T164: 0 | U164: 0 | V164: 0.1761390411 | W164: 0 | X164: 0 | Y164: 0 | Z164: 0 | AA164: 0 | AB164: 0 | AC164: 0 | AD164: 0 | AE164: 0 | AF164: 0 | AG164: 0 | AH164: 0 | AI164: 0 | AJ164: 0 | AK164: 0 | AL164: 0 | BB164: Missing | BC164: 0 | BD164: 4.702478551 | BE164: 0 | BF164: 0 | BG164: 0 | BH164: 0 | BI164: 0 | BJ164: 0 | BK164: 0 | BL164: 0 | BM164: 0 | BN164: 0 | BO164: 4.702478551 | BP164: 0 | BQ164: 0 | BR164: 0 | BS164: 0 | BT164: 0 | BU164: 0 | BV164: 4.702478551 | BW164: 0 | BX164: 0 | BY164: 0 | BZ164: 0 | CA164: 0 | CB164: 0 | CC164: 0 | CD164: 0 | CE164: 0 | CF164: 0 | CG164: 0 | CH164: 0 | CI164: 0 | CJ164: 0 | CK164: 0 | CL164: 0
BB165: Total | BC165: 5217.202705 | BD165: 5214.276489 | BE165: 5219.371897 | BF165: 5220.69781 | BG165: 5216.37376 | BH165: 1602.511402 | BI165: 1607.990647 | BJ165: 1606.01224 | BK165: 1602.677251 | BL165: 1602.894995 | BM165: 3615.88082 | BN165: 3608.270763 | BO165: 3608.46288 | BP165: 3619.884987 | BQ165: 3613.336676 | BR165: 516.0842509 | BS165: 854.0041573 | BT165: 680.2656724 | BU165: 547.3067007 | BV165: 2669.753691 | BW165: 457.8186464 | BX165: 83.99135336 | BY165: 731.0070931 | BZ165: 777.6724561 | CA165: 2633.343221 | CB165: 1399.591738 | CC165: 1590.394734 | CD165: 3265.716885 | CE165: 889.4411655 | CF165: 215.5751067 | CG165: 458.1544936 | CH165: 780.8986155 | CI165: 1211.651123 | CJ165: 2337.326724 | CK165: 445.6572185 | CL165: 3542.267614
A208: =A1026 -> Yemen
A209: =A1034 -> 2006
A210: Access to hygiene facilities
A211: by wealth quintile and sub-national region
A212: Notes:
A213: WHO/UNICEF JMP customised wealth index excludes water,
A214: sanitation and hygiene assets.
A215: Survey used for analysis: | B215: =A1025 -> MICS06
A220: Access to handwashing | C220: NATIONAL wealth index quintile | H220: URBAN wealth index quintile | M220: RURAL wealth index quintile | R220: SUB-REGIONS: | BA220: Raw numbers of respondents: | BB220: Access to handwashing | BC220: NATIONAL wealth index quintile | BH220: URBAN wealth index quintile | BM220: RURAL wealth index quintile | BR220: SUB-REGIONS:
A221: Weighted percentage (used in graphs) | C221: Poorest | D221: Poor | E221: Middle | F221: Rich | G221: Richest | H221: Poorest | I221: Poor | J221: Middle | K221: Rich | L221: Richest | M221: Poorest | N221: Poor | O221: Middle | P221: Rich | Q221: Richest | R221: Abyan | S221: Aden | T221: Al Baidhah | U221: Al Dala'a | V221: Al Hodeidah | W221: Al Jawf | X221: Al Maharah | Y221: Al Mahweet | Z221: Amran | AA221: Dhamar | AB221: Hadramout | AC221: Hajjah | AD221: Ibb | AE221: Lahej | AF221: Mareb | AG221: Raimah | AH221: Sa'adah | AI221: Sana'a | AJ221: Sana'a City | AK221: Shabwah | AL221: Taiz | BA221: Hygiene data, raw numbers (weighted) | BC221: Poorest | BD221: Poor | BE221: Middle | BF221: Rich | BG221: Richest | BH221: Poorest | BI221: Poor | BJ221: Middle | BK221: Rich | BL221: Richest | BM221: Poorest | BN221: Poor | BO221: Middle | BP221: Rich | BQ221: Richest | BR221: Abyan | BS221: Aden | BT221: Al Baidhah | BU221: Al Dala'a | BV221: Al Hodeidah | BW221: Al Jawf | BX221: Al Maharah | BY221: Al Mahweet | BZ221: Amran | CA221: Dhamar | CB221: Hadramout | CC221: Hajjah | CD221: Ibb | CE221: Lahej | CF221: Mareb | CG221: Raimah | CH221: Sa'adah | CI221: Sana'a | CJ221: Sana'a City | CK221: Shabwah | CL221: Taiz
A222: Hygiene ladder | B222: Basic | C222: N/A | D222: N/A | E222: N/A | F222: N/A | G222: N/A | H222: N/A | I222: N/A | J222: N/A | K222: N/A | L222: N/A | M222: N/A | N222: N/A | O222: N/A | P222: N/A | Q222: N/A | R222: N/A | S222: N/A | T222: N/A | U222: N/A | V222: N/A | W222: N/A | X222: N/A | Y222: N/A | Z222: N/A | AA222: N/A | AB222: N/A | AC222: N/A | AD222: N/A | AE222: N/A | AF222: N/A | AG222: N/A | AH222: N/A | AI222: N/A | AJ222: N/A | AK222: N/A | AL222: N/A | BA222: Hygiene ladder | BB222: Basic | BC222: N/A | BD222: N/A | BE222: N/A | BF222: N/A | BG222: N/A | BH222: N/A | BI222: N/A | BJ222: N/A | BK222: N/A | BL222: N/A | BM222: N/A | BN222: N/A | BO222: N/A | BP222: N/A | BQ222: N/A | BR222: N/A | BS222: N/A | BT222: N/A | BU222: N/A | BV222: N/A | BW222: N/A | BX222: N/A | BY222: N/A | BZ222: N/A | CA222: N/A | CB222: N/A | CC222: N/A | CD222: N/A | CE222: N/A | CF222: N/A | CG222: N/A | CH222: N/A | CI222: N/A | CJ222: N/A | CK222: N/A | CL222: N/A
B223: Limited | C223: N/A | D223: N/A | E223: N/A | F223: N/A | G223: N/A | H223: N/A | I223: N/A | J223: N/A | K223: N/A | L223: N/A | M223: N/A | N223: N/A | O223: N/A | P223: N/A | Q223: N/A | R223: N/A | S223: N/A | T223: N/A | U223: N/A | V223: N/A | W223: N/A | X223: N/A | Y223: N/A | Z223: N/A | AA223: N/A | AB223: N/A | AC223: N/A | AD223: N/A | AE223: N/A | AF223: N/A | AG223: N/A | AH223: N/A | AI223: N/A | AJ223: N/A | AK223: N/A | AL223: N/A | BB223: Limited | BC223: N/A | BD223: N/A | BE223: N/A | BF223: N/A | BG223: N/A | BH223: N/A | BI223: N/A | BJ223: N/A | BK223: N/A | BL223: N/A | BM223: N/A | BN223: N/A | BO223: N/A | BP223: N/A | BQ223: N/A | BR223: N/A | BS223: N/A | BT223: N/A | BU223: N/A | BV223: N/A | BW223: N/A | BX223: N/A | BY223: N/A | BZ223: N/A | CA223: N/A | CB223: N/A | CC223: N/A | CD223: N/A | CE223: N/A | CF223: N/A | CG223: N/A | CH223: N/A | CI223: N/A | CJ223: N/A | CK223: N/A | CL223: N/A
B224: No facility | C224: N/A | D224: N/A | E224: N/A | F224: N/A | G224: N/A | H224: N/A | I224: N/A | J224: N/A | K224: N/A | L224: N/A | M224: N/A | N224: N/A | O224: N/A | P224: N/A | Q224: N/A | R224: N/A | S224: N/A | T224: N/A | U224: N/A | V224: N/A | W224: N/A | X224: N/A | Y224: N/A | Z224: N/A | AA224: N/A | AB224: N/A | AC224: N/A | AD224: N/A | AE224: N/A | AF224: N/A | AG224: N/A | AH224: N/A | AI224: N/A | AJ224: N/A | AK224: N/A | AL224: N/A | BB224: No facility | BC224: N/A | BD224: N/A | BE224: N/A | BF224: N/A | BG224: N/A | BH224: N/A | BI224: N/A | BJ224: N/A | BK224: N/A | BL224: N/A | BM224: N/A | BN224: N/A | BO224: N/A | BP224: N/A | BQ224: N/A | BR224: N/A | BS224: N/A | BT224: N/A | BU224: N/A | BV224: N/A | BW224: N/A | BX224: N/A | BY224: N/A | BZ224: N/A | CA224: N/A | CB224: N/A | CC224: N/A | CD224: N/A | CE224: N/A | CF224: N/A | CG224: N/A | CH224: N/A | CI224: N/A | CJ224: N/A | CK224: N/A | CL224: N/A
BA225: Observed handwashing place | BB225: Fixed | BC225: N/A | BD225: N/A | BE225: N/A | BF225: N/A | BG225: N/A | BH225: N/A | BI225: N/A | BJ225: N/A | BK225: N/A | BL225: N/A | BM225: N/A | BN225: N/A | BO225: N/A | BP225: N/A | BQ225: N/A | BR225: N/A | BS225: N/A | BT225: N/A | BU225: N/A | BV225: N/A | BW225: N/A | BX225: N/A | BY225: N/A | BZ225: N/A | CA225: N/A | CB225: N/A | CC225: N/A | CD225: N/A | CE225: N/A | CF225: N/A | CG225: N/A | CH225: N/A | CI225: N/A | CJ225: N/A | CK225: N/A | CL225: N/A
BB226: Mobile | BC226: N/A | BD226: N/A | BE226: N/A | BF226: N/A | BG226: N/A | BH226: N/A | BI226: N/A | BJ226: N/A | BK226: N/A | BL226: N/A | BM226: N/A | BN226: N/A | BO226: N/A | BP226: N/A | BQ226: N/A | BR226: N/A | BS226: N/A | BT226: N/A | BU226: N/A | BV226: N/A | BW226: N/A | BX226: N/A | BY226: N/A | BZ226: N/A | CA226: N/A | CB226: N/A | CC226: N/A | CD226: N/A | CE226: N/A | CF226: N/A | CG226: N/A | CH226: N/A | CI226: N/A | CJ226: N/A | CK226: N/A | CL226: N/A
BA227: Water / Soap | BB227: Water and soap | BC227: N/A | BD227: N/A | BE227: N/A | BF227: N/A | BG227: N/A | BH227: N/A | BI227: N/A | BJ227: N/A | BK227: N/A | BL227: N/A | BM227: N/A | BN227: N/A | BO227: N/A | BP227: N/A | BQ227: N/A | BR227: N/A | BS227: N/A | BT227: N/A | BU227: N/A | BV227: N/A | BW227: N/A | BX227: N/A | BY227: N/A | BZ227: N/A | CA227: N/A | CB227: N/A | CC227: N/A | CD227: N/A | CE227: N/A | CF227: N/A | CG227: N/A | CH227: N/A | CI227: N/A | CJ227: N/A | CK227: N/A | CL227: N/A
BB228: Water only | BC228: N/A | BD228: N/A | BE228: N/A | BF228: N/A | BG228: N/A | BH228: N/A | BI228: N/A | BJ228: N/A | BK228: N/A | BL228: N/A | BM228: N/A | BN228: N/A | BO228: N/A | BP228: N/A | BQ228: N/A | BR228: N/A | BS228: N/A | BT228: N/A | BU228: N/A | BV228: N/A | BW228: N/A | BX228: N/A | BY228: N/A | BZ228: N/A | CA228: N/A | CB228: N/A | CC228: N/A | CD228: N/A | CE228: N/A | CF228: N/A | CG228: N/A | CH228: N/A | CI228: N/A | CJ228: N/A | CK228: N/A | CL228: N/A
BB229: Soap only | BC229: N/A | BD229: N/A | BE229: N/A | BF229: N/A | BG229: N/A | BH229: N/A | BI229: N/A | BJ229: N/A | BK229: N/A | BL229: N/A | BM229: N/A | BN229: N/A | BO229: N/A | BP229: N/A | BQ229: N/A | BR229: N/A | BS229: N/A | BT229: N/A | BU229: N/A | BV229: N/A | BW229: N/A | BX229: N/A | BY229: N/A | BZ229: N/A | CA229: N/A | CB229: N/A | CC229: N/A | CD229: N/A | CE229: N/A | CF229: N/A | CG229: N/A | CH229: N/A | CI229: N/A | CJ229: N/A | CK229: N/A | CL229: N/A
BB230: Neither | BC230: N/A | BD230: N/A | BE230: N/A | BF230: N/A | BG230: N/A | BH230: N/A | BI230: N/A | BJ230: N/A | BK230: N/A | BL230: N/A | BM230: N/A | BN230: N/A | BO230: N/A | BP230: N/A | BQ230: N/A | BR230: N/A | BS230: N/A | BT230: N/A | BU230: N/A | BV230: N/A | BW230: N/A | BX230: N/A | BY230: N/A | BZ230: N/A | CA230: N/A | CB230: N/A | CC230: N/A | CD230: N/A | CE230: N/A | CF230: N/A | CG230: N/A | CH230: N/A | CI230: N/A | CJ230: N/A | CK230: N/A | CL230: N/A
BA259: Raw numbers of respondents: | BB259: Menstrual health and hygiene | BC259: NATIONAL wealth index quintile | BH259: URBAN wealth index quintile | BM259: RURAL wealth index quintile | BR259: SUB-REGIONS:
BA260: MHH data, raw numbers (weighted) | BC260: Poorest | BD260: Poor | BE260: Middle | BF260: Rich | BG260: Richest | BH260: Poorest | BI260: Poor | BJ260: Middle | BK260: Rich | BL260: Richest | BM260: Poorest | BN260: Poor | BO260: Middle | BP260: Rich | BQ260: Richest | BR260: Abyan | BS260: Aden | BT260: Al Baidhah | BU260: Al Dala'a | BV260: Al Hodeidah | BW260: Al Jawf | BX260: Al Maharah | BY260: Al Mahweet | BZ260: Amran | CA260: Dhamar | CB260: Hadramout | CC260: Hajjah | CD260: Ibb | CE260: Lahej | CF260: Mareb | CG260: Raimah | CH260: Sa'adah | CI260: Sana'a | CJ260: Sana'a City | CK260: Shabwah | CL260: Taiz
BA261: Private place to wash and change | BB261: Yes | BC261: N/A | BD261: N/A | BE261: N/A | BF261: N/A | BG261: N/A | BH261: N/A | BI261: N/A | BJ261: N/A | BK261: N/A | BL261: N/A | BM261: N/A | BN261: N/A | BO261: N/A | BP261: N/A | BQ261: N/A | BR261: N/A | BS261: N/A | BT261: N/A | BU261: N/A | BV261: N/A | BW261: N/A | BX261: N/A | BY261: N/A | BZ261: N/A | CA261: N/A | CB261: N/A | CC261: N/A | CD261: N/A | CE261: N/A | CF261: N/A | CG261: N/A | CH261: N/A | CI261: N/A | CJ261: N/A | CK261: N/A | CL261: N/A
BB262: No | BC262: N/A | BD262: N/A | BE262: N/A | BF262: N/A | BG262: N/A | BH262: N/A | BI262: N/A | BJ262: N/A | BK262: N/A | BL262: N/A | BM262: N/A | BN262: N/A | BO262: N/A | BP262: N/A | BQ262: N/A | BR262: N/A | BS262: N/A | BT262: N/A | BU262: N/A | BV262: N/A | BW262: N/A | BX262: N/A | BY262: N/A | BZ262: N/A | CA262: N/A | CB262: N/A | CC262: N/A | CD262: N/A | CE262: N/A | CF262: N/A | CG262: N/A | CH262: N/A | CI262: N/A | CJ262: N/A | CK262: N/A | CL262: N/A
BB263: DK/not sure/missing | BC263: N/A | BD263: N/A | BE263: N/A | BF263: N/A | BG263: N/A | BH263: N/A | BI263: N/A | BJ263: N/A | BK263: N/A | BL263: N/A | BM263: N/A | BN263: N/A | BO263: N/A | BP263: N/A | BQ263: N/A | BR263: N/A | BS263: N/A | BT263: N/A | BU263: N/A | BV263: N/A | BW263: N/A | BX263: N/A | BY263: N/A | BZ263: N/A | CA263: N/A | CB263: N/A | CC263: N/A | CD263: N/A | CE263: N/A | CF263: N/A | CG263: N/A | CH263: N/A | CI263: N/A | CJ263: N/A | CK263: N/A | CL263: N/A
BA264: Use of menstrual materials | BB264: Materials reusable | BC264: N/A | BD264: N/A | BE264: N/A | BF264: N/A | BG264: N/A | BH264: N/A | BI264: N/A | BJ264: N/A | BK264: N/A | BL264: N/A | BM264: N/A | BN264: N/A | BO264: N/A | BP264: N/A | BQ264: N/A | BR264: N/A | BS264: N/A | BT264: N/A | BU264: N/A | BV264: N/A | BW264: N/A | BX264: N/A | BY264: N/A | BZ264: N/A | CA264: N/A | CB264: N/A | CC264: N/A | CD264: N/A | CE264: N/A | CF264: N/A | CG264: N/A | CH264: N/A | CI264: N/A | CJ264: N/A | CK264: N/A | CL264: N/A
BB265: Materials not reusable | BC265: N/A | BD265: N/A | BE265: N/A | BF265: N/A | BG265: N/A | BH265: N/A | BI265: N/A | BJ265: N/A | BK265: N/A | BL265: N/A | BM265: N/A | BN265: N/A | BO265: N/A | BP265: N/A | BQ265: N/A | BR265: N/A | BS265: N/A | BT265: N/A | BU265: N/A | BV265: N/A | BW265: N/A | BX265: N/A | BY265: N/A | BZ265: N/A | CA265: N/A | CB265: N/A | CC265: N/A | CD265: N/A | CE265: N/A | CF265: N/A | CG265: N/A | CH265: N/A | CI265: N/A | CJ265: N/A | CK265: N/A | CL265: N/A
BB266: No materials used | BC266: N/A | BD266: N/A | BE266: N/A | BF266: N/A | BG266: N/A | BH266: N/A | BI266: N/A | BJ266: N/A | BK266: N/A | BL266: N/A | BM266: N/A | BN266: N/A | BO266: N/A | BP266: N/A | BQ266: N/A | BR266: N/A | BS266: N/A | BT266: N/A | BU266: N/A | BV266: N/A | BW266: N/A | BX266: N/A | BY266: N/A | BZ266: N/A | CA266: N/A | CB266: N/A | CC266: N/A | CD266: N/A | CE266: N/A | CF266: N/A | CG266: N/A | CH266: N/A | CI266: N/A | CJ266: N/A | CK266: N/A | CL266: N/A
BB267: DK/not sure/missing | BC267: N/A | BD267: N/A | BE267: N/A | BF267: N/A | BG267: N/A | BH267: N/A | BI267: N/A | BJ267: N/A | BK267: N/A | BL267: N/A | BM267: N/A | BN267: N/A | BO267: N/A | BP267: N/A | BQ267: N/A | BR267: N/A | BS267: N/A | BT267: N/A | BU267: N/A | BV267: N/A | BW267: N/A | BX267: N/A | BY267: N/A | BZ267: N/A | CA267: N/A | CB267: N/A | CC267: N/A | CD267: N/A | CE267: N/A | CF267: N/A | CG267: N/A | CH267: N/A | CI267: N/A | CJ267: N/A | CK267: N/A | CL267: N/A
BA268: Use of menstrual materials with private place to wash and change | BB268: Materials reusable | BC268: N/A | BD268: N/A | BE268: N/A | BF268: N/A | BG268: N/A | BH268: N/A | BI268: N/A | BJ268: N/A | BK268: N/A | BL268: N/A | BM268: N/A | BN268: N/A | BO268: N/A | BP268: N/A | BQ268: N/A | BR268: N/A | BS268: N/A | BT268: N/A | BU268: N/A | BV268: N/A | BW268: N/A | BX268: N/A | BY268: N/A | BZ268: N/A | CA268: N/A | CB268: N/A | CC268: N/A | CD268: N/A | CE268: N/A | CF268: N/A | CG268: N/A | CH268: N/A | CI268: N/A | CJ268: N/A | CK268: N/A | CL268: N/A
BB269: Materials not reusable | BC269: N/A | BD269: N/A | BE269: N/A | BF269: N/A | BG269: N/A | BH269: N/A | BI269: N/A | BJ269: N/A | BK269: N/A | BL269: N/A | BM269: N/A | BN269: N/A | BO269: N/A | BP269: N/A | BQ269: N/A | BR269: N/A | BS269: N/A | BT269: N/A | BU269: N/A | BV269: N/A | BW269: N/A | BX269: N/A | BY269: N/A | BZ269: N/A | CA269: N/A | CB269: N/A | CC269: N/A | CD269: N/A | CE269: N/A | CF269: N/A | CG269: N/A | CH269: N/A | CI269: N/A | CJ269: N/A | CK269: N/A | CL269: N/A
BB270: No materials used | BC270: N/A | BD270: N/A | BE270: N/A | BF270: N/A | BG270: N/A | BH270: N/A | BI270: N/A | BJ270: N/A | BK270: N/A | BL270: N/A | BM270: N/A | BN270: N/A | BO270: N/A | BP270: N/A | BQ270: N/A | BR270: N/A | BS270: N/A | BT270: N/A | BU270: N/A | BV270: N/A | BW270: N/A | BX270: N/A | BY270: N/A | BZ270: N/A | CA270: N/A | CB270: N/A | CC270: N/A | CD270: N/A | CE270: N/A | CF270: N/A | CG270: N/A | CH270: N/A | CI270: N/A | CJ270: N/A | CK270: N/A | CL270: N/A
BA271: Awareness of menstruation before menarche | BB271: Yes | BC271: N/A | BD271: N/A | BE271: N/A | BF271: N/A | BG271: N/A | BH271: N/A | BI271: N/A | BJ271: N/A | BK271: N/A | BL271: N/A | BM271: N/A | BN271: N/A | BO271: N/A | BP271: N/A | BQ271: N/A | BR271: N/A | BS271: N/A | BT271: N/A | BU271: N/A | BV271: N/A | BW271: N/A | BX271: N/A | BY271: N/A | BZ271: N/A | CA271: N/A | CB271: N/A | CC271: N/A | CD271: N/A | CE271: N/A | CF271: N/A | CG271: N/A | CH271: N/A | CI271: N/A | CJ271: N/A | CK271: N/A | CL271: N/A
BB272: No | BC272: N/A | BD272: N/A | BE272: N/A | BF272: N/A | BG272: N/A | BH272: N/A | BI272: N/A | BJ272: N/A | BK272: N/A | BL272: N/A | BM272: N/A | BN272: N/A | BO272: N/A | BP272: N/A | BQ272: N/A | BR272: N/A | BS272: N/A | BT272: N/A | BU272: N/A | BV272: N/A | BW272: N/A | BX272: N/A | BY272: N/A | BZ272: N/A | CA272: N/A | CB272: N/A | CC272: N/A | CD272: N/A | CE272: N/A | CF272: N/A | CG272: N/A | CH272: N/A | CI272: N/A | CJ272: N/A | CK272: N/A | CL272: N/A
BB273: DK/not sure/missing | BC273: N/A | BD273: N/A | BE273: N/A | BF273: N/A | BG273: N/A | BH273: N/A | BI273: N/A | BJ273: N/A | BK273: N/A | BL273: N/A | BM273: N/A | BN273: N/A | BO273: N/A | BP273: N/A | BQ273: N/A | BR273: N/A | BS273: N/A | BT273: N/A | BU273: N/A | BV273: N/A | BW273: N/A | BX273: N/A | BY273: N/A | BZ273: N/A | CA273: N/A | CB273: N/A | CC273: N/A | CD273: N/A | CE273: N/A | CF273: N/A | CG273: N/A | CH273: N/A | CI273: N/A | CJ273: N/A | CK273: N/A | CL273: N/A
BA274: Participation in (all) activities during menstruation | BB274: Yes | BC274: N/A | BD274: N/A | BE274: N/A | BF274: N/A | BG274: N/A | BH274: N/A | BI274: N/A | BJ274: N/A | BK274: N/A | BL274: N/A | BM274: N/A | BN274: N/A | BO274: N/A | BP274: N/A | BQ274: N/A | BR274: N/A | BS274: N/A | BT274: N/A | BU274: N/A | BV274: N/A | BW274: N/A | BX274: N/A | BY274: N/A | BZ274: N/A | CA274: N/A | CB274: N/A | CC274: N/A | CD274: N/A | CE274: N/A | CF274: N/A | CG274: N/A | CH274: N/A | CI274: N/A | CJ274: N/A | CK274: N/A | CL274: N/A
BB275: No | BC275: N/A | BD275: N/A | BE275: N/A | BF275: N/A | BG275: N/A | BH275: N/A | BI275: N/A | BJ275: N/A | BK275: N/A | BL275: N/A | BM275: N/A | BN275: N/A | BO275: N/A | BP275: N/A | BQ275: N/A | BR275: N/A | BS275: N/A | BT275: N/A | BU275: N/A | BV275: N/A | BW275: N/A | BX275: N/A | BY275: N/A | BZ275: N/A | CA275: N/A | CB275: N/A | CC275: N/A | CD275: N/A | CE275: N/A | CF275: N/A | CG275: N/A | CH275: N/A | CI275: N/A | CJ275: N/A | CK275: N/A | CL275: N/A
BB276: DK/not sure/missing/no such activity | BC276: N/A | BD276: N/A | BE276: N/A | BF276: N/A | BG276: N/A | BH276: N/A | BI276: N/A | BJ276: N/A | BK276: N/A | BL276: N/A | BM276: N/A | BN276: N/A | BO276: N/A | BP276: N/A | BQ276: N/A | BR276: N/A | BS276: N/A | BT276: N/A | BU276: N/A | BV276: N/A | BW276: N/A | BX276: N/A | BY276: N/A | BZ276: N/A | CA276: N/A | CB276: N/A | CC276: N/A | CD276: N/A | CE276: N/A | CF276: N/A | CG276: N/A | CH276: N/A | CI276: N/A | CJ276: N/A | CK276: N/A | CL276: N/A
BA277: Participation in specific activities during menstruation | BB277: Did not go to school (amongst those usually attending school) | BC277: N/A | BD277: N/A | BE277: N/A | BF277: N/A | BG277: N/A | BH277: N/A | BI277: N/A | BJ277: N/A | BK277: N/A | BL277: N/A | BM277: N/A | BN277: N/A | BO277: N/A | BP277: N/A | BQ277: N/A | BR277: N/A | BS277: N/A | BT277: N/A | BU277: N/A | BV277: N/A | BW277: N/A | BX277: N/A | BY277: N/A | BZ277: N/A | CA277: N/A | CB277: N/A | CC277: N/A | CD277: N/A | CE277: N/A | CF277: N/A | CG277: N/A | CH277: N/A | CI277: N/A | CJ277: N/A | CK277: N/A | CL277: N/A
BB278: Did not go to work (amongst those who usually work) | BC278: N/A | BD278: N/A | BE278: N/A | BF278: N/A | BG278: N/A | BH278: N/A | BI278: N/A | BJ278: N/A | BK278: N/A | BL278: N/A | BM278: N/A | BN278: N/A | BO278: N/A | BP278: N/A | BQ278: N/A | BR278: N/A | BS278: N/A | BT278: N/A | BU278: N/A | BV278: N/A | BW278: N/A | BX278: N/A | BY278: N/A | BZ278: N/A | CA278: N/A | CB278: N/A | CC278: N/A | CD278: N/A | CE278: N/A | CF278: N/A | CG278: N/A | CH278: N/A | CI278: N/A | CJ278: N/A | CK278: N/A | CL278: N/A
BB279: Did not participate in social activities | BC279: N/A | BD279: N/A | BE279: N/A | BF279: N/A | BG279: N/A | BH279: N/A | BI279: N/A | BJ279: N/A | BK279: N/A | BL279: N/A | BM279: N/A | BN279: N/A | BO279: N/A | BP279: N/A | BQ279: N/A | BR279: N/A | BS279: N/A | BT279: N/A | BU279: N/A | BV279: N/A | BW279: N/A | BX279: N/A | BY279: N/A | BZ279: N/A | CA279: N/A | CB279: N/A | CC279: N/A | CD279: N/A | CE279: N/A | CF279: N/A | CG279: N/A | CH279: N/A | CI279: N/A | CJ279: N/A | CK279: N/A | CL279: N/A
BB280: Did not cook food | BC280: N/A | BD280: N/A | BE280: N/A | BF280: N/A | BG280: N/A | BH280: N/A | BI280: N/A | BJ280: N/A | BK280: N/A | BL280: N/A | BM280: N/A | BN280: N/A | BO280: N/A | BP280: N/A | BQ280: N/A | BR280: N/A | BS280: N/A | BT280: N/A | BU280: N/A | BV280: N/A | BW280: N/A | BX280: N/A | BY280: N/A | BZ280: N/A | CA280: N/A | CB280: N/A | CC280: N/A | CD280: N/A | CE280: N/A | CF280: N/A | CG280: N/A | CH280: N/A | CI280: N/A | CJ280: N/A | CK280: N/A | CL280: N/A
BB281: Did not eat with others | BC281: N/A | BD281: N/A | BE281: N/A | BF281: N/A | BG281: N/A | BH281: N/A | BI281: N/A | BJ281: N/A | BK281: N/A | BL281: N/A | BM281: N/A | BN281: N/A | BO281: N/A | BP281: N/A | BQ281: N/A | BR281: N/A | BS281: N/A | BT281: N/A | BU281: N/A | BV281: N/A | BW281: N/A | BX281: N/A | BY281: N/A | BZ281: N/A | CA281: N/A | CB281: N/A | CC281: N/A | CD281: N/A | CE281: N/A | CF281: N/A | CG281: N/A | CH281: N/A | CI281: N/A | CJ281: N/A | CK281: N/A | CL281: N/A
BB282: Did not bathe in regular place | BC282: N/A | BD282: N/A | BE282: N/A | BF282: N/A | BG282: N/A | BH282: N/A | BI282: N/A | BJ282: N/A | BK282: N/A | BL282: N/A | BM282: N/A | BN282: N/A | BO282: N/A | BP282: N/A | BQ282: N/A | BR282: N/A | BS282: N/A | BT282: N/A | BU282: N/A | BV282: N/A | BW282: N/A | BX282: N/A | BY282: N/A | BZ282: N/A | CA282: N/A | CB282: N/A | CC282: N/A | CD282: N/A | CE282: N/A | CF282: N/A | CG282: N/A | CH282: N/A | CI282: N/A | CJ282: N/A | CK282: N/A | CL282: N/A
BB283: Did not participate in other activities | BC283: N/A | BD283: N/A | BE283: N/A | BF283: N/A | BG283: N/A | BH283: N/A | BI283: N/A | BJ283: N/A | BK283: N/A | BL283: N/A | BM283: N/A | BN283: N/A | BO283: N/A | BP283: N/A | BQ283: N/A | BR283: N/A | BS283: N/A | BT283: N/A | BU283: N/A | BV283: N/A | BW283: N/A | BX283: N/A | BY283: N/A | BZ283: N/A | CA283: N/A | CB283: N/A | CC283: N/A | CD283: N/A | CE283: N/A | CF283: N/A | CG283: N/A | CH283: N/A | CI283: N/A | CJ283: N/A | CK283: N/A | CL283: N/A
BB284: DK/not sure/missing/no such activity | BC284: N/A | BD284: N/A | BE284: N/A | BF284: N/A | BG284: N/A | BH284: N/A | BI284: N/A | BJ284: N/A | BK284: N/A | BL284: N/A | BM284: N/A | BN284: N/A | BO284: N/A | BP284: N/A | BQ284: N/A | BR284: N/A | BS284: N/A | BT284: N/A | BU284: N/A | BV284: N/A | BW284: N/A | BX284: N/A | BY284: N/A | BZ284: N/A | CA284: N/A | CB284: N/A | CC284: N/A | CD284: N/A | CE284: N/A | CF284: N/A | CG284: N/A | CH284: N/A | CI284: N/A | CJ284: N/A | CK284: N/A | CL284: N/A
BA339: Raw numbers of respondents: | BB339: Basic water, sanitation and hygiene | BC339: NATIONAL wealth index quintile | BH339: URBAN wealth index quintile | BM339: RURAL wealth index quintile | BR339: SUB-REGIONS:
BA340: WatSan data, raw numbers (weighted) | BC340: Poorest | BD340: Poor | BE340: Middle | BF340: Rich | BG340: Richest | BH340: Poorest | BI340: Poor | BJ340: Middle | BK340: Rich | BL340: Richest | BM340: Poorest | BN340: Poor | BO340: Middle | BP340: Rich | BQ340: Richest | BR340: Abyan | BS340: Aden | BT340: Al Baidhah | BU340: Al Dala'a | BV340: Al Hodeidah | BW340: Al Jawf | BX340: Al Maharah | BY340: Al Mahweet | BZ340: Amran | CA340: Dhamar | CB340: Hadramout | CC340: Hajjah | CD340: Ibb | CE340: Lahej | CF340: Mareb | CG340: Raimah | CH340: Sa'adah | CI340: Sana'a | CJ340: Sana'a City | CK340: Shabwah | CL340: Taiz
BA341: Use of Basic Water Sanitation and Hygiene | BB341: Yes | BC341: N/A | BD341: N/A | BE341: N/A | BF341: N/A | BG341: N/A | BH341: N/A | BI341: N/A | BJ341: N/A | BK341: N/A | BL341: N/A | BM341: N/A | BN341: N/A | BO341: N/A | BP341: N/A | BQ341: N/A | BR341: N/A | BS341: N/A | BT341: N/A | BU341: N/A | BV341: N/A | BW341: N/A | BX341: N/A | BY341: N/A | BZ341: N/A | CA341: N/A | CB341: N/A | CC341: N/A | CD341: N/A | CE341: N/A | CF341: N/A | CG341: N/A | CH341: N/A | CI341: N/A | CJ341: N/A | CK341: N/A | CL341: N/A
BB342: No | BC342: N/A | BD342: N/A | BE342: N/A | BF342: N/A | BG342: N/A | BH342: N/A | BI342: N/A | BJ342: N/A | BK342: N/A | BL342: N/A | BM342: N/A | BN342: N/A | BO342: N/A | BP342: N/A | BQ342: N/A | BR342: N/A | BS342: N/A | BT342: N/A | BU342: N/A | BV342: N/A | BW342: N/A | BX342: N/A | BY342: N/A | BZ342: N/A | CA342: N/A | CB342: N/A | CC342: N/A | CD342: N/A | CE342: N/A | CF342: N/A | CG342: N/A | CH342: N/A | CI342: N/A | CJ342: N/A | CK342: N/A | CL342: N/A
BA343: Use of Basic Water and Sanitation | BB343: Yes | BC343: N/A | BD343: N/A | BE343: N/A | BF343: N/A | BG343: N/A | BH343: N/A | BI343: N/A | BJ343: N/A | BK343: N/A | BL343: N/A | BM343: N/A | BN343: N/A | BO343: N/A | BP343: N/A | BQ343: N/A | BR343: N/A | BS343: N/A | BT343: N/A | BU343: N/A | BV343: N/A | BW343: N/A | BX343: N/A | BY343: N/A | BZ343: N/A | CA343: N/A | CB343: N/A | CC343: N/A | CD343: N/A | CE343: N/A | CF343: N/A | CG343: N/A | CH343: N/A | CI343: N/A | CJ343: N/A | CK343: N/A | CL343: N/A
BB344: No | BC344: N/A | BD344: N/A | BE344: N/A | BF344: N/A | BG344: N/A | BH344: N/A | BI344: N/A | BJ344: N/A | BK344: N/A | BL344: N/A | BM344: N/A | BN344: N/A | BO344: N/A | BP344: N/A | BQ344: N/A | BR344: N/A | BS344: N/A | BT344: N/A | BU344: N/A | BV344: N/A | BW344: N/A | BX344: N/A | BY344: N/A | BZ344: N/A | CA344: N/A | CB344: N/A | CC344: N/A | CD344: N/A | CE344: N/A | CF344: N/A | CG344: N/A | CH344: N/A | CI344: N/A | CJ344: N/A | CK344: N/A | CL344: N/A
BA345: Use of Basic Water and Hygiene | BB345: Yes | BC345: N/A | BD345: N/A | BE345: N/A | BF345: N/A | BG345: N/A | BH345: N/A | BI345: N/A | BJ345: N/A | BK345: N/A | BL345: N/A | BM345: N/A | BN345: N/A | BO345: N/A | BP345: N/A | BQ345: N/A | BR345: N/A | BS345: N/A | BT345: N/A | BU345: N/A | BV345: N/A | BW345: N/A | BX345: N/A | BY345: N/A | BZ345: N/A | CA345: N/A | CB345: N/A | CC345: N/A | CD345: N/A | CE345: N/A | CF345: N/A | CG345: N/A | CH345: N/A | CI345: N/A | CJ345: N/A | CK345: N/A | CL345: N/A
BB346: No | BC346: N/A | BD346: N/A | BE346: N/A | BF346: N/A | BG346: N/A | BH346: N/A | BI346: N/A | BJ346: N/A | BK346: N/A | BL346: N/A | BM346: N/A | BN346: N/A | BO346: N/A | BP346: N/A | BQ346: N/A | BR346: N/A | BS346: N/A | BT346: N/A | BU346: N/A | BV346: N/A | BW346: N/A | BX346: N/A | BY346: N/A | BZ346: N/A | CA346: N/A | CB346: N/A | CC346: N/A | CD346: N/A | CE346: N/A | CF346: N/A | CG346: N/A | CH346: N/A | CI346: N/A | CJ346: N/A | CK346: N/A | CL346: N/A
BA347: Use of Basic Sanitation and Hygiene | BB347: Yes | BC347: N/A | BD347: N/A | BE347: N/A | BF347: N/A | BG347: N/A | BH347: N/A | BI347: N/A | BJ347: N/A | BK347: N/A | BL347: N/A | BM347: N/A | BN347: N/A | BO347: N/A | BP347: N/A | BQ347: N/A | BR347: N/A | BS347: N/A | BT347: N/A | BU347: N/A | BV347: N/A | BW347: N/A | BX347: N/A | BY347: N/A | BZ347: N/A | CA347: N/A | CB347: N/A | CC347: N/A | CD347: N/A | CE347: N/A | CF347: N/A | CG347: N/A | CH347: N/A | CI347: N/A | CJ347: N/A | CK347: N/A | CL347: N/A
BB348: No | BC348: N/A | BD348: N/A | BE348: N/A | BF348: N/A | BG348: N/A | BH348: N/A | BI348: N/A | BJ348: N/A | BK348: N/A | BL348: N/A | BM348: N/A | BN348: N/A | BO348: N/A | BP348: N/A | BQ348: N/A | BR348: N/A | BS348: N/A | BT348: N/A | BU348: N/A | BV348: N/A | BW348: N/A | BX348: N/A | BY348: N/A | BZ348: N/A | CA348: N/A | CB348: N/A | CC348: N/A | CD348: N/A | CE348: N/A | CF348: N/A | CG348: N/A | CH348: N/A | CI348: N/A | CJ348: N/A | CK348: N/A | CL348: N/A
BA349: Use of Basic Water | BB349: Yes | BC349: N/A | BD349: N/A | BE349: N/A | BF349: N/A | BG349: N/A | BH349: N/A | BI349: N/A | BJ349: N/A | BK349: N/A | BL349: N/A | BM349: N/A | BN349: N/A | BO349: N/A | BP349: N/A | BQ349: N/A | BR349: N/A | BS349: N/A | BT349: N/A | BU349: N/A | BV349: N/A | BW349: N/A | BX349: N/A | BY349: N/A | BZ349: N/A | CA349: N/A | CB349: N/A | CC349: N/A | CD349: N/A | CE349: N/A | CF349: N/A | CG349: N/A | CH349: N/A | CI349: N/A | CJ349: N/A | CK349: N/A | CL349: N/A
BB350: No | BC350: N/A | BD350: N/A | BE350: N/A | BF350: N/A | BG350: N/A | BH350: N/A | BI350: N/A | BJ350: N/A | BK350: N/A | BL350: N/A | BM350: N/A | BN350: N/A | BO350: N/A | BP350: N/A | BQ350: N/A | BR350: N/A | BS350: N/A | BT350: N/A | BU350: N/A | BV350: N/A | BW350: N/A | BX350: N/A | BY350: N/A | BZ350: N/A | CA350: N/A | CB350: N/A | CC350: N/A | CD350: N/A | CE350: N/A | CF350: N/A | CG350: N/A | CH350: N/A | CI350: N/A | CJ350: N/A | CK350: N/A | CL350: N/A
BA351: Use of Basic Sanitation | BB351: Yes | BC351: N/A | BD351: N/A | BE351: N/A | BF351: N/A | BG351: N/A | BH351: N/A | BI351: N/A | BJ351: N/A | BK351: N/A | BL351: N/A | BM351: N/A | BN351: N/A | BO351: N/A | BP351: N/A | BQ351: N/A | BR351: N/A | BS351: N/A | BT351: N/A | BU351: N/A | BV351: N/A | BW351: N/A | BX351: N/A | BY351: N/A | BZ351: N/A | CA351: N/A | CB351: N/A | CC351: N/A | CD351: N/A | CE351: N/A | CF351: N/A | CG351: N/A | CH351: N/A | CI351: N/A | CJ351: N/A | CK351: N/A | CL351: N/A
BB352: No | BC352: N/A | BD352: N/A | BE352: N/A | BF352: N/A | BG352: N/A | BH352: N/A | BI352: N/A | BJ352: N/A | BK352: N/A | BL352: N/A | BM352: N/A | BN352: N/A | BO352: N/A | BP352: N/A | BQ352: N/A | BR352: N/A | BS352: N/A | BT352: N/A | BU352: N/A | BV352: N/A | BW352: N/A | BX352: N/A | BY352: N/A | BZ352: N/A | CA352: N/A | CB352: N/A | CC352: N/A | CD352: N/A | CE352: N/A | CF352: N/A | CG352: N/A | CH352: N/A | CI352: N/A | CJ352: N/A | CK352: N/A | CL352: N/A
BA353: Access to Basic Hygiene | BB353: Yes | BC353: N/A | BD353: N/A | BE353: N/A | BF353: N/A | BG353: N/A | BH353: N/A | BI353: N/A | BJ353: N/A | BK353: N/A | BL353: N/A | BM353: N/A | BN353: N/A | BO353: N/A | BP353: N/A | BQ353: N/A | BR353: N/A | BS353: N/A | BT353: N/A | BU353: N/A | BV353: N/A | BW353: N/A | BX353: N/A | BY353: N/A | BZ353: N/A | CA353: N/A | CB353: N/A | CC353: N/A | CD353: N/A | CE353: N/A | CF353: N/A | CG353: N/A | CH353: N/A | CI353: N/A | CJ353: N/A | CK353: N/A | CL353: N/A
BB354: No | BC354: N/A | BD354: N/A | BE354: N/A | BF354: N/A | BG354: N/A | BH354: N/A | BI354: N/A | BJ354: N/A | BK354: N/A | BL354: N/A | BM354: N/A | BN354: N/A | BO354: N/A | BP354: N/A | BQ354: N/A | BR354: N/A | BS354: N/A | BT354: N/A | BU354: N/A | BV354: N/A | BW354: N/A | BX354: N/A | BY354: N/A | BZ354: N/A | CA354: N/A | CB354: N/A | CC354: N/A | CD354: N/A | CE354: N/A | CF354: N/A | CG354: N/A | CH354: N/A | CI354: N/A | CJ354: N/A | CK354: N/A | CL354: N/A
C399: INITIAL (national) Wealth Index | H399: URBAN Wealth Index | M399: RURAL Wealth Index
C400: Component Matrix | H400: Component Matrix | M400: Component Matrix
E401: Component | J401: Component | O401: Component
B402: Note: The INITIAL (national) Wealth Index is based on the first component of the Principal Component Analysis (PCA) which has been obtained at national level. The final national-level (NATIONAL) Wealth Index is based on the URBAN and RURAL specific wealth indexes. Regression procedures are used to establish the relationships between the two sets of scores (urban and rural) and the initial (national) wealth factors. This allows best use of the available information for each area and a better precision of the FINAL (NATIONAL) Wealth Index. For dependency reasons, all WASH variables (contained in the generic MICS and DHS scripts) have been excluded from the sets of asset variables used in the PCAs. The PCA can extracts as many components as there are asset variables in the input. Only the first of the components is used to represent the Wealth Index. The scores represent the weights of the asset variables on the Wealth Index (correlations between the variables and the component). The communalities are the proportion of each variable's variance that can be explained by the component. Proportion of explained variance is the part of the model's total variance that is explained by the component. For more information on the procedure used: The DHS Wealth Index, DHS Comparative Reports No. 6, Shea Oscar Rutstein, Kiersten Johnson, ORC Macro International Inc., 2004. The DHS Wealth Index: Approaches for Rural and Urban Areas, Shea O. Rutstein, ORC Macro International Inc., 2008. MICS Methodological Paper No. 4, Review of options for reporting water, sanitation and hygiene coverage by wealth quintile, UNICEF, 2016. | E402: 1 | J402: 1 | O402: 1
C403: Household has: television | E403: 0.7652364374 | H403: Household has: refrigerator | J403: 0.6397279834 | M403: Household has: television | O403: 0.7286464599
C404: Household fuel type: LPG | E404: 0.7584669249 | H404: Household fuel type: LPG | J404: 0.6214492791 | M404: Household has: refrigerator | O404: 0.6883909586
C405: Household has: refrigerator | E405: 0.7582360245 | H405: Household fuel type: kerosene | J405: -0.5947887605 | M405: Household fuel type: LPG | O405: 0.6877525703
C406: Household has: electricity | E406: 0.735544149 | H406: Household has: non-mobile phone | J406: 0.5394248453 | M406: Household has: electricity | O406: 0.6622941
C407: Household fuel type: wood | E407: -0.7245679334 | H407: Household has: fan | J407: 0.5320664733 | M407: Household has: fan | O407: 0.6580295401
C408: Household has: fan | E408: 0.711948249 | H408: Household has: television | J408: 0.5180816689 | M408: Household fuel type: wood | O408: -0.6527634558
C409: Household has: non-mobile phone | E409: 0.6451228662 | H409: Has carpet floor | J409: 0.5034266043 | M409: Household has: non-mobile phone | O409: 0.60022709
C410: Household has: mobile telephone | E410: 0.5625246789 | H410: Household has: electricity | J410: 0.4733560252 | M410: Household has: mobile telephone | O410: 0.5634188479
C411: Has carpet floor | E411: 0.480526071 | H411: Household has: mobile telephone | J411: 0.4531741709 | M411: Household has: radio | O411: 0.4728583577
C412: Has dung floor | E412: -0.4699628587 | H412: Household member owns: car/truck | J412: 0.4327289788 | M412: Has dung floor | O412: -0.4491229679
... 161 more rows

Sheet DHS13
A2: =A1026 -> Yemen
A3: =A1034 -> 2013
A4: Use of drinking water sources
A5: by wealth quintile and sub-national region
A6: Notes:
A7: WHO/UNICEF JMP customised wealth index excludes water,
A8: sanitation and hygiene assets.
A9: Survey used for analysis: | B9: =A1025 -> DHS13
A10: Improved wells+springs based on: | B10: MICS06
A11: Time to improved source based on: | B11: MICS06
A14: Use of drinking water sources | C14: NATIONAL wealth index quintile | H14: URBAN wealth index quintile | M14: RURAL wealth index quintile | R14: SUB-REGIONS: | BA14: Raw numbers of respondents: | BB14: Use of drinking water sources | BC14: NATIONAL wealth index quintile | BH14: URBAN wealth index quintile | BM14: RURAL wealth index quintile | BR14: SUB-REGIONS:
A15: Weighted percentage (used in graphs) | C15: Poorest | D15: Poor | E15: Middle | F15: Rich | G15: Richest | H15: Poorest | I15: Poor | J15: Middle | K15: Rich | L15: Richest | M15: Poorest | N15: Poor | O15: Middle | P15: Rich | Q15: Richest | R15: Abyan | S15: Aden | T15: Al-Baidha | U15: Al-Hodiedah | V15: Al-Jawf | W15: Al-Mhrah | X15: Al-Mhweit | Y15: Aldhalae | Z15: Amran | AA15: Dhamar | AB15: Hadramout | AC15: Hajjah | AD15: Ibb | AE15: lahj | AF15: Mareb | AG15: Reimah | AH15: Sadah | AI15: Sanaa | AJ15: Sanaa City | AK15: Shabwah | AL15: Taiz | BA15: Water data, raw numbers (weighted) | BC15: Poorest | BD15: Poor | BE15: Middle | BF15: Rich | BG15: Richest | BH15: Poorest | BI15: Poor | BJ15: Middle | BK15: Rich | BL15: Richest | BM15: Poorest | BN15: Poor | BO15: Middle | BP15: Rich | BQ15: Richest | BR15: Abyan | BS15: Aden | BT15: Al-Baidha | BU15: Al-Hodiedah | BV15: Al-Jawf | BW15: Al-Mhrah | BX15: Al-Mhweit | BY15: Aldhalae | BZ15: Amran | CA15: Dhamar | CB15: Hadramout | CC15: Hajjah | CD15: Ibb | CE15: lahj | CF15: Mareb | CG15: Reimah | CH15: Sadah | CI15: Sanaa | CJ15: Sanaa City | CK15: Shabwah | CL15: Taiz
A16: Water | B16: Improved | C16: =C58+C59+C60+C63+C65+C66+C67+C68+C61*MICS06!C24/100+C62*MICS06!C25/100 -> 54.97360714 | D16: =D58+D59+D60+D63+D65+D66+D67+D68+D61*MICS06!D24/100+D62*MICS06!D25/100 -> 71.32375216 | E16: =E58+E59+E60+E63+E65+E66+E67+E68+E61*MICS06!E24/100+E62*MICS06!E25/100 -> 85.18920223 | F16: =F58+F59+F60+F63+F65+F66+F67+F68+F61*MICS06!F24/100+F62*MICS06!F25/100 -> 95.99871338 | G16: =G58+G59+G60+G63+G65+G66+G67+G68+G61*MICS06!G24/100+G62*MICS06!G25/100 -> 98.88953665 | H16: =H58+H59+H60+H63+H65+H66+H67+H68+H61*MICS06!H24/100+H62*MICS06!H25/100 -> 97.8705972 | I16: =I58+I59+I60+I63+I65+I66+I67+I68+I61*MICS06!I24/100+I62*MICS06!I25/100 -> 99.34513453 | J16: =J58+J59+J60+J63+J65+J66+J67+J68+J61*MICS06!J24/100+J62*MICS06!J25/100 -> 99.75605106 | K16: =K58+K59+K60+K63+K65+K66+K67+K68+K61*MICS06!K24/100+K62*MICS06!K25/100 -> 99.76889488 | L16: =L58+L59+L60+L63+L65+L66+L67+L68+L61*MICS06!L24/100+L62*MICS06!L25/100 -> 99.59029262 | M16: =M58+M59+M60+M63+M65+M66+M67+M68+M61*MICS06!M24/100+M62*MICS06!M25/100 -> 53.71172796 | N16: =N58+N59+N60+N63+N65+N66+N67+N68+N61*MICS06!N24/100+N62*MICS06!N25/100 -> 62.89301958 | O16: =O58+O59+O60+O63+O65+O66+O67+O68+O61*MICS06!O24/100+O62*MICS06!O25/100 -> 76.17121935 | P16: =P58+P59+P60+P63+P65+P66+P67+P68+P61*MICS06!P24/100+P62*MICS06!P25/100 -> 82.28484619 | Q16: =Q58+Q59+Q60+Q63+Q65+Q66+Q67+Q68+Q61*MICS06!Q24/100+Q62*MICS06!Q25/100 -> 93.10972758 | R16: =R58+R59+R60+R63+R65+R66+R67+R68+R61*MICS06!R24/100+R62*MICS06!R25/100 -> 86.27983099 | S16: =S58+S59+S60+S63+S65+S66+S67+S68+S61*MICS06!S24/100+S62*MICS06!S25/100 -> 99.57772284 | T16: =T58+T59+T60+T63+T65+T66+T67+T68+T61*MICS06!T24/100+T62*MICS06!T25/100 -> 81.14737568 | U16: =U58+U59+U60+U63+U65+U66+U67+U68+U61*MICS06!U24/100+U62*MICS06!U25/100 -> 95.16621357 | V16: =V58+V59+V60+V63+V65+V66+V67+V68+V61*MICS06!V24/100+V62*MICS06!V25/100 -> 85.50661298 | W16: =W58+W59+W60+W63+W65+W66+W67+W68+W61*MICS06!W24/100+W62*MICS06!W25/100 -> 87.02066716 | X16: =X58+X59+X60+X63+X65+X66+X67+X68+X61*MICS06!X24/100+X62*MICS06!X25/100 -> 73.6995063 | Y16: =Y58+Y59+Y60+Y63+Y65+Y66+Y67+Y68+Y61*MICS06!Y24/100+Y62*MICS06!Y25/100 -> 84.56166313 | Z16: =Z58+Z59+Z60+Z63+Z65+Z66+Z67+Z68+Z61*MICS06!Z24/100+Z62*MICS06!Z25/100 -> 72.47360225 | AA16: =AA58+AA59+AA60+AA63+AA65+AA66+AA67+AA68+AA61*MICS06!AA24/100+AA62*MICS06!AA25/100 -> 72.21736524 | AB16: =AB58+AB59+AB60+AB63+AB65+AB66+AB67+AB68+AB61*MICS06!AB24/100+AB62*MICS06!AB25/100 -> 90.95815258 | AC16: =AC58+AC59+AC60+AC63+AC65+AC66+AC67+AC68+AC61*MICS06!AC24/100+AC62*MICS06!AC25/100 -> 55.66096192 | AD16: =AD58+AD59+AD60+AD63+AD65+AD66+AD67+AD68+AD61*MICS06!AD24/100+AD62*MICS06!AD25/100 -> 71.85019524 | AE16: =AE58+AE59+AE60+AE63+AE65+AE66+AE67+AE68+AE61*MICS06!AE24/100+AE62*MICS06!AE25/100 -> 81.48190788 | AF16: =AF58+AF59+AF60+AF63+AF65+AF66+AF67+AF68+AF61*MICS06!AF24/100+AF62*MICS06!AF25/100 -> 77.4426291 | AG16: =AG58+AG59+AG60+AG63+AG65+AG66+AG67+AG68+AG61*MICS06!AG24/100+AG62*MICS06!AG25/100 -> 83.64944003 | AH16: =AH58+AH59+AH60+AH63+AH65+AH66+AH67+AH68+AH61*MICS06!AH24/100+AH62*MICS06!AH25/100 -> 78.22451867 | AI16: =AI58+AI59+AI60+AI63+AI65+AI66+AI67+AI68+AI61*MICS06!AI24/100+AI62*MICS06!AI25/100 -> 71.44823278 | AJ16: =AJ58+AJ59+AJ60+AJ63+AJ65+AJ66+AJ67+AJ68+AJ61*MICS06!AJ24/100+AJ62*MICS06!AJ25/100 -> 99.87275547 | AK16: =AK58+AK59+AK60+AK63+AK65+AK66+AK67+AK68+AK61*MICS06!AK24/100+AK62*MICS06!AK25/100 -> 90.53286806 | AL16: =AL58+AL59+AL60+AL63+AL65+AL66+AL67+AL68+AL61*MICS06!AL24/100+AL62*MICS06!AL25/100 -> 80.40674448 | BA16: Water | BB16: Improved | BC16: N/A | BD16: N/A | BE16: N/A | BF16: N/A | BG16: N/A | BH16: N/A | BI16: N/A | BJ16: N/A | BK16: N/A | BL16: N/A | BM16: N/A | BN16: N/A | BO16: N/A | BP16: N/A | BQ16: N/A | BR16: N/A | BS16: N/A | BT16: N/A | BU16: N/A | BV16: N/A | BW16: N/A | BX16: N/A | BY16: N/A | BZ16: N/A | CA16: N/A | CB16: N/A | CC16: N/A | CD16: N/A | CE16: N/A | CF16: N/A | CG16: N/A | CH16: N/A | CI16: N/A | CJ16: N/A | CK16: N/A | CL16: N/A
B17: Not Improved | C17: =100-C16 -> 45.02639286 | D17: =100-D16 -> 28.67624784 | E17: 14.81079777 | F17: 4.001286618 | G17: 1.110463348 | H17: 2.129402796 | I17: 0.6548654673 | J17: 0.2439489363 | K17: 0.2311051199 | L17: 0.4097073842 | M17: 46.28827204 | N17: 37.10698042 | O17: 23.82878065 | P17: 17.71515381 | Q17: 6.890272419 | R17: 13.72016901 | S17: 0.4222771606 | T17: 18.85262432 | U17: 4.833786431 | V17: 14.49338702 | W17: 12.97933284 | X17: 26.3004937 | Y17: 15.43833687 | Z17: 27.52639775 | AA17: 27.78263476 | AB17: 9.041847423 | AC17: 44.33903808 | AD17: 28.14980476 | AE17: 18.51809212 | AF17: 22.5573709 | AG17: 16.35055997 | AH17: 21.77548133 | AI17: 28.55176722 | AJ17: 0.1272445275 | AK17: 9.467131942 | AL17: 19.59325552 | BB17: Not Improved | BC17: N/A | BD17: N/A | BE17: N/A | BF17: N/A | BG17: N/A | BH17: N/A | BI17: N/A | BJ17: N/A | BK17: N/A | BL17: N/A | BM17: N/A | BN17: N/A | BO17: N/A | BP17: N/A | BQ17: N/A | BR17: N/A | BS17: N/A | BT17: N/A | BU17: N/A | BV17: N/A | BW17: N/A | BX17: N/A | BY17: N/A | BZ17: N/A | CA17: N/A | CB17: N/A | CC17: N/A | CD17: N/A | CE17: N/A | CF17: N/A | CG17: N/A | CH17: N/A | CI17: N/A | CJ17: N/A | CK17: N/A | CL17: N/A
A18: Water ladder | B18: Basic | C18: =C16*MICS06!C23/100 -> 31.94803698 | D18: =D16*MICS06!D23/100 -> 56.96394768 | E18: =E16*MICS06!E23/100 -> 77.16088226 | F18: =F16*MICS06!F23/100 -> 94.01208608 | G18: =G16*MICS06!G23/100 -> 95.99148495 | H18: =H16*MICS06!H23/100 -> 94.09753529 | I18: =I16*MICS06!I23/100 -> 97.70658409 | J18: =J16*MICS06!J23/100 -> 97.29361818 | K18: =K16*MICS06!K23/100 -> 97.8456753 | L18: =L16*MICS06!L23/100 -> 98.22679601 | M18: =M16*MICS06!M23/100 -> 26.59934648 | N18: =N16*MICS06!N23/100 -> 45.85508302 | O18: =O16*MICS06!O23/100 -> 62.93200619 | P18: =P16*MICS06!P23/100 -> 74.26527922 | Q18: =Q16*MICS06!Q23/100 -> 89.43172428 | R18: =R16*MICS06!R23/100 -> 80.27596043 | S18: =S16*MICS06!S23/100 -> 99.57772284 | T18: =T16*MICS06!T23/100 -> 72.94552071 | U18: =U16*MICS06!U23/100 -> 95.16621357 | V18: =V16*MICS06!V23/100 -> 71.89679216 | W18: =W16*MICS06!W23/100 -> 38.43976945 | X18: =X16*MICS06!X23/100 -> 73.6995063 | Y18: =Y16*MICS06!Y23/100 -> 42.22992437 | Z18: =Z16*MICS06!Z23/100 -> 70.73833853 | AA18: =AA16*MICS06!AA23/100 -> 55.2833888 | AB18: =AB16*MICS06!AB23/100 -> 90.05849576 | AC18: =AC16*MICS06!AC23/100 -> 46.79986039 | AD18: =AD16*MICS06!AD23/100 -> 65.8957556 | AE18: =AE16*MICS06!AE23/100 -> 76.55659208 | AF18: =AF16*MICS06!AF23/100 -> 65.66960646 | AG18: =AG16*MICS06!AG23/100 -> 50.86416002 | AH18: =AH16*MICS06!AH23/100 -> 77.14049667 | AI18: =AI16*MICS06!AI23/100 -> 59.38772906 | AJ18: =AJ16*MICS06!AJ23/100 -> 99.06875888 | AK18: =AK16*MICS06!AK23/100 -> 83.67661047 | AL18: =AL16*MICS06!AL23/100 -> 69.74211819 | BA18: Water ladder | BB18: Basic | BC18: N/A | BD18: N/A | BE18: N/A | BF18: N/A | BG18: N/A | BH18: N/A | BI18: N/A | BJ18: N/A | BK18: N/A | BL18: N/A | BM18: N/A | BN18: N/A | BO18: N/A | BP18: N/A | BQ18: N/A | BR18: N/A | BS18: N/A | BT18: N/A | BU18: N/A | BV18: N/A | BW18: N/A | BX18: N/A | BY18: N/A | BZ18: N/A | CA18: N/A | CB18: N/A | CC18: N/A | CD18: N/A | CE18: N/A | CF18: N/A | CG18: N/A | CH18: N/A | CI18: N/A | CJ18: N/A | CK18: N/A | CL18: N/A
B19: Limited | C19: =C16*MICS06!C22/100 -> 23.02557016 | D19: =D16*MICS06!D22/100 -> 14.35980449 | E19: =E16*MICS06!E22/100 -> 8.028319974 | F19: =F16*MICS06!F22/100 -> 1.986627305 | G19: =G16*MICS06!G22/100 -> 2.898051704 | H19: =H16*MICS06!H22/100 -> 3.773061917 | I19: =I16*MICS06!I22/100 -> 1.638550446 | J19: =J16*MICS06!J22/100 -> 2.46243288 | K19: =K16*MICS06!K22/100 -> 1.923219577 | L19: =L16*MICS06!L22/100 -> 1.363496604 | M19: =M16*MICS06!M22/100 -> 27.11238148 | N19: =N16*MICS06!N22/100 -> 17.03793656 | O19: =O16*MICS06!O22/100 -> 13.23921316 | P19: =P16*MICS06!P22/100 -> 8.01956697 | Q19: =Q16*MICS06!Q22/100 -> 3.678003303 | R19: =R16*MICS06!R22/100 -> 6.003870567 | S19: =S16*MICS06!S22/100 -> 0 | T19: =T16*MICS06!T22/100 -> 8.201854968 | U19: =U16*MICS06!U22/100 -> 0 | V19: =V16*MICS06!V22/100 -> 13.60982083 | W19: =W16*MICS06!W22/100 -> 48.58089771 | X19: =X16*MICS06!X22/100 -> 0 | Y19: =Y16*MICS06!Y22/100 -> 42.33173876 | Z19: =Z16*MICS06!Z22/100 -> 1.735263721 | AA19: =AA16*MICS06!AA22/100 -> 16.93397644 | AB19: =AB16*MICS06!AB22/100 -> 0.8996568179 | AC19: =AC16*MICS06!AC22/100 -> 8.86110153 | AD19: =AD16*MICS06!AD22/100 -> 5.954439638 | AE19: =AE16*MICS06!AE22/100 -> 4.925315798 | AF19: =AF16*MICS06!AF22/100 -> 11.77302263 | AG19: =AG16*MICS06!AG22/100 -> 32.78528002 | AH19: =AH16*MICS06!AH22/100 -> 1.084021998 | AI19: =AI16*MICS06!AI22/100 -> 12.06050372 | AJ19: =AJ16*MICS06!AJ22/100 -> 0.8039965917 | AK19: =AK16*MICS06!AK22/100 -> 6.856257593 | AL19: =AL16*MICS06!AL22/100 -> 10.66462628 | BB19: Limited | BC19: N/A | BD19: N/A | BE19: N/A | BF19: N/A | BG19: N/A | BH19: N/A | BI19: N/A | BJ19: N/A | BK19: N/A | BL19: N/A | BM19: N/A | BN19: N/A | BO19: N/A | BP19: N/A | BQ19: N/A | BR19: N/A | BS19: N/A | BT19: N/A | BU19: N/A | BV19: N/A | BW19: N/A | BX19: N/A | BY19: N/A | BZ19: N/A | CA19: N/A | CB19: N/A | CC19: N/A | CD19: N/A | CE19: N/A | CF19: N/A | CG19: N/A | CH19: N/A | CI19: N/A | CJ19: N/A | CK19: N/A | CL19: N/A
B20: Unimproved | C20: =100-C18-C19-C21 -> 40.72283926 | D20: =100-D18-D19-D21 -> 25.35500533 | E20: 12.99066016 | F20: 3.541839203 | G20: 0.9553910416 | H20: 2.129402796 | I20: 0.6548654673 | J20: 0.2439489363 | K20: 0.2311051199 | L20: 0.4097073842 | M20: 42.14722414 | N20: 32.67368915 | O20: 20.9820366 | P20: 15.54001648 | Q20: 5.938119457 | R20: 13.10315692 | S20: 0.4222771606 | T20: 17.46449799 | U20: 4.623531908 | V20: 10.45047079 | W20: 6.51183822 | X20: 23.3728091 | Y20: 15.12330768 | Z20: 20.82091361 | AA20: 22.49212673 | AB20: 1.184317387 | AC20: 43.66144322 | AD20: 26.41414848 | AE20: 17.96053472 | AF20: 21.77164849 | AG20: 7.796192202 | AH20: 20.90301209 | AI20: 26.47040558 | AJ20: 0.1272445275 | AK20: 5.111747283 | AL20: 19.44292656 | BB20: Unimproved | BC20: N/A | BD20: N/A | BE20: N/A | BF20: N/A | BG20: N/A | BH20: N/A | BI20: N/A | BJ20: N/A | BK20: N/A | BL20: N/A | BM20: N/A | BN20: N/A | BO20: N/A | BP20: N/A | BQ20: N/A | BR20: N/A | BS20: N/A | BT20: N/A | BU20: N/A | BV20: N/A | BW20: N/A | BX20: N/A | BY20: N/A | BZ20: N/A | CA20: N/A | CB20: N/A | CC20: N/A | CD20: N/A | CE20: N/A | CF20: N/A | CG20: N/A | CH20: N/A | CI20: N/A | CJ20: N/A | CK20: N/A | CL20: N/A
B21: Surface water | C21: =C64 -> 4.303553598 | D21: 3.321242508 | E21: 1.820137605 | F21: 0.4594474146 | G21: 0.155072306 | H21: 0 | I21: 0 | J21: 0 | K21: 0 | L21: 0 | M21: 4.141047903 | N21: 4.43329127 | O21: 2.84674405 | P21: 2.175137329 | Q21: 0.9521529618 | R21: 0.6170120823 | S21: 0 | T21: 1.388126335 | U21: 0.210254523 | V21: 4.04291623 | W21: 6.467494619 | X21: 2.927684599 | Y21: 0.3150291866 | Z21: 6.705484137 | AA21: 5.290508023 | AB21: 7.857530036 | AC21: 0.6775948597 | AD21: 1.735656276 | AE21: 0.5575574056 | AF21: 0.7857224169 | AG21: 8.554367764 | AH21: 0.8724692476 | AI21: 2.08136164 | AJ21: 0 | AK21: 4.355384659 | AL21: 0.1503289586 | BB21: Surface water | BC21: N/A | BD21: N/A | BE21: N/A | BF21: N/A | BG21: N/A | BH21: N/A | BI21: N/A | BJ21: N/A | BK21: N/A | BL21: N/A | BM21: N/A | BN21: N/A | BO21: N/A | BP21: N/A | BQ21: N/A | BR21: N/A | BS21: N/A | BT21: N/A | BU21: N/A | BV21: N/A | BW21: N/A | BX21: N/A | BY21: N/A | BZ21: N/A | CA21: N/A | CB21: N/A | CC21: N/A | CD21: N/A | CE21: N/A | CF21: N/A | CG21: N/A | CH21: N/A | CI21: N/A | CJ21: N/A | CK21: N/A | CL21: N/A
A22: Improved water point at more than 30 minutes | B22: Yes | C22: N/A | D22: N/A | E22: N/A | F22: N/A | G22: N/A | H22: N/A | I22: N/A | J22: N/A | K22: N/A | L22: N/A | M22: N/A | N22: N/A | O22: N/A | P22: N/A | Q22: N/A | R22: N/A | S22: N/A | T22: N/A | U22: N/A | V22: N/A | W22: N/A | X22: N/A | Y22: N/A | Z22: N/A | AA22: N/A | AB22: N/A | AC22: N/A | AD22: N/A | AE22: N/A | AF22: N/A | AG22: N/A | AH22: N/A | AI22: N/A | AJ22: N/A | AK22: N/A | AL22: N/A | BA22: Improved water point at more than 30 minutes | BB22: Yes | BC22: N/A | BD22: N/A | BE22: N/A | BF22: N/A | BG22: N/A | BH22: N/A | BI22: N/A | BJ22: N/A | BK22: N/A | BL22: N/A | BM22: N/A | BN22: N/A | BO22: N/A | BP22: N/A | BQ22: N/A | BR22: N/A | BS22: N/A | BT22: N/A | BU22: N/A | BV22: N/A | BW22: N/A | BX22: N/A | BY22: N/A | BZ22: N/A | CA22: N/A | CB22: N/A | CC22: N/A | CD22: N/A | CE22: N/A | CF22: N/A | CG22: N/A | CH22: N/A | CI22: N/A | CJ22: N/A | CK22: N/A | CL22: N/A
B23: No | C23: N/A | D23: N/A | E23: N/A | F23: N/A | G23: N/A | H23: N/A | I23: N/A | J23: N/A | K23: N/A | L23: N/A | M23: N/A | N23: N/A | O23: N/A | P23: N/A | Q23: N/A | R23: N/A | S23: N/A | T23: N/A | U23: N/A | V23: N/A | W23: N/A | X23: N/A | Y23: N/A | Z23: N/A | AA23: N/A | AB23: N/A | AC23: N/A | AD23: N/A | AE23: N/A | AF23: N/A | AG23: N/A | AH23: N/A | AI23: N/A | AJ23: N/A | AK23: N/A | AL23: N/A | BB23: No | BC23: N/A | BD23: N/A | BE23: N/A | BF23: N/A | BG23: N/A | BH23: N/A | BI23: N/A | BJ23: N/A | BK23: N/A | BL23: N/A | BM23: N/A | BN23: N/A | BO23: N/A | BP23: N/A | BQ23: N/A | BR23: N/A | BS23: N/A | BT23: N/A | BU23: N/A | BV23: N/A | BW23: N/A | BX23: N/A | BY23: N/A | BZ23: N/A | CA23: N/A | CB23: N/A | CC23: N/A | CD23: N/A | CE23: N/A | CF23: N/A | CG23: N/A | CH23: N/A | CI23: N/A | CJ23: N/A | CK23: N/A | CL23: N/A
A24: Manually calculated ratios | B24: Improved wells
B25: Improved springs
B26: Other
C27: NATIONAL wealth index quintile | H27: URBAN wealth index quintile | M27: RURAL wealth index quintile | R27: SUB-REGIONS: | BA27: Raw numbers of respondents: | BB27: Use of drinking water sources | BC27: NATIONAL wealth index quintile | BH27: URBAN wealth index quintile | BM27: RURAL wealth index quintile | BR27: SUB-REGIONS:
A28: Percentage based on weighted population | C28: Poorest | D28: Poor | E28: Middle | F28: Rich | G28: Richest | H28: Poorest | I28: Poor | J28: Middle | K28: Rich | L28: Richest | M28: Poorest | N28: Poor | O28: Middle | P28: Rich | Q28: Richest | R28: Abyan | S28: Aden | T28: Al-Baidha | U28: Al-Hodiedah | V28: Al-Jawf | W28: Al-Mhrah | X28: Al-Mhweit | Y28: Aldhalae | Z28: Amran | AA28: Dhamar | AB28: Hadramout | AC28: Hajjah | AD28: Ibb | AE28: lahj | AF28: Mareb | AG28: Reimah | AH28: Sadah | AI28: Sanaa | AJ28: Sanaa City | AK28: Shabwah | AL28: Taiz | BA28: Water data, raw numbers (weighted) | BC28: Poorest | BD28: Poor | BE28: Middle | BF28: Rich | BG28: Richest | BH28: Poorest | BI28: Poor | BJ28: Middle | BK28: Rich | BL28: Richest | BM28: Poorest | BN28: Poor | BO28: Middle | BP28: Rich | BQ28: Richest | BR28: Abyan | BS28: Aden | BT28: Al-Baidha | BU28: Al-Hodiedah | BV28: Al-Jawf | BW28: Al-Mhrah | BX28: Al-Mhweit | BY28: Aldhalae | BZ28: Amran | CA28: Dhamar | CB28: Hadramout | CC28: Hajjah | CD28: Ibb | CE28: lahj | CF28: Mareb | CG28: Reimah | CH28: Sadah | CI28: Sanaa | CJ28: Sanaa City | CK28: Shabwah | CL28: Taiz
A29: Piped water | B29: Yes | C29: N/A | D29: N/A | E29: N/A | F29: N/A | G29: N/A | H29: N/A | I29: N/A | J29: N/A | K29: N/A | L29: N/A | M29: N/A | N29: N/A | O29: N/A | P29: N/A | Q29: N/A | R29: N/A | S29: N/A | T29: N/A | U29: N/A | V29: N/A | W29: N/A | X29: N/A | Y29: N/A | Z29: N/A | AA29: N/A | AB29: N/A | AC29: N/A | AD29: N/A | AE29: N/A | AF29: N/A | AG29: N/A | AH29: N/A | AI29: N/A | AJ29: N/A | AK29: N/A | AL29: N/A | BA29: Piped water | BB29: Yes | BC29: N/A | BD29: N/A | BE29: N/A | BF29: N/A | BG29: N/A | BH29: N/A | BI29: N/A | BJ29: N/A | BK29: N/A | BL29: N/A | BM29: N/A | BN29: N/A | BO29: N/A | BP29: N/A | BQ29: N/A | BR29: N/A | BS29: N/A | BT29: N/A | BU29: N/A | BV29: N/A | BW29: N/A | BX29: N/A | BY29: N/A | BZ29: N/A | CA29: N/A | CB29: N/A | CC29: N/A | CD29: N/A | CE29: N/A | CF29: N/A | CG29: N/A | CH29: N/A | CI29: N/A | CJ29: N/A | CK29: N/A | CL29: N/A
B30: No | C30: N/A | D30: N/A | E30: N/A | F30: N/A | G30: N/A | H30: N/A | I30: N/A | J30: N/A | K30: N/A | L30: N/A | M30: N/A | N30: N/A | O30: N/A | P30: N/A | Q30: N/A | R30: N/A | S30: N/A | T30: N/A | U30: N/A | V30: N/A | W30: N/A | X30: N/A | Y30: N/A | Z30: N/A | AA30: N/A | AB30: N/A | AC30: N/A | AD30: N/A | AE30: N/A | AF30: N/A | AG30: N/A | AH30: N/A | AI30: N/A | AJ30: N/A | AK30: N/A | AL30: N/A | BB30: No | BC30: N/A | BD30: N/A | BE30: N/A | BF30: N/A | BG30: N/A | BH30: N/A | BI30: N/A | BJ30: N/A | BK30: N/A | BL30: N/A | BM30: N/A | BN30: N/A | BO30: N/A | BP30: N/A | BQ30: N/A | BR30: N/A | BS30: N/A | BT30: N/A | BU30: N/A | BV30: N/A | BW30: N/A | BX30: N/A | BY30: N/A | BZ30: N/A | CA30: N/A | CB30: N/A | CC30: N/A | CD30: N/A | CE30: N/A | CF30: N/A | CG30: N/A | CH30: N/A | CI30: N/A | CJ30: N/A | CK30: N/A | CL30: N/A
A31: Piped water on premises | B31: Yes | C31: N/A | D31: N/A | E31: N/A | F31: N/A | G31: N/A | H31: N/A | I31: N/A | J31: N/A | K31: N/A | L31: N/A | M31: N/A | N31: N/A | O31: N/A | P31: N/A | Q31: N/A | R31: N/A | S31: N/A | T31: N/A | U31: N/A | V31: N/A | W31: N/A | X31: N/A | Y31: N/A | Z31: N/A | AA31: N/A | AB31: N/A | AC31: N/A | AD31: N/A | AE31: N/A | AF31: N/A | AG31: N/A | AH31: N/A | AI31: N/A | AJ31: N/A | AK31: N/A | AL31: N/A | BA31: Piped water on premises | BB31: Yes | BC31: N/A | BD31: N/A | BE31: N/A | BF31: N/A | BG31: N/A | BH31: N/A | BI31: N/A | BJ31: N/A | BK31: N/A | BL31: N/A | BM31: N/A | BN31: N/A | BO31: N/A | BP31: N/A | BQ31: N/A | BR31: N/A | BS31: N/A | BT31: N/A | BU31: N/A | BV31: N/A | BW31: N/A | BX31: N/A | BY31: N/A | BZ31: N/A | CA31: N/A | CB31: N/A | CC31: N/A | CD31: N/A | CE31: N/A | CF31: N/A | CG31: N/A | CH31: N/A | CI31: N/A | CJ31: N/A | CK31: N/A | CL31: N/A
B32: No | C32: N/A | D32: N/A | E32: N/A | F32: N/A | G32: N/A | H32: N/A | I32: N/A | J32: N/A | K32: N/A | L32: N/A | M32: N/A | N32: N/A | O32: N/A | P32: N/A | Q32: N/A | R32: N/A | S32: N/A | T32: N/A | U32: N/A | V32: N/A | W32: N/A | X32: N/A | Y32: N/A | Z32: N/A | AA32: N/A | AB32: N/A | AC32: N/A | AD32: N/A | AE32: N/A | AF32: N/A | AG32: N/A | AH32: N/A | AI32: N/A | AJ32: N/A | AK32: N/A | AL32: N/A | BB32: No | BC32: N/A | BD32: N/A | BE32: N/A | BF32: N/A | BG32: N/A | BH32: N/A | BI32: N/A | BJ32: N/A | BK32: N/A | BL32: N/A | BM32: N/A | BN32: N/A | BO32: N/A | BP32: N/A | BQ32: N/A | BR32: N/A | BS32: N/A | BT32: N/A | BU32: N/A | BV32: N/A | BW32: N/A | BX32: N/A | BY32: N/A | BZ32: N/A | CA32: N/A | CB32: N/A | CC32: N/A | CD32: N/A | CE32: N/A | CF32: N/A | CG32: N/A | CH32: N/A | CI32: N/A | CJ32: N/A | CK32: N/A | CL32: N/A
A33: Piped water into dwelling | B33: Yes | C33: N/A | D33: N/A | E33: N/A | F33: N/A | G33: N/A | H33: N/A | I33: N/A | J33: N/A | K33: N/A | L33: N/A | M33: N/A | N33: N/A | O33: N/A | P33: N/A | Q33: N/A | R33: N/A | S33: N/A | T33: N/A | U33: N/A | V33: N/A | W33: N/A | X33: N/A | Y33: N/A | Z33: N/A | AA33: N/A | AB33: N/A | AC33: N/A | AD33: N/A | AE33: N/A | AF33: N/A | AG33: N/A | AH33: N/A | AI33: N/A | AJ33: N/A | AK33: N/A | AL33: N/A | BA33: Piped water into dwelling | BB33: Yes | BC33: N/A | BD33: N/A | BE33: N/A | BF33: N/A | BG33: N/A | BH33: N/A | BI33: N/A | BJ33: N/A | BK33: N/A | BL33: N/A | BM33: N/A | BN33: N/A | BO33: N/A | BP33: N/A | BQ33: N/A | BR33: N/A | BS33: N/A | BT33: N/A | BU33: N/A | BV33: N/A | BW33: N/A | BX33: N/A | BY33: N/A | BZ33: N/A | CA33: N/A | CB33: N/A | CC33: N/A | CD33: N/A | CE33: N/A | CF33: N/A | CG33: N/A | CH33: N/A | CI33: N/A | CJ33: N/A | CK33: N/A | CL33: N/A
B34: No | C34: N/A | D34: N/A | E34: N/A | F34: N/A | G34: N/A | H34: N/A | I34: N/A | J34: N/A | K34: N/A | L34: N/A | M34: N/A | N34: N/A | O34: N/A | P34: N/A | Q34: N/A | R34: N/A | S34: N/A | T34: N/A | U34: N/A | V34: N/A | W34: N/A | X34: N/A | Y34: N/A | Z34: N/A | AA34: N/A | AB34: N/A | AC34: N/A | AD34: N/A | AE34: N/A | AF34: N/A | AG34: N/A | AH34: N/A | AI34: N/A | AJ34: N/A | AK34: N/A | AL34: N/A | BB34: No | BC34: N/A | BD34: N/A | BE34: N/A | BF34: N/A | BG34: N/A | BH34: N/A | BI34: N/A | BJ34: N/A | BK34: N/A | BL34: N/A | BM34: N/A | BN34: N/A | BO34: N/A | BP34: N/A | BQ34: N/A | BR34: N/A | BS34: N/A | BT34: N/A | BU34: N/A | BV34: N/A | BW34: N/A | BX34: N/A | BY34: N/A | BZ34: N/A | CA34: N/A | CB34: N/A | CC34: N/A | CD34: N/A | CE34: N/A | CF34: N/A | CG34: N/A | CH34: N/A | CI34: N/A | CJ34: N/A | CK34: N/A | CL34: N/A
A35: Water source on premises | B35: Yes | C35: 79.94069788 | D35: 82.62272994 | E35: 87.18214169 | F35: 90.55627363 | G35: 96.27222857 | H35: 85.11125402 | I35: 95.07082441 | J35: 97.76802895 | K35: 97.85903138 | L35: 97.79467199 | M35: 80.25216667 | N35: 81.96294422 | O35: 84.11001549 | P35: 86.99872431 | Q35: 86.73505584 | R35: 68.01122597 | S35: 99.93265073 | T35: 83.77223185 | U35: 88.02579223 | V35: 50.38415861 | W35: 99.50170003 | X35: 62.97940956 | Y35: 86.5491847 | Z35: 81.94179161 | AA35: 95.25392771 | AB35: 98.50602421 | AC35: 80.50541412 | AD35: 83.59770327 | AE35: 97.37552493 | AF35: 80.15501385 | AG35: 92.32640462 | AH35: 96.03054937 | AI35: 86.09898767 | AJ35: 99.1688485 | AK35: 78.47564684 | AL35: 82.67242253 | BA35: Water source on premises | BB35: Yes | BC35: N/A | BD35: N/A | BE35: N/A | BF35: N/A | BG35: N/A | BH35: N/A | BI35: N/A | BJ35: N/A | BK35: N/A | BL35: N/A | BM35: N/A | BN35: N/A | BO35: N/A | BP35: N/A | BQ35: N/A | BR35: N/A | BS35: N/A | BT35: N/A | BU35: N/A | BV35: N/A | BW35: N/A | BX35: N/A | BY35: N/A | BZ35: N/A | CA35: N/A | CB35: N/A | CC35: N/A | CD35: N/A | CE35: N/A | CF35: N/A | CG35: N/A | CH35: N/A | CI35: N/A | CJ35: N/A | CK35: N/A | CL35: N/A
B36: No | C36: 20.05930212 | D36: 17.37727006 | E36: 12.81785831 | F36: 9.443726369 | G36: 3.72777143 | H36: 14.88874598 | I36: 4.929175591 | J36: 2.231971046 | K36: 2.140968623 | L36: 2.205328005 | M36: 19.74783333 | N36: 18.03705578 | O36: 15.88998451 | P36: 13.00127569 | Q36: 13.26494416 | R36: 31.98877403 | S36: 0.06734927138 | T36: 16.22776815 | U36: 11.97420777 | V36: 49.61584139 | W36: 0.4982999721 | X36: 37.02059044 | Y36: 13.4508153 | Z36: 18.05820839 | AA36: 4.746072295 | AB36: 1.493975789 | AC36: 19.49458588 | AD36: 16.40229673 | AE36: 2.624475069 | AF36: 19.84498615 | AG36: 7.673595383 | AH36: 3.969450632 | AI36: 13.90101233 | AJ36: 0.8311515035 | AK36: 21.52435316 | AL36: 17.32757747 | BB36: No | BC36: N/A | BD36: N/A | BE36: N/A | BF36: N/A | BG36: N/A | BH36: N/A | BI36: N/A | BJ36: N/A | BK36: N/A | BL36: N/A | BM36: N/A | BN36: N/A | BO36: N/A | BP36: N/A | BQ36: N/A | BR36: N/A | BS36: N/A | BT36: N/A | BU36: N/A | BV36: N/A | BW36: N/A | BX36: N/A | BY36: N/A | BZ36: N/A | CA36: N/A | CB36: N/A | CC36: N/A | CD36: N/A | CE36: N/A | CF36: N/A | CG36: N/A | CH36: N/A | CI36: N/A | CJ36: N/A | CK36: N/A | CL36: N/A
A37: Improved Water source on premises | B37: Yes | C37: N/A | D37: N/A | E37: N/A | F37: N/A | G37: N/A | H37: N/A | I37: N/A | J37: N/A | K37: N/A | L37: N/A | M37: N/A | N37: N/A | O37: N/A | P37: N/A | Q37: N/A | R37: N/A | S37: N/A | T37: N/A | U37: N/A | V37: N/A | W37: N/A | X37: N/A | Y37: N/A | Z37: N/A | AA37: N/A | AB37: N/A | AC37: N/A | AD37: N/A | AE37: N/A | AF37: N/A | AG37: N/A | AH37: N/A | AI37: N/A | AJ37: N/A | AK37: N/A | AL37: N/A | BA37: Improved water source on premises | BB37: Yes | BC37: N/A | BD37: N/A | BE37: N/A | BF37: N/A | BG37: N/A | BH37: N/A | BI37: N/A | BJ37: N/A | BK37: N/A | BL37: N/A | BM37: N/A | BN37: N/A | BO37: N/A | BP37: N/A | BQ37: N/A | BR37: N/A | BS37: N/A | BT37: N/A | BU37: N/A | BV37: N/A | BW37: N/A | BX37: N/A | BY37: N/A | BZ37: N/A | CA37: N/A | CB37: N/A | CC37: N/A | CD37: N/A | CE37: N/A | CF37: N/A | CG37: N/A | CH37: N/A | CI37: N/A | CJ37: N/A | CK37: N/A | CL37: N/A
B38: No | C38: N/A | D38: N/A | E38: N/A | F38: N/A | G38: N/A | H38: N/A | I38: N/A | J38: N/A | K38: N/A | L38: N/A | M38: N/A | N38: N/A | O38: N/A | P38: N/A | Q38: N/A | R38: N/A | S38: N/A | T38: N/A | U38: N/A | V38: N/A | W38: N/A | X38: N/A | Y38: N/A | Z38: N/A | AA38: N/A | AB38: N/A | AC38: N/A | AD38: N/A | AE38: N/A | AF38: N/A | AG38: N/A | AH38: N/A | AI38: N/A | AJ38: N/A | AK38: N/A | AL38: N/A | BB38: No | BC38: N/A | BD38: N/A | BE38: N/A | BF38: N/A | BG38: N/A | BH38: N/A | BI38: N/A | BJ38: N/A | BK38: N/A | BL38: N/A | BM38: N/A | BN38: N/A | BO38: N/A | BP38: N/A | BQ38: N/A | BR38: N/A | BS38: N/A | BT38: N/A | BU38: N/A | BV38: N/A | BW38: N/A | BX38: N/A | BY38: N/A | BZ38: N/A | CA38: N/A | CB38: N/A | CC38: N/A | CD38: N/A | CE38: N/A | CF38: N/A | CG38: N/A | CH38: N/A | CI38: N/A | CJ38: N/A | CK38: N/A | CL38: N/A
A39: Piped water on premises available when needed | B39: Yes | C39: N/A | D39: N/A | E39: N/A | F39: N/A | G39: N/A | H39: N/A | I39: N/A | J39: N/A | K39: N/A | L39: N/A | M39: N/A | N39: N/A | O39: N/A | P39: N/A | Q39: N/A | R39: N/A | S39: N/A | T39: N/A | U39: N/A | V39: N/A | W39: N/A | X39: N/A | Y39: N/A | Z39: N/A | AA39: N/A | AB39: N/A | AC39: N/A | AD39: N/A | AE39: N/A | AF39: N/A | AG39: N/A | AH39: N/A | AI39: N/A | AJ39: N/A | AK39: N/A | AL39: N/A | BA39: Piped water on premises available when needed | BB39: Yes | BC39: N/A | BD39: N/A | BE39: N/A | BF39: N/A | BG39: N/A | BH39: N/A | BI39: N/A | BJ39: N/A | BK39: N/A | BL39: N/A | BM39: N/A | BN39: N/A | BO39: N/A | BP39: N/A | BQ39: N/A | BR39: N/A | BS39: N/A | BT39: N/A | BU39: N/A | BV39: N/A | BW39: N/A | BX39: N/A | BY39: N/A | BZ39: N/A | CA39: N/A | CB39: N/A | CC39: N/A | CD39: N/A | CE39: N/A | CF39: N/A | CG39: N/A | CH39: N/A | CI39: N/A | CJ39: N/A | CK39: N/A | CL39: N/A
B40: No | C40: N/A | D40: N/A | E40: N/A | F40: N/A | G40: N/A | H40: N/A | I40: N/A | J40: N/A | K40: N/A | L40: N/A | M40: N/A | N40: N/A | O40: N/A | P40: N/A | Q40: N/A | R40: N/A | S40: N/A | T40: N/A | U40: N/A | V40: N/A | W40: N/A | X40: N/A | Y40: N/A | Z40: N/A | AA40: N/A | AB40: N/A | AC40: N/A | AD40: N/A | AE40: N/A | AF40: N/A | AG40: N/A | AH40: N/A | AI40: N/A | AJ40: N/A | AK40: N/A | AL40: N/A | BB40: No | BC40: N/A | BD40: N/A | BE40: N/A | BF40: N/A | BG40: N/A | BH40: N/A | BI40: N/A | BJ40: N/A | BK40: N/A | BL40: N/A | BM40: N/A | BN40: N/A | BO40: N/A | BP40: N/A | BQ40: N/A | BR40: N/A | BS40: N/A | BT40: N/A | BU40: N/A | BV40: N/A | BW40: N/A | BX40: N/A | BY40: N/A | BZ40: N/A | CA40: N/A | CB40: N/A | CC40: N/A | CD40: N/A | CE40: N/A | CF40: N/A | CG40: N/A | CH40: N/A | CI40: N/A | CJ40: N/A | CK40: N/A | CL40: N/A
A41: Water point at more than 30 minutes | B41: Yes | C41: 15.50295098 | D41: 11.75804835 | E41: 8.745666702 | F41: 5.213989074 | G41: 2.152262352 | H41: 10.12132357 | I41: 2.568506255 | J41: 0.6564984064 | K41: 0.9217198472 | L41: 1.351929593 | M41: 15.68276104 | N41: 12.46904233 | O41: 11.00467799 | P41: 8.466063792 | Q41: 8.124117963 | R41: 16.19022067 | S41: 0 | T41: 14.26425825 | U41: 7.826874209 | V41: 33.36605135 | W41: 0 | X41: 19.77043899 | Y41: 9.954210958 | Z41: 11.62966727 | AA41: 3.444373765 | AB41: 0.9016106233 | AC41: 18.16485628 | AD41: 10.16263102 | AE41: 0.3574878079 | AF41: 13.77799656 | AG41: 6.729050522 | AH41: 2.701626612 | AI41: 8.032059419 | AJ41: 0.2866096654 | AK41: 15.38418425 | AL41: 12.6400022 | BA41: Water point at more than 30 minutes | BB41: Yes | BC41: N/A | BD41: N/A | BE41: N/A | BF41: N/A | BG41: N/A | BH41: N/A | BI41: N/A | BJ41: N/A | BK41: N/A | BL41: N/A | BM41: N/A | BN41: N/A | BO41: N/A | BP41: N/A | BQ41: N/A | BR41: N/A | BS41: N/A | BT41: N/A | BU41: N/A | BV41: N/A | BW41: N/A | BX41: N/A | BY41: N/A | BZ41: N/A | CA41: N/A | CB41: N/A | CC41: N/A | CD41: N/A | CE41: N/A | CF41: N/A | CG41: N/A | CH41: N/A | CI41: N/A | CJ41: N/A | CK41: N/A | CL41: N/A
B42: No | C42: 84.49704902 | D42: 88.24195165 | E42: 91.2543333 | F42: 94.78601093 | G42: 97.84773765 | H42: 89.87867643 | I42: 97.43149375 | J42: 99.34350159 | K42: 99.07828015 | L42: 98.64807041 | M42: 84.31723896 | N42: 87.53095767 | O42: 88.99532201 | P42: 91.53393621 | Q42: 91.87588204 | R42: 83.80977933 | S42: 100 | T42: 85.73574175 | U42: 92.17312579 | V42: 66.63394865 | W42: 100 | X42: 80.22956101 | Y42: 90.04578904 | Z42: 88.37033273 | AA42: 96.55562623 | AB42: 99.09838938 | AC42: 81.83514372 | AD42: 89.83736898 | AE42: 99.64251219 | AF42: 86.22200344 | AG42: 93.27094948 | AH42: 97.29837339 | AI42: 91.96794058 | AJ42: 99.71339033 | AK42: 84.61581575 | AL42: 87.3599978 | BB42: No | BC42: N/A | BD42: N/A | BE42: N/A | BF42: N/A | BG42: N/A | BH42: N/A | BI42: N/A | BJ42: N/A | BK42: N/A | BL42: N/A | BM42: N/A | BN42: N/A | BO42: N/A | BP42: N/A | BQ42: N/A | BR42: N/A | BS42: N/A | BT42: N/A | BU42: N/A | BV42: N/A | BW42: N/A | BX42: N/A | BY42: N/A | BZ42: N/A | CA42: N/A | CB42: N/A | CC42: N/A | CD42: N/A | CE42: N/A | CF42: N/A | CG42: N/A | CH42: N/A | CI42: N/A | CJ42: N/A | CK42: N/A | CL42: N/A
A43: Water source available when needed | B43: Yes | C43: N/A | D43: N/A | E43: N/A | F43: N/A | G43: N/A | H43: N/A | I43: N/A | J43: N/A | K43: N/A | L43: N/A | M43: N/A | N43: N/A | O43: N/A | P43: N/A | Q43: N/A | R43: N/A | S43: N/A | T43: N/A | U43: N/A | V43: N/A | W43: N/A | X43: N/A | Y43: N/A | Z43: N/A | AA43: N/A | AB43: N/A | AC43: N/A | AD43: N/A | AE43: N/A | AF43: N/A | AG43: N/A | AH43: N/A | AI43: N/A | AJ43: N/A | AK43: N/A | AL43: N/A | BA43: Water source available when needed | BB43: Yes | BC43: N/A | BD43: N/A | BE43: N/A | BF43: N/A | BG43: N/A | BH43: N/A | BI43: N/A | BJ43: N/A | BK43: N/A | BL43: N/A | BM43: N/A | BN43: N/A | BO43: N/A | BP43: N/A | BQ43: N/A | BR43: N/A | BS43: N/A | BT43: N/A | BU43: N/A | BV43: N/A | BW43: N/A | BX43: N/A | BY43: N/A | BZ43: N/A | CA43: N/A | CB43: N/A | CC43: N/A | CD43: N/A | CE43: N/A | CF43: N/A | CG43: N/A | CH43: N/A | CI43: N/A | CJ43: N/A | CK43: N/A | CL43: N/A
B44: No | C44: N/A | D44: N/A | E44: N/A | F44: N/A | G44: N/A | H44: N/A | I44: N/A | J44: N/A | K44: N/A | L44: N/A | M44: N/A | N44: N/A | O44: N/A | P44: N/A | Q44: N/A | R44: N/A | S44: N/A | T44: N/A | U44: N/A | V44: N/A | W44: N/A | X44: N/A | Y44: N/A | Z44: N/A | AA44: N/A | AB44: N/A | AC44: N/A | AD44: N/A | AE44: N/A | AF44: N/A | AG44: N/A | AH44: N/A | AI44: N/A | AJ44: N/A | AK44: N/A | AL44: N/A | BB44: No | BC44: N/A | BD44: N/A | BE44: N/A | BF44: N/A | BG44: N/A | BH44: N/A | BI44: N/A | BJ44: N/A | BK44: N/A | BL44: N/A | BM44: N/A | BN44: N/A | BO44: N/A | BP44: N/A | BQ44: N/A | BR44: N/A | BS44: N/A | BT44: N/A | BU44: N/A | BV44: N/A | BW44: N/A | BX44: N/A | BY44: N/A | BZ44: N/A | CA44: N/A | CB44: N/A | CC44: N/A | CD44: N/A | CE44: N/A | CF44: N/A | CG44: N/A | CH44: N/A | CI44: N/A | CJ44: N/A | CK44: N/A | CL44: N/A
A45: Improved water source available when needed | B45: Yes | C45: N/A | D45: N/A | E45: N/A | F45: N/A | G45: N/A | H45: N/A | I45: N/A | J45: N/A | K45: N/A | L45: N/A | M45: N/A | N45: N/A | O45: N/A | P45: N/A | Q45: N/A | R45: N/A | S45: N/A | T45: N/A | U45: N/A | V45: N/A | W45: N/A | X45: N/A | Y45: N/A | Z45: N/A | AA45: N/A | AB45: N/A | AC45: N/A | AD45: N/A | AE45: N/A | AF45: N/A | AG45: N/A | AH45: N/A | AI45: N/A | AJ45: N/A | AK45: N/A | AL45: N/A | BA45: Improved water source available when needed | BB45: Yes | BC45: N/A | BD45: N/A | BE45: N/A | BF45: N/A | BG45: N/A | BH45: N/A | BI45: N/A | BJ45: N/A | BK45: N/A | BL45: N/A | BM45: N/A | BN45: N/A | BO45: N/A | BP45: N/A | BQ45: N/A | BR45: N/A | BS45: N/A | BT45: N/A | BU45: N/A | BV45: N/A | BW45: N/A | BX45: N/A | BY45: N/A | BZ45: N/A | CA45: N/A | CB45: N/A | CC45: N/A | CD45: N/A | CE45: N/A | CF45: N/A | CG45: N/A | CH45: N/A | CI45: N/A | CJ45: N/A | CK45: N/A | CL45: N/A
B46: No | C46: N/A | D46: N/A | E46: N/A | F46: N/A | G46: N/A | H46: N/A | I46: N/A | J46: N/A | K46: N/A | L46: N/A | M46: N/A | N46: N/A | O46: N/A | P46: N/A | Q46: N/A | R46: N/A | S46: N/A | T46: N/A | U46: N/A | V46: N/A | W46: N/A | X46: N/A | Y46: N/A | Z46: N/A | AA46: N/A | AB46: N/A | AC46: N/A | AD46: N/A | AE46: N/A | AF46: N/A | AG46: N/A | AH46: N/A | AI46: N/A | AJ46: N/A | AK46: N/A | AL46: N/A | BB46: No | BC46: N/A | BD46: N/A | BE46: N/A | BF46: N/A | BG46: N/A | BH46: N/A | BI46: N/A | BJ46: N/A | BK46: N/A | BL46: N/A | BM46: N/A | BN46: N/A | BO46: N/A | BP46: N/A | BQ46: N/A | BR46: N/A | BS46: N/A | BT46: N/A | BU46: N/A | BV46: N/A | BW46: N/A | BX46: N/A | BY46: N/A | BZ46: N/A | CA46: N/A | CB46: N/A | CC46: N/A | CD46: N/A | CE46: N/A | CF46: N/A | CG46: N/A | CH46: N/A | CI46: N/A | CJ46: N/A | CK46: N/A | CL46: N/A
A47: Microbiological quality at point of collection | B47: Not contaminated (No E. coli in 100 mL) | C47: N/A | D47: N/A | E47: N/A | F47: N/A | G47: N/A | H47: N/A | I47: N/A | J47: N/A | K47: N/A | L47: N/A | M47: N/A | N47: N/A | O47: N/A | P47: N/A | Q47: N/A | R47: N/A | S47: N/A | T47: N/A | U47: N/A | V47: N/A | W47: N/A | X47: N/A | Y47: N/A | Z47: N/A | AA47: N/A | AB47: N/A | AC47: N/A | AD47: N/A | AE47: N/A | AF47: N/A | AG47: N/A | AH47: N/A | AI47: N/A | AJ47: N/A | AK47: N/A | AL47: N/A | BA47: Microbiological quality at point of collection | BB47: Not contaminated (No E. coli in 100 mL) | BC47: N/A | BD47: N/A | BE47: N/A | BF47: N/A | BG47: N/A | BH47: N/A | BI47: N/A | BJ47: N/A | BK47: N/A | BL47: N/A | BM47: N/A | BN47: N/A | BO47: N/A | BP47: N/A | BQ47: N/A | BR47: N/A | BS47: N/A | BT47: N/A | BU47: N/A | BV47: N/A | BW47: N/A | BX47: N/A | BY47: N/A | BZ47: N/A | CA47: N/A | CB47: N/A | CC47: N/A | CD47: N/A | CE47: N/A | CF47: N/A | CG47: N/A | CH47: N/A | CI47: N/A | CJ47: N/A | CK47: N/A | CL47: N/A
B48: Contaminated (E. coli detected in 100 mL) | C48: N/A | D48: N/A | E48: N/A | F48: N/A | G48: N/A | H48: N/A | I48: N/A | J48: N/A | K48: N/A | L48: N/A | M48: N/A | N48: N/A | O48: N/A | P48: N/A | Q48: N/A | R48: N/A | S48: N/A | T48: N/A | U48: N/A | V48: N/A | W48: N/A | X48: N/A | Y48: N/A | Z48: N/A | AA48: N/A | AB48: N/A | AC48: N/A | AD48: N/A | AE48: N/A | AF48: N/A | AG48: N/A | AH48: N/A | AI48: N/A | AJ48: N/A | AK48: N/A | AL48: N/A | BB48: Contaminated (E. coli detected in 100 mL) | BC48: N/A | BD48: N/A | BE48: N/A | BF48: N/A | BG48: N/A | BH48: N/A | BI48: N/A | BJ48: N/A | BK48: N/A | BL48: N/A | BM48: N/A | BN48: N/A | BO48: N/A | BP48: N/A | BQ48: N/A | BR48: N/A | BS48: N/A | BT48: N/A | BU48: N/A | BV48: N/A | BW48: N/A | BX48: N/A | BY48: N/A | BZ48: N/A | CA48: N/A | CB48: N/A | CC48: N/A | CD48: N/A | CE48: N/A | CF48: N/A | CG48: N/A | CH48: N/A | CI48: N/A | CJ48: N/A | CK48: N/A | CL48: N/A
B49: Highly contaminated (>100 CFU/100 mL) | C49: N/A | D49: N/A | E49: N/A | F49: N/A | G49: N/A | H49: N/A | I49: N/A | J49: N/A | K49: N/A | L49: N/A | M49: N/A | N49: N/A | O49: N/A | P49: N/A | Q49: N/A | R49: N/A | S49: N/A | T49: N/A | U49: N/A | V49: N/A | W49: N/A | X49: N/A | Y49: N/A | Z49: N/A | AA49: N/A | AB49: N/A | AC49: N/A | AD49: N/A | AE49: N/A | AF49: N/A | AG49: N/A | AH49: N/A | AI49: N/A | AJ49: N/A | AK49: N/A | AL49: N/A | BB49: Highly contaminated (>100 CFU/100 mL) | BC49: N/A | BD49: N/A | BE49: N/A | BF49: N/A | BG49: N/A | BH49: N/A | BI49: N/A | BJ49: N/A | BK49: N/A | BL49: N/A | BM49: N/A | BN49: N/A | BO49: N/A | BP49: N/A | BQ49: N/A | BR49: N/A | BS49: N/A | BT49: N/A | BU49: N/A | BV49: N/A | BW49: N/A | BX49: N/A | BY49: N/A | BZ49: N/A | CA49: N/A | CB49: N/A | CC49: N/A | CD49: N/A | CE49: N/A | CF49: N/A | CG49: N/A | CH49: N/A | CI49: N/A | CJ49: N/A | CK49: N/A | CL49: N/A
A50: Microbiological quality of improved water sources at point of collection | B50: Not contaminated (No E. coli in 100 mL) | C50: N/A | D50: N/A | E50: N/A | F50: N/A | G50: N/A | H50: N/A | I50: N/A | J50: N/A | K50: N/A | L50: N/A | M50: N/A | N50: N/A | O50: N/A | P50: N/A | Q50: N/A | R50: N/A | S50: N/A | T50: N/A | U50: N/A | V50: N/A | W50: N/A | X50: N/A | Y50: N/A | Z50: N/A | AA50: N/A | AB50: N/A | AC50: N/A | AD50: N/A | AE50: N/A | AF50: N/A | AG50: N/A | AH50: N/A | AI50: N/A | AJ50: N/A | AK50: N/A | AL50: N/A | BA50: Microbiological quality of improved water sources at point of collection | BB50: Not contaminated (No E. coli in 100 mL) | BC50: N/A | BD50: N/A | BE50: N/A | BF50: N/A | BG50: N/A | BH50: N/A | BI50: N/A | BJ50: N/A | BK50: N/A | BL50: N/A | BM50: N/A | BN50: N/A | BO50: N/A | BP50: N/A | BQ50: N/A | BR50: N/A | BS50: N/A | BT50: N/A | BU50: N/A | BV50: N/A | BW50: N/A | BX50: N/A | BY50: N/A | BZ50: N/A | CA50: N/A | CB50: N/A | CC50: N/A | CD50: N/A | CE50: N/A | CF50: N/A | CG50: N/A | CH50: N/A | CI50: N/A | CJ50: N/A | CK50: N/A | CL50: N/A
B51: Contaminated (E. coli detected in 100 mL) | C51: N/A | D51: N/A | E51: N/A | F51: N/A | G51: N/A | H51: N/A | I51: N/A | J51: N/A | K51: N/A | L51: N/A | M51: N/A | N51: N/A | O51: N/A | P51: N/A | Q51: N/A | R51: N/A | S51: N/A | T51: N/A | U51: N/A | V51: N/A | W51: N/A | X51: N/A | Y51: N/A | Z51: N/A | AA51: N/A | AB51: N/A | AC51: N/A | AD51: N/A | AE51: N/A | AF51: N/A | AG51: N/A | AH51: N/A | AI51: N/A | AJ51: N/A | AK51: N/A | AL51: N/A | BB51: Contaminated (E. coli detected in 100 mL) | BC51: N/A | BD51: N/A | BE51: N/A | BF51: N/A | BG51: N/A | BH51: N/A | BI51: N/A | BJ51: N/A | BK51: N/A | BL51: N/A | BM51: N/A | BN51: N/A | BO51: N/A | BP51: N/A | BQ51: N/A | BR51: N/A | BS51: N/A | BT51: N/A | BU51: N/A | BV51: N/A | BW51: N/A | BX51: N/A | BY51: N/A | BZ51: N/A | CA51: N/A | CB51: N/A | CC51: N/A | CD51: N/A | CE51: N/A | CF51: N/A | CG51: N/A | CH51: N/A | CI51: N/A | CJ51: N/A | CK51: N/A | CL51: N/A
B52: Highly contaminated (>100 CFU/100 mL) | C52: N/A | D52: N/A | E52: N/A | F52: N/A | G52: N/A | H52: N/A | I52: N/A | J52: N/A | K52: N/A | L52: N/A | M52: N/A | N52: N/A | O52: N/A | P52: N/A | Q52: N/A | R52: N/A | S52: N/A | T52: N/A | U52: N/A | V52: N/A | W52: N/A | X52: N/A | Y52: N/A | Z52: N/A | AA52: N/A | AB52: N/A | AC52: N/A | AD52: N/A | AE52: N/A | AF52: N/A | AG52: N/A | AH52: N/A | AI52: N/A | AJ52: N/A | AK52: N/A | AL52: N/A | BB52: Highly contaminated (>100 CFU/100 mL) | BC52: N/A | BD52: N/A | BE52: N/A | BF52: N/A | BG52: N/A | BH52: N/A | BI52: N/A | BJ52: N/A | BK52: N/A | BL52: N/A | BM52: N/A | BN52: N/A | BO52: N/A | BP52: N/A | BQ52: N/A | BR52: N/A | BS52: N/A | BT52: N/A | BU52: N/A | BV52: N/A | BW52: N/A | BX52: N/A | BY52: N/A | BZ52: N/A | CA52: N/A | CB52: N/A | CC52: N/A | CD52: N/A | CE52: N/A | CF52: N/A | CG52: N/A | CH52: N/A | CI52: N/A | CJ52: N/A | CK52: N/A | CL52: N/A
A53: Microbiological quality of piped on premises at point of collection | B53: Not contaminated (No E. coli in 100 mL) | C53: N/A | D53: N/A | E53: N/A | F53: N/A | G53: N/A | H53: N/A | I53: N/A | J53: N/A | K53: N/A | L53: N/A | M53: N/A | N53: N/A | O53: N/A | P53: N/A | Q53: N/A | R53: N/A | S53: N/A | T53: N/A | U53: N/A | V53: N/A | W53: N/A | X53: N/A | Y53: N/A | Z53: N/A | AA53: N/A | AB53: N/A | AC53: N/A | AD53: N/A | AE53: N/A | AF53: N/A | AG53: N/A | AH53: N/A | AI53: N/A | AJ53: N/A | AK53: N/A | AL53: N/A | BA53: Microbiological quality of piped on premises at point of collection | BB53: Not contaminated (No E. coli in 100 mL) | BC53: N/A | BD53: N/A | BE53: N/A | BF53: N/A | BG53: N/A | BH53: N/A | BI53: N/A | BJ53: N/A | BK53: N/A | BL53: N/A | BM53: N/A | BN53: N/A | BO53: N/A | BP53: N/A | BQ53: N/A | BR53: N/A | BS53: N/A | BT53: N/A | BU53: N/A | BV53: N/A | BW53: N/A | BX53: N/A | BY53: N/A | BZ53: N/A | CA53: N/A | CB53: N/A | CC53: N/A | CD53: N/A | CE53: N/A | CF53: N/A | CG53: N/A | CH53: N/A | CI53: N/A | CJ53: N/A | CK53: N/A | CL53: N/A
B54: Contaminated (E. coli detected in 100 mL) | C54: N/A | D54: N/A | E54: N/A | F54: N/A | G54: N/A | H54: N/A | I54: N/A | J54: N/A | K54: N/A | L54: N/A | M54: N/A | N54: N/A | O54: N/A | P54: N/A | Q54: N/A | R54: N/A | S54: N/A | T54: N/A | U54: N/A | V54: N/A | W54: N/A | X54: N/A | Y54: N/A | Z54: N/A | AA54: N/A | AB54: N/A | AC54: N/A | AD54: N/A | AE54: N/A | AF54: N/A | AG54: N/A | AH54: N/A | AI54: N/A | AJ54: N/A | AK54: N/A | AL54: N/A | BB54: Contaminated (E. coli detected in 100 mL) | BC54: N/A | BD54: N/A | BE54: N/A | BF54: N/A | BG54: N/A | BH54: N/A | BI54: N/A | BJ54: N/A | BK54: N/A | BL54: N/A | BM54: N/A | BN54: N/A | BO54: N/A | BP54: N/A | BQ54: N/A | BR54: N/A | BS54: N/A | BT54: N/A | BU54: N/A | BV54: N/A | BW54: N/A | BX54: N/A | BY54: N/A | BZ54: N/A | CA54: N/A | CB54: N/A | CC54: N/A | CD54: N/A | CE54: N/A | CF54: N/A | CG54: N/A | CH54: N/A | CI54: N/A | CJ54: N/A | CK54: N/A | CL54: N/A
B55: Highly contaminated (>100 CFU/100 mL) | C55: N/A | D55: N/A | E55: N/A | F55: N/A | G55: N/A | H55: N/A | I55: N/A | J55: N/A | K55: N/A | L55: N/A | M55: N/A | N55: N/A | O55: N/A | P55: N/A | Q55: N/A | R55: N/A | S55: N/A | T55: N/A | U55: N/A | V55: N/A | W55: N/A | X55: N/A | Y55: N/A | Z55: N/A | AA55: N/A | AB55: N/A | AC55: N/A | AD55: N/A | AE55: N/A | AF55: N/A | AG55: N/A | AH55: N/A | AI55: N/A | AJ55: N/A | AK55: N/A | AL55: N/A | BB55: Highly contaminated (>100 CFU/100 mL) | BC55: N/A | BD55: N/A | BE55: N/A | BF55: N/A | BG55: N/A | BH55: N/A | BI55: N/A | BJ55: N/A | BK55: N/A | BL55: N/A | BM55: N/A | BN55: N/A | BO55: N/A | BP55: N/A | BQ55: N/A | BR55: N/A | BS55: N/A | BT55: N/A | BU55: N/A | BV55: N/A | BW55: N/A | BX55: N/A | BY55: N/A | BZ55: N/A | CA55: N/A | CB55: N/A | CC55: N/A | CD55: N/A | CE55: N/A | CF55: N/A | CG55: N/A | CH55: N/A | CI55: N/A | CJ55: N/A | CK55: N/A | CL55: N/A
C56: NATIONAL wealth index quintile | H56: URBAN wealth index quintile | M56: RURAL wealth index quintile | R56: SUB-REGIONS: | BA56: Raw numbers of respondents: | BB56: Use of drinking water sources | BC56: NATIONAL wealth index quintile | BH56: URBAN wealth index quintile | BM56: RURAL wealth index quintile | BR56: SUB-REGIONS:
A57: Percentage based on weighted population | C57: Poorest | D57: Poor | E57: Middle | F57: Rich | G57: Richest | H57: Poorest | I57: Poor | J57: Middle | K57: Rich | L57: Richest | M57: Poorest | N57: Poor | O57: Middle | P57: Rich | Q57: Richest | R57: Abyan | S57: Aden | T57: Al-Baidha | U57: Al-Hodiedah | V57: Al-Jawf | W57: Al-Mhrah | X57: Al-Mhweit | Y57: Aldhalae | Z57: Amran | AA57: Dhamar | AB57: Hadramout | AC57: Hajjah | AD57: Ibb | AE57: lahj | AF57: Mareb | AG57: Reimah | AH57: Sadah | AI57: Sanaa | AJ57: Sanaa City | AK57: Shabwah | AL57: Taiz | BA57: Water data, raw numbers (weighted) | BC57: Poorest | BD57: Poor | BE57: Middle | BF57: Rich | BG57: Richest | BH57: Poorest | BI57: Poor | BJ57: Middle | BK57: Rich | BL57: Richest | BM57: Poorest | BN57: Poor | BO57: Middle | BP57: Rich | BQ57: Richest | BR57: Abyan | BS57: Aden | BT57: Al-Baidha | BU57: Al-Hodiedah | BV57: Al-Jawf | BW57: Al-Mhrah | BX57: Al-Mhweit | BY57: Aldhalae | BZ57: Amran | CA57: Dhamar | CB57: Hadramout | CC57: Hajjah | CD57: Ibb | CE57: lahj | CF57: Mareb | CG57: Reimah | CH57: Sadah | CI57: Sanaa | CJ57: Sanaa City | CK57: Shabwah | CL57: Taiz
A58: Source of drinking water | B58: Government network | C58: 4.463662153 | D58: 11.32146044 | E58: 15.48311259 | F58: 34.40712821 | G58: 33.78801254 | H58: 41.7425713 | I58: 42.51420193 | J58: 47.55345771 | K58: 39.24457575 | L58: 29.86505819 | M58: 2.313952319 | N58: 9.977529181 | O58: 11.29925049 | P58: 11.32410882 | Q58: 19.28901857 | R58: 32.68333992 | S58: 86.12389844 | T58: 9.479450566 | U58: 29.09542173 | V58: 1.272305441 | W58: 12.90047714 | X58: 19.52037071 | Y58: 6.993317574 | Z58: 8.60165078 | AA58: 22.19830294 | AB58: 49.12957298 | AC58: 15.87166329 | AD58: 22.1318089 | AE58: 17.5490869 | AF58: 6.262274243 | AG58: 2.315485248 | AH58: 10.48323846 | AI58: 7.049319436 | AJ58: 17.5718056 | AK58: 12.43960174 | AL58: 3.821825532
B59: Local network | C59: 6.666915922 | D59: 13.92059748 | E59: 17.49197093 | F59: 7.550153058 | G59: 5.382454248 | H59: 5.440336436 | I59: 1.931570693 | J59: 0.50017897 | K59: 0.150697619 | L59: 1.121586799 | M59: 5.630374137 | N59: 11.11151486 | O59: 15.2132381 | P59: 18.93562877 | Q59: 18.79748111 | R59: 1.214672597 | S59: 0.6742896969 | T59: 7.058057399 | U59: 27.04944316 | V59: 1.508645054 | W59: 0.03855802701 | X59: 0.672242789 | Y59: 8.903034391 | Z59: 2.435242913 | AA59: 6.371576904 | AB59: 15.63777471 | AC59: 1.180297496 | AD59: 11.33602648 | AE59: 9.781360838 | AF59: 12.80556614 | AG59: 3.338878855 | AH59: 8.676330359 | AI59: 5.103303468 | AJ59: 0.802099723 | AK59: 20.79815748 | AL59: 15.6619027
B60: Tube well or borehole | C60: 20.80130272 | D60: 19.07562758 | E60: 19.00704779 | F60: 8.139263032 | G60: 5.757702813 | H60: 5.054768236 | I60: 2.060475089 | J60: 2.01604922 | K60: 1.638462381 | L60: 0.8370139319 | M60: 20.71702331 | N60: 19.25725254 | O60: 20.06491393 | P60: 20.99237657 | Q60: 19.04089503 | R60: 17.00776199 | S60: 0 | T60: 8.815126586 | U60: 22.41978327 | V60: 28.02147039 | W60: 1.33085221 | X60: 5.482604343 | Y60: 23.25918776 | Z60: 18.40781919 | AA60: 27.94386825 | AB60: 0.6036073418 | AC60: 5.385846506 | AD60: 12.43323746 | AE60: 7.238079392 | AF60: 14.80237676 | AG60: 6.140224348 | AH60: 27.57468667 | AI60: 42.4674199 | AJ60: 2.99922974 | AK60: 14.96250955 | AL60: 11.96778236
B61: Well | C61: 32.93989785 | D61: 16.96435496 | E61: 9.024345496 | F61: 2.783449761 | G61: 1.067270531 | H61: 1.514687902 | I61: 0.7259700665 | J61: 0.1263052009 | K61: 0.04478125112 | L61: 0.05089511045 | M61: 37.47685403 | N61: 21.41184559 | O61: 14.85884759 | P61: 10.28390323 | Q61: 5.654257741 | R61: 9.358039526 | S61: 0 | T61: 14.5124362 | U61: 3.051368984 | V61: 17.12329981 | W61: 4.721058021 | X61: 10.28499134 | Y61: 25.65414804 | Z61: 11.38134985 | AA61: 11.81807495 | AB61: 2.400193028 | AC61: 39.51474372 | AD61: 7.97039105 | AE61: 23.99874699 | AF61: 35.07264262 | AG61: 8.104166724 | AH61: 21.11824037 | AI61: 15.98846353 | AJ61: 0.04945634786 | AK61: 9.402175834 | AL61: 21.49899783
B62: Spring | C62: 20.85996153 | D62: 17.06630053 | E62: 8.403770857 | F62: 1.565625027 | G62: 0.5242956618 | H62: 0.5077113922 | I62: 0.3432255335 | J62: 0.02095484149 | K62: 0.3649211147 | L62: 0 | M62: 20.65313849 | N62: 20.30034934 | O62: 15.87504838 | P62: 9.343509375 | Q62: 3.300626047 | R62: 2.585984084 | S62: 0 | T62: 4.679440016 | U62: 0 | V62: 0 | W62: 4.155435905 | X62: 33.29513229 | Y62: 1.679758075 | Z62: 21.57205845 | AA62: 16.16016093 | AB62: 2.10312392 | AC62: 11.12520592 | AD62: 20.58588573 | AE62: 4.463289009 | AF62: 3.177044387 | AG62: 58.65861446 | AH62: 7.325790294 | AI62: 17.86010119 | AJ62: 0 | AK62: 0.1820606886 | AL62: 6.093900361
B63: Surface water protected | C63: 2.751995597 | D63: 2.807917014 | E63: 3.506230288 | F63: 1.269348554 | G63: 0.5163312531 | H63: 0.5758899238 | I63: 0 | J63: 0.1502739412 | K63: 0 | L63: 0 | M63: 2.734225724 | N63: 2.792290058 | O63: 3.288257069 | P63: 3.619748624 | Q63: 2.934176755 | R63: 0.2990645665 | S63: 0 | T63: 1.566759019 | U63: 1.23686321 | V63: 0 | W63: 0 | X63: 11.43531379 | Y63: 1.346243346 | Z63: 1.137072074 | AA63: 3.783889199 | AB63: 0.1751128305 | AC63: 0.8531345688 | AD63: 3.197215043 | AE63: 6.724144207 | AF63: 0.2191957613 | AG63: 11.93330099 | AH63: 7.276479679 | AI63: 0.2566471827 | AJ63: 0 | AK63: 0.6284643956 | AL63: 1.289053166
B64: Surface water unprotected | C64: 4.303553598 | D64: 3.321242508 | E64: 1.820137605 | F64: 0.4594474146 | G64: 0.155072306 | H64: 0 | I64: 0 | J64: 0 | K64: 0 | L64: 0 | M64: 4.141047903 | N64: 4.43329127 | O64: 2.84674405 | P64: 2.175137329 | Q64: 0.9521529618 | R64: 0.6170120823 | S64: 0 | T64: 1.388126335 | U64: 0.210254523 | V64: 4.04291623 | W64: 6.467494619 | X64: 2.927684599 | Y64: 0.3150291866 | Z64: 6.705484137 | AA64: 5.290508023 | AB64: 7.857530036 | AC64: 0.6775948597 | AD64: 1.735656276 | AE64: 0.5575574056 | AF64: 0.7857224169 | AG64: 8.554367764 | AH64: 0.8724692476 | AI64: 2.08136164 | AJ64: 0 | AK64: 4.355384659 | AL64: 0.1503289586
B65: Rainwater | C65: 2.046347129 | D65: 3.986897939 | E65: 7.422153328 | F65: 2.13019053 | G65: 0.4284992011 | H65: 0.1143967987 | I65: 0.387936995 | J65: 0.7057108173 | K65: 0.3013926004 | L65: 0.02492647378 | M65: 2.15734691 | N65: 2.745994935 | O65: 4.907469237 | P65: 8.439502432 | Q65: 4.225070243 | R65: 1.428477636 | S65: 0.08291594518 | T65: 0 | U65: 0.180093156 | V65: 0.18478749 | W65: 2.49533543 | X65: 3.803561543 | Y65: 0.2619445585 | Z65: 0.1475497574 | AA65: 0.2343994159 | AB65: 0.3642404272 | AC65: 1.854072014 | AD65: 8.30424 | AE65: 11.36027458 | AF65: 1.076537535 | AG65: 0.6125475898 | AH65: 7.073610463 | AI65: 0.823657854 | AJ65: 0.2499004805 | AK65: 0.7726776787 | AL65: 10.12092039
B66: Tanker truck | C66: 3.682829922 | D66: 9.017452827 | E66: 15.12582654 | F66: 25.66203746 | G66: 17.17911671 | H66: 32.57427077 | I66: 29.60713046 | J66: 19.08194459 | K66: 17.52217777 | L66: 12.68368944 | M66: 2.641770266 | N66: 6.062954097 | O66: 9.000419643 | P66: 12.85239673 | Q66: 21.88985495 | R66: 31.26589685 | S66: 0.1551081316 | T66: 47.08554879 | U66: 7.953204911 | V66: 47.578637 | W66: 13.79331031 | X66: 10.15831579 | Y66: 30.23068176 | Z66: 29.00859989 | AA66: 5.204279836 | AB66: 16.0151567 | AC66: 23.1129429 | AD66: 6.436345182 | AE66: 14.65037941 | AF66: 21.2045971 | AG66: 0.1197321878 | AH66: 8.556172211 | AI66: 7.828572162 | AJ66: 22.11888425 | AK66: 32.22692297 | AL66: 5.445498409
B67: Bottled water | C67: 0.2139379278 | D67: 0.2443992443 | E67: 1.149234714 | F67: 15.0744628 | G67: 34.94991069 | H67: 10.59982013 | I67: 21.87852101 | J67: 29.61165319 | K67: 40.68434694 | L67: 55.00712268 | M67: 0.1528845819 | N67: 0.3306871325 | O67: 0.1570474385 | P67: 0.6431318079 | Q67: 3.007118751 | R67: 2.087286545 | S67: 12.54151062 | T67: 4.294383673 | U67: 7.231404132 | V67: 0 | W67: 53.83038458 | X67: 0.7829454794 | Y67: 1.272388612 | Z67: 0.1050851219 | AA67: 0.2289666732 | AB67: 5.580932601 | AC67: 0.4117557057 | AD67: 0.7366826546 | AE67: 2.74030576 | AF67: 4.26172106 | AG67: 0.03891296104 | AH67: 0 | AI67: 0.1146500337 | AJ67: 56.08137933 | AK67: 3.912415985 | AL67: 22.56995648
B68: Container | C68: 0.2365757435 | D68: 1.081193129 | E68: 0.9335087019 | F68: 0.2211307948 | G68: 0 | H68: 0 | I68: 0.06771553428 | J68: 0 | K68: 0 | L68: 0 | M68: 0.1919291424 | N68: 0.6366982376 | O68: 1.38484878 | P68: 0.8294050193 | Q68: 0.501830037 | R68: 0 | S68: 0 | T68: 0.903019102 | U68: 0 | V68: 0 | W68: 0 | X68: 0.05409003803 | Y68: 0 | Z68: 0.2248610751 | AA68: 0 | AB68: 0 | AC68: 0 | AD68: 3.453081351 | AE68: 0 | AF68: 0 | AG68: 0 | AH68: 0 | AI68: 0 | AJ68: 0 | AK68: 0 | AL68: 0.5239561489
B69: Other | C69: 1.033019906 | D69: 1.192556343 | E69: 0.6326611678 | F69: 0.7377633697 | G69: 0.2513340408 | H69: 1.8755471 | I69: 0.4832527005 | J69: 0.2334715156 | K69: 0.04864456257 | L69: 0.4097073842 | M69: 1.18945319 | N69: 0.9395927482 | O69: 1.103915286 | P69: 0.5611512976 | Q69: 0.4075178129 | R69: 1.4524642 | S69: 0.4222771606 | T69: 0.217652314 | U69: 1.572162924 | V69: 0.2679385865 | W69: 0.2670937621 | X69: 1.582747288 | Y69: 0.08426669128 | Z69: 0.2732267551 | AA69: 0.7659728818 | AB69: 0.1327554267 | AC69: 0.01274301133 | AD69: 1.679429871 | AE69: 0.9367755024 | AF69: 0.3323219726 | AG69: 0.1837688683 | AH69: 1.042982248 | AI69: 0.4265036017 | AJ69: 0.1272445275 | AK69: 0.3196290219 | AL69: 0.855877665
A108: =A1026 -> Yemen
A109: =A1034 -> 2013
A110: Use of sanitation facilities
A111: by wealth quintile and sub-national region
A112: Notes:
A113: WHO/UNICEF JMP customised wealth index excludes water,
A114: sanitation and hygiene assets.
A115: Survey used for analysis: | B115: =A1025 -> DHS13
A116: =B1030 -> Ratio of Improved latrines based on: | B116: MICS06
A117: =B1029 -> Ratio of Shared improved based on: | B117: MICS06
A120: Use of sanitation facilities | C120: NATIONAL wealth index quintile | H120: URBAN wealth index quintile | M120: RURAL wealth index quintile | R120: SUB-REGIONS: | BA120: Raw numbers of respondents: | BB120: Use of sanitation facilities | BC120: NATIONAL wealth index quintile | BH120: URBAN wealth index quintile | BM120: RURAL wealth index quintile | BR120: SUB-REGIONS:
A121: Weighted percentage (used in graphs) | C121: Poorest | D121: Poor | E121: Middle | F121: Rich | G121: Richest | H121: Poorest | I121: Poor | J121: Middle | K121: Rich | L121: Richest | M121: Poorest | N121: Poor | O121: Middle | P121: Rich | Q121: Richest | R121: Abyan | S121: Aden | T121: Al-Baidha | U121: Al-Hodiedah | V121: Al-Jawf | W121: Al-Mhrah | X121: Al-Mhweit | Y121: Aldhalae | Z121: Amran | AA121: Dhamar | AB121: Hadramout | AC121: Hajjah | AD121: Ibb | AE121: lahj | AF121: Mareb | AG121: Reimah | AH121: Sadah | AI121: Sanaa | AJ121: Sanaa City | AK121: Shabwah | AL121: Taiz | BA121: Sanitation data, raw numbers (weighted) | BC121: Poorest | BD121: Poor | BE121: Middle | BF121: Rich | BG121: Richest | BH121: Poorest | BI121: Poor | BJ121: Middle | BK121: Rich | BL121: Richest | BM121: Poorest | BN121: Poor | BO121: Middle | BP121: Rich | BQ121: Richest | BR121: Abyan | BS121: Aden | BT121: Al-Baidha | BU121: Al-Hodiedah | BV121: Al-Jawf | BW121: Al-Mhrah | BX121: Al-Mhweit | BY121: Aldhalae | BZ121: Amran | CA121: Dhamar | CB121: Hadramout | CC121: Hajjah | CD121: Ibb | CE121: lahj | CF121: Mareb | CG121: Reimah | CH121: Sadah | CI121: Sanaa | CJ121: Sanaa City | CK121: Shabwah | CL121: Taiz
A122: Sanitation | B122: Improved | C122: =C153+C154+(C155+C156)*MICS06!C130/100 -> 13.92144899 | D122: =D153+D154+(D155+D156)*MICS06!D130/100 -> 38.73347608 | E122: =E153+E154+(E155+E156)*MICS06!E130/100 -> 60.21855188 | F122: =F153+F154+(F155+F156)*MICS06!F130/100 -> 82.80380819 | G122: =G153+G154+(G155+G156)*MICS06!G130/100 -> 96.24767311 | H122: =H153+H154+(H155+H156)*MICS06!H130/100 -> 74.64329272 | I122: =I153+I154+(I155+I156)*MICS06!I130/100 -> 91.19081983 | J122: =J153+J154+(J155+J156)*MICS06!J130/100 -> 97.47905261 | K122: =K153+K154+(K155+K156)*MICS06!K130/100 -> 97.41058383 | L122: =L153+L154+(L155+L156)*MICS06!L130/100 -> 99.28860566 | M122: =M153+M154+(M155+M156)*MICS06!M130/100 -> 11.43064631 | N122: =N153+N154+(N155+N156)*MICS06!N130/100 -> 27.49761075 | O122: =O153+O154+(O155+O156)*MICS06!O130/100 -> 44.72915212 | P122: =P153+P154+(P155+P156)*MICS06!P130/100 -> 57.47927697 | Q122: =Q153+Q154+(Q155+Q156)*MICS06!Q130/100 -> 77.32280682 | R122: =R153+R154+(R155+R156)*MICS06!R130/100 -> 67.38547305 | S122: =S153+S154+(S155+S156)*MICS06!S130/100 -> 97.99287078 | T122: =T153+T154+(T155+T156)*MICS06!T130/100 -> 75.25219798 | U122: =U153+U154+(U155+U156)*MICS06!U130/100 -> 73.32696181 | V122: =V153+V154+(V155+V156)*MICS06!V130/100 -> 54.63198539 | W122: =W153+W154+(W155+W156)*MICS06!W130/100 -> 90.17204757 | X122: =X153+X154+(X155+X156)*MICS06!X130/100 -> 15.09011372 | Y122: =Y153+Y154+(Y155+Y156)*MICS06!Y130/100 -> 65.33992607 | Z122: =Z153+Z154+(Z155+Z156)*MICS06!Z130/100 -> 43.92024135 | AA122: =AA153+AA154+(AA155+AA156)*MICS06!AA130/100 -> 49.80966895 | AB122: =AB153+AB154+(AB155+AB156)*MICS06!AB130/100 -> 87.63078022 | AC122: =AC153+AC154+(AC155+AC156)*MICS06!AC130/100 -> 32.90398758 | AD122: =AD153+AD154+(AD155+AD156)*MICS06!AD130/100 -> 63.5342608 | AE122: =AE153+AE154+(AE155+AE156)*MICS06!AE130/100 -> 71.74178541 | AF122: =AF153+AF154+(AF155+AF156)*MICS06!AF130/100 -> 55.93163754 | AG122: =AG153+AG154+(AG155+AG156)*MICS06!AG130/100 -> 23.87352248 | AH122: =AH153+AH154+(AH155+AH156)*MICS06!AH130/100 -> 53.71838208 | AI122: =AI153+AI154+(AI155+AI156)*MICS06!AI130/100 -> 18.2469986 | AJ122: =AJ153+AJ154+(AJ155+AJ156)*MICS06!AJ130/100 -> 99.07165822 | AK122: =AK153+AK154+(AK155+AK156)*MICS06!AK130/100 -> 64.64929681 | AL122: =AL153+AL154+(AL155+AL156)*MICS06!AL130/100 -> 49.00291922 | BA122: Sanitation | BB122: Improved | BC122: N/A | BD122: N/A | BE122: N/A | BF122: N/A | BG122: N/A | BH122: N/A | BI122: N/A | BJ122: N/A | BK122: N/A | BL122: N/A | BM122: N/A | BN122: N/A | BO122: N/A | BP122: N/A | BQ122: N/A | BR122: N/A | BS122: N/A | BT122: N/A | BU122: N/A | BV122: N/A | BW122: N/A | BX122: N/A | BY122: N/A | BZ122: N/A | CA122: N/A | CB122: N/A | CC122: N/A | CD122: N/A | CE122: N/A | CF122: N/A | CG122: N/A | CH122: N/A | CI122: N/A | CJ122: N/A | CK122: N/A | CL122: N/A
B123: Not Improved | C123: =100-C122 -> 86.07855101 | D123: =100-D122 -> 61.26652392 | E123: 39.78144812 | F123: 17.19619181 | G123: 3.75232689 | H123: 25.35670728 | I123: 8.809180172 | J123: 2.52094739 | K123: 2.589416166 | L123: 0.7113943427 | M123: 88.56935369 | N123: 72.50238925 | O123: 55.27084788 | P123: 42.52072303 | Q123: 22.67719318 | R123: 32.61452695 | S123: 2.007129224 | T123: 24.74780202 | U123: 26.67303819 | V123: 45.36801461 | W123: 9.827952429 | X123: 84.90988628 | Y123: 34.66007393 | Z123: 56.07975865 | AA123: 50.19033105 | AB123: 12.36921978 | AC123: 67.09601242 | AD123: 36.4657392 | AE123: 28.25821459 | AF123: 44.06836246 | AG123: 76.12647752 | AH123: 46.28161792 | AI123: 81.7530014 | AJ123: 0.9283417802 | AK123: 35.35070319 | AL123: 50.99708078 | BB123: Not Improved | BC123: N/A | BD123: N/A | BE123: N/A | BF123: N/A | BG123: N/A | BH123: N/A | BI123: N/A | BJ123: N/A | BK123: N/A | BL123: N/A | BM123: N/A | BN123: N/A | BO123: N/A | BP123: N/A | BQ123: N/A | BR123: N/A | BS123: N/A | BT123: N/A | BU123: N/A | BV123: N/A | BW123: N/A | BX123: N/A | BY123: N/A | BZ123: N/A | CA123: N/A | CB123: N/A | CC123: N/A | CD123: N/A | CE123: N/A | CF123: N/A | CG123: N/A | CH123: N/A | CI123: N/A | CJ123: N/A | CK123: N/A | CL123: N/A
A124: Sanitation ladder | B124: Basic | C124: =C122*MICS06!C129/100 -> 12.14887228 | D124: =D122*MICS06!D129/100 -> 34.9113872 | E124: =E122*MICS06!E129/100 -> 57.66029434 | F124: =F122*MICS06!F129/100 -> 79.79970066 | G124: =G122*MICS06!G129/100 -> 94.82264168 | H124: =H122*MICS06!H129/100 -> 72.59393462 | I124: =I122*MICS06!I129/100 -> 87.3467109 | J124: =J122*MICS06!J129/100 -> 94.51611883 | K124: =K122*MICS06!K129/100 -> 97.41058383 | L124: =L122*MICS06!L129/100 -> 99.01858316 | M124: =M122*MICS06!M129/100 -> 10.1375801 | N124: =N122*MICS06!N129/100 -> 24.38007514 | O124: =O122*MICS06!O129/100 -> 41.39871191 | P124: =P122*MICS06!P129/100 -> 54.00327381 | Q124: =Q122*MICS06!Q129/100 -> 73.88781313 | R124: =R122*MICS06!R129/100 -> 62.46191211 | S124: =S122*MICS06!S129/100 -> 97.08200153 | T124: =T122*MICS06!T129/100 -> 75.25219798 | U124: =U122*MICS06!U129/100 -> 68.63033268 | V124: =V122*MICS06!V129/100 -> 50.94236982 | W124: =W122*MICS06!W129/100 -> 83.37814212 | X124: =X122*MICS06!X129/100 -> 14.79129959 | Y124: =Y122*MICS06!Y129/100 -> 61.34495625 | Z124: =Z122*MICS06!Z129/100 -> 36.5396003 | AA124: =AA122*MICS06!AA129/100 -> 49.25950674 | AB124: =AB122*MICS06!AB129/100 -> 83.32695285 | AC124: =AC122*MICS06!AC129/100 -> 28.46506277 | AD124: =AD122*MICS06!AD129/100 -> 61.51203589 | AE124: =AE122*MICS06!AE129/100 -> 65.50052778 | AF124: =AF122*MICS06!AF129/100 -> 51.01457051 | AG124: =AG122*MICS06!AG129/100 -> 23.87352248 | AH124: =AH122*MICS06!AH129/100 -> 50.81383023 | AI124: =AI122*MICS06!AI129/100 -> 17.70188272 | AJ124: =AJ122*MICS06!AJ129/100 -> 98.27566167 | AK124: =AK122*MICS06!AK129/100 -> 63.56714819 | AL124: =AL122*MICS06!AL129/100 -> 47.51979022 | BA124: Sanitation ladder | BB124: Basic | BC124: N/A | BD124: N/A | BE124: N/A | BF124: N/A | BG124: N/A | BH124: N/A | BI124: N/A | BJ124: N/A | BK124: N/A | BL124: N/A | BM124: N/A | BN124: N/A | BO124: N/A | BP124: N/A | BQ124: N/A | BR124: N/A | BS124: N/A | BT124: N/A | BU124: N/A | BV124: N/A | BW124: N/A | BX124: N/A | BY124: N/A | BZ124: N/A | CA124: N/A | CB124: N/A | CC124: N/A | CD124: N/A | CE124: N/A | CF124: N/A | CG124: N/A | CH124: N/A | CI124: N/A | CJ124: N/A | CK124: N/A | CL124: N/A
B125: Limited | C125: =C122*MICS06!C128/100 -> 1.772576713 | D125: =D122*MICS06!D128/100 -> 3.822088872 | E125: =E122*MICS06!E128/100 -> 2.55825754 | F125: =F122*MICS06!F128/100 -> 3.004107524 | G125: =G122*MICS06!G128/100 -> 1.425031434 | H125: =H122*MICS06!H128/100 -> 2.049358098 | I125: =I122*MICS06!I128/100 -> 3.844108926 | J125: =J122*MICS06!J128/100 -> 2.962933779 | K125: =K122*MICS06!K128/100 -> 0 | L125: =L122*MICS06!L128/100 -> 0.2700224984 | M125: =M122*MICS06!M128/100 -> 1.293066202 | N125: =N122*MICS06!N128/100 -> 3.117535615 | O125: =O122*MICS06!O128/100 -> 3.33044021 | P125: =P122*MICS06!P128/100 -> 3.476003167 | Q125: =Q122*MICS06!Q128/100 -> 3.434993687 | R125: =R122*MICS06!R128/100 -> 4.923560939 | S125: =S122*MICS06!S128/100 -> 0.9108692489 | T125: =T122*MICS06!T128/100 -> 0 | U125: =U122*MICS06!U128/100 -> 4.696629126 | V125: =V122*MICS06!V128/100 -> 3.689615567 | W125: =W122*MICS06!W128/100 -> 6.793905447 | X125: =X122*MICS06!X128/100 -> 0.2988141331 | Y125: =Y122*MICS06!Y128/100 -> 3.994969816 | Z125: =Z122*MICS06!Z128/100 -> 7.380641046 | AA125: =AA122*MICS06!AA128/100 -> 0.5501622097 | AB125: =AB122*MICS06!AB128/100 -> 4.303827365 | AC125: =AC122*MICS06!AC128/100 -> 4.438924812 | AD125: =AD122*MICS06!AD128/100 -> 2.022224913 | AE125: =AE122*MICS06!AE128/100 -> 6.241257629 | AF125: =AF122*MICS06!AF128/100 -> 4.917067037 | AG125: =AG122*MICS06!AG128/100 -> 0 | AH125: =AH122*MICS06!AH128/100 -> 2.904551844 | AI125: =AI122*MICS06!AI128/100 -> 0.5451158826 | AJ125: =AJ122*MICS06!AJ128/100 -> 0.7959965506 | AK125: =AK122*MICS06!AK128/100 -> 1.082148621 | AL125: =AL122*MICS06!AL128/100 -> 1.483129006 | BB125: Limited | BC125: N/A | BD125: N/A | BE125: N/A | BF125: N/A | BG125: N/A | BH125: N/A | BI125: N/A | BJ125: N/A | BK125: N/A | BL125: N/A | BM125: N/A | BN125: N/A | BO125: N/A | BP125: N/A | BQ125: N/A | BR125: N/A | BS125: N/A | BT125: N/A | BU125: N/A | BV125: N/A | BW125: N/A | BX125: N/A | BY125: N/A | BZ125: N/A | CA125: N/A | CB125: N/A | CC125: N/A | CD125: N/A | CE125: N/A | CF125: N/A | CG125: N/A | CH125: N/A | CI125: N/A | CJ125: N/A | CK125: N/A | CL125: N/A
B126: Unimproved | C126: =100-C124-C125-C127 -> 25.97761804 | D126: =100-D124-D125-D127 -> 29.6968204 | E126: 21.33299825 | F126: 10.05607563 | G126: 1.659462884 | H126: 18.2544733 | I126: 5.917929065 | J126: 1.339000225 | K126: 2.171556627 | L126: 0.2487940666 | M126: 23.11812587 | N126: 31.93558746 | O126: 26.7667288 | P126: 22.88332284 | Q126: 9.594636694 | R126: 12.40565777 | S126: 1.83830613 | T126: 3.986787517 | U126: 4.469560137 | V126: 27.24896422 | W126: 5.580583011 | X126: 40.79769221 | Y126: 22.37472412 | Z126: 19.96540254 | AA126: 16.57892859 | AB126: 9.66505697 | AC126: 20.03445886 | AD126: 17.3256672 | AE126: 16.75542531 | AF126: 19.0129417 | AG126: 35.99518246 | AH126: 37.32729695 | AI126: 36.16507813 | AJ126: 0.8289924807 | AK126: 16.09823022 | AL126: 14.20572896 | BB126: Unimproved | BC126: N/A | BD126: N/A | BE126: N/A | BF126: N/A | BG126: N/A | BH126: N/A | BI126: N/A | BJ126: N/A | BK126: N/A | BL126: N/A | BM126: N/A | BN126: N/A | BO126: N/A | BP126: N/A | BQ126: N/A | BR126: N/A | BS126: N/A | BT126: N/A | BU126: N/A | BV126: N/A | BW126: N/A | BX126: N/A | BY126: N/A | BZ126: N/A | CA126: N/A | CB126: N/A | CC126: N/A | CD126: N/A | CE126: N/A | CF126: N/A | CG126: N/A | CH126: N/A | CI126: N/A | CJ126: N/A | CK126: N/A | CL126: N/A
